Workbook

Sheet Лист1
A1: LAS, 0,5 m. | K1: LAS, 2,0 m. | T1: 2007-07-23 | U1: Time | V1: TimeT | W1: 0.5 | X1: PM 1 | Y1: 2 | Z1: PM 1 | AA1: count | AB1: 2007-07-28 | AC1: Time | AD1: 0.2750038944 | AE1: 0.3469124255 | AF1: 0.2809418318 | AG1: 0.1676199247 | AH1: 0.09383226471 | AI1: 0.08866831105 | AJ1: 0.2553147479 | AK1: 0.5399612373 | AL1: 0.5556201132 | AM1: 1.619883712 | AN1: 2.211681228 | AO1: 0.6785840132 | AP1: 0 | AQ1: 0 | AR1: TimeT | AS1: 0.5 | AT1: PM 1 | AU1: count | AV1: PM 1 | AX1: 2007-07-29 | AY1: Time | AZ1: 0.5 | BA1: PM 1 | BB1: 2 | BC1: PM 1 | BD1: count | BE1: 2009-07-20 | BF1: Time | BG1: 1.5 | BI1: 2 | BK1: count | BL1: 2009-07-22 | BM1: Time | BN1: 1.5 | BP1: 2 | BR1: count | BS1: 2009-07-23 | BT1: Time | BU1: 1.5 | BW1: 2 | BY1: count | BZ1: 2009-07-24 | CA1: Time | CB1: 1.5 | CD1: 2 | CF1: count | CG1: 2009-07-25 | CH1: Time | CI1: 1.5 | CK1: 2 | CM1: count | CN1: 2009-07-26 | CO1: Time | CP1: 1.5 | CR1: 2 | CT1: count | CU1: 2009-07-27 | CV1: Time | CW1: 1.5 | CY1: 2 | DA1: count | DB1: 2010-07-18 | DC1: Time | DD1: 0.5 | DF1: 2 | DH1: count | DI1: 2010-07-19 | DJ1: Time | DK1: 0.5 | DM1: 2 | DO1: count | DP1: 2010-07-20 | DQ1: Time | DR1: 0.5 | DT1: 2 | DV1: count | DX1: Time | DY1: 0.5 | EA1: 2 | EC1: 2011 | ED1: Time | EE1: 0.5 | EG1: 2 | EI1: count | EJ1: 18,23-24.07.2013 | EK1: Time | EL1: 0.5 | EN1: 2 | EP1: count | EQ1: 2013-07-21 | ER1: Time | ES1: 0.5 | EU1: 2 | EX1: 2013-07-22 | EY1: Time | EZ1: 0.5 | FB1: 2 | FE1: 25-27.07.2013 | FF1: Time | FG1: 0.5 | FI1: 2 | FN1: LAS, 0,5 m. | FX1: Данные пибора ЛАС на высоте 2,0 м. | GH1: 2002 | GK1: mass concentration (Phoenix) | GO1: Point 2 (h = 2 (1.5) m) | GR1: Point 3 (h = 0 (0.5) m) | HA1: 2018 | HC1: mass concentration (LAS) | HI1: Mass concentration | HT1: 2003 | HU1: mass concentration (Phoenix) | HX1: h = 1.5 m | HZ1: h = 0.5 m | IG1: 2004 | IH1: mass concentration (Phoenix) | IV1: new for 2002, 2003, 2004 | IZ1: 2002 | JF1: Aerosol spectrometer LAS | JN1: Mass concentration, LAS | JV1: 2003 | JZ1: Aerosol spectrometer LAS | KJ1: Mass concentration, LAS | KQ1: 2004 | KZ1: LAS | LE1: Royko
Q2: day | U2: 10:41:59 | V2: 10:41:20 | X2: 6.979726958 | Z2: 7.598911097 | AA2: 261.95 | AC2: 10:11:57 | AD2: 0.2762200851 | AE2: 0.3385626613 | AF2: 0.2954615154 | AG2: 0.1676199247 | AH2: 0.1176887339 | AI2: 0.2110396281 | AJ2: 0.6508275185 | AK2: 1.468530941 | AL2: 1.481653635 | AM2: 4.761476366 | AN2: 6.165899181 | AO2: 2.940530724 | AP2: 1.286220392 | AQ2: 0 | AR2: 10:11:15 | AT2: 1.966245757 | AU2: 108.31 | AV2: 2.057420067 | AY2: 09:30:35 | BA2: 3.758732247 | BB2: 09:30:53 | BC2: 3.786560171 | BD2: 193.70 | BF2: 11:06:03 | BH2: 3.196493229 | BI2: 11:05:49 | BJ2: 3.433672086 | BK2: 195.74 | BM2: 10:59:44 | BO2: 9.393373791 | BR2: 7.640099285 | BT2: 08:54:15 | BV2: 2.324703502 | BY2: 142.3833 | CA2: 08:02:56 | CC2: 6.431332178 | CH2: 09:11:48 | CJ2: 4.901205704 | CO2: 09:36:11 | CQ2: 3.248748061 | CT2: 241.6667 | CV2: 08:25:36 | CX2: 3.322417985 | DA2: 235.7666 | DC2: 40377.41255 | DG2: 3.918570316 | DH2: 244.67 | DJ2: 09:15:25 | DL2: 11.9311006 | DN2: 3.360782327 | DO2: 218.58 | DQ2: 09:26:46 | DS2: 16.19449477 | DU2: 5.857428105 | DV2: 299.90 | DW2: 2011-07-27T10:08:00.002 | DX2: 10:08:10 | DZ2: 1.436618934 | EB2: 3.606154934 | ED2: 2011-07-20T08:34:36 | EF2: 5.178450318 | EH2: 4.495828962 | EI2: 330.8667 | EK2: 2013-07-18T10:56:00 | EM2: 1.911618224 | EN2: 2013-07-18T10:56:03 | EO2: 6.788922929 | EP2: 376.665 | ER2: 2013-07-21T12:31:06 | ET2: 1.990346804 | EV2: 2.026508926 | EY2: 2013-07-22T12:01:58 | FA2: 5.388914903 | FC2: 5.437229792 | FF2: 2013-07-25T12:00:02 | FH2: 1.271846991 | FJ2: 1.110086894 | GD2: day | GI2: Time | GO2: Time | GP2: microgm/m3 | GR2: Time | GS2: microgm/m3 | GW2: day | HI2: density 1,8 gm/sm3 | IK2: h=0,5 | IM2: h=1 | IO2: h=2 | IW2: LAS | JN2: density 2 gm/sm3 | JZ2: N/cm3 | KJ2: density 2 gm/sm3
A3: Pm 1,0 | E3: Date | F3: count | H3: mass | K3: Date | L3: count | N3: mass | P3: date | Q3: mean 0,5 | R3: mean 2,0 | U3: 10:42:59 | V3: 10:42:20 | X3: 7.180809898 | Z3: 7.651920658 | AA3: 262.34 | AC3: 10:12:57 | AD3: 0.2815517933 | AE3: 0.349497274 | AF3: 0.2871116629 | AG3: 0.1638798718 | AH3: 0.1065620767 | AI3: 0.08866831105 | AJ3: 0.2160850259 | AK3: 0.4581489286 | AL3: 0.4489859501 | AM3: 1.488984018 | AN3: 1.876578012 | AO3: 1.130973355 | AP3: 0 | AQ3: 0 | AR3: 10:12:15 | AT3: 1.783402882 | AU3: 108.33 | AV3: 1.493356016 | AY3: 09:29:35 | BA3: 3.695257399 | BB3: 09:31:55 | BC3: 3.584938009 | BD3: 180.61 | BF3: 11:06:45 | BH3: 3.199820306 | BI3: 11:06:52 | BJ3: 3.657561286 | BK3: 201.84 | BM3: 11:00:44 | BO3: 9.225791693 | BR3: 7.559326997 | BT3: 08:55:15 | BV3: 2.17781653 | BY3: 141.4833 | CA3: 08:03:56 | CC3: 6.432450681 | CH3: 09:13:48 | CJ3: 4.733977352 | CO3: 09:37:11 | CQ3: 3.467714091 | CT3: 238.8001 | CV3: 08:26:36 | CX3: 3.382277446 | DA3: 234.9333 | DC3: 40377.41324 | DG3: 4.966492811 | DH3: 258.32 | DJ3: 09:16:25 | DL3: 11.8948144 | DN3: 3.471452499 | DO3: 223.38 | DQ3: 09:27:46 | DS3: 16.81955474 | DU3: 4.83420424 | DV3: 308.90 | DW3: 2011-07-27T10:09:00.002 | DX3: 10:09:10 | DZ3: 1.915225644 | EB3: 4.312160358 | ED3: 2011-07-20T08:35:36 | EF3: 5.159616514 | EH3: 4.465651412 | EI3: 325.45 | EK3: 2013-07-18T10:57:00 | EM3: 1.853823282 | EN3: 2013-07-18T10:57:03 | EO3: 7.597724839 | EP3: 392.2216667 | ER3: 2013-07-21T12:34:06 | ET3: 1.738992685 | EV3: 2.003853898 | EY3: 2013-07-22T12:04:58 | FA3: 5.559032774 | FC3: 5.585129745 | FF3: 2013-07-25T12:03:02 | FH3: 1.251299149 | FJ3: 1.116197593 | FN3: Pm 1,0 | FO3: summ. Concentration | FR3: date | FS3: count | FU3: mass | FX3: date | FY3: count | GA3: mass | GC3: date | GD3: mean 0,5 | GE3: mean 2,0 | GO3: 2002-06-24 | GV3: date | GW3: mean 0,5 | GX3: mean 2,0 | HI3: LAS (А) - 0,5 m | HL3: LAS (В) - 2,0 m | HP3: day | HV3: Время | HX3: mg/cm3 | HZ3: mg/cm3 | IC3: day | II3: Time | IK3: F-1 | IM3: F-2 | IO3: F-3 | IR3: day | JC3: SUM | KY3: 1= | KZ3: 2= | LA3: 3= | LB3: 4= | LC3: 5= | LD3: 1= | LE3: 2= | LF3: 3= | LG3: 4= | LH3: 5= | LI3: 6= | LJ3: 7= | LK3: 8= | LL3: 9= | LP3: day
P4: 2014 | U4: 10:43:59 | V4: 10:43:20 | X4: 7.157582827 | Z4: 7.689975593 | AA4: 262.78 | AC4: 10:13:57 | AD4: 0.2885671987 | AE4: 0.3500936857 | AF4: 0.3016313465 | AG4: 0.1459204338 | AH4: 0.1208759582 | AI4: 0.02510760849 | AJ4: 0.05402125647 | AK4: 0.1677152328 | AL4: 0.1234711363 | AM4: 0.6544984695 | AN4: 0.737227076 | AO4: 0.2261946711 | AP4: 0 | AQ4: 0 | AR4: 10:13:15 | AT4: 1.713764609 | AU4: 105.09 | AV4: 1.286217488 | AY4: 09:31:35 | BA4: 3.158770727 | BB4: 09:32:56 | BC4: 3.781217464 | BD4: 186.86 | BF4: 11:06:55 | BH4: 3.381144395 | BI4: 11:07:55 | BJ4: 3.38689148 | BK4: 194.86 | BM4: 11:01:44 | BO4: 9.180912631 | BR4: 7.467559665 | BT4: 08:56:15 | BV4: 2.191619996 | BY4: 140.9333 | CA4: 08:04:56 | CC4: 6.528214333 | CH4: 09:14:48 | CJ4: 4.775121111 | CO4: 09:38:11 | CQ4: 3.340989037 | CS4: 4.422137431 | CT4: 232.3999 | CV4: 08:27:36 | CX4: 3.404166287 | DA4: 237.0501 | DC4: 40377.41394 | DG4: 4.587924788 | DH4: 253.35 | DJ4: 09:17:25 | DL4: 11.52567428 | DN4: 3.398749972 | DO4: 218.97 | DQ4: 09:28:46 | DS4: 16.39278744 | DU4: 4.851167496 | DV4: 308.88 | DW4: 2011-07-27T10:10:00.002 | DX4: 10:10:10 | DZ4: 1.197402378 | EB4: 3.120046523 | ED4: 2011-07-20T08:36:36 | EF4: 5.147342025 | EH4: 4.227098579 | EI4: 313.6 | EK4: 2013-07-18T10:58:00 | EM4: 1.90230062 | EN4: 2013-07-18T10:58:03 | EO4: 7.399775404 | EP4: 380.2783333 | ER4: 2013-07-21T12:37:06 | ET4: 1.725382541 | EV4: 1.95866908 | EY4: 2013-07-22T12:07:58 | FA4: 5.564199681 | FC4: 5.603793461 | FF4: 2013-07-25T12:06:02 | FH4: 1.371714374 | FJ4: 1.214101785 | FW4: 2016-07-19T11:16:20 | FY4: 311.767 | GA4: =(1/6)*PI()*(2000)*(1/1000)*FY4*POWER(0.175,3) -> 1.749735663 | GC4: 2016 | GO4: 08:39:10 | GP4: 7.420072727 | GR4: 08:55:10 | GS4: 7.389890909 | GV4: 2002 | HJ4: LAS (В) - 2,0 m | HM4: count | HO4: date | HP4: mean 0,5 | HQ4: mean 2,0 | HV4: 2003-06-26T11:40:52 | IB4: date | IC4: mean 0,5 | ID4: mean 2,0 | II4: hour:minute | IK4: С, microgm/m3 | IM4: С, microgm/m3 | IO4: С, microgm/m3 | IQ4: date | IR4: mean 0,5 | IS4: mean 2,0 | JC4: N/cm3 | JD4: 1=0.15-0.20 | JE4: 2=0.20-0.25 | JF4: 3=0.25-0.30 | JG4: 4=0.30-0.40 | JH4: 5=0.40-0.50 | JI4: 6=0.50-0.70 | JJ4: 7=0.70-1.00 | JK4: 8=1.00-2.00 | JL4: 9=>2.00 | JO4: count | JR4: day | JZ4: h = 2.5 m | KR4: Time | KT4: LAS | KU4: LAS+Рroyko | KV4: LAS+Royko until 4 chanel | KX4: SUM | KY4: 0,15-0,2 | KZ4: 0,2-0,25 | LA4: 0,25-0,3 | LB4: 0,3-0,4 | LC4: 0,4-0,5 | LD4: 0.5 - 0.7 | LE4: 0,7-1,0 | LF4: 1,0-1,5 | LG4: 1,5-2,0 | LH4: 2,0-3,0 | LI4: 3,0-5,0 | LJ4: 5,0-7,0 | LK4: 7,0-10 | LL4: 10 - 15 | LO4: date | LP4: mean 1,5/2
A5: 2014-07-22 | B5: 11:57:19 | C5: =A5+B5 -> 2014-07-22T11:57:19 | E5: 2014-07-22T11:57:01 | F5: 118.3875 | H5: 0.6644290521 | K5: 2014-07-22T11:57:01 | L5: 74.3125 | N5: 0.4170658552 | P5: 2014-07-22 | Q5: =AVERAGE(H29:H267,H269:H271,H273,H278:H366,H8:H26) -> 0.5956848175 | R5: =AVERAGE(N29:N267,N269:N271,N273,N278:N366,N8:N26) -> 0.2522148301 | S5: =AVERAGE(L29:L267,L269:L271,L273,L278:L366,L8:L26) -> 44.93946059 | U5: 10:44:59 | V5: 10:44:20 | X5: 7.122275989 | Z5: 7.67328123 | AA5: 260.43 | AC5: 10:14:57 | AD5: 0.2699528025 | AE5: 0.3612263071 | AF5: 0.2976393591 | AG5: 0.1504102933 | AH5: 0.1065620767 | AI5: 0.2051585667 | AJ5: 0.6386084248 | AK5: 1.249683015 | AL5: 1.414305743 | AM5: 4.106977896 | AN5: 5.361651462 | AO5: 1.809557368 | AP5: 0 | AQ5: 0 | AR5: 10:14:15 | AT5: 1.90537649 | AU5: 106.72 | AV5: 2.02955783 | AY5: 09:28:35 | BA5: 3.105550639 | BB5: 09:33:58 | BC5: 3.388658554 | BD5: 187.10 | BH5: 0 | BI5: 11:08:58 | BJ5: 3.373722971 | BK5: 198.02 | BM5: 11:02:44 | BO5: 9.043001436 | BR5: 7.503231962 | BT5: 08:57:15 | BV5: 1.701780019 | BY5: 113.2833 | CA5: 08:05:56 | CC5: 6.657581593 | CH5: 09:15:48 | CJ5: 4.566696724 | CO5: 09:39:11 | CQ5: 3.52437897 | CS5: 4.449892683 | CT5: 230.6332 | CV5: 08:28:36 | CX5: 3.349919777 | DA5: 235.8334 | DC5: 40377.41463 | DG5: 3.914167579 | DH5: 244.58 | DJ5: 09:18:25 | DL5: 11.14332873 | DN5: 3.531791852 | DO5: 219.85 | DQ5: 09:29:46 | DS5: 16.22065461 | DU5: 4.862149376 | DV5: 307.98 | DW5: 2011-07-27T10:11:00.002 | DX5: 10:11:10 | DZ5: 0.9544513662 | EB5: 2.179542937 | ED5: 2011-07-20T08:37:36 | EF5: 5.06066219 | EH5: 4.244202696 | EI5: 311.3332 | EK5: 2013-07-18T10:59:00 | EM5: 1.818744345 | EN5: 2013-07-18T10:59:03 | EO5: 7.511530663 | EP5: 388.8883333 | ER5: 2013-07-21T12:40:06 | ET5: 1.712941543 | EV5: 1.925988006 | EY5: 2013-07-22T12:10:58 | FA5: 5.709363542 | FC5: 5.736334673 | FF5: 2013-07-25T12:09:02 | FH5: 1.337198579 | FJ5: 1.176842125 | FW5: 2016-07-19T11:18:13 | FY5: 309.583 | GA5: =(1/6)*PI()*(2000)*(1/1000)*FY5*POWER(0.175,3) -> 1.737482088 | GC5: 2014-07-19 | GD5: =AVERAGE(FU28:FU219) -> 1.550526404 | GE5: =AVERAGE(GA28:GA211) -> 1.484722113 | GF5: =AVERAGE(FY28:FY211) -> 264.547 | GO5: 08:44:10 | GP5: 7.40874 | GR5: 09:00:10 | GS5: 7.44794 | GV5: 2014-06-24 | GW5: =AVERAGE(GS9:GS23) -> 12.60518459 | GX5: =AVERAGE(GP9:GP23) -> 10.28627237 | HC5: 2018-07-30 | HD5: 19:49:00 | HI5: 6.27751326 | HJ5: 8.783282658 | HL5: 5.65 | HM5: 161.525 | HO5: 2018 | HV5: 2003-06-26T11:50:02 | IB5: 2003 | IH5: 2004-06-29 | IQ5: 2004 | JA5: Data | JB5: Time | JQ5: date | JR5: mean 1,5/2 | KN5: day | KT5: Density=2 | KY5: 0.175 | KZ5: 0.225 | LA5: 0.275 | LB5: 0.35 | LC5: 0.45 | LD5: 0.6 | LE5: 0.85 | LF5: 1.25 | LG5: 1.75 | LH5: 2.5 | LI5: 4 | LJ5: 6 | LK5: 8.5 | LL5: 12.5 | LO5: 2004
A6: 2014-07-22 | B6: 11:58:22 | C6: =A6+B6 -> 2014-07-22T11:58:22 | E6: 2014-07-22T11:58:01 | F6: 156.4833333 | H6: 0.8782352261 | K6: 2014-07-22T11:58:01 | L6: 74.2 | N6: 0.4164344687 | P6: 2014-07-23 | Q6: =AVERAGE(H1197:H1302,H1305:H1316) -> 1.237873161 | R6: =AVERAGE(N1197:N1302,N1305:N1316) -> 0.1255713109 | S6: =AVERAGE(L1197:L1302,L1305:L1316) -> 22.37420763 | U6: 10:45:59 | V6: 10:45:20 | X6: 7.086969151 | Z6: 7.843485669 | AA6: 260.53 | AC6: 10:15:57 | AD6: 0.2945533039 | AE6: 0.3479072403 | AF6: 0.2885642846 | AG6: 0.1668746081 | AH6: 0.1113333705 | AI6: 0.1117401675 | AJ6: 0.2893995883 | AK6: 0.6831327775 | AL6: 0.6678666007 | AM6: 1.767145868 | AN6: 2.814867018 | AO6: 0.2261946711 | AP6: 0 | AQ6: 0 | AR6: 10:15:15 | AT6: 1.85305061 | AU6: 111.03 | AV6: 1.610372563 | AY6: 09:27:35 | BA6: 3.086876014 | BB6: 09:34:35 | BC6: 3.472780151 | BD6: 0.00 | BH6: 0 | BI6: 11:10:01 | BJ6: 3.455253191 | BK6: 197.1 | BM6: 11:03:44 | BO6: 8.843350984 | BR6: 7.350709406 | BT6: 08:58:15 | BV6: 2.121270978 | BY6: 141.8834 | CA6: 08:06:56 | CC6: 6.527939672 | CH6: 09:16:48 | CJ6: 4.645982471 | CO6: 09:40:11 | CQ6: 2.775177524 | CS6: 3.530280707 | CT6: 188.0666 | CV6: 08:29:36 | CX6: 3.409813553 | CZ6: 5.727396399 | DA6: 228.8832 | DC6: 40377.41532 | DG6: 3.902324368 | DH6: 236.77 | DJ6: 09:19:25 | DL6: 11.29576418 | DN6: 3.277477922 | DO6: 212.38 | DQ6: 09:30:46 | DS6: 15.76892255 | DU6: 4.687040356 | DV6: 303.15 | DW6: 2011-07-27T10:12:00.002 | DX6: 10:12:10 | DZ6: 1.296174815 | EB6: 4.270379511 | ED6: 2011-07-20T08:38:36 | EF6: 4.950766573 | EH6: 4.241641166 | EI6: 305.8166 | EK6: 2013-07-18T11:00:00 | EM6: 1.948734832 | EN6: 2013-07-18T11:00:03 | EO6: 7.838718757 | EP6: 391.11 | ER6: 2013-07-21T12:43:06 | ET6: 1.700154562 | EV6: 1.918648254 | EY6: 2013-07-22T12:13:58 | FA6: 5.759883793 | FC6: 5.766016688 | FF6: 2013-07-25T12:12:02 | FH6: 1.365820872 | FJ6: 1.185104028 | FR6: 2016-07-19T11:19:31 | FS6: 347.750 | FU6: =(1/6)*PI()*(2000)*(1/1000)*FS6*POWER(0.175,3) -> 1.951685802 | FW6: 2016-07-19T11:20:07 | FY6: 306.183 | GA6: 1.718400185 | GC6: 2014-07-20 | GD6: =AVERAGE(FU770:FU959) -> 1.312851657 | GE6: =AVERAGE(GA762:GA952) -> 1.354196573 | GF6: =AVERAGE(FY762:FY952) -> 241.290 | GO6: 09:20:03 | GP6: 7.643 | GR6: 09:30:03 | GS6: 7.70778 | GV6: 2014-06-25 | GW6: =AVERAGE(GS37:GS50) -> 21.65451349 | GX6: =AVERAGE(GP37:GP50) -> 21.33200714 | HC6: 2018-07-30 | HD6: 19:50:00 | HI6: 5.625926818 | HJ6: 8.429623019 | HL6: 5.58 | HM6: 169.85 | HO6: 2014-07-30 | HV6: 2003-06-26T11:50:07 | IB6: 2014-06-26 | IC6: =AVERAGE(HZ80:HZ114) -> 438.4631085 | ID6: =AVERAGE(HX80:HX114) -> 257.7958732 | II6: 2004-06-29T12:45:37 | IK6: 17.35 | IM6: 13.72 | IO6: 20.00 | IQ6: 2014-06-29 | IR6: =AVERAGE(IK6:IK577) -> 81.36 | IS6: =AVERAGE(IO6:IO577) -> 44.77 | JA6: 2002-06-23 | JB6: 12:43:45 | JC6: 201.3187 | JD6: 103.7582 | JE6: 61.1209 | JF6: 23.7363 | JG6: 7.6264 | JH6: 2.5714 | JI6: 0.3516 | JJ6: 0.3516 | JK6: 1.0769 | JL6: 0.7253 | JN6: =((2*PI())/6*(POWER(0.175,3)*JD6+POWER(0.225,3)*JE6+POWER(0.275,3)*JF6+POWER(0.35,3)*JG6+POWER(0.45,3)*JH6+POWER(0.6,3)*JI6+POWER(0.85,3)*JJ6)) -> 2.72 | JO6: =(JD6+JE6+JF6+JG6+JH6+JI6+JJ6) -> 199.52 | JQ6: 2002 | JY6: SUM | JZ6: 1=0.15-0.20 | KA6: 2=0.20-0.25 | KB6: 3=0.25-0.30 | KC6: 4=0.30-0.40 | KD6: 5=0.40-0.50 | KE6: 6=0.50-0.70 | KF6: 7=0.70-1.00 | KG6: 8=1.00-2.00 | KH6: 9=>2.00 | KM6: date | KN6: mean 1,5/2 | KS6: count | LO6: 2014-06-29 | LP6: =AVERAGE(KV7:KV578) -> 3.22 | LQ6: =AVERAGE(KS7:KS578) -> 272.34
A7: 2014-07-22 | B7: 11:59:25 | C7: =A7+B7 -> 2014-07-22T11:59:25 | E7: 2014-07-22T11:59:01 | F7: 156.6333333 | H7: 0.8790770748 | K7: 2014-07-22T11:59:01 | L7: 76.26666667 | N7: 0.4280332724 | P7: 2014-07-24 | U7: 10:46:59 | V7: 10:46:20 | X7: 6.998387135 | Z7: 7.920114257 | AA7: 260.58 | AC7: 10:16:57 | AD7: 0.3093327989 | AE7: 0.3703716845 | AF7: 0.310706421 | AG7: 0.170614661 | AH7: 0.1001971707 | AI7: 0.0359649527 | AJ7: 0.08746298667 | AK7: 0.1779417714 | AL7: 0.2132683263 | AM7: 0.6708609312 | AN7: 0.9382890059 | AO7: 0.2261946711 | AP7: 0 | AQ7: 0 | AR7: 10:16:15 | AT7: 1.773671399 | AU7: 110.10 | AV7: 1.384650676 | AY7: 09:32:35 | BA7: 2.955942535 | BB7: 09:35:00 | BC7: 3.609942668 | BD7: 192.11 | BF7: 11:11:11 | BH7: 3.700074808 | BI7: 11:11:04 | BJ7: 4.811057863 | BK7: 326.052041 | BM7: 11:04:44 | BO7: 8.939071382 | BR7: 7.314658541 | BT7: 08:59:15 | BV7: 2.155267452 | BY7: 139.3 | CA7: 08:07:56 | CC7: 6.408437515 | CH7: 09:17:48 | CJ7: 4.472792966 | CO7: 09:41:11 | CQ7: 3.262107075 | CS7: 4.402131279 | CT7: 223.8168 | CV7: 08:30:36 | CX7: 3.14725012 | CZ7: 5.645623524 | DA7: 217.8 | DC7: 40377.41602 | DG7: 3.717751529 | DH7: 235.30 | DJ7: 09:20:25 | DL7: 11.80612786 | DN7: 3.444909476 | DO7: 221.72 | DQ7: 09:31:46 | DS7: 16.12033302 | DU7: 4.818886654 | DV7: 310.47 | DW7: 2011-07-27T10:13:00.002 | DX7: 10:13:10 | DZ7: 1.509344561 | EB7: 3.005221799 | ED7: 2011-07-20T08:39:36 | EF7: 4.950348471 | EH7: 4.281369679 | EI7: 305.2 | EK7: 2013-07-18T11:01:00 | EM7: 1.802885847 | EN7: 2013-07-18T11:01:03 | EO7: 7.652910814 | EP7: 400.8333333 | ER7: 2013-07-21T12:46:06 | ET7: 1.661423769 | EV7: 1.953481832 | EY7: 2013-07-22T12:16:58 | FA7: 5.652444368 | FC7: 5.894573279 | FF7: 2013-07-25T12:15:02 | FH7: 1.337572921 | FJ7: 1.179305374 | FR7: 2016-07-19T11:21:25 | FS7: 347.583 | FU7: =(1/6)*PI()*(2000)*(1/1000)*FS7*POWER(0.175,3) -> 1.950750414 | FW7: 2016-07-19T11:22:00 | FY7: 308.967 | GA7: 1.734021155 | GC7: 2014-07-21 | GD7: =AVERAGE(FU1530:FU1721) -> 1.552476589 | GE7: =AVERAGE(GA1508:GA1677) -> 1.426285304 | GF7: =AVERAGE(FY1508:FY1677) -> 254.135 | GO7: 09:50:03 | GP7: 7.2775 | GR7: 10:00:56 | GS7: 7.13633 | GV7: 2014-06-26 | GW7: =AVERAGE(GS65:GS71) -> 31.20272175 | GX7: =AVERAGE(GP65:GP71) -> 17.82964782 | HC7: 2018-07-30 | HD7: 19:51:00 | HI7: 4.629623231 | HJ7: 9.053494723 | HL7: 5.92 | HM7: 168.3 | HO7: 2014-07-31 | HV7: 2003-06-26T11:50:12 | IB7: 2014-06-27 | IC7: =AVERAGE(HZ152:HZ187) -> 40.19358312 | ID7: =AVERAGE(HX152:HX187) -> 32.00052039 | II7: 38167.53237 | IK7: 17.60 | IM7: 14.37 | IO7: 20.00 | IQ7: 2014-06-30 | IR7: =AVERAGE(IK907:IK1268) -> 173.26 | IS7: =AVERAGE(IO907:IO1268) -> 72.12 | JN7: =((2*PI())/6*(POWER(0.175,3)*JD7+POWER(0.225,3)*JE7+POWER(0.275,3)*JF7+POWER(0.35,3)*JG7+POWER(0.45,3)*JH7+POWER(0.6,3)*JI7+POWER(0.85,3)*JJ7)) -> 0.00 | JO7: =(JD7+JE7+JF7+JG7+JH7+JI7+JJ7) -> 0.00 | JQ7: 2014-06-23 | JR7: =AVERAGE(JN91:JN200) -> 6.43 | JS7: =AVERAGE(JO91:JO200) -> 365.77 | JW7: 2003-06-26T11:40:52 | JY7: 612.58242 | JZ7: 452.72483 | KA7: 114.27956 | KB7: 32.98286 | KC7: 9.17186 | KD7: 2.82022 | KE7: 0.4532 | KF7: 0.27585 | KG7: 0.008783333333 | KH7: 0.05715 | KJ7: =((2*PI())/6*(POWER(0.175,3)*JZ7+POWER(0.225,3)*KA7+POWER(0.275,3)*KB7+POWER(0.35,3)*KC7+POWER(0.45,3)*KD7+POWER(0.6,3)*KE7+POWER(0.85,3)*KF7)) -> 5.58 | KK7: =(JZ7+KA7+KB7+KC7+KD7+KE7+KF7) -> 612.70838 | KM7: 2003 | KR7: 2004-06-29T12:45:37 | KS7: =(KY7+KZ7+LA7+LB7+LC7+LD7+LE7) -> 387.3846 | KT7: =((2*PI())/6*(POWER(0.175,3)*KY7+POWER(0.225,3)*KZ7+POWER(0.275,3)*LA7+POWER(0.35,3)*LB7+POWER(0.45,3)*LC7)) -> 4.52 | KU7: =((2*PI())/6*POWER(1,-6)*(POWER(0.175,3)*KY7+POWER(0.225,3)*KZ7+POWER(0.275,3)*LA7+POWER(0.35,3)*LB7+POWER(0.45,3)*LC7+POWER(0.6,3)*LD7+POWER(0.85,3)*LE7+POWER(1.25,3)*LF7+POWER(1.75,3)*LG7+POWER(2.5,3)*LH7+POWER(4,3)*LI7+POWER(6,3)*LJ7+POWER(8.5,3)*LK7+POWER(12.5,3)*LL7)) -> 15.89973121 | KV7: =((2*PI())/6*(POWER(0.175,3)*KY7+POWER(0.225,3)*KZ7+POWER(0.275,3)*LA7+POWER(0.35,3)*LB7+POWER(0.45,3)*LC7+POWER(0.6,3)*LD7+POWER(0.85,3)*LE7)) -> 4.724464368 | KW7: L | KX7: 387.4 | KY7: 194.25 | KZ7: 127.6333 | LA7: 49.95 | LB7: 12.15 | LC7: 2.8333 | LD7: 0.377 | LE7: 0.191 | LF7: 0.095 | LG7: 0.045 | LH7: 0.032 | LI7: 0.023 | LJ7: 0.006 | LK7: 0.005 | LL7: 0.002 | LO7: 2014-06-30 | LP7: =AVERAGE(KV909:KV1269) -> 4.71 | LQ7: =AVERAGE(KS909:KS1269) -> 357.70
A8: 2014-07-22 | B8: 12:00:28 | C8: =A8+B8 -> 2014-07-22T12:00:28 | E8: 2014-07-22T12:00:01 | F8: 155.1833333 | H8: 0.8709392044 | K8: 2014-07-22T12:00:01 | L8: 74.81666667 | N8: 0.4198954021 | P8: 2014-07-25 | U8: 10:47:59 | V8: 10:47:20 | X8: 6.900477535 | Z8: 8.051567599 | AA8: 257.65 | AC8: 10:17:57 | AD8: 0.2905315123 | AE8: 0.3654011892 | AF8: 0.305623334 | AG8: 0.174354714 | AH8: 0.1208759582 | AI8: 0.02488141382 | AJ8: 0.05595058706 | AK8: 0.1268090785 | AL8: 0.07857254126 | AM8: 0.4254240052 | AN8: 0.2680825731 | AO8: 0.9047786842 | AP8: 0 | AQ8: 0 | AR8: 10:17:15 | AT8: 1.735731396 | AU8: 109.06 | AV8: 1.337618708 | AY8: 09:33:35 | BA8: 2.993209992 | BB8: 09:36:01 | BC8: 3.463540087 | BD8: 192.63 | BF8: 11:12:11 | BH8: 3.573403227 | BI8: 11:12:07 | BJ8: 5.187955062 | BK8: 388.55 | BM8: 11:05:44 | BO8: 8.768172741 | BR8: 7.175071813 | BT8: 09:00:15 | BV8: 2.2932556 | BY8: 140.9667 | CA8: 08:08:56 | CC8: 6.61123449 | CH8: 09:18:48 | CJ8: 4.523825407 | CO8: 09:42:11 | CQ8: 3.280510209 | CS8: 4.240874866 | CT8: 223.6667 | CV8: 08:31:36 | CX8: 3.124213415 | CZ8: 5.771839136 | DA8: 220.4 | DC8: 40377.41671 | DG8: 4.152365069 | DH8: 253.40 | DJ8: 09:21:25 | DL8: 11.51322492 | DN8: 3.481650148 | DO8: 233.02 | DQ8: 09:32:46 | DS8: 16.70602122 | DU8: 4.784148867 | DV8: 303.18 | DW8: 2011-07-27T10:14:00.002 | DX8: 10:14:10 | DZ8: 1.4545041 | EB8: 3.58043614 | ED8: 2011-07-20T08:40:36 | EF8: 4.756838794 | EH8: 4.177805404 | EI8: 293.8833 | EK8: 2013-07-18T11:02:00 | EM8: 2.050721783 | EN8: 2013-07-18T11:02:03 | EO8: 6.9072145 | EP8: 368.0566667 | ER8: 2013-07-21T12:49:06 | ET8: 1.636596191 | EV8: 1.901684748 | EY8: 2013-07-22T12:19:58 | FA8: 5.650280776 | FC8: 5.770683673 | FF8: 2013-07-25T12:18:02 | FH8: 1.42821196 | FJ8: 1.201443188 | FR8: 2016-07-19T11:23:19 | FS8: 353.183 | FU8: 1.982179431 | FW8: 2016-07-19T11:23:53 | FY8: 316.133 | GA8: 1.774242813 | GC8: 2014-07-22 | GD8: =AVERAGE(FU2254:FU2445) -> 1.951833905 | GE8: =AVERAGE(GA2237:GA2427) -> 1.766844927 | GF8: =AVERAGE(FY2237:FY2427) -> 314.815 | GO8: 10:20:50 | GP8: 6.931222222 | GR8: 10:30:50 | GS8: 7.01334 | HC8: 2018-07-30 | HD8: 19:52:00 | HI8: 4.174758412 | HJ8: 7.988899049 | HL8: 5.50 | HM8: 170.225 | HO8: 2014-08-01 | HP8: =AVERAGE(HI945:HI1305) -> 21.93169572 | HQ8: =AVERAGE(HL945:HL1306) -> 20.68 | HR8: =AVERAGE(HM945:HM1306) -> 295.81 | HV8: 2003-06-26T11:50:17 | IB8: 2014-06-28 | IC8: =AVERAGE(HZ255:HZ305) -> 15.05945907 | ID8: =AVERAGE(HX255:HX305) -> 18.73311353 | II8: 38167.53307 | IK8: 25.81 | IM8: 25.42 | IO8: 26.20 | IQ8: 2014-07-01 | JA8: 2002-06-23 | JB8: 12:52:03 | JC8: 216.5848 | JD8: 110.2455 | JE8: 65.8929 | JF8: 25.8036 | JG8: 7.8125 | JH8: 3.125 | JI8: 0.692 | JJ8: 0.625 | JK8: 1.7634 | JL8: 0.625 | JN8: 3.17 | JO8: =(JD8+JE8+JF8+JG8+JH8+JI8+JJ8) -> 214.20 | JQ8: 2014-06-24 | JR8: =AVERAGE(JN425:JN779) -> 3.81 | JS8: =AVERAGE(JO425:JO779) -> 239.04 | JW8: 2003-06-26T11:50:02 | JY8: 113.36572 | JZ8: 59.17714 | KA8: 37.79429 | KB8: 11.61143 | KC8: 3.36571 | KD8: 1.12572 | KE8: 0.09715 | KF8: 0.3886 | KG8: 0 | KH8: 0 | KJ8: =((2*PI())/6*(POWER(0.175,3)*JZ8+POWER(0.225,3)*KA8+POWER(0.275,3)*KB8+POWER(0.35,3)*KC8+POWER(0.45,3)*KD8+POWER(0.6,3)*KE8+POWER(0.85,3)*KF8)) -> 1.57 | KK8: =(JZ8+KA8+KB8+KC8+KD8+KE8+KF8) -> 113.56004 | KM8: 2014-06-26 | KN8: =AVERAGE(KJ20:KJ117) -> 2.24 | KO8: =AVERAGE(KK20:KK117) -> 133.12 | KR8: 38167.53237 | KS8: =(KY8+KZ8+LA8+LB8+LC8+LD8+LE8) -> 388.995 | KT8: =((2*PI())/6*(POWER(0.175,3)*KY8+POWER(0.225,3)*KZ8+POWER(0.275,3)*LA8+POWER(0.35,3)*LB8+POWER(0.45,3)*LC8)) -> 4.47 | KU8: =((2*PI())/6*POWER(1,-6)*(POWER(0.175,3)*KY8+POWER(0.225,3)*KZ8+POWER(0.275,3)*LA8+POWER(0.35,3)*LB8+POWER(0.45,3)*LC8+POWER(0.6,3)*LD8+POWER(0.85,3)*LE8+POWER(1.25,3)*LF8+POWER(1.75,3)*LG8+POWER(2.5,3)*LH8+POWER(4,3)*LI8+POWER(6,3)*LJ8+POWER(8.5,3)*LK8+POWER(12.5,3)*LL8)) -> 15.85214371 | KV8: =((2*PI())/6*(POWER(0.175,3)*KY8+POWER(0.225,3)*KZ8+POWER(0.275,3)*LA8+POWER(0.35,3)*LB8+POWER(0.45,3)*LC8+POWER(0.6,3)*LD8+POWER(0.85,3)*LE8)) -> 4.719255643 | KW8: L | KX8: 388.8833 | KY8: 195.4 | KZ8: 128.4667 | LA8: 50.5 | LB8: 11.6833 | LC8: 2.3 | LD8: 0.404 | LE8: 0.241 | LF8: 0.093 | LG8: 0.041 | LH8: 0.038 | LI8: 0.036 | LJ8: 0.005 | LK8: 0.007 | LL8: 0.001 | LO8: 2014-07-01
A9: 2014-07-22 | B9: 12:01:33 | C9: =A9+B9 -> 2014-07-22T12:01:33 | E9: 2014-07-22T12:01:01 | F9: 152.9166667 | H9: 0.8582179358 | K9: 2014-07-22T12:01:01 | L9: 74.18333333 | N9: 0.41634093 | P9: 2014-07-26 | Q9: =AVERAGE(H1988:H1992,H1996:H2029,H2036:H2255) -> 2.143598608 | R9: =AVERAGE(N1988:N1992,N1996:N2029,N2036:N2255) -> 1.417445149 | S9: =AVERAGE(L1988:L1992,L1996:L2029,L2036:L2255) -> 252.5593772 | U9: 10:48:59 | V9: 10:48:20 | X9: 7.073333853 | Z9: 8.085063056 | AA9: 259.71 | AC9: 10:18:57 | AD9: 0.2804293284 | AE9: 0.3550641811 | AF9: 0.3070759557 | AG9: 0.174354714 | AH9: 0.1097397584 | AI9: 0.02103610441 | AJ9: 0.0495194851 | AK9: 0.1104466167 | AL9: 0.1122464875 | AM9: 0.310886773 | AN9: 0.3351032164 | AO9: 0.2261946711 | AP9: 0 | AQ9: 0 | AR9: 10:18:15 | AT9: 1.81006515 | AU9: 107.40 | AV9: 1.297219527 | AY9: 09:26:35 | BA9: 2.9877131 | BB9: 09:37:03 | BC9: 3.315047838 | BD9: 195.94 | BF9: 11:13:11 | BH9: 3.889288346 | BI9: 11:13:10 | BJ9: 5.904856525 | BK9: 388.872 | BM9: 11:06:44 | BO9: 8.671412747 | BR9: 7.183472301 | BT9: 09:01:15 | BV9: 2.237268209 | BY9: 138.0999 | CA9: 08:09:56 | CC9: 6.693415688 | CH9: 09:19:48 | CJ9: 4.693038918 | CO9: 09:43:11 | CQ9: 3.305904735 | CS9: 4.286882705 | CT9: 221.7333 | CV9: 08:32:36 | CX9: 3.085212231 | CZ9: 5.356735753 | DA9: 220.4001 | DC9: 40377.41741 | DG9: 4.740605105 | DH9: 259.43 | DJ9: 09:22:25 | DL9: 11.35807665 | DN9: 3.452658021 | DO9: 227.13 | DQ9: 09:33:46 | DS9: 16.22665651 | DU9: 4.818246012 | DV9: 310.57 | DW9: 2011-07-27T10:15:00.002 | DX9: 10:15:10 | DZ9: 1.453226026 | EB9: 3.831833582 | ED9: 2011-07-20T08:41:36 | EF9: 5.10871003 | EH9: 4.08984473 | EI9: 290.7166 | EK9: 2013-07-18T11:03:00 | EM9: 2.013949605 | EN9: 2013-07-18T11:03:03 | EO9: 6.776183661 | EP9: 376.1116667 | ER9: 2013-07-21T12:52:06 | ET9: 1.685855391 | EV9: 1.970513389 | EY9: 2013-07-22T12:22:58 | FA9: 5.630532005 | FC9: 5.829538757 | FF9: 2013-07-25T12:21:02 | FH9: 1.495683885 | FJ9: 1.2313131 | FR9: 2016-07-19T11:25:13 | FS9: 346.450 | FU9: 1.94438978 | FW9: 2016-07-19T11:25:47 | FY9: 303.583 | GA9: 1.703808142 | GC9: 2014-07-23 | GD9: =AVERAGE(FU2984:FU3175) -> 2.068645278 | GE9: =AVERAGE(GA2999:GA3190) -> 2.448569433 | GF9: =AVERAGE(FY2999:FY3190) -> 436.284 | GO9: 10:50:25 | GP9: 7.264255556 | GR9: 11:00:25 | GS9: 7.1274 | HC9: 2018-07-30 | HD9: 19:53:00 | HI9: 4.285059976 | HJ9: 6.777088342 | HL9: 5.12 | HM9: 164.7 | HO9: 2014-08-02 | HP9: =AVERAGE(HI2386:HI2747) -> 3.225129289 | HQ9: =AVERAGE(HL2386:HL2747) -> 3.25 | HR9: =AVERAGE(HM2386:HM2747) -> 92.49 | HV9: 2003-06-26T11:50:22 | IB9: 2014-06-29 | II9: 38167.53376 | IK9: 31.03 | IO9: 30.10 | IQ9: 2014-07-02 | IR9: =AVERAGE(IK1509:IK1629) -> 1958.53 | IS9: =AVERAGE(IO1509:IO1629) -> 479.53 | IT9: storm | JA9: 2002-06-23 | JB9: 12:53:03 | JC9: 219.8438 | JD9: 111.9643 | JE9: 67.4554 | JF9: 27.5223 | JG9: 7.6786 | JH9: 2.9018 | JI9: 0.4241 | JJ9: 0.5804 | JK9: 0.9821 | JL9: 0.3348 | JN9: 3.12 | JO9: =(JD9+JE9+JF9+JG9+JH9+JI9+JJ9) -> 218.53 | JQ9: 2014-06-25 | JR9: =AVERAGE(JN1079:JN1432) -> 8.70 | JS9: =AVERAGE(JO1079:JO1432) -> 509.37 | JW9: 2003-06-26T11:50:07 | JY9: 113.50857 | JZ9: 59.09142 | KA9: 37.85143 | KB9: 11.69714 | KC9: 3.56571 | KD9: 1.06858 | KE9: 0.09715 | KF9: 0.3429 | KG9: 0 | KH9: 0 | KJ9: =((2*PI())/6*(POWER(0.175,3)*JZ9+POWER(0.225,3)*KA9+POWER(0.275,3)*KB9+POWER(0.35,3)*KC9+POWER(0.45,3)*KD9+POWER(0.6,3)*KE9+POWER(0.85,3)*KF9)) -> 1.54 | KK9: 113.71433 | KM9: 2014-06-27 | KN9: =AVERAGE(KJ155:KJ190) -> 8.22 | KO9: =AVERAGE(KK155:KK190) -> 444.76 | KR9: 38167.53307 | KS9: 383.2897 | KT9: 4.47 | KU9: =((2*PI())/6*POWER(1,-6)*(POWER(0.175,3)*KY9+POWER(0.225,3)*KZ9+POWER(0.275,3)*LA9+POWER(0.35,3)*LB9+POWER(0.45,3)*LC9+POWER(0.6,3)*LD9+POWER(0.85,3)*LE9+POWER(1.25,3)*LF9+POWER(1.75,3)*LG9+POWER(2.5,3)*LH9+POWER(4,3)*LI9+POWER(6,3)*LJ9+POWER(8.5,3)*LK9+POWER(12.5,3)*LL9)) -> 20.62897347 | KV9: =((2*PI())/6*(POWER(0.175,3)*KY9+POWER(0.225,3)*KZ9+POWER(0.275,3)*LA9+POWER(0.35,3)*LB9+POWER(0.45,3)*LC9+POWER(0.6,3)*LD9+POWER(0.85,3)*LE9)) -> 4.684409002 | KW9: L | KX9: 383.1667 | KY9: 192.9 | KZ9: 124.95 | LA9: 49.6167 | LB9: 12.55 | LC9: 2.7 | LD9: 0.381 | LE9: 0.192 | LF9: 0.096 | LG9: 0.044 | LH9: 0.039 | LI9: 0.032 | LJ9: 0.003 | LK9: 0.006 | LL9: 0.004 | LO9: 2014-07-02 | LP9: =AVERAGE(KV1510:KV1629) -> 5.02 | LQ9: =AVERAGE(KS1510:KS1629) -> 364.34
E10: 2014-07-22T12:02:01 | F10: 154.65 | H10: 0.8679459647 | K10: 2014-07-22T12:02:01 | L10: 72.55 | N10: 0.4071741335 | P10: 2014-07-27 | Q10: =AVERAGE(H3335:H3695) -> 1.84696335 | R10: =AVERAGE(N3335:N3695) -> 1.170022436 | S10: =AVERAGE(L3335:L3695) -> 208.4737726 | U10: 10:49:59 | V10: 10:49:20 | X10: 7.160099243 | Z10: 8.087995674 | AA10: 259.45 | AC10: 10:19:57 | AD10: 0.2884734729 | AE10: 0.3582442484 | AF10: 0.3212319394 | AG10: 0.170614661 | AH10: 0.1145110522 | AI10: 0.1474789255 | AJ10: 0.4829757573 | AK10: 0.9797023965 | AL10: 1.088790929 | AM10: 2.683443725 | AN10: 3.284011521 | AO10: 0.6785840132 | AP10: 1.286220392 | AQ10: 0 | AR10: 10:19:15 | AT10: 1.883387705 | AU10: 109.67 | AV10: 1.883530057 | AY10: 09:25:35 | BA10: 2.871657295 | BB10: 09:38:04 | BC10: 3.475098348 | BD10: 192.61 | BF10: 11:14:11 | BH10: 3.698665879 | BI10: 11:14:13 | BJ10: 5.591127625 | BK10: 392.778 | BM10: 11:07:44 | BO10: 9.144814198 | BR10: 7.456731746 | BT10: 09:02:15 | BV10: 2.250344995 | BX10: 4.544783435 | BY10: 139.5666 | CA10: 08:10:56 | CC10: 6.456271332 | CH10: 09:20:48 | CJ10: 4.613970622 | CO10: 09:44:11 | CQ10: 3.047531231 | CS10: 4.663581033 | CT10: 210 | CV10: 08:33:36 | CX10: 3.157890125 | CZ10: 5.145486424 | DA10: 216.8667 | DC10: 40377.4181 | DG10: 5.005142495 | DH10: 260.92 | DJ10: 09:23:25 | DL10: 11.53549845 | DN10: 3.458336141 | DO10: 215.85 | DQ10: 09:34:46 | DS10: 16.2903612 | DU10: 4.743419589 | DV10: 301.63 | DW10: 2011-07-27T10:16:00.002 | DX10: 10:16:10 | DZ10: 3.677575684 | EB10: 8.962045808 | ED10: 2011-07-20T08:42:36 | EF10: 5.170327892 | EH10: 4.148310801 | EI10: 282.7166 | EK10: 2013-07-18T11:04:00 | EM10: 1.869537517 | EN10: 2013-07-18T11:04:03 | EO10: 6.632620377 | EP10: 377.4983333 | ER10: 2013-07-21T12:55:06 | ET10: 1.702291562 | EV10: 1.987469895 | EY10: 2013-07-22T12:25:58 | FA10: 5.466847052 | FC10: 5.786465298 | FF10: 2013-07-25T12:24:02 | FH10: 1.449476496 | FJ10: 1.238203351 | FR10: 2016-07-19T11:27:07 | FS10: 340.300 | FU10: 1.909873985 | FW10: 2016-07-19T11:27:40 | FY10: 309.133 | GA10: 1.734956542 | GC10: 2014-07-24 | GD10: =AVERAGE(FU3746:FU3937) -> 1.157899006 | GE10: =AVERAGE(GA3762:GA3953) -> 1.325455632 | GF10: =AVERAGE(FY3762:FY3953) -> 236.169 | GO10: 11:20:47 | GP10: 7.00151 | GR10: 11:30:58 | GS10: 8.664122222 | HC10: 2018-07-30 | HD10: 19:54:00 | HI10: 3.564872931 | HJ10: 6.798040065 | HL10: 5.14 | HM10: 162.275 | HO10: 2014-08-03 | HP10: =AVERAGE(HI3827:HI4165) -> 1.475128577 | HQ10: =AVERAGE(HL3827:HL4165) -> 2.48 | HR10: =AVERAGE(HM3827:HM4165) -> 100.29 | HV10: 2003-06-26T11:50:27 | IB10: 2014-06-30 | IC10: =AVERAGE(HZ498:HZ523) -> 15.1607484 | ID10: =AVERAGE(HX498:HX523) -> 17.93428413 | IQ10: 2014-07-03 | IR10: =AVERAGE(IK1643:IK1702) -> 1098.72 | IS10: =AVERAGE(IO1643:IO1703) -> 398.25 | IT10: storm | JA10: 2002-06-23 | JB10: 12:54:03 | JC10: 235.0567 | JD10: 119.0476 | JE10: 69.9093 | JF10: 26.9841 | JG10: 9.0249 | JH10: 3.2426 | JI10: 0.9297 | JJ10: 1.2245 | JK10: 2.449 | JL10: 2.2449 | JN10: 3.80 | JO10: =(JD10+JE10+JF10+JG10+JH10+JI10+JJ10) -> 230.36 | JQ10: 2014-06-26 | JR10: =AVERAGE(JN1868:JN2037) -> 7.80 | JS10: =AVERAGE(JO1868:JO2037) -> 436.91 | JW10: 2003-06-26T11:50:12 | JY10: 112.65143 | JZ10: 58.61142 | KA10: 38.09143 | KB10: 11.04571 | KC10: 3.6 | KD10: 1.06858 | KE10: 0.09715 | KF10: 0.3429 | KG10: 0 | KH10: 0 | KJ10: =((2*PI())/6*(POWER(0.175,3)*JZ10+POWER(0.225,3)*KA10+POWER(0.275,3)*KB10+POWER(0.35,3)*KC10+POWER(0.45,3)*KD10+POWER(0.6,3)*KE10+POWER(0.85,3)*KF10)) -> 1.53 | KK10: 112.85719 | KM10: 2014-06-28 | KN10: =AVERAGE(KJ259:KJ308) -> 4.88 | KO10: =AVERAGE(KK259:KK308) -> 294.26 | KR10: 38167.53376 | KS10: 378.9734 | KT10: 4.40 | KU10: =((2*PI())/6*POWER(1,-6)*(POWER(0.175,3)*KY10+POWER(0.225,3)*KZ10+POWER(0.275,3)*LA10+POWER(0.35,3)*LB10+POWER(0.45,3)*LC10+POWER(0.6,3)*LD10+POWER(0.85,3)*LE10+POWER(1.25,3)*LF10+POWER(1.75,3)*LG10+POWER(2.5,3)*LH10+POWER(4,3)*LI10+POWER(6,3)*LJ10+POWER(8.5,3)*LK10+POWER(12.5,3)*LL10)) -> 24.29860364 | KV10: 4.62112352 | KW10: L | KX10: 378.9333 | KY10: 191.7667 | KZ10: 122.8333 | LA10: 49.4667 | LB10: 11.5 | LC10: 2.8167 | LD10: 0.389 | LE10: 0.201 | LF10: 0.114 | LG10: 0.051 | LH10: 0.036 | LI10: 0.024 | LJ10: 0.006 | LK10: 0.002 | LL10: 0.007 | LO10: 2014-07-03 | LP10: =AVERAGE(KV1631:KV1702) -> 3.20 | LQ10: =AVERAGE(KS1631:KS1702) -> 183.22
A11: 2014-07-22 | B11: 12:02:38 | C11: =A11+B11 -> 2014-07-22T12:02:38 | E11: 2014-07-22T12:03:01 | F11: 144.2333333 | H11: 0.8094842525 | K11: 2014-07-22T12:03:01 | L11: 72.11666667 | N11: 0.4047421262 | P11: 2014-07-28 | Q11: =AVERAGE(H4526:H4846) -> 0.9722841784 | R11: =AVERAGE(N4526:N4846) -> 0.5695463513 | S11: =AVERAGE(L4526:L4846) -> 101.4813673 | U11: 10:50:59 | V11: 10:50:20 | X11: 7.080291696 | Z11: 8.283881967 | AA11: 259.15 | AC11: 10:20:57 | AD11: 0.3001656283 | AE11: 0.3564550132 | AF11: 0.3161510302 | AG11: 0.1765996437 | AH11: 0.1240536399 | AI11: 0.223480335 | AJ11: 0.6733363753 | AK11: 1.376492094 | AL11: 1.285222282 | AM11: 3.943353279 | AN11: 5.093568889 | AO11: 0.6785840132 | AP11: 1.286220392 | AQ11: 0 | AR11: 10:20:15 | AT11: 1.951626079 | AU11: 109.13 | AV11: 2.170241666 | AY11: 09:34:35 | BA11: 3.074073693 | BB11: 09:39:06 | BC11: 3.027040332 | BD11: 166.02 | BF11: 11:15:11 | BH11: 3.63445653 | BI11: 11:15:16 | BJ11: 5.530075091 | BK11: 403.134 | BM11: 11:08:44 | BO11: 8.91351081 | BR11: 7.246928253 | BT11: 09:03:15 | BV11: 2.148345562 | BX11: 4.594326105 | BY11: 139.9333 | CA11: 08:11:56 | CC11: 6.695186002 | CH11: 09:21:48 | CJ11: 4.547048792 | CO11: 09:45:11 | CQ11: 2.050586885 | CS11: 3.334530621 | CT11: 158.7333 | CV11: 08:34:36 | CX11: 3.150716169 | CZ11: 5.313668019 | DA11: 224.6166 | DC11: 40377.4188 | DG11: 4.565528299 | DH11: 255.43 | DJ11: 09:24:25 | DL11: 11.96294702 | DN11: 3.38690621 | DO11: 222.82 | DQ11: 09:35:46 | DS11: 16.29508487 | DU11: 4.567598196 | DV11: 293.05 | DW11: 2011-07-27T10:17:00.002 | DX11: 10:17:10 | DZ11: 1.758999929 | EB11: 4.009726337 | ED11: 2011-07-20T08:43:36 | EF11: 5.300637537 | EH11: 4.25344738 | EI11: 276.9333 | EK11: 2013-07-18T11:05:00 | EM11: 1.966961796 | EN11: 2013-07-18T11:05:03 | EO11: 6.648894399 | EP11: 389.72 | ER11: 2013-07-21T12:58:06 | ET11: 1.666850416 | EV11: 1.943778076 | EY11: 2013-07-22T12:28:58 | FA11: 5.392110641 | FC11: 5.692526155 | FF11: 2013-07-25T12:27:02 | FH11: 1.456866805 | FJ11: 1.235521221 | FR11: 2016-07-19T11:29:01 | FS11: 346.083 | FU11: 1.942331928 | FW11: 2016-07-19T11:29:33 | FY11: 303.383 | GA11: 1.702685677 | GC11: 2014-07-25 | GD11: =AVERAGE(FU4509:FU4554,FU4571:FU4621,FU4623:FU4666) -> 1.956108658 | GE11: =AVERAGE(GA4525:GA4570,GA4581:GA4694) -> 1.848071771 | GF11: =AVERAGE(FY4525:FY4570,FY4581:FY4694) -> 329.288 | GO11: 11:50:58 | GP11: 8.2488 | GR11: 12:00:58 | GS11: 9.57825 | HC11: 2018-07-30 | HD11: 19:55:00 | HI11: 4.252213152 | HJ11: 7.117650485 | HL11: 5.37 | HM11: 166.425 | HV11: 2003-06-26T11:50:32 | IB11: 2014-07-01 | IC11: =AVERAGE(HZ570:HZ608) -> 13.76313126 | ID11: =AVERAGE(HX570:HX608) -> 16.26740879 | II11: 38167.53459 | IK11: 8.97 | IO11: 6.65 | IQ11: 2014-07-04 | JA11: 2002-06-23 | JB11: 12:55:03 | JC11: 240.4241 | JD11: 119.5982 | JE11: 69.2857 | JF11: 29.1518 | JG11: 8.683 | JH11: 3.6161 | JI11: 1.3393 | JJ11: 2.0536 | JK11: 5.1116 | JL11: 1.5848 | JN11: 4.49 | JO11: 233.73 | JW11: 2003-06-26T11:50:17 | JY11: 112.48 | JZ11: 58.91999 | KA11: 38.09143 | KB11: 10.66857 | KC11: 3.6 | KD11: 0.96573 | KE11: 0.09715 | KF11: 0.3429 | KG11: 0 | KH11: 0 | KJ11: 1.51 | KK11: 112.68577 | KM11: 2014-06-29 | KS11: 0 | KV11: 0 | LO11: 2014-07-04 | LP11: =AVERAGE(KV2089:KV2395) -> 2.34 | LQ11: =AVERAGE(KS2089:KS2395) -> 194.73
A12: 2014-07-22 | B12: 12:03:43 | C12: 2014-07-22T12:03:43 | E12: 2014-07-22T12:04:01 | F12: 132.1166667 | H12: 0.7414815888 | K12: 2014-07-22T12:04:01 | L12: 73.33333333 | N12: 0.4115704542 | P12: 2014-07-29 | Q12: =AVERAGE(H5926:H6174) -> 1.396350098 | R12: =AVERAGE(N5926:N6174) -> 0.896124048 | S12: =AVERAGE(L5926:L6174) -> 159.670751 | U12: 10:51:59 | V12: 10:51:20 | X12: 6.9848991 | Z12: 8.322525358 | AA12: 260.29 | AC12: 10:21:57 | AD12: 0.3081166082 | AE12: 0.3491000638 | AF12: 0.3146984085 | AG12: 0.174354714 | AH12: 0.1097397584 | AI12: 0.08572778033 | AJ12: 0.2675338416 | AK12: 0.593139238 | AL12: 0.5836817351 | AM12: 1.668971097 | AN12: 1.608495439 | AO12: 0.4523893421 | AP12: 0 | AQ12: 2.045307717 | AR12: 10:21:15 | AT12: 1.81132106 | AU12: 109.77 | AV12: 1.609271175 | AY12: 09:35:35 | BA12: 4.460886351 | BB12: 09:40:07 | BC12: 2.452717197 | BD12: 137.96 | BF12: 11:16:11 | BH12: 3.447038718 | BI12: 11:16:19 | BJ12: 5.349932176 | BK12: 388.334 | BM12: 11:09:44 | BO12: 8.659136308 | BR12: 7.264330994 | BT12: 09:04:15 | BV12: 2.171511468 | BX12: 4.283165603 | BY12: 136.2834 | CA12: 08:12:56 | CC12: 6.365229616 | CH12: 09:22:48 | CJ12: 4.362825574 | CO12: 09:46:11 | CQ12: 1.632615414 | CS12: 2.792560204 | CT12: 137.1001 | CV12: 08:35:36 | CX12: 3.376248944 | CZ12: 4.48856811 | DA12: 232.3001 | DC12: 40377.41949 | DG12: 4.800108246 | DH12: 256.35 | DJ12: 09:25:25 | DL12: 11.43210762 | DN12: 3.463443398 | DO12: 226.62 | DQ12: 09:36:46 | DS12: 16.13969635 | DU12: 4.421267749 | DV12: 289.23 | DW12: 2011-07-27T10:18:00.002 | DX12: 10:18:10 | DZ12: 1.867705123 | EB12: 4.018867038 | ED12: 2011-07-20T08:44:36 | EF12: 4.91734369 | EH12: 3.932924971 | EI12: 270.95 | EK12: 2013-07-18T11:06:00 | EM12: 1.87969097 | EN12: 2013-07-18T11:06:03 | EO12: 8.336580089 | EP12: 404.1666667 | ER12: 2013-07-21T13:01:06 | ET12: 1.787065311 | EV12: 1.98866829 | EY12: 2013-07-22T12:31:58 | FA12: 5.328636704 | FC12: 5.684492656 | FF12: 2013-07-25T12:30:02 | FH12: 1.463538175 | FJ12: 1.260932703 | FR12: 2016-07-19T11:30:55 | FS12: 347.417 | FU12: 1.949815027 | FW12: 2016-07-19T11:31:27 | FY12: 299.167 | GA12: 1.679020376 | GC12: 2014-07-26 | GD12: =AVERAGE(FU5238:FU5428) -> 5.628727937 | GE12: =AVERAGE(GA5266:GA5457) -> 3.493405436 | GF12: =AVERAGE(FY5266:FY5457) -> 622.453 | GO12: 12:20:23 | GP12: 8.52879 | GR12: 12:30:11 | GS12: 8.965544444 | HC12: 2018-07-30 | HD12: 19:56:00 | HI12: 3.807323871 | HJ12: 8.112704552 | HL12: 5.35 | HM12: 165.125 | HQ12: average | HV12: 2003-06-26T11:50:37 | IB12: 2014-07-02 | IC12: =AVERAGE(HZ634:HZ664) -> 205.7569616 | ID12: =AVERAGE(HX634:HX664) -> 150.2448992 | II12: 38167.53465 | IK12: 8.75 | IO12: 6.58 | JA12: 2002-06-23 | JB12: 12:56:03 | JC12: 240.5804 | JD12: 117.0089 | JE12: 71.25 | JF12: 28.4821 | JG12: 8.192 | JH12: 3.817 | JI12: 0.9375 | JJ12: 1.7634 | JK12: 5.2679 | JL12: 3.8616 | JN12: 4.21 | JO12: 231.45 | JR12: year average | JW12: 2003-06-26T11:50:22 | JY12: 112.79429 | JZ12: 58.34856 | KA12: 38.72 | KB12: 10.72571 | KC12: 3.8 | KD12: 0.96573 | KE12: 0.09715 | KF12: 0.3429 | KG12: 0 | KH12: 0 | KJ12: 1.53 | KK12: 113.00005 | KM12: 2014-06-30 | KN12: =AVERAGE(KJ501:KJ526) -> 4.95 | KO12: =AVERAGE(KK501:KK526) -> 256.58 | KR12: 38167.53459 | KS12: 306.768 | KT12: 3.52 | KU12: =((2*PI())/6*POWER(1,-6)*(POWER(0.175,3)*KY12+POWER(0.225,3)*KZ12+POWER(0.275,3)*LA12+POWER(0.35,3)*LB12+POWER(0.45,3)*LC12+POWER(0.6,3)*LD12+POWER(0.85,3)*LE12+POWER(1.25,3)*LF12+POWER(1.75,3)*LG12+POWER(2.5,3)*LH12+POWER(4,3)*LI12+POWER(6,3)*LJ12+POWER(8.5,3)*LK12+POWER(12.5,3)*LL12)) -> 5.908346703 | KV12: 3.827826968 | KW12: L | KX12: 306.8 | KY12: 153.2 | KZ12: 100.4 | LA12: 41.6 | LB12: 9.4 | LC12: 1.4 | LD12: 0.444 | LE12: 0.324 | LF12: 0.036 | LG12: 0.036 | LH12: 0.012 | LI12: 0.024 | LJ12: 0 | LK12: 0 | LL12: 0
A13: 2014-07-22 | B13: 12:04:48 | C13: 2014-07-22T12:04:48 | E13: 2014-07-22T12:05:01 | F13: 152.85 | H13: 0.8578437809 | K13: 2014-07-22T12:05:01 | L13: 72.7 | N13: 0.4080159821 | P13: 2014-07-30 | Q13: =AVERAGE(H7389:H7678) -> 1.639486686 | R13: =AVERAGE(N7389:N7678) -> 1.110013254 | S13: =AVERAGE(L7389:L7678) -> 197.781379 | U13: 10:52:59 | V13: 10:52:20 | X13: 6.834551213 | Z13: 8.356173551 | AA13: 259.77 | AC13: 10:22:57 | AD13: 0.2938989069 | AE13: 0.3665940126 | AF13: 0.3157873303 | AG13: 0.1721097842 | AH13: 0.1097397584 | AI13: 0.03053628059 | AJ13: 0.09453719883 | AK13: 0.1799870791 | AL13: 0.2076560019 | AM13: 0.6054110843 | AN13: 1.005309649 | AO13: 0.4523893421 | AP13: 0.6431101961 | AQ13: 0 | AR13: 10:22:15 | AT13: 1.806381596 | AU13: 110.29 | AV13: 1.383203272 | AY13: 09:24:35 | BA13: 2.899327461 | BB13: 09:41:09 | BC13: 3.823212631 | BD13: 142.09 | BF13: 11:17:11 | BH13: 3.879987702 | BI13: 11:17:22 | BJ13: 6.008348375 | BK13: 386.552 | BM13: 11:10:44 | BO13: 9.267445631 | BQ13: 9.785201989 | BR13: 7.853148973 | BT13: 09:05:15 | BV13: 2.118629778 | BX13: 4.633915246 | BY13: 137.1166 | CA13: 08:13:56 | CC13: 6.482390336 | CH13: 09:23:48 | CJ13: 4.423300431 | CO13: 09:47:11 | CQ13: 1.737322378 | CS13: 2.749353292 | CT13: 142.8666 | CV13: 08:36:36 | CX13: 3.393921591 | CZ13: 3.507505175 | DA13: 231.0833 | DC13: 40377.42019 | DG13: 5.017245748 | DH13: 253.23 | DJ13: 09:26:25 | DL13: 12.13048308 | DN13: 3.429650365 | DO13: 223.03 | DQ13: 09:37:46 | DS13: 16.10919838 | DU13: 4.488421384 | DV13: 291.77 | DW13: 2011-07-27T10:19:00.002 | DX13: 10:19:10 | DZ13: 2.125012488 | EB13: 4.480645371 | ED13: 2011-07-20T08:45:36 | EF13: 5.325805738 | EH13: 4.112561796 | EI13: 273.0001 | EK13: 2013-07-18T11:07:00 | EM13: 2.019154231 | EN13: 2013-07-18T11:07:03 | EO13: 8.037055737 | EP13: 404.165 | ER13: 2013-07-21T13:04:06 | ET13: 1.662047765 | EV13: 1.931607181 | EY13: 2013-07-22T12:34:58 | FA13: 5.262725539 | FC13: 5.532134548 | FF13: 2013-07-25T12:33:02 | FH13: 1.470678735 | FJ13: 1.289556119 | FR13: 2016-07-19T11:32:49 | FS13: 350.150 | FU13: 1.96515538 | FW13: 2016-07-19T11:33:20 | FY13: 302.867 | GA13: 1.699785976 | GC13: 2014-07-27 | GD13: =AVERAGE(FU6000:FU6191) -> 5.602385885 | GE13: =AVERAGE(GA6029:GA6220) -> 3.572407671 | GF13: =AVERAGE(FY6029:FY6220) -> 636.529 | GO13: 12:50:57 | GP13: 10.85165 | GR13: 13:00:57 | GS13: 14.50053 | HC13: 2018-07-30 | HD13: 19:57:00 | HI13: 5.456780769 | HJ13: 7.775853415 | HL13: 5.11 | HM13: 156.05 | HQ13: =AVERAGE(HQ8:HQ10) -> 8.80 | HV13: 2003-06-26T11:50:42 | IB13: 2014-07-03 | IC13: =AVERAGE(HZ687:HZ725) -> 172.8332775 | ID13: =AVERAGE(HX687:HX735) -> 161.5045729 | II13: 38167.53471 | IK13: 18.00 | IO13: 19.71 | JA13: 2002-06-23 | JB13: 12:57:03 | JC13: 247.9241 | JD13: 122.5223 | JE13: 72.7902 | JF13: 28.6161 | JG13: 8.5938 | JH13: 3.9732 | JI13: 0.9598 | JJ13: 1.3839 | JK13: 4.3304 | JL13: 4.7545 | JN13: 4.05 | JO13: 238.84 | JR13: =AVERAGE(JR7:JR10) -> 6.68 | JW13: 2003-06-26T11:50:27 | JY13: 111.21715 | JZ13: 57.18285 | KA13: 38.41143 | KB13: 10.48571 | KC13: 4.07428 | KD13: 0.82859 | KE13: 0.06286 | KF13: 0.3429 | KG13: 0.03429 | KH13: 0 | KJ13: 1.50 | KK13: 111.38862 | KM13: 2014-07-01 | KN13: =AVERAGE(KJ573:KJ611) -> 6.78 | KO13: =AVERAGE(KK573:KK611) -> 416.03 | KR13: 38167.53465 | KS13: 300.22 | KT13: 3.36 | KU13: 4.827000825 | KV13: 3.519901932 | KW13: L | KX13: 300.8 | KY13: 154.8 | KZ13: 96 | LA13: 40 | LB13: 7.6 | LC13: 1.4 | LD13: 0.264 | LE13: 0.156 | LF13: 0.084 | LG13: 0.024 | LH13: 0.012 | LI13: 0.012 | LJ13: 0 | LK13: 0 | LL13: 0 | LP13: year average
A14: 2014-07-22 | B14: 12:05:53 | C14: 2014-07-22T12:05:53 | E14: 2014-07-22T12:06:01 | F14: 153.0333333 | H14: 0.858872707 | K14: 2014-07-22T12:06:01 | L14: 74.23333333 | N14: 0.4166215462 | P14: 2014-07-31 | Q14: =AVERAGE(H8758:H8859,H8867:H9118) -> 0.9923620167 | R14: =AVERAGE(N8758:N8859,N8867:N9118) -> 0.5777898583 | S14: =AVERAGE(L8758:L8859,L8867:L9118) -> 102.9501895 | U14: 10:53:59 | V14: 10:53:20 | X14: 7.070535872 | Z14: 8.523867477 | AA14: 260.73 | AC14: 10:23:57 | AD14: 0.3007268607 | AE14: 0.3550641811 | AF14: 0.3244987049 | AG14: 0.170614661 | AH14: 0.1129174401 | AI14: 0.07147751605 | AJ14: 0.1987210506 | AK14: 0.3579288505 | AL14: 0.4209243282 | AM14: 1.276272016 | AN14: 2.278701871 | AO14: 0.2261946711 | AP14: 0 | AQ14: 0 | AR14: 10:23:15 | AT14: 1.762883265 | AU14: 107.41 | AV14: 1.534020414 | AY14: 09:23:35 | BA14: 2.839637679 | BB14: 09:42:11 | BC14: 3.675613408 | BD14: 140.50 | BF14: 11:18:11 | BH14: 3.516477681 | BI14: 11:18:25 | BJ14: 5.000981932 | BK14: 378.394 | BM14: 11:11:44 | BO14: 9.166999206 | BQ14: 10.46697518 | BR14: 7.685077554 | BT14: 09:06:15 | BV14: 2.097259441 | BX14: 4.567387071 | BY14: 137.1666 | CA14: 08:14:56 | CC14: 6.45185043 | CH14: 09:24:48 | CJ14: 4.470177629 | CO14: 09:48:11 | CQ14: 1.792339317 | CS14: 2.912677821 | CT14: 148.45 | CV14: 08:37:36 | CX14: 3.236057951 | CZ14: 3.495768283 | DA14: 231.6668 | DC14: 40377.42088 | DG14: 4.962185133 | DH14: 247.15 | DJ14: 09:27:25 | DL14: 12.13678288 | DN14: 3.849619307 | DO14: 243.32 | DQ14: 09:38:46 | DS14: 16.10935687 | DU14: 4.597003571 | DV14: 295.63 | DW14: 2011-07-27T10:20:00.002 | DX14: 10:20:10 | DZ14: 2.341233531 | EB14: 5.847759736 | ED14: 2011-07-20T08:46:36 | EF14: 5.288532477 | EH14: 4.082347846 | EI14: 270.8 | EK14: 2013-07-18T11:08:00 | EM14: 1.980362107 | EN14: 2013-07-18T11:08:03 | EO14: 7.788982055 | EP14: 400.8316667 | ER14: 2013-07-21T13:07:06 | ET14: 1.703667894 | EV14: 1.811560057 | EY14: 2013-07-22T12:37:58 | FA14: 5.218841511 | FC14: 5.583765397 | FF14: 2013-07-25T12:36:02 | FH14: 1.556734188 | FJ14: 1.299003345 | FR14: 2016-07-19T11:34:43 | FS14: 339.967 | FU14: 1.90800321 | FW14: 2016-07-19T11:35:13 | FY14: 294.983 | GA14: 1.655542152 | GC14: 2014-07-28 | GD14: =AVERAGE(FU6763:FU6811,FU6816:FU6953) -> 5.84333505 | GE14: =AVERAGE(GA6792:GA6982) -> 3.796247709 | GF14: =AVERAGE(FY6792:FY6982) -> 676.413 | GO14: 13:20:57 | GP14: 12.56693 | GR14: 13:30:57 | GS14: 16.53792 | HC14: 2018-07-30 | HD14: 19:58:00 | HI14: 5.346987997 | HJ14: 7.880533982 | HL14: 5.30 | HM14: 161.275 | HQ14: average without blowout of 1.08.2018 | HV14: 2003-06-26T11:50:47 | II14: 38167.53477 | IK14: 8.40 | IO14: 6.61 | JA14: 2002-06-23 | JB14: 12:58:03 | JC14: 235.692 | JD14: 113.9732 | JE14: 67.9241 | JF14: 27.9464 | JG14: 7.7455 | JH14: 5.6027 | JI14: 1.183 | JJ14: 1.875 | JK14: 5.9598 | JL14: 5 | JN14: 4.41 | JO14: 226.25 | JW14: 2003-06-26T11:50:32 | JY14: 111.18858 | JZ14: 56.44 | KA14: 38.84001 | KB14: 10.6 | KC14: 4.04571 | KD14: 1.00002 | KE14: 0.06286 | KF14: 0.33146 | KG14: 0.03429 | KH14: 0 | KJ14: 1.52 | KK14: 111.32006 | KM14: 2014-07-02 | KN14: =AVERAGE(KJ637:KJ667) -> 4.06 | KO14: =AVERAGE(KK637:KK667) -> 235.80 | KR14: 38167.53471 | KS14: 309.536 | KT14: 3.62 | KU14: 15.60077645 | KV14: 3.722414623 | KW14: L | KX14: 309.6 | KY14: 157.4 | KZ14: 99.2 | LA14: 40.8 | LB14: 9.2 | LC14: 2.6 | LD14: 0.264 | LE14: 0.072 | LF14: 0.072 | LG14: 0.072 | LH14: 0.024 | LI14: 0.048 | LJ14: 0 | LK14: 0.012 | LL14: 0 | LP14: =AVERAGE(LP6:LP11) -> 3.70
A15: 2014-07-22 | B15: 12:06:58 | C15: 2014-07-22T12:06:58 | E15: 2014-07-22T12:07:01 | F15: 153.6333333 | H15: 0.8622401016 | K15: 2014-07-22T12:07:01 | L15: 73.83333333 | N15: 0.4143766164 | R15: year average | U15: 10:54:59 | V15: 10:54:20 | X15: 7.094239483 | Z15: 8.439197492 | AC15: 10:24:57 | AD15: 0.3028786259 | AE15: 0.3711672978 | AF15: 0.3063507337 | AG15: 0.183334433 | AH15: 0.1097397584 | AI15: 0.01741698967 | AJ15: 0.05144881569 | AK15: 0.08999353956 | AL15: 0.1066341631 | AM15: 0.3436116965 | AN15: 0.737227076 | AO15: 0.2261946711 | AP15: 0 | AQ15: 0 | AR15: 10:24:15 | AT15: 1.763605576 | AU15: 108.22 | AV15: 1.342336654 | AY15: 09:36:35 | BA15: 3.801846833 | BB15: 09:43:12 | BC15: 2.528655201 | BD15: 144.58 | BF15: 11:19:11 | BH15: 3.454056516 | BI15: 11:19:28 | BJ15: 5.190553421 | BK15: 387.442 | BM15: 11:12:44 | BO15: 9.239678732 | BQ15: 10.1116869 | BR15: 7.603864527 | BT15: 09:07:15 | BV15: 2.053126618 | BX15: 4.779546279 | BY15: 135.4333 | CA15: 08:15:56 | CC15: 6.507729597 | CH15: 09:25:48 | CJ15: 4.276692257 | CO15: 09:49:11 | CQ15: 1.554841379 | CS15: 2.488516377 | CT15: 135.4999 | CV15: 08:38:36 | CX15: 3.367687646 | CZ15: 3.563268608 | DA15: 235.3167 | DC15: 40377.42157 | DG15: 5.119507905 | DH15: 247.85 | DJ15: 09:28:25 | DL15: 11.64048373 | DN15: 3.461512027 | DO15: 221.53 | DQ15: 09:39:46 | DS15: 15.88427378 | DU15: 4.515044793 | DV15: 287.50 | DW15: 2011-07-27T10:21:00.002 | DX15: 10:21:10 | DZ15: 2.980717812 | EB15: 7.067803253 | ED15: 2011-07-20T08:47:36 | EF15: 5.335170261 | EH15: 3.922637882 | EI15: 265.8166 | EK15: 2013-07-18T11:09:00 | EM15: 2.022712794 | EN15: 2013-07-18T11:09:03 | EO15: 7.521322097 | EP15: 409.1683333 | ER15: 2013-07-21T13:10:06 | ET15: 1.596985887 | EV15: 1.802712787 | EY15: 2013-07-22T12:40:58 | FA15: 5.270990203 | FC15: 5.592680049 | FF15: 2013-07-25T12:39:02 | FH15: 1.493782429 | FJ15: 1.318428722 | FR15: 2016-07-19T11:36:37 | FS15: 328.117 | FU15: 1.841497166 | FW15: 2016-07-19T11:37:07 | FY15: 293.217 | GA15: 1.645627046 | GC15: 2014-07-29 | GD15: =AVERAGE(FU7525:FU7716) -> 3.561677024 | GE15: =AVERAGE(GA7554:GA7745) -> 2.583329038 | GF15: =AVERAGE(FY7554:FY7745) -> 460.296 | GO15: 13:50:57 | GP15: 11.61909 | GR15: 14:00:57 | GS15: 14.64377 | HC15: 2018-07-30 | HD15: 19:59:00 | HI15: 5.824089401 | HJ15: 8.197267636 | HL15: 5.25 | HM15: 161.6 | HQ15: =AVERAGE(HQ9:HQ10) -> 2.87 | HV15: 2003-06-26T11:50:52 | II15: 38167.53483 | IK15: 8.56 | IO15: 6.71 | JA15: 2002-06-23 | JB15: 12:59:03 | JC15: 252.6562 | JD15: 122.0759 | JE15: 73.8839 | JF15: 28.4152 | JG15: 8.3929 | JH15: 3.9062 | JI15: 1.3393 | JJ15: 1.8527 | JK15: 5.9375 | JL15: 6.8527 | JN15: 4.43 | JO15: 239.87 | JW15: 2003-06-26T11:50:37 | JY15: 114.34287 | JZ15: 58.70286 | KA15: 39.52572 | KB15: 10.97714 | KC15: 3.90857 | KD15: 1.0343 | KE15: 0.02857 | KF15: 0.3286 | KG15: 0.03429 | KH15: 0 | KJ15: 1.53 | KK15: 114.50576 | KM15: 2014-07-03 | KN15: =AVERAGE(KJ690:KJ728) -> 8.19 | KO15: =AVERAGE(KK690:KK728) -> 468.29 | KR15: 38167.53477 | KS15: 311.952 | KT15: 3.66 | KU15: 7.713146784 | KV15: 3.864106735 | KW15: L | KX15: 311.8 | KY15: 149.8 | KZ15: 112.4 | LA15: 36 | LB15: 11.2 | LC15: 2 | LD15: 0.36 | LE15: 0.192 | LF15: 0.072 | LG15: 0.036 | LH15: 0.048 | LI15: 0 | LJ15: 0.012 | LK15: 0 | LL15: 0
A16: 2014-07-22 | B16: 12:08:03 | C16: 2014-07-22T12:08:03 | E16: 2014-07-22T12:08:01 | F16: 161.15 | H16: 0.9044260732 | K16: 2014-07-22T12:08:01 | L16: 76.25 | N16: 0.4279397337 | R16: =AVERAGE(R5:R14) -> 0.76 | U16: 10:55:59 | V16: 10:55:20 | X16: 7.137593756 | Z16: 8.486167012 | AA16: 257.06 | AC16: 10:25:57 | AD16: 0.3073684854 | AE16: 0.3828963309 | AF16: 0.3186903959 | AG16: 0.1900692222 | AH16: 0.1256472521 | AI16: 0.05179857967 | AJ16: 0.1504877859 | AK16: 0.3313398502 | AL16: 0.3367394626 | AM16: 0.932660319 | AN16: 1.407433509 | AO16: 0 | AP16: 0 | AQ16: 0 | AR16: 10:25:15 | AT16: 1.809095674 | AU16: 0.00 | AV16: 1.526958052 | AY16: 09:22:35 | BA16: 2.937246822 | BB16: 09:44:14 | BC16: 3.511108672 | BD16: 146.04 | BF16: 11:20:11 | BH16: 3.382247469 | BI16: 11:20:31 | BJ16: 5.105252341 | BK16: 368.684 | BM16: 11:13:44 | BO16: 9.070701783 | BQ16: 9.76661145 | BR16: 7.391772518 | BT16: 09:08:15 | BV16: 2.097487779 | BX16: 4.732655247 | BY16: 133.3001 | CA16: 08:16:56 | CC16: 6.319574593 | CH16: 09:26:48 | CJ16: 4.329659332 | CO16: 09:50:11 | CQ16: 1.440105217 | CS16: 2.37953564 | CT16: 128.8667 | CV16: 08:39:36 | CX16: 3.377000601 | CZ16: 3.630824762 | DA16: 234.2668 | DC16: 40377.42227 | DG16: 5.313401269 | DH16: 254.60 | DJ16: 09:29:25 | DL16: 11.49098389 | DN16: 3.446266477 | DO16: 223.47 | DQ16: 09:40:46 | DS16: 15.50609698 | DU16: 4.307992941 | DV16: 277.72 | DW16: 2011-07-27T10:22:00.002 | DX16: 10:22:10 | DZ16: 5.164107969 | EB16: 9.153552915 | ED16: 2011-07-20T08:48:36 | EF16: 5.521043839 | EH16: 4.076271024 | EI16: 266.7501 | EK16: 2013-07-18T11:10:00 | EM16: 2.070393007 | EN16: 2013-07-18T11:10:03 | EO16: 7.560053734 | EP16: 393.0533333 | ER16: 2013-07-21T13:13:06 | ET16: 1.569073147 | EV16: 1.854641504 | EY16: 2013-07-22T12:43:58 | FA16: 5.1622705 | FC16: 5.618509611 | FF16: 2013-07-25T12:42:02 | FH16: 1.465752237 | FJ16: 1.322388217 | FR16: 2016-07-19T11:38:31 | FS16: 332.283 | FU16: 1.864881851 | FW16: 2016-07-19T11:39:00 | FY16: 310.117 | GA16: 1.740475328 | GO16: 14:20:57 | GP16: 13.32456 | GR16: 14:30:57 | GS16: 18.35764 | HC16: 2018-07-30 | HD16: 20:00:00 | HI16: 5.283945804 | HJ16: 6.815219668 | HL16: 5.07 | HM16: 160.4 | HV16: 2003-06-26T11:50:57 | II16: 38167.53488 | IK16: 8.49 | IO16: 6.73 | JA16: 2002-06-23 | JB16: 13:00:03 | JC16: 234.308 | JD16: 118.058 | JE16: 70.8259 | JF16: 28.3259 | JG16: 8.1473 | JH16: 2.8571 | JI16: 0.6696 | JJ16: 0.9375 | JK16: 2.3661 | JL16: 1.8527 | JN16: 3.52 | JO16: 229.82 | JW16: 2003-06-26T11:50:42 | JY16: 114.9943 | JZ16: 58.73714 | KA16: 39.93714 | KB16: 10.90857 | KC16: 4.11428 | KD16: 1.10287 | KE16: 0.02857 | KF16: 0.3238333333 | KG16: 0.03429 | KH16: 0.03429 | KJ16: 1.55 | KK16: 115.1524033 | KR16: 38167.53483 | KS16: 310.184 | KT16: 3.47 | KU16: 5.090241681 | KV16: 3.599359617 | KW16: L | KX16: 310.2 | KY16: 157 | KZ16: 104.6 | LA16: 39.2 | LB16: 7.4 | LC16: 1.6 | LD16: 0.276 | LE16: 0.108 | LF16: 0.108 | LG16: 0.048 | LH16: 0.012 | LI16: 0.012 | LJ16: 0 | LK16: 0 | LL16: 0
A17: 2014-07-22 | B17: 12:09:08 | C17: 2014-07-22T12:09:08 | E17: 2014-07-22T12:09:01 | F17: 160.85 | H17: 0.9027423759 | K17: 2014-07-22T12:09:01 | L17: 76.95 | N17: 0.4318683607 | P17: 2007 | U17: 10:56:59 | V17: 10:56:20 | X17: 6.969267222 | Z17: 8.357416691 | AA17: 259.88 | AC17: 10:26:57 | AD17: 0.2804293284 | AE17: 0.3725581299 | AF17: 0.3415577543 | AG17: 0.1968040115 | AH17: 0.1558590847 | AI17: 0.1823129049 | AJ17: 0.5961631518 | AK17: 1.239456477 | AL17: 1.234711363 | AM17: 3.894265894 | AN17: 4.959527602 | AO17: 2.03575204 | AP17: 1.286220392 | AQ17: 2.045307717 | AR17: 10:26:15 | AT17: 1.854585772 | AU17: 106.34 | AV17: 2.125684365 | AY17: 09:37:35 | BA17: 3.521348095 | BB17: 09:45:15 | BC17: 2.499006602 | BD17: 158.16 | BF17: 11:21:11 | BH17: 3.413380822 | BI17: 11:21:34 | BJ17: 5.099982614 | BK17: 380.554 | BM17: 11:14:44 | BO17: 9.357855824 | BQ17: 9.848663207 | BR17: 7.649221413 | BT17: 09:09:15 | BV17: 1.96079266 | BX17: 4.6611516 | BY17: 131.1 | CA17: 08:17:56 | CC17: 6.149110939 | CH17: 09:27:48 | CJ17: 4.42226802 | CO17: 09:51:11 | CQ17: 2.376383898 | CS17: 3.848262701 | CT17: 182.1167 | CV17: 08:40:36 | CX17: 3.329149297 | CZ17: 3.965805407 | DA17: 229.1333 | DC17: 40377.42296 | DG17: 5.1157582 | DH17: 250.35 | DJ17: 09:30:25 | DL17: 11.48401054 | DN17: 3.397457682 | DO17: 221.22 | DQ17: 09:41:46 | DS17: 15.57374933 | DU17: 4.447580065 | DV17: 283.18 | DW17: 2011-07-27T10:23:00.002 | DX17: 10:23:10 | DZ17: 2.747371475 | EB17: 6.657927119 | ED17: 2011-07-20T08:49:36 | EF17: 5.026642042 | EH17: 4.002528794 | EI17: 258.6667 | EK17: 2013-07-18T11:11:00 | EM17: 1.956945788 | EN17: 2013-07-18T11:11:03 | EO17: 7.906194249 | EP17: 394.445 | ER17: 2013-07-21T13:16:06 | ET17: 1.551520399 | EV17: 1.798831644 | EY17: 2013-07-22T12:46:58 | FA17: 4.942099238 | FC17: 5.357255605 | FF17: 2013-07-25T12:45:02 | FH17: 1.478067921 | FJ17: 1.330526648 | FR17: 2016-07-19T11:40:25 | FS17: 335.800 | FU17: 1.884618525 | FW17: 2016-07-19T11:40:53 | FY17: 292.667 | GA17: 1.642540267 | GE17: year average | GO17: 14:50:55 | GP17: 10.55383 | GR17: 15:00:55 | GS17: 13.82492 | HC17: 2018-07-30 | HD17: 20:01:00 | HI17: 3.488599234 | HJ17: 7.411587956 | HL17: 5.11 | HM17: 162 | HV17: 2003-06-26T12:00:02 | IC17: day | II17: 38167.53494 | IK17: 32.49 | IO17: 31.08 | JA17: 2002-06-23 | JB17: 13:01:03 | JC17: 238.192 | JD17: 118.2813 | JE17: 69.3527 | JF17: 28.8393 | JG17: 8.2143 | JH17: 3.2143 | JI17: 0.9821 | JJ17: 1.3393 | JK17: 4.1741 | JL17: 3.7946 | JN17: 3.88 | JO17: 230.22 | JW17: 2003-06-26T11:50:47 | JY17: 116.68001 | JZ17: 59.36571 | KA17: 40.16571 | KB17: 11.68 | KC17: 4.17142 | KD17: 1.07429 | KE17: 0.05714 | KF17: 0.3238333333 | KG17: 0.03429 | KH17: 0.03429 | KJ17: 1.58 | KK17: 116.8381033 | KN17: year average | KR17: 38167.53488 | KS17: 296.6 | KT17: 3.42 | KU17: 7.284403032 | KV17: 3.6205206 | KW17: L | KX17: 296.6 | KY17: 155 | KZ17: 92 | LA17: 37.8 | LB17: 8.6 | LC17: 2.6 | LD17: 0.456 | LE17: 0.144 | LF17: 0.096 | LG17: 0.048 | LH17: 0.048 | LI17: 0.036 | LJ17: 0 | LK17: 0 | LL17: 0 | LN17: 2002 | LO17: 6.68
A18: 2014-07-22 | B18: 12:10:13 | C18: 2014-07-22T12:10:13 | E18: 2014-07-22T12:10:01 | F18: 154.4 | H18: 0.8665428836 | K18: 2014-07-22T12:10:01 | L18: 74.11666667 | N18: 0.415966775 | P18: 2014-07-23 | Q18: =AVERAGE(X81:X381) -> 7.462587682 | R18: =AVERAGE(Z81:Z381) -> 7.247016322 | S18: =AVERAGE(AA81:AA381) -> 242.1155789 | U18: 10:57:59 | V18: 10:57:20 | X18: 7.120430058 | Z18: 8.238973466 | AA18: 256.33 | AC18: 10:27:57 | AD18: 0.3070878692 | AE18: 0.3697752728 | AF18: 0.3310322359 | AG18: 0.1915688353 | AH18: 0.1383675214 | AI18: 0.09748990323 | AJ18: 0.3266999796 | AK18: 0.6667703158 | AL18: 0.6903158982 | AM18: 1.898045562 | AN18: 2.278701871 | AO18: 0.6785840132 | AP18: 0 | AQ18: 0 | AR18: 10:27:15 | AT18: 1.929004794 | AU18: 107.49 | AV18: 1.762021618 | AY18: 09:38:35 | BA18: 3.185805956 | BB18: 09:46:17 | BC18: 2.634087632 | BD18: 159.56 | BF18: 11:22:11 | BH18: 3.53495152 | BI18: 11:22:37 | BJ18: 5.551278682 | BK18: 380.55 | BM18: 11:15:44 | BO18: 9.471318899 | BQ18: 9.838454144 | BR18: 7.715371827 | BT18: 09:10:15 | BV18: 2.041441353 | BX18: 4.702226357 | BY18: 131.3833 | CA18: 08:18:56 | CC18: 6.211413285 | CH18: 09:28:48 | CJ18: 4.074274164 | CL18: 3.654327475 | CM18: 259.944 | CO18: 09:52:11 | CQ18: 3.06902884 | CS18: 4.693119106 | CT18: 219.4666 | CV18: 08:41:36 | CX18: 2.999766301 | CZ18: 4.300786052 | DA18: 220.7332 | DC18: 40377.42366 | DG18: 5.063063116 | DH18: 244.25 | DJ18: 09:31:25 | DL18: 11.35664875 | DN18: 3.45634649 | DO18: 218.38 | DQ18: 09:42:46 | DS18: 15.50883925 | DU18: 4.400634311 | DV18: 282.83 | DW18: 2011-07-27T10:24:00.002 | DX18: 10:24:10 | DZ18: 2.485150158 | EB18: 7.067501789 | ED18: 2011-07-20T08:50:36 | EF18: 5.090716544 | EH18: 3.945776265 | EI18: 260.9 | EK18: 2013-07-18T11:12:00 | EM18: 2.10256188 | EN18: 2013-07-18T11:12:03 | EO18: 7.135483713 | EP18: 378.89 | ER18: 2013-07-21T13:19:06 | ET18: 1.775855455 | EV18: 1.798404746 | EY18: 2013-07-22T12:49:58 | FA18: 4.987348672 | FC18: 5.424956192 | FF18: 2013-07-25T12:48:02 | FH18: 1.446233695 | FJ18: 1.294887827 | FR18: 2016-07-19T11:42:19 | FS18: 336.200 | FU18: 1.886863455 | FW18: 2016-07-19T11:42:46 | FY18: 303.100 | GA18: 1.701095518 | GE18: =AVERAGE(GE5:GE15) -> 2.281775964 | GO18: 15:20:55 | GP18: 11.87363 | GR18: 15:30:55 | GS18: 11.95002 | HC18: 2018-07-30 | HD18: 20:02:00 | HI18: 4.594388551 | HJ18: 8.028377824 | HL18: 4.99 | HM18: 160.975 | HV18: 2003-06-26T12:00:07 | IB18: date | IC18: mean 0,5 | ID18: mean 2,0 | II18: 38167.535 | IK18: 8.33 | IO18: 6.61 | JA18: 2002-06-23 | JB18: 13:02:03 | JC18: 235.9152 | JD18: 120.0893 | JE18: 69.2188 | JF18: 29.1518 | JG18: 8.3929 | JH18: 2.8348 | JI18: 0.5357 | JJ18: 0.625 | JK18: 0.692 | JL18: 0.8036 | JN18: 3.30 | JO18: 230.85 | JW18: 2003-06-26T11:50:52 | JY18: 117.60572 | JZ18: 59.77714 | KA18: 40.23428 | KB18: 12.22857 | KC18: 4.27427 | KD18: 0.90287 | KE18: 0.05714 | KF18: 0.3143 | KG18: 0.03429 | KH18: 0.03429 | KJ18: 1.57 | KK18: 117.78857 | KN18: =AVERAGE(KN8:KN15) -> 5.62 | KR18: 38167.53494 | KS18: 308.48 | KT18: 3.49 | KU18: 25.54452483 | KV18: 3.668633437 | KW18: L | KX18: 308.4 | KY18: 163.4 | KZ18: 94.4 | LA18: 38.4 | LB18: 10.2 | LC18: 1.6 | LD18: 0.312 | LE18: 0.168 | LF18: 0.132 | LG18: 0.024 | LH18: 0.048 | LI18: 0.072 | LJ18: 0.036 | LK18: 0.012 | LL18: 0 | LN18: 2003 | LO18: 5.62
A19: 2014-07-22 | B19: 12:11:18 | C19: 2014-07-22T12:11:18 | E19: 2014-07-22T12:11:01 | F19: 156.55 | H19: 0.8786093811 | K19: 2014-07-22T12:11:01 | L19: 74.3 | N19: 0.4169957011 | P19: 2014-07-28 | Q19: =AVERAGE(AT111:AT445) -> 1.972932431 | R19: =AVERAGE(AV111:AV445) -> 1.522304967 | S19: =AVERAGE(AU111:AU445) -> 113.51 | U19: 10:58:59 | V19: 10:58:20 | X19: 6.966598243 | Z19: 8.231707663 | AA19: 257.82 | AC19: 10:28:57 | AD19: 0.3040010908 | AE19: 0.3811070957 | AF19: 0.3259513267 | AG19: 0.1646296783 | AH19: 0.1256472521 | AI19: 0.02555999783 | AJ19: 0.07781633373 | AK19: 0.1493074634 | AL19: 0.1290834606 | AM19: 0.4745113904 | AN19: 0.6031857895 | AO19: 0.4523893421 | AP19: 0 | AQ19: 0 | AR19: 10:28:15 | AT19: 1.795825991 | AU19: 107.59 | AV19: 1.404712775 | AY19: 09:39:35 | BA19: 2.962233324 | BB19: 09:47:19 | BC19: 2.693302472 | BD19: 160.78 | BF19: 11:23:11 | BH19: 3.648734895 | BI19: 11:23:40 | BJ19: 5.425004656 | BK19: 372.062 | BM19: 11:16:44 | BO19: 9.61159775 | BQ19: 9.956949063 | BR19: 7.738328254 | BT19: 09:11:15 | BV19: 1.929243758 | BX19: 4.658275987 | BY19: 132.9999 | CA19: 08:19:56 | CC19: 6.188379653 | CH19: 09:29:48 | CJ19: 4.228047308 | CL19: 3.557885227 | CM19: 263.518 | CO19: 09:53:11 | CQ19: 3.151363053 | CS19: 4.843764429 | CT19: 229.0666 | CV19: 08:42:36 | CX19: 3.176848302 | CZ19: 5.12377167 | DA19: 222.1333 | DC19: 40377.42435 | DG19: 5.484045561 | DH19: 256.90 | DJ19: 09:32:25 | DL19: 11.97049537 | DN19: 3.481724859 | DO19: 220.83 | DQ19: 09:43:46 | DS19: 15.66429826 | DU19: 4.405923025 | DV19: 283.85 | DW19: 2011-07-27T10:25:00.002 | DX19: 10:25:10 | DZ19: 1.94522323 | EB19: 5.181235155 | ED19: 2011-07-20T08:51:36 | EF19: 4.889946831 | EH19: 3.886864673 | EI19: 259.8333 | EK19: 2013-07-18T11:13:00 | EM19: 2.024473395 | EN19: 2013-07-18T11:13:03 | EO19: 7.712545306 | EP19: 410.0016667 | ER19: 2013-07-21T13:22:06 | ET19: 1.533967286 | EV19: 1.840791654 | EY19: 2013-07-22T12:52:58 | FA19: 5.180871268 | FC19: 5.56074497 | FF19: 2013-07-25T12:51:02 | FH19: 1.448509492 | FJ19: 1.279516793 | FR19: 2016-07-19T11:44:13 | FS19: 334.200 | FU19: 1.875638806 | FW19: 2016-07-19T11:44:40 | FY19: 303.450 | GA19: 1.703059832 | GO19: 15:50:55 | GP19: 8.54023 | GR19: 16:00:50 | GS19: 13.40016667 | HC19: 2018-07-30 | HD19: 20:03:00 | HI19: 5.941756281 | HJ19: 7.151190177 | HL19: 4.94 | HM19: 154.3 | HV19: 2003-06-26T12:00:12 | IB19: 2003 | II19: 38167.53506 | IK19: 8.44 | IO19: 6.55 | JA19: 2002-06-23 | JB19: 13:03:03 | JC19: 232.8571 | JD19: 120.0227 | JE19: 70.3401 | JF19: 27.8458 | JG19: 7.1882 | JH19: 3.1519 | JI19: 0.5215 | JJ19: 0.907 | JK19: 1.4059 | JL19: 1.4739 | JN19: 3.44 | JO19: 229.98 | JW19: 2003-06-26T11:50:57 | JY19: 117.14858 | JZ19: 58.92 | KA19: 40.46285 | KB19: 12.6 | KC19: 4.10285 | KD19: 0.87429 | KE19: 0.05714 | KF19: 0.3143 | KG19: 0.03429 | KH19: 0.03429 | KJ19: 1.57 | KK19: 117.33143 | KR19: 38167.535 | KS19: 296.396 | KT19: 3.55 | KU19: 6.972112752 | KV19: 3.688363031 | KW19: L | KX19: 296.6 | KY19: 145.6 | KZ19: 98 | LA19: 39.2 | LB19: 10.8 | LC19: 2.4 | LD19: 0.288 | LE19: 0.108 | LF19: 0.072 | LG19: 0.024 | LH19: 0.036 | LI19: 0.036 | LJ19: 0 | LK19: 0 | LL19: 0 | LN19: 2004 | LO19: 3.70
A20: 2014-07-22 | B20: 12:12:23 | C20: 2014-07-22T12:12:23 | E20: 2014-07-22T12:12:01 | F20: 155.4166667 | H20: 0.8722487468 | K20: 2014-07-22T12:12:01 | L20: 73.2 | N20: 0.4108221443 | P20: 2014-07-29 | Q20: =AVERAGE(BA130:BA500) -> 2.092220614 | R20: =AVERAGE(BC130:BC500) -> 2.804306647 | S20: =AVERAGE(BD152:BD500) -> 137.63 | U20: 10:59:59 | V20: 10:59:20 | X20: 6.950820575 | Z20: 8.152122143 | AA20: 257.48 | AC20: 10:29:57 | AD20: 0.3011012028 | AE20: 0.3695760713 | AF20: 0.3440992978 | AG20: 0.2050384138 | AH20: 0.1113333705 | AI20: 0.02714336053 | AJ20: 0.07395767255 | AK20: 0.1472621556 | AL20: 0.1571450825 | AM20: 0.4908738521 | AN20: 1.072330292 | AO20: 0.4523893421 | AP20: 0 | AQ20: 0 | AR20: 10:29:15 | AT20: 1.785117123 | AU20: 108.53 | AV20: 1.432249389 | AY20: 09:55:35 | BA20: 2.315517364 | BB20: 09:48:20 | BC20: 2.353591404 | BD20: 158.20 | BF20: 11:24:11 | BH20: 3.443981998 | BI20: 11:24:43 | BJ20: 5.374124534 | BK20: 383.614 | BM20: 11:17:44 | BO20: 9.410347227 | BQ20: 9.826412845 | BR20: 7.665784096 | BT20: 09:12:15 | BV20: 1.994177516 | BX20: 4.507251585 | BY20: 132.5333 | CA20: 08:20:56 | CC20: 6.183172311 | CH20: 09:30:48 | CJ20: 4.183765219 | CL20: 4.611281959 | CM20: 306.212 | CO20: 09:54:11 | CQ20: 3.068434819 | CS20: 4.612074393 | CT20: 223.9001 | CV20: 08:43:36 | CX20: 3.001107409 | CZ20: 5.329524259 | DA20: 220.2666 | DC20: 40377.42505 | DG20: 5.865366969 | DH20: 264.55 | DJ20: 09:33:25 | DL20: 12.0836064 | DN20: 3.596375758 | DO20: 235.42 | DQ20: 09:44:46 | DS20: 15.55303052 | DU20: 4.436518933 | DV20: 283.65 | DW20: 2011-07-27T10:26:00.002 | DX20: 10:26:10 | DZ20: 2.50563699 | EB20: 4.925529264 | ED20: 2011-07-20T08:52:36 | EF20: 4.844298299 | EH20: 3.920951699 | EI20: 264.7834 | EK20: 2013-07-18T11:14:00 | EM20: 1.951693983 | EN20: 2013-07-18T11:14:03 | EO20: 6.877795749 | EP20: 380.8333333 | ER20: 2013-07-21T13:25:06 | ET20: 1.604006815 | EV20: 1.924582019 | EY20: 2013-07-22T12:55:58 | FA20: 5.22695688 | FC20: 5.619106661 | FF20: 2013-07-25T12:54:02 | FH20: 1.442585123 | FJ20: 1.281449678 | FR20: 2016-07-19T11:46:07 | FS20: 328.050 | FU20: 1.841123012 | FW20: 2016-07-19T11:46:33 | FY20: 300.667 | GA20: 1.687438862 | GO20: 16:20:50 | GP20: 12.58133 | GR20: 16:30:15 | GS20: 8.600666667 | HC20: 2018-07-30 | HD20: 20:04:00 | HI20: 3.539932612 | HJ20: 6.93007605 | HL20: 4.72 | HM20: 151.8 | HV20: 2003-06-26T12:00:17 | IB20: 2014-06-26 | IC20: =AVERAGE(HZ80:HZ114) -> 438.4631085 | ID20: =AVERAGE(HX80:HX114) -> 257.7958732 | II20: 38167.53512 | IK20: 26.32 | IO20: 26.26 | JA20: 2002-06-23 | JB20: 13:04:03 | JC20: 222.8795 | JD20: 117.4554 | JE20: 65.8036 | JF20: 25.2902 | JG20: 7.8571 | JH20: 2.4777 | JI20: 0.4018 | JJ20: 0.7589 | JK20: 1.4509 | JL20: 1.3839 | JN20: 3.16 | JO20: 220.04 | JW20: 2003-06-26T12:00:02 | JY20: 110.21143 | JZ20: 56.75429 | KA20: 36.15428 | KB20: 12.70856 | KC20: 3.13142 | KD20: 1.42857 | KE20: 0 | KG20: 0 | KH20: 0.03429 | KR20: 38167.53506 | KS20: 296.36 | KT20: 3.55 | KU20: 7.181022381 | KV20: 3.695228982 | KW20: L | KX20: 296.6 | KY20: 145.6 | KZ20: 98 | LA20: 39.2 | LB20: 10.8 | LC20: 2.4 | LD20: 0.216 | LE20: 0.144 | LF20: 0.072 | LG20: 0.06 | LH20: 0.036 | LI20: 0.036 | LJ20: 0 | LK20: 0 | LL20: 0 | LN20: 2005
A21: 2014-07-22 | B21: 12:13:28 | C21: 2014-07-22T12:13:28 | E21: 2014-07-22T12:13:01 | F21: 157.8166667 | H21: 0.8857183253 | K21: 2014-07-22T12:13:01 | L21: 73.58333333 | N21: 0.4129735353 | R21: year average | U21: 11:00:59 | V21: 11:00:20 | X21: 7.23689734 | Z21: 8.227629154 | AA21: 259.07 | AC21: 10:30:57 | AD21: 0.3080228824 | AE21: 0.3771314151 | AF21: 0.3426466761 | AG21: 0.174354714 | AH21: 0.1272313216 | AI21: 0.04501273954 | AJ21: 0.1504877859 | AK21: 0.296569619 | AL21: 0.2862285432 | AM21: 0.8672104721 | AN21: 1.474454152 | AO21: 1.583362697 | AP21: 0 | AQ21: 0 | AR21: 10:30:15 | AT21: 1.744922736 | AU21: 110.82 | AV21: 1.524887535 | AY21: 09:56:35 | BA21: 2.23393334 | BB21: 09:49:22 | BC21: 2.202034648 | BD21: 136.06 | BF21: 11:25:11 | BH21: 3.517712373 | BI21: 11:25:46 | BJ21: 5.65316688 | BK21: 386.082 | BM21: 11:18:44 | BO21: 9.608219704 | BQ21: 9.879918062 | BR21: 7.752592568 | BT21: 09:13:15 | BV21: 2.008268274 | BX21: 4.698251775 | BY21: 132.7 | CA21: 08:21:56 | CC21: 6.368556718 | CH21: 09:31:48 | CJ21: 4.076259217 | CL21: 6.849359405 | CM21: 432.072 | CO21: 09:55:11 | CQ21: 3.057548885 | CS21: 4.709117862 | CT21: 222.0002 | CV21: 08:44:36 | CX21: 3.242084722 | CZ21: 5.158538269 | DA21: 221.7002 | DG21: 0 | DH21: 0.00 | DJ21: 09:34:25 | DL21: 11.67994664 | DN21: 3.637231156 | DO21: 240.12 | DQ21: 09:45:46 | DS21: 15.67391335 | DU21: 4.373017886 | DV21: 278.28 | DW21: 2011-07-27T10:27:00.002 | DX21: 10:27:10 | DZ21: 2.197290878 | EB21: 4.453467144 | ED21: 2011-07-20T08:53:36 | EF21: 4.763657968 | EH21: 3.785347819 | EI21: 261.1166 | EK21: 2013-07-18T11:15:00 | EM21: 2.083666236 | EN21: 2013-07-18T11:15:03 | EO21: 7.859235675 | EP21: 404.9983333 | ER21: 2013-07-21T13:28:06 | ET21: 1.744450271 | EV21: 1.896271928 | EY21: 2013-07-22T12:58:58 | FA21: 5.220571409 | FC21: 5.642958961 | FF21: 2013-07-25T12:57:02 | FH21: 1.444549998 | FJ21: 1.298598696 | FR21: 2016-07-19T11:48:01 | FS21: 328.867 | FU21: 1.84570641 | FW21: 2016-07-19T11:48:26 | FY21: 289.383 | GA21: 1.624113136 | GO21: 16:50:15 | GP21: 12.49 | GR21: 17:00:15 | GS21: 16.91202 | HC21: 2018-07-30 | HD21: 20:05:00 | HI21: 3.960887375 | HJ21: 7.053488363 | HL21: 4.94 | HM21: 157.475 | HV21: 2003-06-26T12:00:22 | IB21: 2014-06-27 | IC21: 40.19358312 | ID21: 32.00052039 | II21: 38167.53517 | IK21: 8.49 | IO21: 6.56 | JA21: 2002-06-23 | JB21: 13:05:03 | JC21: 232.6786 | JD21: 117.1875 | JE21: 70.1339 | JF21: 26.942 | JG21: 8.817 | JH21: 2.8795 | JI21: 0.6027 | JJ21: 0.9375 | JK21: 2.4107 | JL21: 2.7679 | JN21: 3.49 | JO21: 227.50 | JW21: 2003-06-26T12:00:07 | JY21: 110.62286 | JZ21: 56.00001 | KA21: 37.18285 | KB21: 12.50285 | KC21: 3.26856 | KD21: 1.56571 | KE21: 0 | KF21: 0.3429 | KG21: 0.03429 | KH21: 0.03429 | KJ21: 1.55 | KK21: 110.86288 | KR21: 38167.53512 | KS21: 301.128 | KT21: 3.45 | KU21: 20.73944826 | KV21: 3.666659338 | KW21: L | KX21: 301.2 | KY21: 153.6 | KZ21: 97.2 | LA21: 39.2 | LB21: 8.6 | LC21: 2 | LD21: 0.3 | LE21: 0.228 | LF21: 0.084 | LG21: 0.048 | LH21: 0.024 | LI21: 0.012 | LJ21: 0 | LK21: 0.024 | LL21: 0 | LN21: 2006
E22: 2014-07-22T12:14:01 | F22: 158.65 | H22: 0.8903952622 | K22: 2014-07-22T12:14:01 | L22: 73.23333333 | N22: 0.4110092218 | R22: =AVERAGE(R18:R20) -> 3.86 | U22: 11:01:59 | V22: 11:01:20 | X22: 7.1685973 | Z22: 8.129983112 | AA22: 254.77 | AC22: 10:31:57 | AD22: 0.2840773392 | AE22: 0.3606298953 | AF22: 0.3270402485 | AG22: 0.1953088883 | AH22: 0.1304185459 | AI22: 0.1782414008 | AJ22: 0.5890889397 | AK22: 1.223094015 | AL22: 1.313283904 | AM22: 3.7633662 | AN22: 4.356341813 | AO22: 1.357168026 | AP22: 0.6431101961 | AQ22: 0 | AR22: 10:31:15 | AT22: 1.895821903 | AU22: 104.56 | AV22: 2.064805258 | AY22: 09:54:35 | BA22: 2.86529833 | BB22: 09:50:23 | BC22: 2.293880964 | BD22: 137.92 | BF22: 11:26:11 | BH22: 3.316745034 | BI22: 11:26:49 | BJ22: 5.132161195 | BK22: 386.144 | BM22: 11:19:44 | BO22: 9.320680423 | BQ22: 10.099217 | BR22: 7.612265622 | BT22: 09:14:15 | BV22: 2.033789433 | BX22: 4.573558034 | BY22: 133.05 | CA22: 08:22:56 | CC22: 6.174555441 | CH22: 09:32:48 | CJ22: 4.133870531 | CL22: 7.043125051 | CM22: 433.578 | CO22: 09:56:11 | CQ22: 2.955012067 | CS22: 4.536635361 | CT22: 219.3666 | CV22: 08:45:36 | CX22: 3.037654756 | CZ22: 5.2604498 | DA22: 219.1667 | DC22: 40377.4323 | DE22: 3.72435336 | DG22: 3.507735252 | DH22: 224.13 | DJ22: 09:35:25 | DL22: 11.33378699 | DN22: 3.344055544 | DO22: 218.83 | DQ22: 09:46:46 | DS22: 15.79834065 | DU22: 4.367504207 | DV22: 278.42 | DW22: 2011-07-27T10:28:00.002 | DX22: 10:28:10 | DZ22: 2.929621934 | EB22: 10.04494802 | ED22: 2011-07-20T08:54:36 | EF22: 4.833260089 | EH22: 3.806751741 | EI22: 262.7167 | EK22: 2013-07-18T11:16:00 | EM22: 2.199170217 | EN22: 2013-07-18T11:16:03 | EO22: 6.649771645 | EP22: 385.835 | ER22: 2013-07-21T13:31:06 | ET22: 1.611822641 | EV22: 1.827119382 | EY22: 2013-07-22T13:01:58 | FA22: 5.024160894 | FC22: 5.555519781 | FF22: 2013-07-25T13:00:02 | FH22: 1.443895039 | FJ22: 1.255009456 | FR22: 2016-07-19T11:49:55 | FS22: 333.833 | FU22: 1.873580954 | FW22: 2016-07-19T11:50:20 | FY22: 288.283 | GA22: 1.617939579 | GO22: 17:20:15 | GP22: 11.00513 | GR22: 17:30:15 | GS22: 12.63681 | HC22: 2018-07-30 | HD22: 20:06:00 | HI22: 4.291029983 | HJ22: 7.132792716 | HL22: 4.92 | HM22: 156.225 | HV22: 2003-06-26T12:00:27 | IB22: 2014-06-28 | IC22: 15.05945907 | ID22: 18.73311353 | II22: 38167.53523 | IK22: 8.75 | IO22: 6.65 | JA22: 2002-06-23 | JB22: 13:07:03 | JC22: 224.4835 | JD22: 118.4615 | JE22: 67.3407 | JF22: 26.5714 | JG22: 7.7143 | JH22: 2.6813 | JI22: 0.3297 | JJ22: 0.1978 | JK22: 0.5495 | JL22: 0.6374 | JN22: 2.85 | JO22: 223.30 | JW22: 2003-06-26T12:00:12 | JY22: 111.48 | JZ22: 56.68572 | KA22: 37.31999 | KB22: 12.67428 | KC22: 3.13142 | KD22: 1.56571 | KE22: 0 | KF22: 0.3429 | KG22: 0.03429 | KH22: 0.03429 | KJ22: 1.55 | KK22: 111.72002 | KR22: 38167.53517 | KS22: 302.244 | KT22: 3.56 | KU22: 5.300723152 | KV22: 3.729926826 | KW22: L | KX22: 302.2 | KY22: 152 | KZ22: 98 | LA22: 40 | LB22: 9 | LC22: 2.8 | LD22: 0.288 | LE22: 0.156 | LF22: 0.084 | LG22: 0.036 | LH22: 0.024 | LI22: 0.012 | LJ22: 0 | LK22: 0 | LL22: 0 | LN22: 2007 | LO22: 3.86
A23: 2014-07-22 | B23: 12:14:33 | C23: =A23+B23 -> 2014-07-22T12:14:33 | E23: 2014-07-22T12:15:01 | F23: 155.3333333 | H23: 0.8717810531 | K23: 2014-07-22T12:15:01 | L23: 75.23333333 | N23: 0.4222338706 | P23: 2009 | U23: 11:02:59 | V23: 11:02:20 | X23: 7.100297259 | Z23: 8.141684324 | AA23: 256.59 | AC23: 10:32:57 | AD23: 0.2943664135 | AE23: 0.3878668262 | AF23: 0.3491802071 | AG23: 0.1990489412 | AH23: 0.1335962276 | AI23: 0.02058371507 | AJ23: 0.05980924824 | AK23: 0.1349903093 | AL23: 0.1234711363 | AM23: 0.2945243113 | AN23: 0.2680825731 | AO23: 0.6785840132 | AP23: 0 | AQ23: 0 | AR23: 10:32:15 | AT23: 1.794701526 | AU23: 107.84 | AV23: 1.444451579 | AY23: 09:40:35 | BA23: 2.347218422 | BB23: 09:51:24 | BC23: 2.790427681 | BD23: 137.63 | BF23: 11:27:11 | BH23: 3.452574141 | BI23: 11:27:52 | BJ23: 5.313349475 | BK23: 383.448 | BM23: 11:20:44 | BO23: 9.53358948 | BQ23: 9.487428191 | BR23: 7.616341313 | BT23: 09:15:15 | BV23: 2.056617696 | BX23: 4.675972435 | BY23: 136.05 | CA23: 08:23:56 | CC23: 6.148244871 | CH23: 09:33:48 | CJ23: 3.947487413 | CL23: 7.212745169 | CM23: 434.962 | CO23: 09:57:11 | CQ23: 3.003075857 | CS23: 4.629926558 | CT23: 222.6334 | CV23: 08:46:36 | CX23: 2.970064831 | CZ23: 5.350060163 | DA23: 217.9 | DC23: 40377.433 | DE23: 4.716171895 | DG23: 3.77022475 | DH23: 245.62 | DJ23: 09:36:25 | DL23: 11.37784341 | DN23: 3.383046997 | DO23: 222.78 | DQ23: 09:47:46 | DS23: 15.11380399 | DU23: 4.284087916 | DV23: 278.70 | DW23: 2011-07-27T10:29:00.002 | DX23: 10:29:10 | DZ23: 2.329505137 | EB23: 7.81495836 | ED23: 2011-07-20T08:55:36 | EF23: 4.559991623 | EH23: 3.751341953 | EI23: 260.1 | EK23: 2013-07-18T11:17:00 | EM23: 2.150745784 | EN23: 2013-07-18T11:17:03 | EO23: 7.803074143 | EP23: 391.3883333 | ER23: 2013-07-21T13:34:06 | ET23: 1.566218193 | EV23: 1.789490264 | EY23: 2013-07-22T13:04:58 | FA23: 4.876117197 | FC23: 5.258432469 | FF23: 2013-07-25T13:03:02 | FH23: 1.426434537 | FJ23: 1.252795956 | FR23: 2016-07-19T11:51:49 | FS23: 330.250 | FU23: 1.853470125 | FW23: 2016-07-19T11:52:13 | FY23: 291.283 | GA23: 1.634776552 | GO23: 17:50:54 | GP23: 7.84435 | GR23: 18:00:50 | GS23: 13.37798889 | HC23: 2018-07-30 | HD23: 20:07:00 | HI23: 4.04900684 | HJ23: 7.03492376 | HL23: 4.83 | HM23: 154.475 | HV23: 2003-06-26T12:00:32 | IB23: 2014-06-29 | II23: 38167.53529 | IK23: 8.66 | IO23: 6.65 | JA23: 2002-06-23 | JB23: 13:08:03 | JC23: 206.2054 | JD23: 107.0089 | JE23: 62.7455 | JF23: 23.9062 | JG23: 7.8125 | JH23: 2.5 | JI23: 0.558 | JJ23: 0.2902 | JK23: 0.5804 | JL23: 0.8036 | JN23: 2.77 | JO23: 204.82 | JW23: 2003-06-26T12:00:17 | JY23: 112.61143 | JZ23: 56.96001 | KA23: 38.07428 | KB23: 12.77713 | KC23: 3.06285 | KD23: 1.56571 | KE23: 0.03429 | KF23: 0.3429 | KG23: 0.03429 | KH23: 0.03429 | KJ23: 1.57 | KK23: 112.81717 | KR23: 38167.53523 | KS23: 308.104 | KT23: 3.63 | KU23: 7.342404948 | KV23: 3.818912438 | KW23: L | KX23: 308.2 | KY23: 154.6 | KZ23: 98 | LA23: 43.8 | LB23: 8.4 | LC23: 2.8 | LD23: 0.336 | LE23: 0.168 | LF23: 0.084 | LG23: 0.024 | LH23: 0 | LI23: 0.048 | LJ23: 0 | LK23: 0 | LL23: 0 | LN23: 2008
A24: 2014-07-22 | B24: 12:15:38 | C24: 2014-07-22T12:15:38 | E24: 2014-07-22T12:16:01 | F24: 150 | H24: 0.8418486564 | K24: 2014-07-22T12:16:01 | L24: 71.71666667 | N24: 0.4024971965 | P24: 2014-07-20 | Q24: =AVERAGE(BH56:BH417) -> 3.67802377 | R24: =AVERAGE(BJ56:BJ417) -> 7.065777511 | S24: =AVERAGE(BK56:BK417) -> 348.3734862 | U24: 11:03:59 | V24: 11:03:20 | X24: 6.97129944 | Z24: 8.159264285 | AA24: 258.15 | AC24: 10:33:57 | AD24: 0.3067135271 | AE24: 0.3713653065 | AF24: 0.337202067 | AG24: 0.1661248015 | AH24: 0.1335962276 | AI24: 0.01967893638 | AJ24: 0.05466436667 | AK24: 0.1043106936 | AL24: 0.1122464875 | AM24: 0.2945243113 | AN24: 0.6702064328 | AO24: 0 | AP24: 0 | AQ24: 0 | AR24: 10:33:15 | AT24: 1.728488825 | AU24: 108.31 | AV24: 1.389345233 | AY24: 09:52:35 | BA24: 2.211618436 | BB24: 09:52:26 | BC24: 2.62754592 | BD24: 138.34 | BF24: 11:28:11 | BH24: 3.459785287 | BI24: 11:28:55 | BJ24: 4.987847817 | BK24: 383.844 | BM24: 11:21:44 | BO24: 9.274173175 | BQ24: 9.607321085 | BR24: 7.608232026 | BT24: 09:16:15 | BV24: 2.006204513 | BX24: 4.679924293 | BY24: 131.6333 | CA24: 08:24:56 | CC24: 6.033564676 | CH24: 09:34:48 | CJ24: 4.072320293 | CL24: 7.155388359 | CM24: 436.836 | CO24: 09:58:11 | CQ24: 3.019735517 | CS24: 4.672902924 | CT24: 220.3501 | CV24: 08:47:36 | CX24: 3.026591894 | CZ24: 5.099610859 | DA24: 219.2168 | DC24: 40377.43369 | DE24: 4.931050793 | DG24: 4.204751472 | DH24: 245.08 | DJ24: 09:37:25 | DL24: 11.7857633 | DN24: 3.548211992 | DO24: 227.07 | DQ24: 09:48:46 | DS24: 15.13872238 | DU24: 4.252994577 | DV24: 277.17 | DW24: 2011-07-27T10:30:00.002 | DX24: 10:30:10 | DZ24: 2.705980868 | EB24: 7.48204208 | ED24: 2011-07-20T08:56:36 | EF24: 4.805651044 | EH24: 3.901983245 | EI24: 259.5499 | EK24: 2013-07-18T11:18:00 | EM24: 2.101448414 | EN24: 2013-07-18T11:18:03 | EO24: 8.311817821 | EP24: 410.8333333 | ER24: 2013-07-21T13:37:06 | ET24: 1.597223074 | EV24: 1.813198841 | EY24: 2013-07-22T13:07:58 | FA24: 4.885061003 | FC24: 5.269149806 | FF24: 2013-07-25T13:06:02 | FH24: 1.442929158 | FJ24: 1.252359317 | FR24: 2016-07-19T11:53:43 | FS24: 332.967 | FU24: 1.86871694 | FW24: 2016-07-19T11:54:06 | FY24: 293.983 | GA24: 1.649929828 | GO24: 18:20:08 | GP24: 7.351 | GR24: 18:30:08 | GS24: 10.93879 | HC24: 2018-07-30 | HD24: 20:08:00 | HI24: 6.050960005 | HJ24: 8.360082148 | HL24: 5.23 | HM24: 163.05 | HV24: 2003-06-26T12:00:37 | IB24: 2014-06-30 | IC24: 15.1607484 | ID24: 17.93428413 | II24: 38167.53535 | IK24: 8.76 | IO24: 6.65 | JA24: 2002-06-23 | JB24: 13:09:03 | JC24: 214.8661 | JD24: 113.3482 | JE24: 65.4688 | JF24: 24.5089 | JG24: 8.1473 | JH24: 2.3661 | JI24: 0.3795 | JJ24: 0.2455 | JK24: 0.1116 | JL24: 0.2902 | JN24: 2.79 | JO24: 214.46 | JW24: 2003-06-26T12:00:22 | JY24: 113.4 | JZ24: 57.28001 | KA24: 38.95428 | KB24: 12.55427 | KC24: 2.97142 | KD24: 1.47429 | KE24: 0.03429 | KF24: 0.3429 | KG24: 0.06286 | KH24: 0 | KJ24: 1.56 | KK24: 113.61146 | KR24: 38167.53529 | KS24: 308.124 | KT24: 3.63 | KU24: 4.386338394 | KV24: 3.767051942 | KW24: L | KX24: 308 | KY24: 159 | KZ24: 96.8 | LA24: 40 | LB24: 8.6 | LC24: 3.4 | LD24: 0.168 | LE24: 0.156 | LF24: 0.108 | LG24: 0.036 | LH24: 0.012 | LI24: 0 | LJ24: 0 | LK24: 0 | LL24: 0 | LN24: 2009 | LO24: 6.81
A25: 2014-07-22 | B25: 12:16:43 | C25: 2014-07-22T12:16:43 | E25: 2014-07-22T12:17:01 | F25: 149.6166667 | H25: 0.8396972654 | K25: 2014-07-22T12:17:01 | L25: 72.58333333 | N25: 0.407361211 | P25: 2014-07-22 | Q25: =AVERAGE(BO63:BO423) -> 6.887698595 | R25: =AVERAGE(BQ63:BQ423) -> 9.482898079 | S25: =AVERAGE(BR63:BR423) -> 5.815018747 | U25: 11:04:59 | V25: 11:04:20 | X25: 7.047545304 | Z25: 8.422228744 | AA25: 260.19 | AC25: 10:34:57 | AD25: 0.310361538 | AE25: 0.372956533 | AF25: 0.3531743724 | AG25: 0.1751045205 | AH25: 0.1431388153 | AI25: 0.154717155 | AJ25: 0.5125588263 | AK25: 1.004246089 | AL25: 1.071953956 | AM25: 3.043417883 | AN25: 3.351032164 | AO25: 0.9047786842 | AP25: 0.6431101961 | AQ25: 6.135923152 | AR25: 10:34:15 | AT25: 1.815483488 | AU25: 109.06 | AV25: 2.02201176 | AY25: 09:57:35 | BA25: 2.35856445 | BB25: 09:53:27 | BC25: 2.141720614 | BD25: 142.46 | BF25: 11:29:11 | BH25: 3.460149817 | BI25: 11:29:58 | BJ25: 5.905347366 | BK25: 364.978 | BM25: 11:22:44 | BO25: 8.99370182 | BQ25: 10.35906271 | BR25: 7.341632412 | BT25: 09:17:15 | BV25: 1.985637221 | BX25: 4.715522079 | BY25: 130.85 | CA25: 08:25:56 | CC25: 5.996898649 | CH25: 09:35:48 | CJ25: 4.111417341 | CL25: 7.334824416 | CM25: 443.83 | CO25: 09:59:11 | CQ25: 3.084784374 | CS25: 4.579245568 | CT25: 224.0167 | CV25: 08:48:36 | CX25: 3.02695804 | CZ25: 5.007166484 | DA25: 216.2501 | DC25: 40377.43439 | DE25: 5.709536463 | DG25: 3.632654258 | DH25: 237.13 | DJ25: 09:38:25 | DL25: 11.53812182 | DN25: 3.523638143 | DO25: 230.77 | DQ25: 09:49:46 | DS25: 15.17843132 | DU25: 4.345865009 | DV25: 277.83 | DW25: 2011-07-27T10:31:00.002 | DX25: 10:31:10 | DZ25: 1.543332203 | EB25: 5.182649891 | ED25: 2011-07-20T08:57:36 | EF25: 4.681340715 | EH25: 3.68665875 | EI25: 254.5334 | EK25: 2013-07-18T11:19:00 | EM25: 2.406221626 | EN25: 2013-07-18T11:19:03 | EO25: 7.555304175 | EP25: 396.6666667 | ER25: 2013-07-21T13:40:06 | ET25: 1.793117586 | EV25: 1.820982253 | EY25: 2013-07-22T13:10:58 | FA25: 4.764585066 | FC25: 5.250350025 | FF25: 2013-07-25T13:09:02 | FH25: 1.426902605 | FJ25: 1.240791194 | FR25: 2016-07-19T11:55:37 | FS25: 338.600 | FU25: 1.900333034 | FW25: 2016-07-19T11:56:00 | FY25: 300.417 | GA25: 1.686035781 | GO25: 18:50:33 | GP25: 6.248155556 | GR25: 19:00:33 | GS25: 6.98485 | HC25: 2018-07-30 | HD25: 20:09:00 | HI25: 5.083474886 | HJ25: 7.853308891 | HL25: 5.28 | HM25: 158.3 | HV25: 2003-06-26T12:00:42 | IB25: 2014-07-01 | IC25: 13.76313126 | ID25: 16.26740879 | II25: 38167.53541 | IK25: 8.60 | IO25: 6.69 | JA25: 2002-06-23 | JB25: 13:10:03 | JC25: 217.7551 | JD25: 110.4308 | JE25: 65.7596 | JF25: 25.6689 | JG25: 7.3243 | JH25: 2.8571 | JI25: 0.7256 | JJ25: 0.8617 | JK25: 2.0408 | JL25: 2.0635 | JN25: 3.28 | JO25: 213.63 | JW25: 2003-06-26T12:00:27 | JY25: 113.44572 | JZ25: 57.93144 | KA25: 38.59428 | KB25: 12.37713 | KC25: 3.05714 | KD25: 1.32001 | KE25: 0.03429 | KF25: 0.3429 | KG25: 0.06286 | KH25: 0 | KJ25: 1.55 | KK25: 113.65719 | KR25: 38167.53535 | KS25: 309.692 | KT25: 3.44 | KU25: 5.905844817 | KV25: 3.61699822 | KW25: L | KX25: 309.8 | KY25: 158.8 | KZ25: 104.4 | LA25: 36.2 | LB25: 8.4 | LC25: 1.4 | LD25: 0.324 | LE25: 0.168 | LF25: 0.072 | LG25: 0.06 | LH25: 0.012 | LI25: 0.024 | LJ25: 0 | LK25: 0 | LL25: 0 | LN25: 2010 | LO25: 4.85
A26: 2014-07-22 | B26: 12:17:48 | C26: 2014-07-22T12:17:48 | E26: 2014-07-22T12:18:01 | F26: 155.2666667 | H26: 0.8714068981 | K26: 2014-07-22T12:18:01 | L26: 74.23333333 | N26: 0.4166215462 | P26: 2014-07-23 | Q26: =AVERAGE(BV188:BV548) -> 2.623686865 | R26: =AVERAGE(BX188:BX548) -> 6.163054604 | S26: =AVERAGE(BY188:BY548) -> 164.5160197 | U26: 11:05:59 | V26: 11:05:20 | X26: 7.115367774 | Z26: 8.152171608 | AA26: 259.36 | AC26: 10:35:57 | AD26: 0.2933376745 | AE26: 0.3741493564 | AF26: 0.3455519196 | AG26: 0.2005485543 | AH26: 0.146316497 | AI26: 0.4736516412 | AJ26: 1.488800104 | AK26: 3.1804535 | AL26: 3.187800246 | AM26: 9.801114581 | AN26: 13.20306673 | AO26: 4.750088092 | AP26: 1.286220392 | AQ26: 0 | AR26: 10:35:15 | AT26: 2.563502153 | AU26: 109.18 | AV26: 3.322355747 | AY26: 09:53:35 | BA26: 4.131023193 | BB26: 09:54:29 | BC26: 2.161654274 | BD26: 139.14 | BF26: 11:30:11 | BH26: 3.532039405 | BJ26: 5.56549591 | BK26: 0 | BM26: 11:23:44 | BO26: 8.816590249 | BQ26: 11.06838351 | BR26: 7.324150858 | BT26: 09:18:15 | BV26: 1.911752952 | BX26: 4.609782368 | BY26: 133 | CA26: 08:26:56 | CC26: 6.024735392 | CH26: 09:36:48 | CJ26: 4.187983625 | CL26: 7.209506972 | CM26: 436.412 | CO26: 10:00:11 | CQ26: 3.193887556 | CS26: 4.630398714 | CT26: 229.2336 | CV26: 08:49:36 | CX26: 3.226817918 | CZ26: 5.190982445 | DA26: 225.9499 | DC26: 40377.43508 | DE26: 3.989837807 | DG26: 3.633470385 | DH26: 240.75 | DJ26: 09:39:25 | DL26: 11.45558914 | DN26: 3.316424309 | DO26: 219.93 | DQ26: 09:50:46 | DS26: 15.13620129 | DU26: 4.227807624 | DV26: 275.60 | DW26: 2011-07-27T10:32:00.002 | DX26: 10:32:10 | DZ26: 1.186347941 | EB26: 2.862494672 | ED26: 2011-07-20T08:58:36 | EF26: 4.728861391 | EH26: 3.822897055 | EI26: 253.8667 | EK26: 2013-07-18T11:20:00 | EM26: 2.226637336 | EN26: 2013-07-18T11:20:03 | EO26: 8.202696101 | EP26: 390.5533333 | ER26: 2013-07-21T13:43:06 | ET26: 1.55211436 | EV26: 1.75220213 | EY26: 2013-07-22T13:13:58 | FA26: 4.905797189 | FC26: 5.36011162 | FF26: 2013-07-25T13:12:02 | FH26: 1.424906862 | FJ26: 1.223735901 | FR26: 2016-07-19T11:57:31 | FS26: 340.367 | FU26: 1.91024814 | FW26: 2016-07-19T11:57:53 | FY26: 296.567 | GA26: 1.664428332 | GO26: 19:20:33 | GP26: 6.07585 | GR26: 19:30:33 | GS26: 6.25475 | HC26: 2018-07-30 | HD26: 20:10:00 | HI26: 3.016766133 | HJ26: 7.062066384 | HL26: 4.48 | HM26: 148.325 | HV26: 2003-06-26T12:00:47 | IB26: 2014-07-02 | IC26: 205.7569616 | ID26: 150.2448992 | II26: 38167.53546 | IK26: 8.79 | IO26: 6.70 | JA26: 2002-06-23 | JB26: 13:11:03 | JC26: 209.6205 | JD26: 108.1473 | JE26: 61.5402 | JF26: 24.5759 | JG26: 6.808 | JH26: 2.0759 | JI26: 0.6473 | JJ26: 0.8705 | JK26: 2.6786 | JL26: 2.2098 | JN26: 3.09 | JO26: 204.67 | JW26: 2003-06-26T12:00:32 | JY26: 113 | JZ26: 57.89715 | KA26: 38.28571 | KB26: 12.41142 | KC26: 3.05714 | KD26: 1.14858 | KE26: 0.06858 | KF26: 0.3429 | KG26: 0.06286 | KH26: 0 | KJ26: 1.53 | KK26: 113.21148 | KR26: 38167.53541 | KS26: 309.292 | KT26: 3.63 | KU26: 6.971916141 | KV26: 3.854278131 | KW26: L | KX26: 309 | KY26: 155.6 | KZ26: 102.2 | LA26: 39.4 | LB26: 8.4 | LC26: 3.2 | LD26: 0.228 | LE26: 0.264 | LF26: 0.084 | LG26: 0.06 | LH26: 0.012 | LI26: 0.036 | LJ26: 0 | LK26: 0 | LL26: 0 | LN26: 2011 | LO26: 4.81
A27: 2014-07-22 | B27: 12:18:53 | C27: 2014-07-22T12:18:53 | F27: 0 | H27: 0 | L27: 0 | N27: 0 | P27: 2014-07-24 | Q27: =AVERAGE(CC240:CC600) -> 5.049909353 | R27: =AVERAGE(CE240:CE600) -> 7.36463346 | S27: =AVERAGE(CF240:CF600) -> 478.4646039 | U27: 11:06:59 | V27: 11:06:20 | X27: 7.004140668 | Z27: 8.12448862 | AA27: 256.75 | AC27: 10:36:57 | AD27: 0.3069941434 | AE27: 0.3777278268 | AF27: 0.336476845 | AG27: 0.2035388007 | AH27: 0.1224600278 | AI27: 0.02714336053 | AJ27: 0.06173857883 | AK27: 0.1452168479 | AL27: 0.1852067044 | AM27: 0.4090615434 | AN27: 0.2010619298 | AO27: 0.6785840132 | AP27: 0 | AQ27: 0 | AR27: 10:36:15 | AT27: 1.821364703 | AU27: 109.57 | AV27: 1.436079583 | AY27: 09:58:35 | BA27: 2.27188964 | BB27: 09:55:30 | BC27: 2.160177289 | BD27: 136.51 | BF27: 11:31:11 | BH27: 3.201662896 | BI27: 11:31:01 | BJ27: 5.225644455 | BK27: 364.008 | BM27: 11:24:44 | BO27: 8.856644392 | BQ27: 10.65523865 | BR27: 7.287409397 | BT27: 09:19:15 | BV27: 2.068410736 | BX27: 4.770364147 | BY27: 133.6499 | CA27: 08:27:56 | CC27: 5.923087318 | CH27: 09:37:48 | CJ27: 4.123685231 | CL27: 7.206730557 | CM27: 434.498 | CO27: 10:01:11 | CQ27: 3.063344583 | CS27: 4.733284433 | CT27: 223.9166 | CV27: 08:50:36 | CX27: 3.157846869 | CZ27: 5.33941252 | DA27: 225.9667 | DC27: 40377.43578 | DE27: 4.021458421 | DG27: 3.922525684 | DH27: 256.45 | DJ27: 09:40:25 | DL27: 11.44421076 | DN27: 3.335112474 | DO27: 224.05 | DQ27: 09:51:46 | DS27: 15.30457205 | DU27: 4.265750324 | DV27: 277.03 | DW27: 2011-07-27T10:33:00.002 | DX27: 10:33:10 | DZ27: 3.382449283 | EB27: 9.142095642 | ED27: 2011-07-20T08:59:36 | EF27: 5.096443656 | EH27: 3.980566635 | EI27: 257.1501 | EK27: 2013-07-18T11:21:00 | EM27: 2.132452279 | EN27: 2013-07-18T11:21:03 | EO27: 7.314566494 | EP27: 381.3883333 | ER27: 2013-07-21T13:46:06 | ET27: 1.500165462 | EV27: 1.738922861 | EY27: 2013-07-22T13:16:58 | FA27: 5.239394106 | FC27: 5.593634259 | FF27: 2013-07-25T13:15:02 | FH27: 1.431954258 | FJ27: 1.248773603 | FR27: 2016-07-19T11:59:25 | FS27: 330.533 | FU27: 1.855060284 | FW27: 2016-07-19T11:59:46 | FY27: 293.417 | GA27: 1.646749511 | GO27: 19:50:33 | GP27: 5.67306 | GR27: 19:59:47 | GS27: 6.113825 | HC27: 2018-07-30 | HD27: 20:11:00 | HI27: 4.75709998 | HJ27: 7.297300006 | HL27: 5.18 | HM27: 151.05 | HV27: 2003-06-26T12:00:52 | IB27: 2014-07-03 | IC27: 172.8332775 | ID27: 161.5045729 | II27: 38167.53552 | IK27: 8.52 | IO27: 7.26 | JA27: 2002-06-23 | JB27: 13:12:03 | JC27: 207.4777 | JD27: 108.3259 | JE27: 61.9866 | JF27: 23.4598 | JG27: 7.7455 | JH27: 2.6116 | JI27: 0.4241 | JJ27: 0.4687 | JK27: 1.2723 | JL27: 1.183 | JN27: 2.85 | JO27: 205.02 | JW27: 2003-06-26T12:00:37 | JY27: 113.20571 | JZ27: 57.89715 | KA27: 38.14857 | KB27: 12.61713 | KC27: 3.09143 | KD27: 1.21715 | KE27: 0.10287 | KF27: 0.3429 | KG27: 0.06286 | KH27: 0 | KJ27: 1.55 | KK27: 113.4172 | KR27: 38167.53546 | KS27: 307.736 | KT27: 3.58 | KU27: 5.548947718 | KV27: 3.696193451 | KW27: L | KX27: 308.2 | KY27: 156 | KZ27: 98.8 | LA27: 41.6 | LB27: 8.6 | LC27: 2.4 | LD27: 0.228 | LE27: 0.108 | LF27: 0.06 | LG27: 0.06 | LH27: 0.036 | LI27: 0.012 | LJ27: 0 | LK27: 0 | LL27: 0 | LN27: 2012
A28: 2014-07-22 | B28: 12:19:58 | C28: 2014-07-22T12:19:58 | F28: 0 | H28: 0 | L28: 0 | N28: 0 | P28: 2014-07-25 | Q28: =AVERAGE(CJ170:CJ530) -> 3.511082515 | R28: =AVERAGE(CL170:CL530) -> 6.25809178 | S28: =AVERAGE(CM170:CM530) -> 383.1799557 | U28: 11:07:59 | V28: 11:07:20 | X28: 7.056359239 | Z28: 8.096436544 | AA28: 259.78 | AC28: 10:37:57 | AD28: 0.3001656283 | AE28: 0.3669924157 | AF28: 0.317965174 | AG28: 0.206533537 | AH28: 0.1272313216 | AI28: 0.02850052855 | AJ28: 0.1003251906 | AK28: 0.2331650798 | AL28: 0.2525545969 | AM28: 0.8999353956 | AN28: 0.8712683626 | AO28: 0.2261946711 | AP28: 0 | AQ28: 0 | AR28: 10:37:15 | AT28: 1.761455549 | AU28: 106.71 | AV28: 1.447713796 | AY28: 09:51:35 | BA28: 2.204642724 | BB28: 09:56:32 | BC28: 2.445869325 | BD28: 138.03 | BF28: 11:32:11 | BH28: 3.565705032 | BI28: 11:32:04 | BJ28: 5.079506302 | BK28: 371.738 | BM28: 11:25:44 | BO28: 8.729271271 | BQ28: 10.02604944 | BR28: 7.216077734 | BT28: 09:20:15 | BV28: 2.07019602 | BX28: 4.919947513 | BY28: 133.5333 | CA28: 08:28:56 | CC28: 5.934916854 | CH28: 09:38:48 | CJ28: 3.983497342 | CL28: 7.04022487 | CM28: 433.034 | CO28: 10:02:11 | CQ28: 2.916855701 | CS28: 4.557513371 | CT28: 218.35 | CV28: 08:51:36 | CX28: 3.138472223 | CZ28: 5.360566205 | DA28: 223.1499 | DC28: 40377.43647 | DE28: 4.01228088 | DG28: 3.737688619 | DH28: 245.73 | DJ28: 09:41:25 | DL28: 11.14356041 | DN28: 3.323950722 | DO28: 219.73 | DQ28: 09:52:46 | DS28: 15.82862441 | DU28: 4.46534046 | DV28: 285.38 | DW28: 2011-07-27T10:34:00.002 | DX28: 10:34:10 | DZ28: 2.549778444 | EB28: 7.697463028 | ED28: 2011-07-20T09:00:36 | EF28: 4.579081256 | EH28: 3.834075768 | EI28: 258.1166 | EK28: 2013-07-18T11:22:00 | EM28: 2.256611457 | EN28: 2013-07-18T11:22:03 | EO28: 6.971593697 | EP28: 358.6116667 | ER28: 2013-07-21T13:49:06 | ET28: 1.470157674 | EV28: 1.799534647 | EY28: 2013-07-22T13:19:58 | FA28: 5.405479226 | FC28: 5.639212518 | FF28: 2013-07-25T13:18:02 | FH28: 1.419575715 | FJ28: 1.233059094 | FR28: 2016-07-19T12:01:04 | FS28: 323.217 | FU28: 1.813996777 | FW28: 2016-07-19T12:08:56 | FY28: 279.717 | GA28: 1.569860667 | GO28: 20:40:30 | GP28: 8.8391625 | GR28: 20:50:30 | GS28: 9.28032 | HC28: 2018-07-30 | HD28: 20:12:00 | HI28: 3.104104372 | HJ28: 6.757406755 | HL28: 4.82 | HM28: 151.625 | HV28: 2003-06-26T12:00:57 | II28: 38167.53558 | IK28: 8.44 | IO28: 6.76 | JA28: 2002-06-23 | JB28: 13:13:03 | JC28: 208.4821 | JD28: 106.6518 | JE28: 61.2054 | JF28: 22.5893 | JG28: 6.8304 | JH28: 2.5 | JI28: 0.8259 | JJ28: 1.25 | JK28: 3.4152 | JL28: 3.2143 | JN28: 3.36 | JO28: 201.85 | JW28: 2003-06-26T12:00:42 | JY28: 112.07428 | JZ28: 56.93715 | KA28: 37.84 | KB28: 12.9257 | KC28: 3.05714 | KD28: 1.04572 | KE28: 0.10287 | KF28: 0.3429 | KG28: 0.06286 | KH28: 0 | KJ28: 1.53 | KK28: 112.25148 | KR28: 38167.53552 | KS28: 328.94 | KT28: 3.83 | KU28: 9.153360063 | KV28: 4.02745895 | KW28: L | KX28: 328.2 | KY28: 163.8 | KZ28: 107 | LA28: 46.4 | LB28: 8.8 | LC28: 2.4 | LD28: 0.36 | LE28: 0.18 | LF28: 0.036 | LG28: 0.06 | LH28: 0.024 | LI28: 0.024 | LJ28: 0.012 | LK28: 0 | LL28: 0 | LN28: 2013 | LO28: 2.80
A29: 2014-07-22 | B29: 12:21:03 | C29: 2014-07-22T12:21:03 | E29: 2014-07-22T12:20:37 | F29: 158.4166 | H29: 0.8890853457 | K29: 2014-07-22T12:20:37 | L29: 62.9333 | N29: 0.3532020936 | P29: 2014-07-26 | Q29: =AVERAGE(CQ146:CQ506) -> 2.822764509 | R29: =AVERAGE(CS146:CS506) -> 4.822232552 | S29: =AVERAGE(CT146:CT506) -> 215.2971809 | U29: 11:08:59 | V29: 11:08:20 | X29: 7.001024011 | Z29: 8.11321608 | AA29: 259.38 | AC29: 10:38:57 | AD29: 0.3050298298 | AE29: 0.3924389186 | AF29: 0.3582552816 | AG29: 0.2267379048 | AH29: 0.1431388153 | AI29: 0.1273475998 | AJ29: 0.4199509581 | AK29: 0.8038059329 | AL29: 0.8193993589 | AM29: 2.470731722 | AN29: 3.552094094 | AO29: 0.6785840132 | AP29: 0.6431101961 | AQ29: 0 | AR29: 10:38:15 | AT29: 1.909226395 | AU29: 108.52 | AV29: 1.972899308 | AY29: 09:59:35 | BA29: 1.954024593 | BB29: 09:57:34 | BC29: 2.277987377 | BD29: 143.86 | BF29: 11:33:11 | BH29: 3.8952427 | BI29: 11:33:07 | BJ29: 5.9249117 | BK29: 374.854 | BM29: 11:26:44 | BO29: 8.621621762 | BQ29: 8.201550395 | BR29: 7.181028821 | BT29: 09:21:15 | BV29: 2.093278235 | BX29: 4.965266344 | BY29: 132.0166 | CA29: 08:29:56 | CC29: 6.042425516 | CH29: 09:39:48 | CJ29: 4.002326413 | CL29: 6.920279812 | CM29: 419.45 | CO29: 10:03:11 | CQ29: 3.029864922 | CS29: 4.662638457 | CT29: 218.3166 | CV29: 08:52:36 | CX29: 3.018039458 | CZ29: 5.064189925 | DA29: 211.8165 | DC29: 40377.43716 | DE29: 5.308299744 | DG29: 3.931424923 | DH29: 250.52 | DJ29: 09:42:25 | DL29: 11.37893962 | DN29: 3.38630451 | DO29: 220.13 | DQ29: 09:53:46 | DS29: 15.30572998 | DU29: 4.30030182 | DV29: 281.57 | DW29: 2011-07-27T10:35:00.002 | DX29: 10:35:10 | DZ29: 2.437014278 | EB29: 7.830379071 | ED29: 2011-07-20T09:01:36 | EF29: 4.449700208 | EH29: 3.515641919 | EI29: 251.0168 | EK29: 2013-07-18T11:23:00 | EM29: 2.127846792 | EN29: 2013-07-18T11:23:03 | EO29: 7.225585272 | EP29: 385.835 | ER29: 2013-07-21T13:52:06 | ET29: 1.834696897 | EV29: 1.787263027 | FA29: 0 | FF29: 2013-07-25T13:21:02 | FH29: 1.412496891 | FJ29: 1.242007946 | FR29: 2016-07-19T12:02:57 | FS29: 314.650 | FU29: 1.765917865 | FW29: 2016-07-19T12:10:50 | FY29: 284.150 | GA29: 1.594741971 | GO29: 21:10:20 | GP29: 9.79577 | GR29: 21:20:04 | GS29: 10.94958889 | HC29: 2018-07-30 | HD29: 20:13:00 | HI29: 2.959576875 | HJ29: 6.156608085 | HL29: 4.32 | HM29: 151.2 | HV29: 2003-06-26T12:10:04 | II29: 38167.53564 | IK29: 8.67 | IO29: 7.13 | JA29: 2002-06-23 | JB29: 13:14:03 | JC29: 207.8125 | JD29: 108.3929 | JE29: 60.1562 | JF29: 23.4598 | JG29: 6.9643 | JH29: 2.6563 | JI29: 0.5804 | JJ29: 0.6696 | JK29: 2.6116 | JL29: 2.3214 | JN29: 2.96 | JO29: 202.88 | JW29: 2003-06-26T12:00:47 | JY29: 111.8 | JZ29: 56.82857 | KA29: 37.74857 | KB29: 12.62856 | KC29: 3.23429 | KD29: 1.09144 | KE29: 0.10287 | KF29: 0.3429 | KG29: 0.06286 | KH29: 0 | KJ29: 1.54 | KK29: 111.9772 | KR29: 38167.53558 | KS29: 306.42 | KT29: 3.45 | KU29: 5.434467035 | KV29: 3.587406904 | KW29: L | KX29: 306.4 | KY29: 153.8 | KZ29: 101.4 | LA29: 41.6 | LB29: 8 | LC29: 1.2 | LD29: 0.324 | LE29: 0.096 | LF29: 0.06 | LG29: 0.024 | LH29: 0.048 | LI29: 0.012 | LJ29: 0 | LK29: 0 | LL29: 0 | LN29: 2014 | LO29: 0.76
A30: 2014-07-22 | B30: 12:22:08 | C30: 2014-07-22T12:22:08 | E30: 2014-07-22T12:21:37 | F30: 157.6 | H30: 0.8845023216 | K30: 2014-07-22T12:21:37 | L30: 62.2834 | N30: 0.349554644 | P30: 2014-07-27 | Q30: =AVERAGE(CX217:CX577) -> 2.722302425 | R30: =AVERAGE(CZ217:CZ577) -> 6.52354062 | S30: =AVERAGE(DA217:DA577) -> 196.89949 | U30: 11:09:59 | V30: 11:09:20 | X30: 7.082081225 | Z30: 8.021048257 | AA30: 257.4 | AC30: 10:39:57 | AD30: 0.3003530799 | AE30: 0.3874684232 | AF30: 0.3582552816 | AG30: 0.2057837305 | AH30: 0.1654016723 | AI30: 0.1506456509 | AJ30: 0.5524316585 | AK30: 0.9510680885 | AL30: 1.066341631 | AM30: 2.912518189 | AN30: 3.88719731 | AO30: 1.130973355 | AP30: 0.6431101961 | AQ30: 0 | AR30: 10:39:15 | AT30: 1.972925277 | AU30: 110.53 | AV30: 2.120339497 | AY30: 09:41:35 | BA30: 2.283040355 | BB30: 09:58:35 | BC30: 2.807629537 | BD30: 122.88 | BF30: 11:34:11 | BH30: 3.362708759 | BI30: 11:34:10 | BJ30: 5.2625511 | BK30: 367.476 | BM30: 11:27:44 | BO30: 8.696786786 | BQ30: 8.32781071 | BR30: 7.071071113 | BT30: 09:22:15 | BV30: 2.060697707 | BX30: 5.013107528 | BY30: 135.4667 | CA30: 08:30:56 | CC30: 6.10964903 | CH30: 09:40:48 | CJ30: 4.105253692 | CL30: 7.299325892 | CM30: 430.498 | CO30: 10:04:11 | CQ30: 2.844906359 | CS30: 4.529668552 | CT30: 214.1167 | CV30: 08:53:36 | CX30: 2.972933439 | CZ30: 5.07670698 | DA30: 211.6167 | DC30: 40377.43786 | DE30: 3.975160509 | DG30: 3.863075944 | DH30: 249.30 | DJ30: 09:43:25 | DL30: 10.99146851 | DN30: 3.271543647 | DO30: 213.67 | DQ30: 09:54:46 | DS30: 15.05226238 | DU30: 4.306813788 | DV30: 281.75 | DW30: 2011-07-27T10:36:00.002 | DX30: 10:36:10 | DZ30: 1.850292571 | EB30: 5.166849828 | ED30: 2011-07-20T09:02:36 | EF30: 4.407803184 | EH30: 3.646532728 | EI30: 256.8667 | EK30: 2013-07-18T11:24:00 | EM30: 2.156676359 | EN30: 2013-07-18T11:24:03 | EO30: 7.806220863 | EP30: 414.1666667 | ER30: 2013-07-21T13:55:06 | ET30: 1.647551879 | EV30: 1.697465467 | EY30: 2013-07-22T13:32:02 | FA30: 5.906178957 | FC30: 5.816754479 | FF30: 2013-07-25T13:24:02 | FH30: 1.471208538 | FJ30: 1.282510407 | FR30: 2016-07-19T12:04:50 | FS30: 318.900 | FU30: 1.789770243 | FW30: 2016-07-19T12:12:43 | FY30: 287.600 | GA30: 1.614104491 | GO30: 21:45:56 | GP30: 12.86248571 | GR30: 21:48:56 | GS30: 14.06927143 | HC30: 2018-07-30 | HD30: 20:14:00 | HI30: 3.051924972 | HJ30: 5.969476173 | HL30: 4.87 | HM30: 153.425 | HV30: 2003-06-26T12:10:09 | II30: 38167.53569 | IK30: 8.70 | IO30: 6.76 | JA30: 2002-06-23 | JB30: 13:15:03 | JC30: 211.942 | JD30: 112.8348 | JE30: 62.3661 | JF30: 23.9732 | JG30: 7.1205 | JH30: 2.6786 | JI30: 0.4241 | JJ30: 0.2902 | JK30: 0.9821 | JL30: 1.2723 | JN30: 2.76 | JO30: 209.69 | JW30: 2003-06-26T12:00:52 | JY30: 109.78285 | JZ30: 55.89142 | KA30: 37.09714 | KB30: 12.09713 | KC30: 3.37715 | KD30: 1.05144 | KE30: 0.10287 | KF30: 0.3429 | KG30: 0.06286 | KH30: 0 | KJ30: 1.52 | KK30: 109.96005 | KR30: 38167.53564 | KS30: 291.516 | KT30: 3.38 | KU30: 9.125548198 | KV30: 3.563554755 | KW30: L | KX30: 291.4 | KY30: 144 | KZ30: 99 | LA30: 38 | LB30: 7.8 | LC30: 2.2 | LD30: 0.348 | LE30: 0.168 | LF30: 0.048 | LG30: 0.06 | LH30: 0 | LI30: 0.036 | LJ30: 0.012 | LK30: 0 | LL30: 0 | LN30: 2015
A31: 2014-07-22 | B31: 12:23:13 | C31: 2014-07-22T12:23:13 | E31: 2014-07-22T12:22:37 | F31: 154.3166 | H31: 0.8660748158 | K31: 2014-07-22T12:22:37 | L31: 63.2334 | N31: 0.3548863522 | R31: year average | U31: 11:10:59 | V31: 11:10:20 | X31: 7.268961024 | Z31: 8.065215452 | AA31: 264.29 | AC31: 10:40:57 | AD31: 0.3062460205 | AE31: 0.3920417083 | AF31: 0.3742254092 | AG31: 0.219253309 | AH31: 0.1351898397 | AI31: 0.1149068929 | AJ31: 0.4096611949 | AK31: 0.7199483164 | AL31: 0.8699102783 | AM31: 2.143482488 | AN31: 3.619114737 | AO31: 1.357168026 | AP31: 1.286220392 | AQ31: 0 | AR31: 10:40:15 | AT31: 1.835586773 | AU31: 110.87 | AV31: 1.951524375 | AY31: 10:00:35 | BA31: 1.922332949 | BB31: 09:59:37 | BC31: 2.073574961 | BD31: 126.71 | BF31: 11:35:11 | BH31: 3.855635767 | BI31: 11:35:13 | BJ31: 6.095978423 | BK31: 374.134 | BM31: 11:28:44 | BO31: 8.404453814 | BQ31: 10.32442875 | BR31: 6.930402532 | BT31: 09:23:15 | BV31: 2.086681997 | BX31: 4.982747255 | BY31: 136.8333 | CA31: 08:31:56 | CC31: 6.196681153 | CH31: 09:41:48 | CJ31: 4.04311483 | CL31: 7.381139247 | CM31: 426.422 | CO31: 10:05:11 | CQ31: 2.866641957 | CS31: 4.553699805 | CT31: 215.2499 | CV31: 08:54:36 | CX31: 3.008796976 | CZ31: 5.132600331 | DA31: 216.5335 | DC31: 40377.43855 | DE31: 3.712052459 | DG31: 3.938086001 | DH31: 247.47 | DJ31: 09:44:25 | DL31: 11.19633596 | DN31: 3.331534713 | DO31: 215.47 | DQ31: 09:55:46 | DS31: 14.99973989 | DU31: 4.283334281 | DV31: 277.70 | DW31: 2011-07-27T10:37:00.002 | DX31: 10:37:10 | DZ31: 4.436064424 | EB31: 9.056271603 | ED31: 2011-07-20T09:03:36 | EF31: 4.406349839 | EH31: 3.671686703 | EI31: 251.5834 | EK31: 2013-07-18T11:25:00 | EM31: 2.273203266 | EN31: 2013-07-18T11:25:03 | EO31: 7.158662149 | EP31: 385.2783333 | ER31: 2013-07-21T13:58:06 | ET31: 1.393015785 | EV31: 1.672779769 | EY31: 2013-07-22T13:35:02 | FA31: 6.069530177 | FC31: 5.733694808 | FF31: 2013-07-25T13:27:02 | FH31: 1.445610166 | FJ31: 1.282260097 | FR31: 2016-07-19T12:06:44 | FS31: 318.667 | FU31: 1.788460701 | FW31: 2016-07-19T12:17:23 | FY31: 448.333 | GA31: 2.516192095 | GO31: 2002-06-25 | HC31: 2018-07-30 | HD31: 20:15:00 | HI31: 2.796619518 | HJ31: 6.174835458 | HL31: 4.61 | HM31: 150.075 | HV31: 2003-06-26T12:10:14 | II31: 38167.53575 | IK31: 8.76 | IO31: 6.70 | JA31: 2002-06-23 | JB31: 13:16:03 | JC31: 206.4732 | JD31: 108.2143 | JE31: 62.1652 | JF31: 24.2857 | JG31: 7.5223 | JH31: 2.9018 | JI31: 0.4911 | JJ31: 0.1786 | JK31: 0.4464 | JL31: 0.2679 | JN31: 2.72 | JO31: 205.76 | JW31: 2003-06-26T12:00:57 | JY31: 109.81714 | JZ31: 57.09142 | KA31: 36.03429 | KB31: 12.19999 | KC31: 3.2743 | KD31: 1.01716 | KE31: 0.10287 | KF31: 0.3429 | KG31: 0.02857 | KH31: 0 | KJ31: 1.50 | KK31: 110.06293 | KR31: 38167.53569 | KS31: 310.044 | KT31: 3.54 | KU31: 6.252920251 | KV31: 3.706070356 | KW31: L | KX31: 309.8 | KY31: 158.4 | KZ31: 99.6 | LA31: 40.4 | LB31: 9.6 | LC31: 1.6 | LD31: 0.288 | LE31: 0.156 | LF31: 0.072 | LG31: 0.036 | LH31: 0.036 | LI31: 0.024 | LJ31: 0 | LK31: 0 | LL31: 0 | LN31: 2016 | LO31: 2.28
E32: 2014-07-22T12:23:37 | F32: 156.4667 | H32: 0.8781418744 | K32: 2014-07-22T12:23:37 | L32: 61.0665 | N32: 0.3427250065 | R32: =AVERAGE(R24:R30) -> 6.81 | U32: 11:11:59 | V32: 11:11:20 | X32: 7.144058565 | Z32: 7.96302145 | AC32: 10:41:57 | AD32: 0.3161607528 | AE32: 0.3892576584 | AF32: 0.3462771415 | AG32: 0.2402074833 | AH32: 0.1272313216 | AI32: 0.1094782208 | AJ32: 0.3447070651 | AK32: 0.6790421621 | AL32: 0.5949063839 | AM32: 2.225294796 | AN32: 3.082949591 | AO32: 0 | AP32: 0.6431101961 | AQ32: 0 | AR32: 10:41:15 | AT32: 1.78004076 | AU32: 107.99 | AV32: 1.873319643 | AY32: 10:01:35 | BA32: 1.998959768 | BB32: 10:00:38 | BC32: 2.053484039 | BD32: 129.59 | BF32: 11:36:11 | BH32: 3.846089323 | BI32: 11:36:16 | BJ32: 5.863559668 | BK32: 381.346 | BM32: 11:29:44 | BO32: 8.337186214 | BQ32: 10.23649305 | BR32: 6.897319007 | BT32: 09:24:15 | BV32: 2.132469018 | BX32: 5.185078791 | BY32: 139.0499 | CA32: 08:32:56 | CC32: 6.02526083 | CH32: 09:42:48 | CJ32: 3.900379521 | CL32: 7.014089372 | CM32: 422.796 | CO32: 10:06:11 | CQ32: 2.770693746 | CS32: 4.493783645 | CT32: 208.8502 | CV32: 08:55:36 | CX32: 2.961563322 | CZ32: 4.680920923 | DA32: 214.1999 | DC32: 40377.43925 | DE32: 3.695523611 | DG32: 3.743551597 | DH32: 246.38 | DJ32: 09:45:25 | DL32: 11.10049572 | DN32: 3.326994091 | DO32: 218.12 | DQ32: 09:56:46 | DS32: 14.8428817 | DU32: 4.290913193 | DV32: 273.75 | DW32: 2011-07-27T10:38:00.002 | DX32: 10:38:10 | DZ32: 2.031207704 | EB32: 5.870255231 | ED32: 2011-07-20T09:04:36 | EF32: 4.826010453 | EH32: 3.711007353 | EI32: 252.8001 | EK32: 2013-07-18T11:26:00 | EM32: 2.121501429 | EN32: 2013-07-18T11:26:03 | EO32: 6.48247401 | EP32: 386.11 | ER32: 2013-07-21T14:01:06 | ET32: 1.410842521 | EV32: 1.754669384 | EY32: 2013-07-22T13:38:02 | FA32: 6.02244476 | FC32: 5.811380877 | FF32: 2013-07-25T13:30:02 | FH32: 1.423846694 | FJ32: 1.278238306 | FR32: 2016-07-19T12:08:37 | FS32: 319.367 | FU32: 1.792389328 | FW32: 2016-07-19T12:23:45 | FY32: 269.883 | GA32: 1.51467281 | GO32: 09:09:43 | GR32: 09:19:43 | GS32: 14.0161 | HC32: 2018-07-30 | HD32: 20:16:00 | HI32: 3.38343491 | HJ32: 6.15067931 | HL32: 4.86 | HM32: 149.625 | HV32: 2003-06-26T12:10:19 | II32: 38167.53581 | IK32: 19.43 | IO32: 20.92 | JA32: 2002-06-23 | JB32: 13:17:03 | JC32: 211.5179 | JD32: 113.1473 | JE32: 63.0804 | JF32: 24.5536 | JG32: 7.2098 | JH32: 2.3214 | JI32: 0.5134 | JJ32: 0.2009 | JK32: 0.2455 | JL32: 0.2455 | JN32: 2.71 | JO32: 211.03 | JW32: 2003-06-26T12:10:04 | JY32: 122.16571 | JZ32: 61.06857 | KA32: 40.77142 | KB32: 14.38285 | KC32: 4.27429 | KD32: 1.53714 | KE32: 0.06858 | KF32: 0.2857 | KG32: 0.03429 | KH32: 0 | KJ32: 1.68 | KK32: 122.38855 | KR32: 38167.53575 | KS32: 311.104 | KT32: 3.60 | KU32: 7.865291629 | KV32: 3.777883237 | KW32: L | KX32: 311.4 | KY32: 157.8 | KZ32: 101.8 | LA32: 38.8 | LB32: 10 | LC32: 2.2 | LD32: 0.36 | LE32: 0.144 | LF32: 0.036 | LG32: 0.072 | LH32: 0.024 | LI32: 0.048 | LJ32: 0 | LK32: 0 | LL32: 0 | LN32: 2017
A33: 2014-07-22 | B33: 12:24:18 | C33: =A33+B33 -> 2014-07-22T12:24:18 | E33: 2014-07-22T12:24:37 | F33: 158.5834 | H33: 0.8900214814 | K33: 2014-07-22T12:24:37 | L33: 62.4833 | N33: 0.3506765477 | P33: 2010 | U33: 11:12:59 | V33: 11:12:20 | X33: 7.064852731 | Z33: 7.991691789 | AA33: 263.12 | AC33: 10:42:57 | AD33: 0.3063391851 | AE33: 0.386077591 | AF33: 0.3488186851 | AG33: 0.2132683263 | AH33: 0.152681403 | AI33: 0.08663255902 | AJ33: 0.2508129765 | AK33: 0.5501877759 | AL33: 0.4714352476 | AM33: 1.8816831 | AN33: 2.077639942 | AO33: 0.4523893421 | AP33: 1.929330588 | AQ33: 2.045307717 | AR33: 10:42:15 | AT33: 1.868178251 | AU33: 107.29 | AV33: 1.744630726 | AY33: 09:49:35 | BA33: 2.313050457 | BB33: 10:01:35 | BC33: 2.510742305 | BD33: 126.99 | BF33: 11:37:11 | BH33: 4.680028379 | BI33: 11:37:19 | BJ33: 7.372333003 | BK33: 385.132 | BM33: 11:30:44 | BO33: 8.338454758 | BQ33: 10.34463204 | BR33: 6.931826282 | BT33: 09:25:15 | BV33: 2.406708044 | BX33: 5.530490275 | BY33: 147.1834 | CA33: 08:33:56 | CC33: 6.204525053 | CH33: 09:43:48 | CJ33: 4.009993866 | CL33: 7.245728521 | CM33: 422.432 | CO33: 10:07:11 | CQ33: 2.946312892 | CS33: 4.436603451 | CT33: 219.1168 | CV33: 08:56:36 | CX33: 3.034270331 | CZ33: 4.908543121 | DA33: 216.2333 | DC33: 40377.43994 | DE33: 3.522721245 | DG33: 3.553773653 | DH33: 229.95 | DJ33: 09:46:25 | DL33: 10.69851983 | DN33: 3.166492593 | DO33: 208.87 | DQ33: 09:57:46 | DS33: 14.97598517 | DU33: 4.257343875 | DV33: 276.73 | DW33: 2011-07-27T10:39:00.002 | DX33: 10:39:10 | DZ33: 1.790727436 | EB33: 3.871980824 | ED33: 2011-07-20T09:05:36 | EF33: 4.578019695 | EH33: 3.718160237 | EI33: 255.1 | EM33: 2.252797913 | EN33: 2013-07-18T11:27:03 | EO33: 6.843462859 | EP33: 378.89 | ER33: 2013-07-21T14:04:06 | ET33: 1.82742251 | EV33: 1.72634264 | EY33: 2013-07-22T13:41:02 | FA33: 6.02801649 | FC33: 5.81614861 | FF33: 2013-07-25T13:33:02 | FH33: 1.415615659 | FJ33: 1.279485364 | FR33: 2016-07-19T12:10:30 | FS33: 322.917 | FU33: 1.81231308 | FW33: 2016-07-19T12:25:38 | FY33: 266.067 | GA33: 1.493252439 | GO33: 09:39:57 | GP33: 12.71395556 | GR33: 09:53:18 | GS33: 12.89411667 | HC33: 2018-07-30 | HD33: 20:17:00 | HI33: 3.035773259 | HJ33: 5.921674141 | HL33: 4.73 | HM33: 155.05 | HV33: 2003-06-26T12:10:24 | II33: 38167.53587 | IK33: 8.75 | IO33: 6.71 | JA33: 2002-06-23 | JB33: 13:18:03 | JC33: 204.8661 | JD33: 108.8616 | JE33: 62.2768 | JF33: 23.3259 | JG33: 7.3437 | JH33: 2.3438 | JI33: 0.1339 | JJ33: 0.1563 | JK33: 0.2232 | JL33: 0.2009 | JN33: 2.55 | JO33: 204.44 | JW33: 2003-06-26T12:10:09 | JY33: 123.26286 | JZ33: 61.92571 | KA33: 40.83999 | KB33: 14.75999 | KC33: 3.96572 | KD33: 1.57142 | KE33: 0.10287 | KF33: 0.3143 | KG33: 0.03429 | KH33: 0 | KJ33: 1.71 | KK33: 123.48 | KR33: 38167.53581 | KS33: 325.272 | KT33: 3.92 | KU33: 16.4610313 | KV33: 4.173869734 | KW33: L | KX33: 325.2 | KY33: 165.6 | KZ33: 99.2 | LA33: 44 | LB33: 13 | LC33: 2.8 | LD33: 0.432 | LE33: 0.24 | LF33: 0.048 | LG33: 0.024 | LH33: 0.024 | LI33: 0.012 | LJ33: 0.048 | LK33: 0 | LL33: 0 | LN33: 2018 | LO33: 2.87 | LQ33: 8.80
A34: 2014-07-22 | B34: 12:25:23 | C34: 2014-07-22T12:25:23 | E34: 2014-07-22T12:25:37 | F34: 159.1167 | H34: 0.893014534 | K34: 2014-07-22T12:25:37 | L34: 64.3166 | N34: 0.360965622 | P34: 2014-07-18 | Q34: =AVERAGE(DE120:DE362) -> 4.432295931 | R34: =AVERAGE(DG120:DG362) -> 5.266548368 | S34: =AVERAGE(DH120:DH362) -> 220.5192132 | U34: 11:13:59 | V34: 11:13:20 | X34: 7.018173573 | Z34: 8.014195326 | AA34: 257.31 | AC34: 10:43:57 | AD34: 0.3014755448 | AE34: 0.3745465666 | AF34: 0.3749528089 | AG34: 0.2229978518 | AH34: 0.1351898397 | AI34: 0.06197733987 | AJ34: 0.2160850259 | AK34: 0.3742913122 | AL34: 0.3423517869 | AM34: 1.079922475 | AN34: 1.407433509 | AO34: 0.9047786842 | AP34: 0 | AQ34: 0 | AR34: 10:43:15 | AT34: 1.818968693 | AU34: 108.37 | AV34: 1.687224978 | AY34: 09:50:35 | BA34: 2.156404743 | BB34: 10:02:35 | BC34: 2.427584274 | BD34: 120.84 | BF34: 11:38:11 | BH34: 3.331682442 | BI34: 11:38:22 | BJ34: 5.125668963 | BK34: 371.036 | BM34: 11:31:44 | BO34: 7.979776741 | BQ34: 10.11145828 | BR34: 6.698678532 | BT34: 09:26:15 | BV34: 2.351341104 | BX34: 5.233216663 | BY34: 150.5667 | CA34: 08:34:56 | CC34: 5.931073683 | CH34: 09:44:48 | CJ34: 4.152154255 | CL34: 7.293316025 | CM34: 423.896 | CO34: 10:08:11 | CQ34: 2.977798472 | CS34: 4.342838201 | CT34: 220.5333 | CV34: 08:57:36 | CX34: 3.069852183 | CZ34: 5.042085385 | DA34: 216.85 | DC34: 40377.44064 | DE34: 3.694664367 | DG34: 3.318856759 | DH34: 220.62 | DJ34: 09:47:25 | DL34: 10.72489532 | DN34: 3.149176185 | DO34: 208.22 | DQ34: 09:58:46 | DS34: 14.80987815 | DU34: 4.14016735 | DV34: 272.83 | DW34: 2011-07-27T10:40:00.002 | DX34: 10:40:10 | DZ34: 0.8326329252 | EB34: 1.68153419 | ED34: 2011-07-20T09:06:36 | EF34: 4.536217853 | EH34: 3.674704995 | EI34: 255.5167 | EM34: 2.31386562 | EN34: 2013-07-18T11:28:03 | EO34: 7.342663922 | EP34: 393.335 | ER34: 2013-07-21T14:07:06 | ET34: 3.484697575 | EV34: 1.893970482 | EY34: 2013-07-22T13:44:02 | FA34: 6.031584058 | FC34: 5.679069173 | FF34: 2013-07-25T13:36:02 | FH34: 1.418358963 | FJ34: 1.272594552 | FR34: 2016-07-19T12:12:24 | FS34: 307.417 | FU34: 1.725322052 | FW34: 2016-07-19T12:27:32 | FY34: 266.483 | GA34: 1.495590907 | GO34: 10:09:12 | GP34: 12.822525 | GR34: 10:19:12 | GS34: 13.35945 | HC34: 2018-07-30 | HD34: 20:18:00 | HI34: 3.238550302 | HJ34: 6.972008213 | HL34: 5.13 | HM34: 162.275 | HV34: 2003-06-26T12:10:29 | II34: 38167.53593 | IK34: 8.71 | IO34: 6.63 | JA34: 2002-06-23 | JB34: 13:19:03 | JC34: 200.2009 | JD34: 102.3437 | JE34: 59.9554 | JF34: 23.0134 | JG34: 6.0045 | JH34: 2.9688 | JI34: 0.8036 | JJ34: 0.7589 | JK34: 2.1875 | JL34: 2.1652 | JN34: 3.01 | JO34: 195.85 | JW34: 2003-06-26T12:10:14 | JY34: 123.5111111 | JZ34: 61.79682222 | KA34: 40.99681111 | KB34: 14.83808889 | KC34: 4.101588889 | KD34: 1.593644444 | KE34: 0.0762 | KF34: 0.3143 | KG34: 0.0381 | KH34: 0 | KJ34: 1.71 | KK34: 123.7174556 | KR34: 38167.53587 | KS34: 300.22 | KT34: 3.54 | KU34: 4.89185966 | KV34: 3.694912859 | KW34: L | KX34: 300.4 | KY34: 156.8 | KZ34: 92 | LA34: 37.8 | LB34: 10.2 | LC34: 3 | LD34: 0.288 | LE34: 0.132 | LF34: 0.096 | LG34: 0 | LH34: 0.012 | LI34: 0.012 | LJ34: 0 | LK34: 0 | LL34: 0 | LN34: 2018 | LO34: 8.80 | LP34: буря
A35: 2014-07-22 | B35: 12:26:28 | C35: 2014-07-22T12:26:28 | E35: 2014-07-22T12:26:37 | F35: 155.9 | H35: 0.8749613702 | K35: 2014-07-22T12:26:37 | L35: 59.75 | N35: 0.3353363815 | P35: 2014-07-19 | Q35: =AVERAGE(DL167:DL512) -> 10.91494227 | R35: =AVERAGE(DN167:DN512) -> 3.238523721 | S35: =AVERAGE(DO167:DO512) -> 213.281263 | U35: 11:14:59 | V35: 11:14:20 | X35: 6.866421689 | Z35: 7.819019522 | AA35: 261.11 | AC35: 10:44:57 | AD35: 0.311390277 | AE35: 0.3991986491 | AF35: 0.3691444999 | AG35: 0.1953088883 | AH35: 0.1383675214 | AI35: 0.02261946711 | AJ35: 0.07974566432 | AK35: 0.1533980788 | AL35: 0.134695785 | AM35: 0.6708609312 | AN35: 0.8712683626 | AO35: 0.4523893421 | AP35: 0 | AQ35: 0 | AR35: 10:44:15 | AT35: 1.745481605 | AU35: 108.43 | AV35: 1.515774967 | AY35: 09:48:35 | BA35: 2.58452234 | BB35: 10:03:35 | BC35: 3.267261996 | BD35: 120.51 | BF35: 11:39:11 | BH35: 3.314888448 | BI35: 11:39:25 | BJ35: 5.221845222 | BK35: 376.192 | BM35: 11:32:44 | BO35: 7.960939038 | BQ35: 10.41378988 | BR35: 6.676729042 | BT35: 09:27:15 | BV35: 2.290410684 | BX35: 5.200259751 | BY35: 148.3333 | CA35: 08:35:56 | CC35: 5.91306744 | CH35: 09:45:48 | CJ35: 3.802340752 | CL35: 7.205358401 | CM35: 429.19 | CO35: 10:09:11 | CQ35: 3.078989778 | CS35: 4.418007906 | CT35: 219.8834 | CV35: 08:58:36 | CX35: 3.064780628 | CZ35: 5.023054958 | DA35: 217 | DC35: 40377.44133 | DE35: 3.493754348 | DG35: 3.275732054 | DH35: 218.13 | DJ35: 09:48:25 | DL35: 11.13418561 | DN35: 3.121729271 | DO35: 209.75 | DQ35: 09:59:46 | DS35: 14.5324703 | DU35: 4.184386001 | DV35: 271.18 | DW35: 2011-07-27T10:41:00.002 | DX35: 10:41:10 | DZ35: 2.44429641 | EB35: 5.61827207 | ED35: 2011-07-20T09:07:36 | EF35: 4.688450031 | EH35: 3.612915275 | EI35: 256 | EM35: 2.17153211 | EN35: 2013-07-18T11:29:03 | EO35: 7.685789981 | EP35: 390.8316667 | ER35: 2013-07-21T14:10:06 | ET35: 1.800921793 | EV35: 1.812102594 | EY35: 2013-07-22T13:47:02 | FA35: 6.138793459 | FC35: 5.676678993 | FF35: 2013-07-25T13:39:02 | FH35: 1.377670173 | FJ35: 1.252171865 | FR35: 2016-07-19T12:14:17 | FS35: 319.417 | FU35: 1.792669944 | FW35: 2016-07-19T12:29:25 | FY35: 261.283 | GA35: 1.466406821 | GO35: 10:39:39 | GP35: 13.34123333 | GR35: 10:49:22 | GS35: 13.24405 | HC35: 2018-07-30 | HD35: 20:19:00 | HI35: 2.893508445 | HJ35: 6.603903629 | HL35: 4.58 | HM35: 151.725 | HV35: 2003-06-26T12:10:34 | II35: 38167.53598 | IK35: 8.52 | IM35: 10.13 | IO35: 9.65 | JA35: 2002-06-23 | JB35: 13:20:03 | JC35: 206.6071 | JD35: 102.4777 | JE35: 56.2723 | JF35: 22.8125 | JG35: 6.4955 | JH35: 3.2366 | JI35: 1.25 | JJ35: 2.3214 | JK35: 6.1607 | JL35: 5.5804 | JN35: 4.12 | JO35: 194.87 | JW35: 2003-06-26T12:10:19 | JY35: 119.2127 | JZ35: 59.14285556 | KA35: 40.20315556 | KB35: 14.13967778 | KC35: 3.898411111 | KD35: 1.453966667 | KE35: 0.1396888889 | KF35: 0.3047666667 | KG35: 0.06984444444 | KH35: 0.06348888889 | KJ35: 1.66 | KK35: 119.2825222 | KR35: 38167.53593 | KS35: 311.348 | KT35: 3.64 | KU35: 8.914526242 | KV35: 3.74523188 | KW35: L | KX35: 311.2 | KY35: 155 | KZ35: 103.2 | LA35: 41.8 | LB35: 8.4 | LC35: 2.6 | LD35: 0.276 | LE35: 0.072 | LF35: 0.06 | LG35: 0.024 | LH35: 0.036 | LI35: 0.024 | LJ35: 0.012 | LK35: 0 | LL35: 0
A36: 2014-07-22 | B36: 12:27:33 | C36: 2014-07-22T12:27:33 | E36: 2014-07-22T12:27:37 | F36: 158.0001 | H36: 0.8867478126 | K36: 2014-07-22T12:27:37 | L36: 61.65 | N36: 0.3459997978 | P36: 2014-07-20 | Q36: =AVERAGE(DS156:DS509) -> 19.69389267 | R36: =AVERAGE(DU156:DU509) -> 6.044630373 | S36: =AVERAGE(DV156:DV509) -> 258.6734932 | U36: 11:15:59 | V36: 11:15:20 | X36: 7.057642187 | Z36: 7.815325122 | AA36: 255.51 | AC36: 10:45:57 | AD36: 0.3092390731 | AE36: 0.394625364 | AF36: 0.3611583472 | AG36: 0.2140181328 | AH36: 0.1717665783 | AI36: 0.01741698967 | AJ36: 0.04180216275 | AK36: 0.08794823184 | AL36: 0.1290834606 | AM36: 0.2945243113 | AN36: 0.3351032164 | AO36: 0.2261946711 | AP36: 0 | AQ36: 0 | AR36: 10:45:15 | AT36: 1.719387842 | AU36: 109.48 | AV36: 1.510026648 | AY36: 09:42:35 | BA36: 2.306147473 | BB36: 10:04:35 | BC36: 2.96418139 | BD36: 121.68 | BF36: 11:40:11 | BH36: 3.273054779 | BI36: 11:40:28 | BJ36: 5.027923838 | BK36: 366.482 | BM36: 11:33:44 | BO36: 7.673901937 | BQ36: 10.25958353 | BR36: 6.373858537 | BT36: 09:28:15 | BV36: 2.288012902 | BX36: 5.300677885 | BY36: 140.5834 | CA36: 08:36:56 | CC36: 6.257116597 | CH36: 09:46:48 | CJ36: 3.737019061 | CL36: 7.075814828 | CM36: 431.584 | CO36: 10:10:11 | CQ36: 2.895967476 | CS36: 4.513951949 | CT36: 213.6165 | CV36: 08:59:36 | CX36: 3.060719632 | CZ36: 5.150199042 | DA36: 216.6332 | DC36: 40377.44203 | DE36: 3.76139648 | DG36: 3.310039663 | DH36: 223.17 | DJ36: 09:49:25 | DL36: 11.27816887 | DN36: 3.227266456 | DO36: 212.62 | DQ36: 10:00:46 | DS36: 14.48791619 | DU36: 4.251550601 | DV36: 272.63 | DW36: 2011-07-27T10:42:00.002 | DX36: 10:42:10 | DZ36: 2.541591778 | EB36: 7.73643213 | ED36: 2011-07-20T09:08:36 | EF36: 4.574671985 | EH36: 3.84459623 | EI36: 253.6666 | EK36: 2013-07-18T11:30:00 | EM36: 2.341156297 | EN36: 2013-07-18T11:30:03 | EO36: 7.766165147 | EP36: 404.1666667 | ER36: 2013-07-21T14:13:06 | ET36: 1.438755935 | EV36: 1.749077958 | EY36: 2013-07-22T13:50:02 | FA36: 6.088184506 | FC36: 5.87276957 | FF36: 2013-07-25T13:42:02 | FH36: 1.308389396 | FJ36: 1.175625373 | FR36: 2016-07-19T12:16:10 | FS36: 302.550 | FU36: 1.69800874 | FW36: 2016-07-19T12:31:18 | FY36: 272.917 | GA36: 1.531696861 | GO36: 11:09:28 | GP36: 14.38938889 | GR36: 11:19:28 | GS36: 15.574 | HC36: 2018-07-30 | HD36: 20:20:00 | HI36: 2.445173966 | HJ36: 6.607397424 | HL36: 4.67 | HM36: 156.05 | HV36: 2003-06-26T12:10:39 | II36: 38167.53604 | IK36: 14.70 | IM36: 10.26 | IO36: 17.48 | JA36: 2002-06-23 | JB36: 13:21:03 | JC36: 189.7991 | JD36: 101.2054 | JE36: 54.3304 | JF36: 20.8259 | JG36: 5.3348 | JH36: 2.6116 | JI36: 0.9152 | JJ36: 1.2946 | JK36: 2.5446 | JL36: 0.7366 | JN36: 3.20 | JO36: 186.52 | JW36: 2003-06-26T12:10:24 | JY36: 115.9365111 | JZ36: 57.08571111 | KA36: 39.59363333 | KB36: 13.79682222 | KC36: 3.479355556 | KD36: 1.568255556 | KE36: 0.1396888889 | KF36: 0.3047666667 | KG36: 0.1079444444 | KH36: 0.06348888889 | KJ36: 1.63 | KK36: 115.9682333 | KR36: 38167.53598 | KS36: 299.504 | KT36: 3.35 | KU36: 10.14330693 | KV36: 3.543606165 | KW36: L | KX36: 299.4 | KY36: 159.8 | KZ36: 95.4 | LA36: 33 | LB36: 8.6 | LC36: 2.2 | LD36: 0.312 | LE36: 0.192 | LF36: 0.132 | LG36: 0.036 | LH36: 0.012 | LI36: 0.048 | LJ36: 0.012 | LK36: 0 | LL36: 0
A37: 2014-07-22 | B37: 12:28:38 | C37: 2014-07-22T12:28:38 | E37: 2014-07-22T12:28:37 | F37: 157.1168 | H37: 0.8817904465 | K37: 2014-07-22T12:28:37 | L37: 62.5667 | N37: 0.3511446155 | R37: year average | U37: 11:16:59 | V37: 11:16:20 | X37: 7.091958393 | Z37: 7.831228793 | AA37: 256.98 | AC37: 10:46:57 | AD37: 0.3081166082 | AE37: 0.3932345318 | AF37: 0.3767669527 | AG37: 0.215513256 | AH37: 0.1240536399 | AI37: 0.02126229908 | AJ37: 0.04180216275 | AK37: 0.07363107782 | AL37: 0.1010218388 | AM37: 0.2945243113 | AN37: 0.3351032164 | AO37: 0.4523893421 | AP37: 0 | AQ37: 0 | AR37: 10:46:15 | AT37: 1.773559771 | AU37: 110.18 | AV37: 1.480749451 | AY37: 09:47:35 | BA37: 2.582577478 | BB37: 10:05:35 | BC37: 2.469298189 | BD37: 115.11 | BF37: 11:41:11 | BH37: 3.368000737 | BI37: 11:41:31 | BJ37: 5.326968312 | BK37: 376.59 | BM37: 11:34:44 | BO37: 7.978796645 | BQ37: 9.836310858 | BR37: 6.720261538 | BT37: 09:29:15 | BV37: 2.257327573 | BX37: 5.14980127 | BY37: 139.7999 | CA37: 08:37:56 | CC37: 6.069327441 | CH37: 09:47:48 | CJ37: 3.980894012 | CL37: 7.097160346 | CM37: 429.86 | CO37: 10:11:11 | CQ37: 2.609054902 | CS37: 4.405236808 | CT37: 207.6832 | CV37: 09:00:36 | CX37: 3.069652765 | CZ37: 5.071592401 | DA37: 215.2666 | DC37: 40377.44272 | DE37: 3.476885252 | DG37: 3.565612031 | DH37: 234.25 | DJ37: 09:50:25 | DL37: 11.3751685 | DN37: 3.310191737 | DO37: 217.53 | DQ37: 10:01:46 | DS37: 13.46193761 | DU37: 5.144613932 | DV37: 250.92 | DW37: 2011-07-27T10:43:00.002 | DX37: 10:43:10 | DZ37: 2.614440329 | EB37: 8.82260329 | ED37: 2011-07-20T09:09:36 | EF37: 4.600456538 | EH37: 3.733473247 | EI37: 257.35 | EK37: 2013-07-18T11:31:00 | EM37: 2.269514895 | EN37: 2013-07-18T11:31:03 | EO37: 7.695267637 | EP37: 413.055 | ER37: 2013-07-21T14:16:06 | ET37: 1.397332043 | EV37: 1.720142607 | EY37: 2013-07-22T13:53:02 | FA37: 6.17081232 | FC37: 5.770662938 | FF37: 2013-07-25T13:45:02 | FH37: 1.367068492 | FJ37: 1.205403244 | FR37: 2016-07-19T12:18:03 | FS37: 299.933 | FU37: 1.683323158 | FW37: 2016-07-19T12:33:12 | FY37: 272.850 | GA37: 1.531322706 | GO37: 11:38:13 | GP37: 16.8676 | GR37: 11:49:10 | GS37: 15.574 | HC37: 2018-07-30 | HD37: 20:21:00 | HI37: 2.625706324 | HJ37: 6.671416701 | HL37: 4.83 | HM37: 154.775 | HV37: 2003-06-26T12:10:44 | II37: 38167.5361 | IK37: 9.29 | IM37: 11.16 | IO37: 6.71 | JA37: 2002-06-23 | JB37: 13:22:03 | JC37: 189.5089 | JD37: 101.2277 | JE37: 56.4509 | JF37: 21.6071 | JG37: 7.1205 | JH37: 2.1429 | JI37: 0.2455 | JJ37: 0.2232 | JK37: 0.2679 | JL37: 0.2232 | JN37: 2.44 | JO37: 189.02 | JW37: 2003-06-26T12:10:29 | JY37: 111.7206333 | JZ37: 55.08571111 | KA37: 37.79046667 | KB37: 13.6127 | KC37: 3.276177778 | KD37: 1.542866667 | KE37: 0.1396888889 | KF37: 0.3047666667 | KG37: 0.1079444444 | KH37: 0.06348888889 | KJ37: 1.58 | KK37: 111.7523778 | KR37: 38167.53604 | KS37: 312.524 | KT37: 3.57 | KU37: 14.21164651 | KV37: 3.683187781 | KW37: L | KX37: 313.6 | KY37: 158.2 | KZ37: 105.4 | LA37: 38 | LB37: 8.2 | LC37: 2.4 | LD37: 0.228 | LE37: 0.096 | LF37: 0.096 | LG37: 0.036 | LH37: 0 | LI37: 0.036 | LJ37: 0 | LK37: 0.012 | LL37: 0
A38: 2014-07-22 | B38: 12:29:43 | C38: 2014-07-22T12:29:43 | E38: 2014-07-22T12:29:37 | F38: 152.5 | H38: 0.8558794673 | K38: 2014-07-22T12:29:37 | L38: 60.2333 | N38: 0.3380488178 | R38: =AVERAGE(R34:R36) -> 4.85 | U38: 11:17:59 | V38: 11:17:20 | X38: 6.930426534 | Z38: 7.853631567 | AA38: 258.94 | AC38: 10:47:57 | AD38: 0.3063391851 | AE38: 0.3932345318 | AF38: 0.3488186851 | AG38: 0.219253309 | AH38: 0.152681403 | AI38: 0.01651221099 | AJ38: 0.04501771373 | AK38: 0.06135923152 | AL38: 0.1010218388 | AM38: 0.3436116965 | AN38: 0.4021238597 | AO38: 0 | AP38: 0.6431101961 | AQ38: 0 | AR38: 10:47:15 | AT38: 1.739230781 | AU38: 110.96 | AV38: 1.481857039 | AY38: 09:43:35 | BA38: 2.273742149 | BB38: 10:06:35 | BC38: 2.876933289 | BD38: 115.33 | BF38: 11:42:11 | BH38: 4.087228784 | BI38: 11:42:34 | BJ38: 5.80036015 | BK38: 375.108 | BM38: 11:35:44 | BO38: 8.137851178 | BQ38: 10.12096209 | BR38: 6.774138167 | BT38: 09:30:15 | BV38: 2.227301934 | BX38: 4.8577511 | BY38: 138.2333 | CA38: 08:38:56 | CC38: 5.896774655 | CH38: 09:48:48 | CJ38: 4.079258876 | CL38: 7.404916686 | CM38: 431.214 | CO38: 10:12:11 | CQ38: 2.760617803 | CS38: 4.265989019 | CT38: 211.0833 | CV38: 09:01:36 | CX38: 2.291725805 | CZ38: 4.729734826 | DA38: 171.1166 | DC38: 40377.44341 | DE38: 3.32912781 | DG38: 3.834235701 | DH38: 238.28 | DJ38: 09:51:25 | DL38: 11.30892962 | DN38: 3.341903218 | DO38: 216.80 | DQ38: 10:02:46 | DS38: 13.75206207 | DU38: 3.918285091 | DV38: 252.65 | DW38: 2011-07-27T10:44:00.002 | DX38: 10:44:10 | DZ38: 2.309410627 | EB38: 6.874371677 | ED38: 2011-07-20T09:10:36 | EF38: 4.945416174 | EH38: 3.725722174 | EI38: 254.2001 | EK38: 2013-07-18T11:32:00 | EM38: 2.177391508 | EN38: 2013-07-18T11:32:03 | EO38: 7.975894846 | EP38: 409.1666667 | ER38: 2013-07-21T14:19:06 | ET38: 1.944150921 | EV38: 1.764528743 | EY38: 2013-07-22T13:56:02 | FA38: 6.125186408 | FC38: 5.83933295 | FF38: 2013-07-25T13:48:02 | FH38: 1.463725065 | FJ38: 1.240572313 | FR38: 2016-07-19T12:19:57 | FS38: 294.633 | FU38: 1.653577839 | FW38: 2016-07-19T12:35:05 | FY38: 285.333 | GA38: 1.601383222 | GO38: 12:09:22 | GP38: 20.0834875 | GR38: 12:19:22 | GS38: 19.85224444 | HC38: 2018-07-30 | HD38: 20:22:00 | HI38: 2.293705267 | HJ38: 7.674433232 | HL38: 5.10 | HM38: 153.025 | HV38: 2003-06-26T12:10:49 | II38: 38167.53616 | IK38: 16.85 | IM38: 12.87 | IO38: 19.11 | JA38: 2002-06-23 | JB38: 13:23:03 | JC38: 185.4688 | JD38: 99.5089 | JE38: 55.2902 | JF38: 20.7812 | JG38: 6.5625 | JH38: 2.4777 | JI38: 0.4241 | JJ38: 0.1563 | JK38: 0.1786 | JL38: 0.0893 | JN38: 2.40 | JO38: 185.20 | JW38: 2003-06-26T12:10:34 | JY38: 108.9714333 | JZ38: 54.46983333 | KA38: 36.67935556 | KB38: 13.02222222 | KC38: 3.0984 | KD38: 1.320644444 | KE38: 0.1396888889 | KF38: 0.3143 | KG38: 0.1079444444 | KH38: 0.06348888889 | KJ38: 1.53 | KK38: 109.0444444 | KR38: 38167.5361 | KS38: 307.056 | KT38: 3.64 | KU38: 7.859337788 | KV38: 3.821016781 | KW38: L | KX38: 307.8 | KY38: 149.2 | KZ38: 103.2 | LA38: 42.4 | LB38: 9.4 | LC38: 2.4 | LD38: 0.276 | LE38: 0.18 | LF38: 0.12 | LG38: 0.036 | LH38: 0.072 | LI38: 0.036 | LJ38: 0 | LK38: 0 | LL38: 0
A39: 2014-07-22 | B39: 12:30:48 | C39: 2014-07-22T12:30:48 | E39: 2014-07-22T12:30:37 | F39: 154.5833 | H39: 0.8675716227 | K39: 2014-07-22T12:30:37 | L39: 61.5833 | N39: 0.3456254557 | P39: 2011 | U39: 11:18:59 | V39: 11:18:20 | X39: 7.099602771 | Z39: 7.969408662 | AA39: 256.05 | AC39: 10:48:57 | AD39: 0.3061522947 | AE39: 0.4047643634 | AF39: 0.3589805036 | AG39: 0.2200031155 | AH39: 0.1351898397 | AI39: 0.03325061665 | AJ39: 0.09003542746 | AK39: 0.1554433865 | AL39: 0.1908190288 | AM39: 0.5890486225 | AN39: 1.206371579 | AO39: 0.2261946711 | AP39: 0 | AQ39: 0 | AR39: 10:48:15 | AT39: 1.827155741 | AU39: 109.93 | AV39: 1.548376161 | AY39: 10:02:35 | BA39: 2.092493113 | BB39: 10:07:35 | BC39: 2.335422709 | BD39: 128.81 | BF39: 11:43:11 | BH39: 3.391281315 | BI39: 11:43:37 | BJ39: 5.101865966 | BK39: 375.82 | BM39: 11:36:44 | BO39: 8.169186125 | BQ39: 9.616482133 | BR39: 6.813944864 | BT39: 09:31:15 | BV39: 2.058176952 | BX39: 4.800877195 | BY39: 134.5833 | CA39: 08:39:56 | CC39: 6.222204716 | CH39: 09:49:48 | CJ39: 3.875678289 | CL39: 6.985421979 | CM39: 420.908 | CO39: 10:13:11 | CQ39: 2.907164076 | CS39: 4.435984885 | CT39: 214.5166 | CV39: 09:02:36 | CX39: 3.066563472 | CZ39: 4.044596992 | DA39: 217.1502 | DC39: 40377.44411 | DE39: 3.06493213 | DG39: 4.330144235 | DH39: 225.47 | DJ39: 09:52:25 | DL39: 11.67676726 | DN39: 3.386646629 | DO39: 219.85 | DQ39: 10:03:46 | DS39: 14.01781633 | DU39: 6.017180428 | DV39: 257.92 | DW39: 2011-07-27T10:45:00.002 | DX39: 10:45:10 | DZ39: 3.147070866 | EB39: 6.576912821 | ED39: 2011-07-20T09:11:36 | EF39: 5.00223575 | EH39: 3.869907851 | EI39: 257.0167 | EK39: 2013-07-18T11:33:00 | EM39: 2.362336413 | EN39: 2013-07-18T11:33:03 | EO39: 7.710541068 | EP39: 401.11 | ER39: 2013-07-21T14:22:06 | ET39: 1.464238103 | EV39: 1.826410601 | EY39: 2013-07-22T13:59:02 | FA39: 6.096251264 | FC39: 5.721452746 | FF39: 2013-07-25T13:51:02 | FH39: 1.422600197 | FJ39: 1.210702961 | FR39: 2016-07-19T12:21:50 | FS39: 295.850 | FU39: 1.660406167 | FW39: 2016-07-19T12:36:58 | FY39: 282.267 | GA39: 1.584172094 | GO39: 12:39:22 | GP39: 20.7596 | GR39: 12:49:22 | GS39: 21.42111111 | HC39: 2018-07-30 | HD39: 20:23:00 | HI39: 2.631505508 | HJ39: 6.864613604 | HL39: 4.66 | HM39: 154.225 | HV39: 2003-06-26T12:10:54 | II39: 38167.53622 | IK39: 36.63 | IM39: 37.26 | IO39: 34.20 | JA39: 2002-06-23 | JB39: 13:24:03 | JC39: 195.1563 | JD39: 101.4732 | JE39: 56.317 | JF39: 19.9107 | JG39: 6.4955 | JH39: 3.3705 | JI39: 1.0045 | JJ39: 1.5848 | JK39: 3.4598 | JL39: 1.5402 | JN39: 3.53 | JO39: 190.16 | JW39: 2003-06-26T12:10:39 | JY39: 106.2285778 | JZ39: 53.0984 | KA39: 35.68887778 | KB39: 12.90793333 | KC39: 2.831733333 | KD39: 1.244455556 | KE39: 0.2158777778 | KF39: 0.3143 | KG39: 0.1079444444 | KH39: 0.06348888889 | KJ39: 1.50 | KK39: 106.3015778 | KR39: 38167.53616 | KS39: 314.068 | KT39: 3.74 | KU39: 15.20212418 | KV39: 3.948546593 | KW39: L | KX39: 314 | KY39: 155.6 | KZ39: 103.8 | LA39: 40.6 | LB39: 11 | LC39: 2.6 | LD39: 0.216 | LE39: 0.252 | LF39: 0.048 | LG39: 0.024 | LH39: 0.036 | LI39: 0 | LJ39: 0.012 | LK39: 0.012 | LL39: 0
A40: 2014-07-22 | B40: 12:31:53 | C40: 2014-07-22T12:31:53 | E40: 2014-07-22T12:31:37 | F40: 151.9833 | H40: 0.8529795793 | K40: 2014-07-22T12:31:37 | L40: 58.1667 | N40: 0.3264503883 | P40: 2014-07-20 | Q40: =AVERAGE(EF208:EF568) -> 6.246227178 | R40: =AVERAGE(EH208:EH568) -> 3.413259097 | S40: =AVERAGE(EI208:EI568) -> 146.5963712 | U40: 11:19:59 | V40: 11:19:20 | X40: 7.07546562 | Z40: 8.068897776 | AA40: 261.01 | AC40: 10:49:57 | AD40: 0.3085841149 | AE40: 0.3890596497 | AF40: 0.355352216 | AG40: 0.1983036246 | AH40: 0.1320026155 | AI40: 0.02013132572 | AJ40: 0.05852302785 | AK40: 0.09408415499 | AL40: 0.1122464875 | AM40: 0.4908738521 | AN40: 0.9382890059 | AO40: 0.2261946711 | AP40: 0 | AQ40: 0 | AR40: 10:49:15 | AT40: 1.710275223 | AU40: 107.22 | AV40: 1.461956574 | AY40: 09:46:35 | BA40: 2.489831249 | BB40: 10:08:35 | BC40: 2.431879784 | BD40: 131.84 | BF40: 11:44:11 | BH40: 3.27734539 | BI40: 11:44:40 | BJ40: 5.279541946 | BK40: 386.396 | BM40: 11:37:44 | BO40: 8.171932358 | BQ40: 9.887199455 | BR40: 6.893706311 | BT40: 09:32:15 | BV40: 2.136982725 | BX40: 4.987561855 | BY40: 136.7333 | CA40: 08:40:56 | CC40: 6.132816437 | CH40: 09:50:48 | CJ40: 3.888378598 | CL40: 6.945708942 | CM40: 410.062 | CO40: 10:14:11 | CQ40: 2.874233069 | CS40: 4.506030293 | CT40: 215.6667 | CV40: 09:03:36 | CX40: 3.022875261 | CZ40: 4.701384374 | DA40: 214.5168 | DC40: 40377.4448 | DE40: 2.941822367 | DG40: 3.362595519 | DH40: 211.47 | DJ40: 09:53:25 | DL40: 11.15390657 | DN40: 3.296955763 | DO40: 214.58 | DQ40: 10:04:46 | DS40: 15.74333822 | DU40: 4.567416828 | DV40: 260.97 | DW40: 2011-07-27T10:46:00.002 | DX40: 10:46:10 | DZ40: 3.429827907 | EB40: 7.819797976 | ED40: 2011-07-20T09:12:36 | EF40: 4.977829276 | EH40: 3.862917001 | EI40: 258.7 | EK40: 2013-07-18T11:34:00 | EM40: 2.341459275 | EN40: 2013-07-18T11:34:03 | EO40: 8.064376794 | EP40: 397.4983333 | ER40: 2013-07-21T14:25:06 | ET40: 1.477185204 | EV40: 1.829534743 | EY40: 2013-07-22T14:02:02 | FA40: 6.108879504 | FC40: 5.867101859 | FF40: 2013-07-25T13:54:02 | FH40: 1.360240538 | FJ40: 1.214788172 | FR40: 2016-07-19T12:23:43 | FS40: 298.750 | FU40: 1.676681907 | FW40: 2016-07-19T12:38:52 | FY40: 277.533 | GA40: 1.557607092 | GO40: 13:09:22 | GP40: 25.92004444 | GR40: 13:19:22 | GS40: 25.3007 | HC40: 2018-07-30 | HD40: 20:24:00 | HI40: 2.491029929 | HJ40: 6.934765613 | HL40: 4.73 | HM40: 152.775 | II40: 38167.53627 | IK40: 8.67 | IM40: 10.90 | IO40: 8.79 | JA40: 2002-06-23 | JB40: 13:25:03 | JC40: 192.1652 | JD40: 102.5 | JE40: 55.9821 | JF40: 21.0714 | JG40: 6.4732 | JH40: 2.567 | JI40: 0.5357 | JJ40: 0.7589 | JK40: 1.7857 | JL40: 0.4911 | JN40: 2.85 | JO40: 189.89 | JW40: 2003-06-26T12:10:44 | JY40: 103.4666667 | JZ40: 51.97458889 | KA40: 34.7492 | KB40: 12.3619 | KC40: 2.673 | KD40: 1.219066667 | KE40: 0.2158777778 | KF40: 0.3143 | KG40: 0.1396888889 | KH40: 0.06348888889 | KJ40: 1.46 | KK40: 103.5079333 | KR40: 38167.53622 | KS40: 309.808 | KT40: 3.65 | KU40: 29.15175178 | KV40: 3.81068369 | KW40: L | KX40: 310 | KY40: 154.4 | KZ40: 100 | LA40: 44.2 | LB40: 8 | LC40: 2.8 | LD40: 0.24 | LE40: 0.168 | LF40: 0.132 | LG40: 0.024 | LH40: 0.024 | LI40: 0 | LJ40: 0 | LK40: 0 | LL40: 0.012
A41: 2014-07-22 | B41: 12:32:58 | C41: 2014-07-22T12:32:58 | E41: 2014-07-22T12:32:37 | F41: 147.9666 | H41: 0.830436556 | K41: 2014-07-22T12:32:37 | L41: 58.8167 | N41: 0.3300983991 | P41: 2014-07-21 | Q41: =AVERAGE(EF750:EF1110) -> 10.15056059 | R41: =AVERAGE(EH750:EH1110) -> 4.802014808 | S41: =AVERAGE(EI750:EI1110) -> 153.2557643 | U41: 11:20:59 | V41: 11:20:20 | X41: 7.176226363 | Z41: 8.006310513 | AA41: 260.26 | AC41: 10:50:57 | AD41: 0.3117646191 | AE41: 0.4119213041 | AF41: 0.3564411379 | AG41: 0.2027934841 | AH41: 0.1638176028 | AI41: 0.09251362046 | AJ41: 0.2996893514 | AK41: 0.6647250081 | AL41: 0.656641952 | AM41: 1.947132947 | AN41: 2.412743158 | AO41: 0.6785840132 | AP41: 0 | AQ41: 0 | AR41: 10:50:15 | AT41: 1.81546149 | AU41: 109.08 | AV41: 1.83894112 | AY41: 09:44:35 | BA41: 2.369701552 | BB41: 10:09:35 | BC41: 2.473804593 | BD41: 119.89 | BF41: 11:45:11 | BH41: 3.279491332 | BI41: 11:45:43 | BJ41: 5.161774338 | BK41: 382.358 | BM41: 11:38:44 | BO41: 8.212494927 | BQ41: 9.781006293 | BR41: 6.753176406 | BT41: 09:33:15 | BV41: 2.074402601 | BX41: 4.843892518 | BY41: 132.9499 | CA41: 08:41:56 | CC41: 6.092499798 | CH41: 09:51:48 | CJ41: 3.885787939 | CL41: 7.037240128 | CM41: 418.056 | CO41: 10:15:11 | CQ41: 2.842868777 | CS41: 4.261852851 | CT41: 213.2833 | CV41: 09:04:36 | CX41: 3.119920856 | CZ41: 4.911184644 | DA41: 221.0167 | DC41: 40377.4455 | DE41: 2.991116822 | DG41: 2.878147488 | DH41: 194.15 | DJ41: 09:54:25 | DL41: 11.12654993 | DN41: 3.250347881 | DO41: 216.18 | DQ41: 10:05:46 | DS41: 14.21668214 | DU41: 3.999669685 | DV41: 263.97 | DW41: 2011-07-27T10:47:00.002 | DX41: 10:47:10 | DZ41: 3.283196367 | EB41: 7.473468334 | ED41: 2011-07-20T09:13:36 | EF41: 5.731055996 | EH41: 4.248274445 | EI41: 256.6167 | EK41: 2013-07-18T11:35:00 | EM41: 2.479373557 | EN41: 2013-07-18T11:35:03 | EO41: 7.318223995 | EP41: 357.5 | ER41: 2013-07-21T14:28:06 | ET41: 1.503818149 | EV41: 1.819670122 | EY41: 2013-07-22T14:05:02 | FA41: 6.171045262 | FC41: 5.980078062 | FF41: 2013-07-25T13:57:02 | FH41: 1.347831128 | FJ41: 1.210049126 | FR41: 2016-07-19T12:25:37 | FS41: 296.050 | FU41: 1.661528631 | FW41: 2016-07-19T12:40:45 | FY41: 250.417 | GA41: 1.405419562 | GO41: 13:39:27 | GP41: 26.7202875 | GR41: 13:49:27 | GS41: 29.46068889 | HC41: 2018-07-30 | HD41: 20:25:00 | HI41: 2.364299063 | HJ41: 7.456036829 | HL41: 5.06 | HM41: 158.075 | HV41: 2003-06-26T12:20:04 | II41: 38167.53633 | IK41: 10.82 | IM41: 11.02 | IO41: 14.62 | JA41: 2002-06-23 | JB41: 13:26:03 | JC41: 184.0179 | JD41: 101.4286 | JE41: 53.1473 | JF41: 20.1339 | JG41: 5.8036 | JH41: 2.0089 | JI41: 0.3571 | JJ41: 0.3571 | JK41: 0.4911 | JL41: 0.2902 | JN41: 2.40 | JO41: 183.24 | JW41: 2003-06-26T12:10:49 | JY41: 102.0952444 | JZ41: 51.66983333 | KA41: 33.60634444 | KB41: 12.39998889 | KC41: 2.596811111 | KD41: 1.295255556 | KE41: 0.2158777778 | KF41: 0.3238333333 | KG41: 0.1396888889 | KH41: 0.06348888889 | KJ41: 1.46 | KK41: 102.1079444 | KR41: 38167.53627 | KS41: 312.044 | KT41: 3.72 | KU41: 9.70663537 | KV41: 3.868378123 | KW41: L | KX41: 312 | KY41: 156 | KZ41: 105 | LA41: 37.8 | LB41: 9 | LC41: 3.8 | LD41: 0.324 | LE41: 0.12 | LF41: 0.12 | LG41: 0.048 | LH41: 0.012 | LI41: 0.036 | LJ41: 0.012 | LK41: 0 | LL41: 0
A42: 2014-07-22 | B42: 12:34:03 | C42: 2014-07-22T12:34:03 | E42: 2014-07-22T12:33:37 | F42: 147.85 | H42: 0.829782159 | K42: 2014-07-22T12:33:37 | L42: 59.0667 | N42: 0.3315014802 | P42: 2014-07-22 | Q42: =AVERAGE(EF2190:EF2288) -> 18.737285 | R42: =AVERAGE(EH2190:EH2288) -> 8.127204117 | S42: =AVERAGE(EI2190:EI2288) -> 162.3749152 | U42: 11:21:59 | V42: 11:21:20 | X42: 7.276987106 | Z42: 7.848276487 | AA42: 260.39 | AC42: 10:51:57 | AD42: 0.3162544786 | AE42: 0.3900532716 | AF42: 0.3578915817 | AG42: 0.2387123601 | AH42: 0.1447324274 | AI42: 0.02194088309 | AJ42: 0.04566082393 | AK42: 0.09817477042 | AL42: 0.1234711363 | AM42: 0.2617993878 | AN42: 0.9382890059 | AO42: 0 | AP42: 0 | AQ42: 0 | AR42: 10:51:15 | AT42: 1.750384344 | AU42: 109.14 | AV42: 1.515245826 | AY42: 09:45:35 | BA42: 2.455433596 | BB42: 10:10:35 | BC42: 2.38412594 | BD42: 122.81 | BF42: 11:46:11 | BH42: 3.306460242 | BI42: 11:46:46 | BJ42: 5.275324292 | BK42: 382.492 | BM42: 11:39:44 | BO42: 8.325339325 | BQ42: 10.03970359 | BR42: 6.860421216 | BT42: 09:34:15 | BV42: 2.257169003 | BX42: 4.973185327 | BY42: 135.2833 | CA42: 08:42:56 | CC42: 5.916769089 | CH42: 09:52:48 | CJ42: 3.916398982 | CL42: 6.997191039 | CM42: 422.87 | CO42: 10:16:11 | CQ42: 2.723391374 | CS42: 4.447226878 | CT42: 207.3333 | CV42: 09:05:36 | CX42: 3.003228446 | CZ42: 5.046385767 | DA42: 219.5665 | DC42: 40377.44619 | DE42: 3.324714681 | DG42: 2.984406734 | DH42: 198.57 | DJ42: 09:55:25 | DL42: 11.2033983 | DN42: 3.237883447 | DO42: 211.50 | DQ42: 10:06:46 | DS42: 14.57109197 | DU42: 4.158762159 | DV42: 263.72 | DW42: 2011-07-27T10:48:00.002 | DX42: 10:48:10 | DZ42: 2.248863625 | EB42: 7.184688757 | ED42: 2011-07-20T09:14:36 | EF42: 5.223377905 | EH42: 4.017607097 | EI42: 257.5832 | EK42: 2013-07-18T11:36:00 | EM42: 2.448578585 | EN42: 2013-07-18T11:36:03 | EO42: 7.433328786 | EP42: 392.7783333 | ER42: 2013-07-21T14:31:06 | ET42: 1.485416164 | EV42: 1.833731037 | EY42: 2013-07-22T14:08:02 | FA42: 6.010742843 | FC42: 5.968638638 | FF42: 2013-07-25T14:00:02 | FH42: 1.352756504 | FJ42: 1.221209794 | FR42: 2016-07-19T12:27:30 | FS42: 292.167 | FU42: 1.639734105 | FW42: 2016-07-19T12:42:38 | FY42: 253.533 | GA42: 1.422911307 | GO42: 14:09:19 | GP42: 23.90688889 | GR42: 14:19:19 | GS42: 22.81184444 | HC42: 2018-07-30 | HD42: 20:26:00 | HI42: 2.262490108 | HJ42: 6.436999647 | HL42: 4.87 | HM42: 156.25 | HV42: 2003-06-26T12:20:09 | II42: 38167.53639 | IK42: 9.00 | IM42: 11.22 | IO42: 6.65 | JA42: 2002-06-23 | JB42: 13:27:03 | JC42: 179.7098 | JD42: 95.7812 | JE42: 53.3036 | JF42: 20.2902 | JG42: 6.1607 | JH42: 2.1652 | JI42: 0.6473 | JJ42: 0.5134 | JK42: 0.6696 | JL42: 0.1786 | JN42: 2.58 | JO42: 178.86 | JW42: 2003-06-26T12:10:54 | JY42: 99.2762 | JZ42: 50.52697778 | KA42: 32.50158889 | KB42: 12.17141111 | KC42: 2.444433333 | KD42: 1.066688889 | KE42: 0.2539666667 | KF42: 0.3238333333 | KG42: 0.1396888889 | KH42: 0.06348888889 | KJ42: 1.41 | KK42: 99.2889 | KR42: 38167.53633 | KS42: 310.148 | KT42: 3.72 | KU42: 12.53832784 | KV42: 3.84554097 | KW42: L | KX42: 310 | KY42: 151.6 | KZ42: 103.4 | LA42: 42.8 | LB42: 8.8 | LC42: 3.2 | LD42: 0.228 | LE42: 0.12 | LF42: 0.144 | LG42: 0.048 | LH42: 0.036 | LI42: 0.072 | LJ42: 0.012 | LK42: 0 | LL42: 0
A43: 2014-07-22 | B43: 12:35:08 | C43: 2014-07-22T12:35:08 | E43: 2014-07-22T12:34:37 | F43: 147.0832 | H43: 0.8254786287 | K43: 2014-07-22T12:34:37 | L43: 59.0167 | N43: 0.331220864 | P43: 2014-07-23 | Q43: =AVERAGE(EF2532:EF2892) -> 15.33280588 | R43: =AVERAGE(EH2532:EH2892) -> 4.920042739 | S43: =AVERAGE(EI2532:EI2892) -> 65.06232355 | U43: 11:22:59 | V43: 11:22:20 | X43: 7.279235505 | Z43: 7.843580037 | AA43: 256.55 | AC43: 10:52:57 | AD43: 0.3175638339 | AE43: 0.4033735312 | AF43: 0.3676918782 | AG43: 0.2312277643 | AH43: 0.152681403 | AI43: 0.03845309408 | AJ43: 0.1324807004 | AK43: 0.2617993878 | AL43: 0.2581669213 | AM43: 0.7526732399 | AN43: 1.072330292 | AO43: 0.4523893421 | AP43: 0.6431101961 | AQ43: 2.045307717 | AR43: 10:52:15 | AT43: 1.77238731 | AU43: 109.44 | AV43: 1.643472205 | AY43: 10:03:35 | BA43: 1.93771888 | BB43: 10:11:35 | BC43: 2.606706143 | BD43: 120.57 | BF43: 11:47:11 | BH43: 3.908470754 | BI43: 11:47:49 | BJ43: 6.174047884 | BK43: 375.652 | BM43: 11:40:44 | BO43: 8.265365526 | BQ43: 9.75148334 | BR43: 6.826801151 | BT43: 09:35:15 | BV43: 2.191829002 | BX43: 4.964921447 | BY43: 131.6835 | CA43: 08:43:56 | CC43: 5.9344302 | CH43: 09:53:48 | CJ43: 3.863803836 | CL43: 7.109817529 | CM43: 427.118 | CO43: 10:17:11 | CQ43: 2.757846142 | CS43: 4.219798706 | CT43: 206.5834 | CV43: 09:06:36 | CX43: 2.901437142 | CZ43: 4.501759396 | DA43: 215.8666 | DC43: 40377.44689 | DE43: 4.101884946 | DG43: 2.887684801 | DH43: 196.88 | DJ43: 09:56:25 | DL43: 11.78741993 | DN43: 3.303597412 | DO43: 222.85 | DQ43: 10:07:46 | DS43: 14.65464583 | DU43: 4.710338252 | DV43: 272.30 | DW43: 2011-07-27T10:49:00.002 | DX43: 10:49:10 | DZ43: 2.813947009 | EB43: 6.786654603 | ED43: 2011-07-20T09:15:36 | EF43: 5.128024784 | EH43: 4.063286988 | EI43: 255.9167 | EK43: 2013-07-18T11:37:00 | EM43: 2.602607437 | EN43: 2013-07-18T11:37:03 | EO43: 7.600819308 | EP43: 417.2216667 | ER43: 2013-07-21T14:34:06 | ET43: 1.475326646 | EV43: 1.872030525 | EY43: 2013-07-22T14:11:02 | FA43: 6.030951405 | FC43: 5.918983995 | FF43: 2013-07-25T14:03:02 | FH43: 1.350294377 | FJ43: 1.225513324 | FR43: 2016-07-19T12:29:23 | FS43: 290.767 | FU43: 1.631876851 | FW43: 2016-07-19T12:44:31 | FY43: 251.800 | GA43: 1.413183278 | GO43: 14:39:19 | GP43: 19.59765556 | GR43: 14:49:02 | GS43: 20.6034625 | HC43: 2018-07-30 | HD43: 20:27:00 | HI43: 2.211309146 | HJ43: 6.381867641 | HL43: 4.91 | HM43: 156.95 | HV43: 2003-06-26T12:20:14 | II43: 38167.53645 | IK43: 9.12 | IM43: 10.95 | IO43: 6.63 | JA43: 2002-06-23 | JB43: 13:28:03 | JC43: 206.4955 | JD43: 106.0491 | JE43: 60.7813 | JF43: 24.308 | JG43: 7.2321 | JH43: 2.9687 | JI43: 0.7813 | JJ43: 1.2054 | JK43: 2.6339 | JL43: 0.5357 | JN43: 3.41 | JO43: 203.33 | KJ43: 0.00 | KK43: 0 | KR43: 38167.53639 | KS43: 305.724 | KT43: 3.34 | KU43: 5.769043642 | KV43: 3.461936537 | KW43: L | KX43: 306 | KY43: 164.4 | KZ43: 94.4 | LA43: 38.2 | LB43: 6.8 | LC43: 1.6 | LD43: 0.204 | LE43: 0.12 | LF43: 0.048 | LG43: 0.072 | LH43: 0.012 | LI43: 0.024 | LJ43: 0 | LK43: 0 | LL43: 0
E44: 2014-07-22T12:35:37 | F44: 150.4333 | H44: 0.8442804765 | K44: 2014-07-22T12:35:37 | L44: 59.5001 | N44: 0.3339338616 | P44: 2014-07-24 | Q44: =AVERAGE(EF3972:EF4332) -> 9.243079925 | R44: =AVERAGE(EH3972:EH4332) -> 3.714183031 | S44: =AVERAGE(EI3972:EI4332) -> 118.1362837 | U44: 11:23:59 | V44: 11:23:20 | X44: 7.104166131 | Z44: 7.886847559 | AA44: 254.91 | AC44: 10:53:57 | AD44: 0.3014755448 | AE44: 0.3807098855 | AF44: 0.3549885161 | AG44: 0.2222480453 | AH44: 0.1320026155 | AI44: 0.01967893638 | AJ44: 0.06881279099 | AK44: 0.1145372322 | AL44: 0.1459204338 | AM44: 0.4090615434 | AN44: 0.6702064328 | AO44: 0.9047786842 | AP44: 0.6431101961 | AQ44: 0 | AR44: 10:53:15 | AT44: 1.763922826 | AU44: 109.32 | AV44: 1.479916335 | AY44: 10:04:35 | BA44: 1.874653261 | BB44: 10:12:35 | BC44: 2.091050252 | BD44: 120.69 | BF44: 11:48:11 | BH44: 4.112376545 | BI44: 11:48:53 | BJ44: 6.059275588 | BK44: 393.154 | BM44: 11:41:44 | BO44: 7.895200393 | BQ44: 9.860901151 | BR44: 6.64429344 | BT44: 09:36:15 | BV44: 2.194088596 | BX44: 4.835102154 | BY44: 130.6833 | CA44: 08:44:56 | CC44: 6.068826169 | CH44: 09:54:48 | CJ44: 3.932878214 | CL44: 7.347375897 | CM44: 429.518 | CO44: 10:18:11 | CQ44: 2.799679868 | CS44: 4.288677863 | CT44: 211.2 | CV44: 09:07:36 | CX44: 3.058422887 | CZ44: 4.744371146 | DA44: 213.6834 | DC44: 40377.44758 | DE44: 5.854534044 | DG44: 2.959623063 | DH44: 201.52 | DJ44: 09:57:25 | DL44: 11.76190952 | DN44: 3.512280705 | DO44: 235.82 | DQ44: 10:08:46 | DS44: 14.15317776 | DU44: 4.74699991 | DV44: 267.75 | DW44: 2011-07-27T10:50:00.002 | DX44: 10:50:10 | DZ44: 2.315192097 | EB44: 8.957478221 | ED44: 2011-07-20T09:16:36 | EF44: 5.303349597 | EH44: 4.185520198 | EI44: 259.2334 | EK44: 2013-07-18T11:38:00 | EM44: 2.836845894 | EN44: 2013-07-18T11:38:03 | EO44: 6.525348459 | EP44: 379.1666667 | ER44: 2013-07-21T14:37:06 | ET44: 1.407370895 | EV44: 1.860475458 | EY44: 2013-07-22T14:14:02 | FA44: 6.068942092 | FC44: 6.015254687 | FF44: 2013-07-25T14:06:02 | FH44: 1.364481211 | FJ44: 0.9410004687 | FR44: 2016-07-19T12:31:17 | FS44: 294.167 | FU44: 1.650958754 | FW44: 2016-07-19T12:46:25 | FY44: 251.050 | GA44: 1.408974035 | GO44: 15:09:00 | GP44: 21.47631111 | GR44: 15:19:00 | GS44: 20.56044444 | HC44: 2018-07-30 | HD44: 20:28:00 | HI44: 2.252153777 | HJ44: 6.479485515 | HL44: 4.73 | HM44: 153.425 | HV44: 2003-06-26T12:20:19 | II44: 38167.5365 | IK44: 9.18 | IM44: 11.40 | IO44: 6.61 | JA44: 2002-06-23 | JB44: 13:29:03 | JC44: 176.3393 | JD44: 93.0134 | JE44: 51.3839 | JF44: 20.3348 | JG44: 6.1384 | JH44: 2.2545 | JI44: 0.558 | JJ44: 0.9598 | JK44: 1.3839 | JL44: 0.3125 | JN44: 2.81 | JO44: 174.64 | JW44: 2003-06-26T12:20:04 | JY44: 97.48573 | JZ44: 50.99428 | KA44: 31.17143 | KB44: 10.15428 | KC44: 3.36572 | KD44: 0.93715 | KE44: 0.32002 | KF44: 0.4 | KG44: 0.3143 | KH44: 0.06858 | KJ44: 1.45 | KK44: 97.34288 | KR44: 38167.53645 | KS44: 298.164 | KT44: 3.36 | KU44: 6.382677845 | KV44: 3.584696888 | KW44: L | KX44: 298 | KY44: 148.2 | KZ44: 101.4 | LA44: 39.8 | LB44: 6.6 | LC44: 1.6 | LD44: 0.324 | LE44: 0.24 | LF44: 0.096 | LG44: 0.072 | LH44: 0.036 | LI44: 0.024 | LJ44: 0 | LK44: 0 | LL44: 0
A45: 2014-07-22 | B45: 12:36:13 | C45: =A45+B45 -> 2014-07-22T12:36:13 | E45: 2014-07-22T12:36:37 | F45: 147.0334 | H45: 0.8251991349 | K45: 2014-07-22T12:36:37 | L45: 57.8501 | N45: 0.3246735264 | P45: 2014-07-27 | Q45: =AVERAGE(EF4795:EF5155) -> 10.54158059 | R45: =AVERAGE(EH4795:EH5155) -> 3.632235274 | S45: =AVERAGE(EI4795:EI5155) -> 54.33591634 | U45: 11:24:59 | V45: 11:24:20 | X45: 7.23673977 | Z45: 7.726986269 | AA45: 254.97 | AC45: 10:54:57 | AD45: 0.3086778407 | AE45: 0.393631742 | AF45: 0.343735598 | AG45: 0.2035388007 | AH45: 0.1367739093 | AI45: 0.03008389125 | AJ45: 0.09646652942 | AK45: 0.1861230023 | AL45: 0.2357176238 | AM45: 0.8835729338 | AN45: 0.8712683626 | AO45: 0.4523893421 | AP45: 0 | AQ45: 0 | AR45: 10:54:15 | AT45: 1.697953926 | AU45: 105.91 | AV45: 1.512908311 | AY45: 10:05:35 | BA45: 2.47887663 | BB45: 10:13:59 | BC45: 2.131573524 | BD45: 121.17 | BF45: 11:49:11 | BH45: 3.505555015 | BI45: 11:49:56 | BJ45: 5.49485414 | BK45: 385.052 | BM45: 11:42:44 | BO45: 7.888675883 | BQ45: 9.422493172 | BR45: 6.560230168 | BT45: 09:37:15 | BV45: 2.140691133 | BX45: 4.869766051 | BY45: 132.0333 | CA45: 08:45:56 | CC45: 5.966505578 | CH45: 09:55:48 | CJ45: 4.071905062 | CL45: 7.417500041 | CM45: 430.814 | CO45: 10:19:11 | CQ45: 2.695496547 | CS45: 4.493027797 | CT45: 206.9501 | CV45: 09:08:36 | CX45: 3.074829472 | CZ45: 5.053862463 | DA45: 219.6668 | DC45: 40377.44828 | DE45: 3.190503841 | DG45: 3.034635541 | DH45: 202.92 | DJ45: 09:58:25 | DL45: 10.86073437 | DN45: 3.359574462 | DO45: 221.35 | DQ45: 10:09:46 | DS45: 13.98885889 | DU45: 7.959185849 | DV45: 257.18 | DW45: 2011-07-27T10:51:00.002 | DX45: 10:51:10 | DZ45: 3.171932972 | EB45: 10.65737863 | ED45: 2011-07-20T09:17:36 | EF45: 5.170274835 | EH45: 3.660093907 | EI45: 236.9666 | EK45: 2013-07-18T11:39:00 | EM45: 2.847918918 | EN45: 2013-07-18T11:39:03 | EO45: 7.611392049 | EP45: 409.4433333 | ER45: 2013-07-21T14:40:06 | ET45: 1.431621637 | EV45: 1.761785725 | EY45: 2013-07-22T14:17:02 | FA45: 6.117317666 | FC45: 6.05481058 | FF45: 2013-07-25T14:09:02 | FH45: 1.436599018 | FJ45: 0.6173865491 | FR45: 2016-07-19T12:33:10 | FS45: 298.300 | FU45: 1.674156361 | FW45: 2016-07-19T12:48:18 | FY45: 253.783 | GA45: 1.424314388 | GO45: 15:39:28 | GP45: 20.59298889 | GR45: 15:49:28 | GS45: 18.92582222 | HC45: 2018-07-30 | HD45: 20:29:00 | HI45: 2.441755275 | HJ45: 6.45984737 | HL45: 4.71 | HM45: 153.15 | HV45: 2003-06-26T12:20:24 | II45: 38167.53656 | IK45: 9.12 | IM45: 11.18 | IO45: 6.74 | JA45: 2002-06-23 | JB45: 13:30:03 | JC45: 171.1161 | JD45: 91.0491 | JE45: 50.3795 | JF45: 20.2232 | JG45: 6.2054 | JH45: 2.1652 | JI45: 0.3348 | JJ45: 0.1563 | JK45: 0.4687 | JL45: 0.1339 | JN45: 2.21 | JO45: 170.51 | JW45: 2003-06-26T12:20:09 | JY45: 96.41144 | JZ45: 50.81142 | KA45: 30.52572 | KB45: 10.08571 | KC45: 3.14286 | KD45: 0.98857 | KE45: 0.28573 | KF45: 0.37714 | KG45: 0.3143 | KH45: 0.06858 | KJ45: 1.41 | KK45: 96.21715 | KR45: 38167.5365 | KS45: 309.008 | KT45: 3.57 | KU45: 6.171337933 | KV45: 3.740923316 | KW45: L | KX45: 309.4 | KY45: 155.6 | KZ45: 100.6 | LA45: 40.8 | LB45: 9.8 | LC45: 1.8 | LD45: 0.228 | LE45: 0.18 | LF45: 0.144 | LG45: 0.024 | LH45: 0.024 | LI45: 0.024 | LJ45: 0 | LK45: 0 | LL45: 0
A46: 2014-07-22 | B46: 12:37:18 | C46: 2014-07-22T12:37:18 | E46: 2014-07-22T12:37:37 | F46: 144.9666 | H46: 0.8135995829 | K46: 2014-07-22T12:37:37 | L46: 57.6999 | N46: 0.3238305553 | P46: 2014-07-28 | Q46: =AVERAGE(EF6235:EF6595) -> 8.446432271 | R46: =AVERAGE(EH6235:EH6595) -> 5.029521142 | S46: =AVERAGE(EI6235:EI6595) -> 257.0059122 | U46: 11:25:59 | V46: 11:25:20 | X46: 7.112683479 | Z46: 7.777876509 | AA46: 257.58 | AC46: 10:55:57 | AD46: 0.3045623232 | AE46: 0.4109276822 | AF46: 0.3647888126 | AG46: 0.2237431685 | AH46: 0.1304185459 | AI46: 0.04908424362 | AJ46: 0.1717104224 | AK46: 0.2945243113 | AL46: 0.3479641113 | AM46: 1.178097245 | AN46: 1.541474795 | AO46: 0.2261946711 | AP46: 1.286220392 | AQ46: 2.045307717 | AR46: 10:55:15 | AT46: 1.856158387 | AU46: 110.16 | AV46: 1.655235198 | AY46: 10:06:35 | BA46: 1.763581371 | BB46: 10:14:35 | BC46: 2.159418253 | BD46: 0.00 | BF46: 11:50:11 | BH46: 3.388587811 | BI46: 11:50:59 | BJ46: 5.384447971 | BK46: 394.628 | BM46: 11:43:44 | BO46: 8.073203431 | BQ46: 9.403805146 | BR46: 6.683538469 | BT46: 09:38:15 | BV46: 2.119033087 | BX46: 4.829181182 | BY46: 134.4998 | CA46: 08:46:56 | CC46: 5.990659733 | CH46: 09:56:48 | CJ46: 3.857324689 | CL46: 6.965931603 | CM46: 411.71 | CO46: 10:20:11 | CQ46: 2.660119312 | CS46: 4.340399048 | CT46: 206.5833 | CV46: 09:09:36 | CX46: 2.998227446 | CZ46: 4.867248292 | DA46: 220.2834 | DC46: 40377.44897 | DE46: 2.70625934 | DG46: 4.270153467 | DH46: 225.52 | DJ46: 09:59:25 | DL46: 11.36041806 | DN46: 3.231874668 | DO46: 214.73 | DQ46: 10:10:46 | DS46: 14.03530998 | DU46: 4.247972221 | DV46: 261.77 | DW46: 2011-07-27T10:52:00.002 | DX46: 10:52:10 | DZ46: 2.353533892 | EB46: 7.588983382 | ED46: 2011-07-20T09:18:36 | EF46: 4.644132007 | EH46: 3.761233443 | EI46: 243.4999 | EK46: 2013-07-18T11:40:00 | EM46: 2.817632546 | EN46: 2013-07-18T11:40:03 | EO46: 7.696829597 | EP46: 390 | ER46: 2013-07-21T14:43:06 | ET46: 1.49151236 | EV46: 1.80276417 | EY46: 2013-07-22T14:20:02 | FA46: 6.25750643 | FC46: 6.080467804 | FF46: 2013-07-25T14:12:02 | FH46: 1.431174145 | FJ46: 0.8605247882 | FR46: 2016-07-19T12:35:03 | FS46: 300.150 | FU46: 1.684539161 | FW46: 2016-07-19T12:50:11 | FY46: 249.283 | GA46: 1.399058928 | GO46: 16:09:28 | GP46: 20.75936667 | GR46: 16:19:28 | GS46: 20.30713333 | HC46: 2018-07-30 | HD46: 20:30:00 | HI46: 2.267932181 | HJ46: 6.768216533 | HL46: 5.02 | HM46: 155.825 | HV46: 2003-06-26T12:20:29 | II46: 38167.53662 | IK46: 9.09 | IM46: 11.16 | IO46: 6.80 | JA46: 2002-06-23 | JB46: 13:31:03 | JC46: 168.4598 | JD46: 88.9509 | JE46: 48.6384 | JF46: 18.6384 | JG46: 5.8705 | JH46: 2.8795 | JI46: 0.625 | JJ46: 0.9598 | JK46: 1.7411 | JL46: 0.1563 | JN46: 2.78 | JO46: 166.56 | JW46: 2003-06-26T12:20:14 | JY46: 94.50287 | JZ46: 49.65142 | KA46: 30.28001 | KB46: 9.95999 | KC46: 2.88 | KD46: 0.90286 | KE46: 0.28573 | KF46: 0.4 | KG46: 0.3143 | KH46: 0.06858 | KJ46: 1.39 | KK46: 94.36001 | KR46: 38167.53656 | KS46: 295.76 | KT46: 3.42 | KU46: 5.235502773 | KV46: 3.56024849 | KW46: L | KX46: 295.6 | KY46: 152.4 | KZ46: 95.2 | LA46: 35 | LB46: 11 | LC46: 1.8 | LD46: 0.216 | LE46: 0.144 | LF46: 0.072 | LG46: 0.024 | LH46: 0.036 | LI46: 0.012 | LJ46: 0 | LK46: 0 | LL46: 0
A47: 2014-07-22 | B47: 12:38:23 | C47: 2014-07-22T12:38:23 | E47: 2014-07-22T12:38:37 | F47: 149.5 | H47: 0.8390424942 | K47: 2014-07-22T12:38:37 | L47: 59.6166 | N47: 0.3345876974 | P47: 2014-07-29 | Q47: =AVERAGE(EF7675:EF8035) -> 5.165166938 | R47: =AVERAGE(EH7675:EH8035) -> 4.824940141 | S47: =AVERAGE(EI7675:EI8035) -> 329.1219343 | U47: 11:26:59 | V47: 11:26:20 | X47: 7.084059545 | Z47: 7.747133388 | AA47: 256.11 | AC47: 10:56:57 | AD47: 0.307835992 | AE47: 0.4049635649 | AF47: 0.3589805036 | AG47: 0.2020436775 | AH47: 0.1431388153 | AI47: 0.01990513105 | AJ47: 0.05723680746 | AK47: 0.1206731553 | AL47: 0.1627574069 | AM47: 0.621773546 | AN47: 0.6702064328 | AO47: 0 | AP47: 0 | AQ47: 0 | AR47: 10:56:15 | AT47: 1.740676313 | AU47: 108.66 | AV47: 1.494104492 | AY47: 10:07:35 | BA47: 1.768947952 | BB47: 10:15:00 | BC47: 2.136830056 | BD47: 124.34 | BF47: 11:51:11 | BH47: 3.4544652 | BJ47: 5.414151533 | BK47: 0 | BM47: 11:44:44 | BO47: 8.202498653 | BQ47: 10.27550279 | BR47: 6.910181254 | BT47: 09:39:15 | BV47: 2.083884292 | BX47: 4.815675391 | BY47: 129.1834 | CA47: 08:47:56 | CC47: 6.163442021 | CH47: 09:57:48 | CJ47: 3.745193236 | CL47: 6.962472481 | CM47: 409.456 | CO47: 10:21:11 | CQ47: 2.65864907 | CS47: 4.351415468 | CT47: 205.1165 | CV47: 09:10:36 | CX47: 3.043651248 | CZ47: 4.662141857 | DA47: 217.9166 | DC47: 40377.44966 | DE47: 2.858876866 | DG47: 3.694087262 | DH47: 226.20 | DJ47: 10:00:25 | DL47: 10.91366221 | DN47: 3.249770648 | DO47: 217.57 | DQ47: 10:11:46 | DS47: 14.77714754 | DU47: 4.316265607 | DV47: 276.65 | DW47: 2011-07-27T10:53:00.002 | DX47: 10:53:10 | DZ47: 2.19299882 | EB47: 4.687991373 | ED47: 2011-07-20T09:19:36 | EF47: 5.178153175 | EH47: 3.684704216 | EI47: 242.8166 | EM47: 0 | EN47: 2013-07-18T11:41:03 | EP47: 380 | ER47: 2013-07-21T14:46:06 | ET47: 1.361620314 | EV47: 1.749732216 | EY47: 2013-07-22T14:23:02 | FA47: 6.149134509 | FC47: 5.919510266 | FF47: 2013-07-25T14:15:02 | FH47: 1.422193865 | FJ47: 0.8459327448 | FR47: 2016-07-19T12:36:57 | FS47: 307.767 | FU47: 1.727286365 | FW47: 2016-07-19T12:52:05 | FY47: 246.933 | GA47: 1.385869966 | GO47: 16:39:28 | GP47: 19.993825 | GR47: 16:49:28 | GS47: 20.89691111 | HC47: 2018-07-30 | HD47: 20:31:00 | HI47: 2.513159749 | HJ47: 6.961823562 | HL47: 5.03 | HM47: 152.4 | HV47: 2003-06-26T12:20:34 | II47: 38167.53668 | IK47: 9.46 | IM47: 11.16 | IO47: 12.27 | JA47: 2002-06-23 | JB47: 13:32:03 | JC47: 179.4643 | JD47: 97.0089 | JE47: 51.8304 | JF47: 19.1741 | JG47: 5.8036 | JH47: 2.6786 | JI47: 0.4911 | JJ47: 0.9375 | JK47: 1.25 | JL47: 0.2902 | JN47: 2.81 | JO47: 177.92 | JW47: 2003-06-26T12:20:19 | JY47: 92.34287 | JZ47: 49.41142 | KA47: 29.25144 | KB47: 9.4457 | KC47: 2.50285 | KD47: 0.90286 | KE47: 0.28573 | KF47: 0.4 | KG47: 0.3143 | KH47: 0.06858 | KJ47: 1.35 | KK47: 92.2 | KR47: 38167.53662 | KS47: 282.208 | KT47: 3.23 | KU47: 5.484297799 | KV47: 3.372951187 | KW47: L | KX47: 282 | KY47: 145.4 | KZ47: 91.2 | LA47: 35.2 | LB47: 7.8 | LC47: 2.2 | LD47: 0.288 | LE47: 0.12 | LF47: 0.084 | LG47: 0.024 | LH47: 0.012 | LI47: 0.024 | LJ47: 0 | LK47: 0 | LL47: 0
A48: 2014-07-22 | B48: 12:39:28 | C48: 2014-07-22T12:39:28 | E48: 2014-07-22T12:39:37 | F48: 140.5167 | H48: 0.7886253006 | K48: 2014-07-22T12:39:37 | L48: 57.45 | N48: 0.3224280354 | R48: year average | U48: 11:27:59 | V48: 11:27:20 | X48: 7.144865562 | Z48: 7.78869381 | AA48: 258.09 | AC48: 10:57:57 | AD48: 0.3025980097 | AE48: 0.394625364 | AF48: 0.3607968252 | AG48: 0.1983036246 | AH48: 0.1447324274 | AI48: 0.06491787059 | AJ48: 0.1890743977 | AK48: 0.404970928 | AL48: 0.3760257332 | AM48: 1.178097245 | AN48: 1.474454152 | AO48: 0.6785840132 | AP48: 0.6431101961 | AQ48: 0 | AR48: 10:57:15 | AT48: 1.755132912 | AU48: 106.42 | AV48: 1.655048519 | AY48: 10:08:35 | BA48: 2.395658082 | BB48: 10:16:02 | BC48: 2.119500936 | BD48: 115.53 | BF48: 11:52:11 | BH48: 3.39767082 | BI48: 11:52:02 | BJ48: 5.443855095 | BK48: 389.428 | BM48: 11:45:44 | BO48: 7.992063473 | BQ48: 10.32311713 | BR48: 6.72168519 | BT48: 09:40:15 | BV48: 2.124888126 | BX48: 4.873397683 | BY48: 131.7165 | CA48: 08:48:56 | CC48: 6.13922635 | CH48: 09:58:48 | CJ48: 3.795233854 | CL48: 5.214457571 | CM48: 0 | CO48: 10:22:11 | CQ48: 2.773095804 | CS48: 4.349871147 | CT48: 205.6001 | CV48: 09:11:36 | CX48: 2.882839415 | CZ48: 4.973762813 | DA48: 217.6999 | DC48: 40377.45036 | DE48: 2.656868679 | DG48: 3.306032922 | DH48: 220.98 | DJ48: 10:01:25 | DL48: 10.83234285 | DN48: 3.263696238 | DO48: 213.48 | DQ48: 10:12:46 | DS48: 14.65575351 | DU48: 5.827219043 | DV48: 278.93 | DW48: 2011-07-27T10:54:00.002 | DX48: 10:54:10 | DZ48: 2.005861562 | EB48: 4.870941501 | ED48: 2011-07-20T09:20:36 | EF48: 5.355210863 | EH48: 4.380937321 | EI48: 250.95 | EK48: 2013-07-18T11:42:00 | EM48: 3.152585501 | EN48: 2013-07-18T11:42:03 | EO48: 7.248721466 | EP48: 380 | ER48: 2013-07-21T14:49:06 | ET48: 2.14208621 | EV48: 2.083471523 | EY48: 2013-07-22T14:26:02 | FA48: 5.996103972 | FC48: 5.579456399 | FF48: 2013-07-25T14:18:02 | FH48: 1.445485011 | FJ48: 0.8402895527 | FR48: 2016-07-19T12:38:50 | FS48: 301.317 | FU48: 1.691086873 | FW48: 2016-07-19T12:53:58 | FY48: 243.083 | GA48: 1.364262517 | GO48: 17:09:28 | GP48: 20.64657778 | GR48: 17:19:28 | GS48: 19.95028889 | HC48: 2018-07-30 | HD48: 20:32:00 | HI48: 2.400990902 | HJ48: 6.892468977 | HL48: 4.78 | HM48: 153.025 | HV48: 2003-06-26T12:20:39 | II48: 38167.53674 | IK48: 40.59 | IM48: 41.96 | IO48: 37.03 | JA48: 2002-06-23 | JB48: 13:33:03 | JC48: 174.375 | JD48: 96.5179 | JE48: 49.8214 | JF48: 19.1741 | JG48: 4.9107 | JH48: 1.9196 | JI48: 0.3348 | JJ48: 0.4464 | JK48: 0.9375 | JL48: 0.3125 | JN48: 2.32 | JO48: 173.12 | JW48: 2003-06-26T12:20:24 | JY48: 90.50287 | JZ48: 48.60571 | KA48: 28.57715 | KB48: 9.27427 | KC48: 2.46285 | KD48: 0.85714 | KE48: 0.25144 | KF48: 0.4 | KG48: 0.28001 | KH48: 0.03429 | KJ48: 1.32 | KK48: 90.42856 | KR48: 38167.53668 | KS48: 319.496 | KT48: 3.73 | KU48: 11.39398295 | KV48: 3.935056594 | KW48: L | KX48: 318.8 | KY48: 160.4 | KZ48: 104 | LA48: 41.6 | LB48: 10.6 | LC48: 2.2 | LD48: 0.588 | LE48: 0.108 | LF48: 0.144 | LG48: 0.096 | LH48: 0.024 | LI48: 0.012 | LJ48: 0.024 | LK48: 0 | LL48: 0
A49: 2014-07-22 | B49: 12:40:33 | C49: 2014-07-22T12:40:33 | E49: 2014-07-22T12:40:37 | F49: 121.85 | H49: 0.6838617252 | K49: 2014-07-22T12:40:37 | L49: 48.9499 | N49: 0.274722717 | R49: =AVERAGE(R40:R47) -> 4.81 | U49: 11:28:59 | V49: 11:28:20 | X49: 7.418694533 | Z49: 7.565295541 | AA49: 258.2 | AC49: 10:58:57 | AD49: 0.2989499988 | AE49: 0.4029751282 | AF49: 0.3350242233 | AG49: 0.1997987478 | AH49: 0.1367739093 | AI49: 0.02782194454 | AJ49: 0.07138523177 | AK49: 0.1411262325 | AL49: 0.134695785 | AM49: 0.37633662 | AN49: 0.5361651462 | AO49: 0.2261946711 | AP49: 0 | AQ49: 0 | AR49: 10:58:15 | AT49: 1.673253699 | AU49: 105.58 | AV49: 1.472729184 | AY49: 10:09:35 | BA49: 2.620937467 | BB49: 10:17:03 | BC49: 2.143088334 | BD49: 123.66 | BF49: 11:53:11 | BH49: 3.438521278 | BI49: 11:53:05 | BJ49: 5.193454486 | BK49: 383.226 | BM49: 11:46:44 | BO49: 8.154921419 | BQ49: 9.138280255 | BR49: 6.670551995 | BT49: 09:41:15 | BV49: 2.17600826 | BX49: 4.854313285 | BY49: 131.4667 | CA49: 08:49:56 | CC49: 5.926645772 | CH49: 09:59:48 | CJ49: 3.857162899 | CL49: 4.986553628 | CM49: 0 | CO49: 10:23:11 | CQ49: 2.919606565 | CS49: 4.4987076 | CT49: 209.0666 | CV49: 09:12:36 | CX49: 2.860641371 | CZ49: 4.626713854 | DA49: 216.3833 | DC49: 40377.45105 | DE49: 2.599021343 | DG49: 3.289147606 | DH49: 218.17 | DJ49: 10:02:25 | DL49: 10.67544334 | DN49: 3.196357579 | DO49: 208.63 | DQ49: 10:13:46 | DS49: 14.79208977 | DU49: 8.538811704 | DV49: 289.27 | DW49: 2011-07-27T10:55:00.002 | DX49: 10:55:10 | DZ49: 1.951187476 | EB49: 3.923575078 | ED49: 2011-07-20T09:21:36 | EF49: 6.160802127 | EH49: 4.273518034 | EI49: 250.3 | EK49: 2013-07-18T11:43:00 | EM49: 3.163977319 | EN49: 2013-07-18T11:43:03 | EO49: 6.396885109 | EP49: 373.335 | ER49: 2013-07-21T14:52:06 | ET49: 2.000403693 | EV49: 1.903218351 | EY49: 2013-07-22T14:29:02 | FA49: 6.033161716 | FC49: 3.137422152 | FF49: 2013-07-25T14:21:02 | FH49: 1.442804003 | FJ49: 1.019634184 | FR49: 2016-07-19T12:40:43 | FS49: 271.900 | FU49: 1.525990998 | FW49: 2016-07-19T12:55:51 | FY49: 253.067 | GA49: 1.420292222 | GO49: 17:39:28 | GP49: 20.65813333 | GR49: 17:49:04 | GS49: 23.778625 | HC49: 2018-07-30 | HD49: 20:33:00 | HI49: 2.299696628 | HJ49: 7.353802286 | HL49: 4.78 | HM49: 152.175 | HV49: 2003-06-26T12:20:44 | II49: 38167.53679 | IK49: 9.01 | IM49: 11.04 | IO49: 6.72 | JA49: 2002-06-23 | JB49: 13:34:03 | JC49: 172.2991 | JD49: 95.3795 | JE49: 49.2857 | JF49: 19.0625 | JG49: 5.9152 | JH49: 1.875 | JI49: 0.2679 | JJ49: 0.1563 | JK49: 0.2902 | JL49: 0.067 | JN49: 2.14 | JO49: 171.94 | JW49: 2003-06-26T12:20:29 | JY49: 88.5543 | JZ49: 48.47999 | KA49: 27.43429 | KB49: 9.08569 | KC49: 2.45143 | KD49: 0.66286 | KE49: 0.13715 | KF49: 0.4381 | KG49: 0.13715 | KH49: 0.03429 | KJ49: 1.28 | KK49: 88.68951 | KR49: 38167.53674 | KS49: 303.984 | KT49: 3.38 | KU49: 32.96156486 | KV49: 3.538193462 | KW49: L | KX49: 304.8 | KY49: 158.8 | KZ49: 95.4 | LA49: 39.2 | LB49: 9.4 | LC49: 0.8 | LD49: 0.216 | LE49: 0.168 | LF49: 0.096 | LG49: 0.048 | LH49: 0.024 | LI49: 0.06 | LJ49: 0 | LK49: 0 | LL49: 0.012
A50: 2014-07-22 | B50: 12:41:38 | C50: 2014-07-22T12:41:38 | E50: 2014-07-22T12:41:37 | F50: 128.9 | H50: 0.7234286121 | K50: 2014-07-22T12:41:37 | L50: 48.1167 | N50: 0.2700465283 | P50: 2013 | U50: 11:29:59 | V50: 11:29:20 | X50: 7.294117524 | Z50: 7.738028044 | AA50: 258.39 | AC50: 10:59:57 | AD50: 0.296330727 | AE50: 0.395023767 | AF50: 0.3321211577 | AG50: 0.2177581858 | AH50: 0.146316497 | AI50: 0.01583362697 | AJ50: 0.05980924824 | AK50: 0.1329450016 | AL50: 0.1403081094 | AM50: 0.37633662 | AN50: 0.3351032164 | AO50: 0 | AP50: 0 | AQ50: 0 | AR50: 10:59:15 | AT50: 1.694649981 | AU50: 106.57 | AV50: 1.46319321 | AY50: 10:10:35 | BA50: 1.874911829 | BB50: 10:18:05 | BC50: 2.166675732 | BD50: 132.01 | BF50: 11:54:11 | BH50: 4.421115933 | BI50: 11:54:08 | BJ50: 6.85879292 | BK50: 392.97 | BM50: 11:47:44 | BO50: 7.826643536 | BQ50: 9.605184148 | BR50: 6.544883904 | BT50: 09:42:15 | BV50: 2.049990621 | BX50: 4.749897266 | BY50: 131.0333 | CA50: 08:50:56 | CC50: 6.203805622 | CH50: 10:00:48 | CJ50: 3.909228944 | CL50: 3.466442661 | CM50: 251.61 | CO50: 10:24:11 | CQ50: 2.89245929 | CS50: 4.353053056 | CT50: 203.5165 | CV50: 09:13:36 | CX50: 2.93914802 | CZ50: 4.71249766 | DA50: 216.7166 | DC50: 40377.45175 | DE50: 2.735662061 | DG50: 3.929134776 | DH50: 214.38 | DJ50: 10:03:25 | DL50: 10.70493599 | DN50: 3.212092522 | DO50: 215.13 | DQ50: 10:14:46 | DS50: 15.16082576 | DU50: 7.220225231 | DV50: 285.02 | DW50: 2011-07-27T10:56:00.002 | DX50: 10:56:10 | DZ50: 1.276779803 | EB50: 3.094745275 | ED50: 2011-07-20T09:22:36 | EF50: 6.435196916 | EH50: 4.828637137 | EI50: 251.5166 | EK50: 2013-07-18T11:44:00 | EM50: 3.161863017 | EN50: 2013-07-18T11:44:03 | EO50: 8.501916629 | EP50: 421.39 | ER50: 2013-07-21T14:55:06 | ET50: 1.461459748 | EV50: 1.837612365 | EY50: 2013-07-22T14:32:02 | FA50: 5.869669563 | FC50: 5.701624831 | FF50: 2013-07-25T14:24:02 | FH50: 1.457862992 | FJ50: 1.031949869 | FR50: 2016-07-19T12:42:36 | FS50: 274.483 | FU50: 1.540489502 | FW50: 2016-07-19T12:57:45 | FY50: 251.100 | GA50: 1.409254651 | GO50: 18:09:54 | GP50: 20.66533333 | GR50: 18:19:45 | GS50: 23.7199125 | HC50: 2018-07-30 | HD50: 20:34:00 | HI50: 2.504542704 | HJ50: 7.045695986 | HL50: 4.84 | HM50: 152.725 | HV50: 2003-06-26T12:20:49 | II50: 38167.53685 | IK50: 9.04 | IM50: 10.97 | IO50: 6.77 | JA50: 2002-06-23 | JB50: 13:35:03 | JC50: 173.6384 | JD50: 97.2321 | JE50: 50.0893 | JF50: 18.2143 | JG50: 5.4688 | JH50: 2.0313 | JI50: 0.1786 | JJ50: 0.067 | JK50: 0.2232 | JL50: 0.1339 | JN50: 2.06 | JO50: 173.28 | JW50: 2003-06-26T12:20:34 | JY50: 87.32001 | JZ50: 48.54856 | KA50: 26.88572 | KB50: 8.67426 | KC50: 2.38286 | KD50: 0.59429 | KE50: 0.06858 | KF50: 0.3143 | KG50: 0.10286 | KH50: 0 | KJ50: 1.16 | KK50: 87.46857 | KR50: 38167.53679 | KS50: 310.208 | KT50: 3.55 | KU50: 4.26236421 | KV50: 3.704142466 | KW50: L | KX50: 309.8 | KY50: 160.2 | KZ50: 102.4 | LA50: 35 | LB50: 9.8 | LC50: 2.4 | LD50: 0.264 | LE50: 0.144 | LF50: 0.144 | LG50: 0.012 | LH50: 0.012 | LI50: 0 | LJ50: 0 | LK50: 0 | LL50: 0
A51: 2014-07-22 | B51: 12:42:43 | C51: 2014-07-22T12:42:43 | E51: 2014-07-22T12:42:37 | F51: 138.8833 | H51: 0.77945813 | K51: 2014-07-22T12:42:37 | L51: 55.4667 | N51: 0.3112971125 | P51: 2014-07-18 | Q51: =AVERAGE(EM58:EM182) -> 3.42637195 | R51: =AVERAGE(EO58:EO182) -> 7.063718879 | U51: 11:30:59 | V51: 11:30:20 | X51: 7.228727236 | Z51: 7.683634543 | AC51: 11:00:57 | AD51: 0.3045623232 | AE51: 0.3974094139 | AF51: 0.3680555781 | AG51: 0.1915688353 | AH51: 0.1272313216 | AI51: 0.03777451007 | AJ51: 0.1299082596 | AK51: 0.2617993878 | AL51: 0.3255148138 | AM51: 0.932660319 | AN51: 0.9382890059 | AO51: 0.4523893421 | AP51: 0 | AQ51: 0 | AR51: 11:00:15 | AT51: 1.792099349 | AU51: 107.56 | AV51: 1.556510242 | AY51: 10:11:35 | BA51: 1.850797184 | BB51: 10:19:06 | BC51: 2.040152633 | BD51: 137.16 | BF51: 11:55:11 | BH51: 4.322968547 | BI51: 11:55:11 | BJ51: 8.227326345 | BK51: 397.68 | BM51: 11:48:44 | BO51: 7.949163388 | BQ51: 9.27753184 | BR51: 6.543196335 | BT51: 09:43:15 | BV51: 2.065892074 | BX51: 4.763455778 | BY51: 128.3001 | CA51: 08:51:56 | CC51: 5.873160363 | CH51: 10:01:48 | CJ51: 3.74616571 | CL51: 4.758649685 | CM51: 303.916 | CO51: 10:25:11 | CQ51: 2.728668133 | CS51: 4.28805645 | CT51: 204.7 | CV51: 09:14:36 | CX51: 2.918082005 | CZ51: 4.840708969 | DA51: 213.2166 | DC51: 40377.45244 | DE51: 5.552934329 | DG51: 5.251965783 | DH51: 217.55 | DJ51: 10:04:25 | DL51: 11.08661981 | DN51: 3.090643984 | DO51: 206.87 | DQ51: 10:15:46 | DS51: 15.05916684 | DU51: 4.445868963 | DV51: 288.30 | DW51: 2011-07-27T10:57:00.002 | DX51: 10:57:10 | DZ51: 1.629168629 | EB51: 3.498972637 | ED51: 2011-07-20T09:23:36 | EF51: 4.758451612 | EH51: 3.78694759 | EI51: 246.2834 | EK51: 2013-07-18T11:45:00 | EM51: 3.187197016 | EN51: 2013-07-18T11:45:03 | EO51: 7.311419856 | EP51: 376.9433333 | ER51: 2013-07-21T14:58:06 | ET51: 1.506208165 | EV51: 1.790806257 | EY51: 2013-07-22T14:35:02 | FA51: 5.917718467 | FC51: 5.779260839 | FF51: 2013-07-25T14:27:02 | FH51: 1.405824959 | FJ51: 1.008035755 | FR51: 2016-07-19T12:44:30 | FS51: 265.367 | FU51: 1.489323812 | FW51: 2016-07-19T12:59:38 | FY51: 243.967 | GA51: 1.36922007 | GO51: 18:39:45 | GP51: 23.51478889 | GR51: 18:49:45 | GS51: 26.77016667 | HC51: 2018-07-30 | HD51: 20:35:00 | HI51: 2.336412029 | HJ51: 6.782076111 | HL51: 5.03 | HM51: 155.75 | HV51: 2003-06-26T12:20:54 | II51: 38167.53691 | IK51: 9.01 | IM51: 10.83 | IO51: 9.64 | JN51: 0.00 | JO51: 0.00 | JW51: 2003-06-26T12:20:39 | JY51: 86.76572 | JZ51: 48.25142 | KA51: 27.2 | KB51: 8.27998 | KC51: 2.29714 | KD51: 0.57144 | KE51: 0.06858 | KF51: 0.2857 | KG51: 0.06857 | KH51: 0 | KJ51: 1.13 | KK51: 86.95426 | KR51: 38167.53685 | KS51: 302.492 | KT51: 3.53 | KU51: 5.807394503 | KV51: 3.714308398 | KW51: L | KX51: 302.4 | KY51: 157.8 | KZ51: 94.8 | LA51: 35.8 | LB51: 11.2 | LC51: 2.4 | LD51: 0.312 | LE51: 0.18 | LF51: 0.108 | LG51: 0.012 | LH51: 0.012 | LI51: 0.024 | LJ51: 0 | LK51: 0 | LL51: 0
A52: 2014-07-22 | B52: 12:43:48 | C52: 2014-07-22T12:43:48 | E52: 2014-07-22T12:43:37 | F52: 138.2 | H52: 0.7756232288 | K52: 2014-07-22T12:43:37 | L52: 54.35 | N52: 0.3050298298 | P52: 2014-07-21 | Q52: =AVERAGE(ET2:ET112) -> 2.14779392 | R52: =AVERAGE(EV2:EV112) -> 1.736407035 | U52: 11:31:59 | V52: 11:31:20 | X52: 7.12882459 | Z52: 7.930900942 | AA52: 264.27 | AC52: 11:01:57 | AD52: 0.3130739744 | AE52: 0.3876676247 | AF52: 0.3843894055 | AG52: 0.21027359 | AH52: 0.1574526968 | AI52: 0.1153592822 | AJ52: 0.3781487953 | AK52: 0.7628997785 | AL52: 0.6790912495 | AM52: 2.470731722 | AN52: 2.010619298 | AO52: 0.9047786842 | AP52: 1.286220392 | AQ52: 0 | AR52: 11:01:15 | AT52: 1.94725312 | AU52: 109.86 | AV52: 1.946365369 | AY52: 10:12:35 | BA52: 1.892391207 | BB52: 10:20:08 | BC52: 2.214405942 | BD52: 128.28 | BF52: 11:56:11 | BH52: 3.443620075 | BI52: 11:56:14 | BJ52: 5.605100185 | BK52: 394.126 | BM52: 11:49:44 | BO52: 7.926915254 | BQ52: 9.413514991 | BR52: 6.573418636 | BT52: 09:44:15 | BV52: 2.104419407 | BX52: 4.672063207 | BY52: 127.8334 | CA52: 08:52:56 | CC52: 6.002346189 | CH52: 10:02:48 | CJ52: 3.853343288 | CL52: 6.482988604 | CM52: 393.862 | CO52: 10:26:11 | CQ52: 2.673053218 | CS52: 4.308588688 | CT52: 200.3833 | CV52: 09:15:36 | CX52: 2.806978634 | CZ52: 4.587854186 | DA52: 212.2333 | DC52: 40377.45314 | DE52: 3.968196949 | DG52: 4.733493886 | DH52: 204.30 | DJ52: 10:05:25 | DL52: 10.68709674 | DN52: 3.171789564 | DO52: 209.38 | DQ52: 10:16:46 | DS52: 15.2160647 | DU52: 12.77065501 | DV52: 305.57 | DW52: 2011-07-27T10:58:00.002 | DX52: 10:58:10 | DZ52: 1.793121274 | EB52: 5.485254393 | ED52: 2011-07-20T09:24:36 | EF52: 4.795210251 | EH52: 3.632121551 | EI52: 245.8499 | EK52: 2013-07-18T11:46:00 | EM52: 3.248825137 | EN52: 2013-07-18T11:46:03 | EO52: 8.322261135 | EP52: 408.61 | ER52: 2013-07-21T15:01:06 | ET52: 1.574585094 | EV52: 1.748278683 | EY52: 2013-07-22T14:38:02 | FA52: 5.865623277 | FC52: 5.884858111 | FF52: 2013-07-25T14:30:02 | FH52: 1.393041768 | FJ52: 0 | FR52: 2016-07-19T12:46:23 | FS52: 270.383 | FU52: 1.517478973 | FW52: 2016-07-19T13:01:31 | FY52: 238.800 | GA52: 1.340223061 | GO52: 19:09:45 | GP52: 21.33198889 | GR52: 19:19:23 | GS52: 22.3303375 | HC52: 2018-07-30 | HD52: 20:36:00 | HI52: 2.096041166 | HJ52: 6.531583921 | HL52: 4.87 | HM52: 150.3 | HV52: 2003-06-26T12:20:59 | II52: 38167.53697 | IK52: 12.21 | IM52: 11.11 | IO52: 16.27 | JA52: 2002-06-23 | JB52: 15:46:03 | JC52: 363.6264 | JD52: 191.5604 | JE52: 109.1648 | JF52: 43.3407 | JG52: 11.3846 | JH52: 3.5385 | JI52: 0.6813 | JJ52: 0.9451 | JK52: 2.2198 | JL52: 0.7912 | JN52: 4.93 | JO52: 360.62 | JW52: 2003-06-26T12:20:44 | JY52: 86.90857 | JZ52: 48.77142 | KA52: 26.8 | KB52: 8.55427 | KC52: 2.08571 | KD52: 0.53144 | KE52: 0.06858 | KF52: 0.2857 | KG52: 0.06857 | KH52: 0 | KJ52: 1.12 | KK52: 87.09712 | KR52: 38167.53691 | KS52: 302.456 | KT52: 3.42 | KU52: 10.05671495 | KV52: 3.568344374 | KW52: L | KX52: 302.6 | KY52: 156.8 | KZ52: 98.8 | LA52: 35.8 | LB52: 8.6 | LC52: 2 | LD52: 0.336 | LE52: 0.12 | LF52: 0.084 | LG52: 0.072 | LH52: 0.048 | LI52: 0.036 | LJ52: 0.012 | LK52: 0 | LL52: 0
A53: 2014-07-22 | B53: 12:44:53 | C53: 2014-07-22T12:44:53 | E53: 2014-07-22T12:44:37 | F53: 135.3333 | H53: 0.7595343785 | K53: 2014-07-22T12:44:37 | L53: 55.2167 | N53: 0.3098940314 | P53: 2014-07-22 | Q53: =AVERAGE(FA2:FA120) -> 5.131087854 | R53: =AVERAGE(FC2:FC120) -> 4.763531307 | U53: 11:32:59 | V53: 11:32:20 | X53: 7.111599924 | Z53: 7.872932348 | AA53: 260.4 | AC53: 11:02:57 | AD53: 0.3090521827 | AE53: 0.401584296 | AF53: 0.3626109689 | AG53: 0.2170083793 | AH53: 0.1638176028 | AI53: 0.0945493725 | AJ53: 0.2913289188 | AK53: 0.6238188537 | AL53: 0.5387831401 | AM53: 1.718058482 | AN53: 1.742536725 | AO53: 0.9047786842 | AP53: 0 | AQ53: 0 | AR53: 11:02:15 | AT53: 1.989160839 | AU53: 112.94 | AV53: 1.839951721 | AY53: 10:13:35 | BA53: 1.982747512 | BB53: 10:21:10 | BC53: 2.389888617 | BD53: 123.22 | BF53: 11:57:11 | BH53: 3.491926486 | BI53: 11:57:17 | BJ53: 5.167198102 | BK53: 384.11 | BM53: 11:50:44 | BO53: 8.116754459 | BQ53: 9.718632524 | BR53: 6.888528469 | BT53: 09:45:15 | BV53: 2.094035547 | BX53: 4.603602973 | BY53: 125.8666 | CA53: 08:53:56 | CC53: 6.034069488 | CH53: 10:03:48 | CJ53: 4.004159927 | CL53: 5.562349229 | CM53: 358.656 | CO53: 10:27:11 | CQ53: 2.624622653 | CS53: 4.323592673 | CT53: 199.2499 | CV53: 09:16:36 | CX53: 2.864009706 | CZ53: 5.003366859 | DA53: 215.0333 | DC53: 40377.45383 | DE53: 3.144443705 | DG53: 4.737359403 | DH53: 199.72 | DJ53: 10:06:25 | DL53: 10.5828425 | DN53: 3.08115795 | DO53: 203.80 | DQ53: 10:17:46 | DS53: 15.20020442 | DU53: 10.6987674 | DV53: 306.93 | DW53: 2011-07-27T10:59:00.002 | DX53: 10:59:10 | DZ53: 1.820154484 | EB53: 4.061118242 | ED53: 2011-07-20T09:25:36 | EF53: 4.700570438 | EH53: 3.646770031 | EI53: 244.8499 | EK53: 2013-07-18T11:47:00 | EM53: 3.174867356 | EN53: 2013-07-18T11:47:03 | EO53: 7.579742439 | EP53: 410 | ER53: 2013-07-21T15:04:06 | ET53: 0.6238729382 | EV53: 0.5048305346 | EY53: 2013-07-22T14:41:02 | FA53: 5.798843531 | FC53: 5.727673721 | FF53: 2013-07-25T14:33:02 | FH53: 1.4329207 | FJ53: 0 | FR53: 2016-07-19T12:48:16 | FS53: 270.250 | FU53: 1.516730663 | FW53: 2016-07-19T13:03:24 | FY53: 231.200 | GA53: 1.297569396 | GO53: 19:39:27 | GP53: 22.0286625 | GR53: 19:49:27 | GS53: 22.54492222 | HC53: 2018-07-30 | HD53: 20:37:00 | HI53: 2.578479351 | HJ53: 6.942810545 | HL53: 4.73 | HM53: 154.7 | II53: 38167.53703 | IK53: 9.37 | IM53: 11.25 | IO53: 6.65 | JA53: 2002-06-23 | JB53: 15:47:03 | JC53: 385.9375 | JD53: 197.5223 | JE53: 112.9018 | JF53: 44.2634 | JG53: 12.5223 | JH53: 5.8705 | JI53: 1.3839 | JJ53: 1.942 | JK53: 6.0714 | JL53: 3.4598 | JN53: 6.10 | JO53: 376.41 | JW53: 2003-06-26T12:20:49 | JY53: 88.31429 | JZ53: 49.66285 | KA53: 27.45143 | KB53: 8.79427 | KC53: 1.77714 | KD53: 0.49715 | KE53: 0.03429 | KF53: 0.2857 | KG53: 0.06857 | KH53: 0 | KJ53: 1.12 | KK53: 88.50283 | KR53: 38167.53697 | KS53: 298.748 | KT53: 3.33 | KU53: 13.43354758 | KV53: 3.482160147 | KW53: L | KX53: 299 | KY53: 158.6 | KZ53: 96.4 | LA53: 33.8 | LB53: 7.2 | LC53: 2.4 | LD53: 0.168 | LE53: 0.18 | LF53: 0.048 | LG53: 0.024 | LH53: 0.024 | LI53: 0.024 | LJ53: 0 | LK53: 0.012 | LL53: 0
A54: 2014-07-22 | B54: 12:45:58 | C54: 2014-07-22T12:45:58 | E54: 2014-07-22T12:45:37 | F54: 136.9167 | H54: 0.7684209329 | K54: 2014-07-22T12:45:37 | L54: 54.5834 | N54: 0.3063397463 | P54: 2014-07-23 | Q54: =AVERAGE(EM398:EM516) -> 3.199060932 | R54: =AVERAGE(EO398:EO516) -> 2.63190465 | U54: 11:33:59 | V54: 11:33:20 | X54: 7.117960471 | Z54: 7.737606609 | AA54: 262.37 | AC54: 11:03:57 | AD54: 0.3195281474 | AE54: 0.4137105393 | AF54: 0.3742254092 | AG54: 0.2342225006 | AH54: 0.181309166 | AI54: 0.1124187515 | AJ54: 0.3646434812 | AK54: 0.7035858547 | AL54: 0.6510296276 | AM54: 2.094395102 | AN54: 1.809557368 | AO54: 1.809557368 | AP54: 1.286220392 | AQ54: 0 | AR54: 11:03:15 | AT54: 2.024094331 | AU54: 117.76 | AV54: 2.000057995 | AY54: 10:14:35 | BA54: 1.860534899 | BB54: 10:22:11 | BC54: 2.471731105 | BD54: 127.12 | BF54: 11:58:11 | BH54: 3.464002996 | BI54: 11:58:20 | BJ54: 5.544650772 | BK54: 397.002 | BM54: 11:51:44 | BO54: 8.19155374 | BQ54: 9.730935786 | BR54: 6.714353233 | BT54: 09:46:15 | BV54: 1.949360781 | BX54: 4.449151898 | BY54: 122.1833 | CA54: 08:54:56 | CC54: 5.888287875 | CH54: 10:04:48 | CJ54: 3.816777971 | CL54: 4.670097842 | CM54: 310.098 | CO54: 10:28:11 | CQ54: 2.645924607 | CS54: 4.257857367 | CT54: 204.5333 | CV54: 09:17:36 | CX54: 2.863166455 | CZ54: 4.837285516 | DA54: 211.3168 | DC54: 40377.45453 | DE54: 3.030922159 | DG54: 4.947429126 | DH54: 214.93 | DJ54: 10:07:25 | DL54: 11.36565355 | DN54: 3.162251047 | DO54: 210.07 | DQ54: 10:18:46 | DS54: 15.36546481 | DU54: 4.90142356 | DV54: 307.78 | DW54: 2011-07-27T11:00:00.002 | DX54: 11:00:10 | DZ54: 2.818165757 | EB54: 8.36919974 | ED54: 2011-07-20T09:26:36 | EF54: 5.718411701 | EH54: 3.793985561 | EI54: 242.6167 | EK54: 2013-07-18T11:48:00 | EM54: 3.414332801 | EN54: 2013-07-18T11:48:03 | EO54: 6.820150687 | EP54: 378.3333333 | ER54: 2013-07-21T15:07:06 | ET54: 1.0766371 | EV54: 1.231826993 | EY54: 2013-07-22T14:44:02 | FA54: 5.7452966 | FC54: 5.800251111 | FF54: 2013-07-25T14:36:02 | FH54: 1.371246868 | FJ54: 1.140892381 | FR54: 2016-07-19T12:50:10 | FS54: 268.450 | FU54: 1.506628479 | FW54: 2016-07-19T13:05:18 | FY54: 229.700 | GA54: 1.289150909 | GO54: 20:09:27 | GP54: 22.02136667 | GR54: 20:19:23 | GS54: 21.541525 | HC54: 2018-07-30 | HD54: 20:38:00 | HI54: 2.152870368 | HJ54: 6.479964117 | HL54: 4.46 | HM54: 150.45 | HV54: 2003-06-26T12:30:03 | II54: 38167.53708 | IK54: 9.39 | IM54: 11.04 | IO54: 6.70 | JA54: 2002-06-23 | JB54: 15:48:03 | JC54: 389.011 | JD54: 202.1538 | JE54: 115.1429 | JF54: 43.6703 | JG54: 12.3077 | JH54: 5.4945 | JI54: 1.2967 | JJ54: 1.8022 | JK54: 4.5934 | JL54: 2.5495 | JN54: 5.99 | JO54: 381.87 | JW54: 2003-06-26T12:20:54 | JY54: 89.76571 | JZ54: 50.31428 | KA54: 28.02286 | KB54: 8.92569 | KC54: 1.89142 | KD54: 0.58286 | KE54: 0 | KF54: 0.2857 | KG54: 0 | KH54: 0 | KJ54: 1.14 | KK54: 90.02281 | KR54: 38167.53703 | KS54: 290.62 | KT54: 3.30 | KU54: 8.104850897 | KV54: 3.458042664 | KW54: L | KX54: 290.4 | KY54: 147.8 | KZ54: 94 | LA54: 39 | LB54: 7.8 | LC54: 1.6 | LD54: 0.276 | LE54: 0.144 | LF54: 0.048 | LG54: 0.024 | LH54: 0.024 | LI54: 0.06 | LJ54: 0 | LK54: 0 | LL54: 0
A55: 2014-07-22 | B55: 12:47:03 | C55: 2014-07-22T12:47:03 | E55: 2014-07-22T12:46:37 | F55: 134.4 | H55: 0.7542963961 | K55: 2014-07-22T12:46:37 | L55: 56.4499 | N55: 0.3168151498 | P55: 2014-07-24 | Q55: =AVERAGE(EM801:EM921) -> 3.152805357 | R55: =AVERAGE(EO801:EO921) -> 2.730685783 | U55: 11:34:59 | V55: 11:34:20 | X55: 7.276248145 | Z55: 7.713734242 | AA55: 262.65 | AC55: 11:04:57 | AD55: 0.3134483164 | AE55: 0.4069520016 | AF55: 0.3898340146 | AG55: 0.2417026065 | AH55: 0.1335962276 | AI55: 0.03166725395 | AJ55: 0.1080425129 | AK55: 0.2454369261 | AL55: 0.2469422725 | AM55: 0.6544984695 | AN55: 1.005309649 | AO55: 0.2261946711 | AP55: 0 | AQ55: 0 | AR55: 11:04:15 | AT55: 1.843761822 | AU55: 115.76 | AV55: 1.625242934 | AY55: 10:15:35 | BA55: 1.99166803 | BB55: 10:23:13 | BC55: 2.335886857 | BD55: 115.22 | BF55: 11:59:11 | BH55: 3.467573647 | BI55: 11:59:23 | BJ55: 5.223338689 | BK55: 396.59 | BM55: 11:52:44 | BO55: 7.903462695 | BQ55: 9.160944588 | BR55: 6.469177654 | BT55: 09:47:15 | BV55: 2.036429693 | BX55: 4.477078898 | BY55: 124.2334 | CA55: 08:55:56 | CC55: 5.818583407 | CH55: 10:05:48 | CJ55: 3.70988746 | CL55: 4.12155541 | CM55: 289.002 | CO55: 10:29:11 | CQ55: 2.728933322 | CS55: 4.207636685 | CT55: 206.2834 | CV55: 09:18:36 | CX55: 2.803462704 | CZ55: 4.931391924 | DA55: 208.7 | DC55: 40377.45522 | DE55: 4.618784416 | DG55: 5.025947527 | DH55: 218.07 | DJ55: 10:08:25 | DL55: 10.29553876 | DN55: 3.077851025 | DO55: 205.08 | DQ55: 10:19:46 | DS55: 16.07051534 | DU55: 5.23243628 | DV55: 312.58 | DW55: 2011-07-27T11:01:00.002 | DX55: 11:01:10 | DZ55: 2.172395903 | EB55: 6.636171868 | ED55: 2011-07-20T09:27:36 | EF55: 5.789069356 | EH55: 4.40175489 | EI55: 251.0333 | EK55: 2013-07-18T11:49:00 | EM55: 3.278957156 | EN55: 2013-07-18T11:49:03 | EO55: 7.384021081 | EP55: 423.3316667 | ER55: 2013-07-21T15:10:06 | ET55: 1.455351999 | EV55: 1.667165069 | EY55: 2013-07-22T14:47:02 | FA55: 5.876166435 | FC55: 5.800598504 | FF55: 2013-07-25T14:39:02 | FH55: 1.349141044 | FJ55: 1.180427278 | FR55: 2016-07-19T12:52:03 | FS55: 266.367 | FU55: 1.494936136 | FW55: 2016-07-19T13:07:11 | FY55: 225.833 | GA55: 1.267449922 | GO55: 20:39:49 | GP55: 23.92388889 | GR55: 20:49:49 | GS55: 26.02323333 | HC55: 2018-07-30 | HD55: 20:39:00 | HI55: 2.081465894 | HJ55: 6.446001046 | HL55: 4.61 | HM55: 155.05 | II55: 38167.53714 | IK55: 9.09 | IM55: 10.92 | IO55: 6.70 | JA55: 2002-06-23 | JB55: 15:50:05 | JC55: 384.8791 | JD55: 202.7033 | JE55: 116.5714 | JF55: 45.5385 | JG55: 12.5055 | JH55: 4.1978 | JI55: 0.5275 | JJ55: 0.6154 | JK55: 1.4505 | JL55: 0.7692 | JN55: 5.00 | JO55: 382.66 | JW55: 2003-06-26T12:20:59 | JY55: 89.77714 | JZ55: 50.29143 | KA55: 27.91428 | KB55: 8.95998 | KC55: 2.04571 | KD55: 0.56572 | KE55: 0 | KG55: 0 | KH55: 0 | KR55: 38167.53708 | KS55: 332.328 | KT55: 4.02 | KU55: 5.629089878 | KV55: 4.192989336 | KW55: L | KX55: 331.6 | KY55: 165.2 | KZ55: 107.8 | LA55: 44.4 | LB55: 10.6 | LC55: 3.8 | LD55: 0.396 | LE55: 0.132 | LF55: 0.084 | LG55: 0.012 | LH55: 0.024 | LI55: 0.012 | LJ55: 0 | LK55: 0 | LL55: 0
A56: 2014-07-22 | B56: 12:48:08 | C56: 2014-07-22T12:48:08 | E56: 2014-07-22T12:47:37 | F56: 131.8166 | H56: 0.7397975173 | K56: 2014-07-22T12:47:37 | L56: 52.1167 | N56: 0.2924958258 | P56: 2014-07-25 | Q56: =AVERAGE(FH2:FH122) -> 1.312294201 | R56: =AVERAGE(FJ2:FJ122) -> 1.098315697 | U56: 11:35:59 | V56: 11:35:20 | X56: 7.314069189 | Z56: 7.677437935 | AA56: 260.56 | AC56: 11:05:57 | AD56: 0.3030655163 | AE56: 0.3944273553 | AF56: 0.3803974181 | AG56: 0.224492975 | AH56: 0.1542750151 | AI56: 0.1879677716 | AJ56: 0.6707639346 | AK56: 1.345812478 | AL56: 1.313283904 | AM56: 4.025165587 | AN56: 4.758465673 | AO56: 2.03575204 | AP56: 0.6431101961 | AQ56: 0 | AR56: 11:05:15 | AT56: 2.040735136 | AU56: 108.36 | AV56: 2.315389986 | AY56: 10:16:35 | BA56: 1.841750123 | BB56: 10:24:14 | BC56: 2.091440224 | BD56: 117.16 | BF56: 12:00:11 | BH56: 3.409168316 | BI56: 12:00:26 | BJ56: 5.268756989 | BK56: 388.396 | BM56: 11:53:44 | BO56: 7.924893356 | BQ56: 9.030652661 | BR56: 6.430290115 | BT56: 09:48:15 | BV56: 2.054311545 | BX56: 4.6359296 | BY56: 126.8167 | CA56: 08:56:56 | CC56: 5.89521654 | CH56: 10:06:48 | CJ56: 3.776521928 | CL56: 3.892705864 | CM56: 263.87 | CO56: 10:30:11 | CQ56: 2.671529433 | CS56: 4.381203755 | CT56: 201.45 | CV56: 09:19:36 | CX56: 2.637747219 | CZ56: 4.725680012 | DA56: 204.1667 | DC56: 40377.45591 | DE56: 4.573725812 | DG56: 4.988100826 | DH56: 214.53 | DJ56: 10:09:25 | DL56: 10.61068725 | DN56: 3.060108375 | DO56: 204.17 | DQ56: 10:20:46 | DS56: 15.80393716 | DU56: 5.633738931 | DV56: 325.75 | DW56: 2011-07-27T11:02:00.002 | DX56: 11:02:10 | DZ56: 4.815804857 | EB56: 11.03084938 | ED56: 2011-07-20T09:28:36 | EF56: 5.304010999 | EH56: 3.812673557 | EI56: 245.2333 | EK56: 2013-07-18T11:50:00 | EM56: 3.197453825 | EN56: 2013-07-18T11:50:03 | EO56: 7.185135658 | EP56: 379.7233333 | ER56: 2013-07-21T15:13:06 | ET56: 1.594686575 | EV56: 1.735446787 | EY56: 2013-07-22T14:50:02 | FA56: 6.008601035 | FC56: 6.101609425 | FF56: 2013-07-25T14:42:02 | FH56: 1.332209784 | FJ56: 1.199198258 | FR56: 2016-07-19T12:53:56 | FS56: 260.733 | FU56: 1.463320042 | FW56: 2016-07-19T13:09:04 | FY56: 231.817 | GA56: 1.301030329 | GO56: 2002-06-26 | HC56: 2018-07-30 | HD56: 20:40:00 | HI56: 2.451903847 | HJ56: 7.293234098 | HL56: 4.90 | HM56: 155.65 | HV56: 2003-06-26T12:40:01 | II56: 38167.5372 | IK56: 9.11 | IM56: 11.15 | IO56: 7.37 | JA56: 2002-06-23 | JB56: 15:51:05 | JC56: 372.6786 | JD56: 197.2321 | JE56: 111.1161 | JF56: 43.8393 | JG56: 12.4554 | JH56: 4.1741 | JI56: 0.558 | JJ56: 0.8259 | JK56: 1.6741 | JL56: 0.8036 | JN56: 5.00 | JO56: 370.20 | KJ56: 0.00 | KK56: 0 | KR56: 38167.53714 | KS56: 292.752 | KT56: 3.32 | KU56: 6.312412722 | KV56: 3.520125901 | KW56: L | KX56: 292.4 | KY56: 150.6 | KZ56: 94.6 | LA56: 37.4 | LB56: 7.6 | LC56: 2 | LD56: 0.372 | LE56: 0.18 | LF56: 0.096 | LG56: 0.036 | LH56: 0.048 | LI56: 0.024 | LJ56: 0 | LK56: 0 | LL56: 0
E57: 2014-07-22T12:48:37 | F57: 133.0166 | H57: 0.7465323066 | K57: 2014-07-22T12:48:37 | L57: 54.0001 | N57: 0.3030660775 | P57: 2014-07-26 | Q57: =AVERAGE(FH482:FH602) -> 1.404106141 | R57: =AVERAGE(FJ482:FJ602) -> 1.083066771 | U57: 11:36:59 | V57: 11:36:20 | X57: 7.0523649 | Z57: 7.59537585 | AA57: 260.83 | AC57: 11:06:57 | AD57: 0.2939920715 | AE57: 0.3783242385 | AF57: 0.3462771415 | AG57: 0.21027359 | AH57: 0.1415452031 | AI57: 0.06356070257 | AJ57: 0.2141556953 | AK57: 0.37633662 | AL57: 0.3479641113 | AM57: 1.472621556 | AN57: 1.474454152 | AO57: 0.4523893421 | AP57: 0 | AQ57: 0 | AR57: 11:06:15 | AT57: 1.682590483 | AU57: 104.89 | AV57: 1.648128643 | AY57: 10:17:35 | BA57: 1.883105682 | BB57: 10:25:16 | BC57: 2.285058688 | BD57: 126.40 | BF57: 12:01:11 | BH57: 4.437074006 | BI57: 12:01:29 | BJ57: 7.260537302 | BK57: 399.854 | BM57: 11:54:44 | BO57: 7.310623016 | BQ57: 9.040432014 | BR57: 6.208453432 | BT57: 09:49:15 | BV57: 2.065069027 | BX57: 4.416553664 | BY57: 126.2166 | CA57: 08:57:56 | CC57: 5.732274309 | CH57: 10:07:48 | CJ57: 3.791902299 | CL57: 3.52142135 | CM57: 256.784 | CO57: 10:31:11 | CQ57: 2.613678194 | CS57: 4.306037126 | CT57: 201.4667 | CV57: 09:20:36 | CX57: 2.838863242 | CZ57: 4.76308689 | DA57: 206.4334 | DC57: 40377.45661 | DE57: 3.435189205 | DG57: 4.933039675 | DH57: 217.17 | DJ57: 10:10:25 | DL57: 10.58818978 | DN57: 3.167975079 | DO57: 203.57 | DQ57: 10:21:46 | DS57: 15.98990098 | DU57: 7.384404486 | DV57: 331.07 | DW57: 2011-07-27T11:03:00.002 | DX57: 11:03:10 | DZ57: 6.061973045 | EB57: 12.43284931 | ED57: 2011-07-20T09:29:36 | EF57: 6.345942372 | EH57: 4.257550639 | EI57: 244.55 | EK57: 2013-07-18T11:51:00 | EM57: 3.304769212 | EN57: 2013-07-18T11:51:03 | EO57: 7.751901908 | EP57: 395.8333333 | ER57: 2013-07-21T15:16:06 | ET57: 1.670853198 | EV57: 1.73215507 | EY57: 2013-07-22T14:53:02 | FA57: 5.94918658 | FC57: 5.931889339 | FF57: 2013-07-25T14:45:02 | FH57: 1.30502144 | FJ57: 1.159755965 | FR57: 2016-07-19T12:55:50 | FS57: 264.533 | FU57: 1.484646875 | FW57: 2016-07-19T13:10:58 | FY57: 228.333 | GA57: 1.281480733 | GO57: 07:37:56 | GP57: 11.26614286 | GR57: 07:49:56 | GS57: 12.06515455 | HC57: 2018-07-30 | HD57: 20:41:00 | HI57: 2.338083454 | HJ57: 5.850781403 | HL57: 4.93 | HM57: 154.025 | HV57: 2003-06-26T12:40:06 | II57: 38167.53726 | IK57: 9.29 | IM57: 11.18 | IO57: 6.75 | JA57: 2002-06-23 | JB57: 15:52:05 | JC57: 366.1319 | JD57: 189.2747 | JE57: 109.3407 | JF57: 43.9121 | JG57: 12.4615 | JH57: 4.3956 | JI57: 0.9451 | JJ57: 1.4945 | JK57: 2.5934 | JL57: 1.7143 | JN57: 5.48 | JO57: 361.82 | JW57: 2003-06-26T12:30:03 | JY57: 91.77142222 | JZ57: 49.73335556 | KA57: 29.45396667 | KB57: 9.047611111 | KC57: 2.685711111 | KD57: 0.7428666667 | KE57: 0 | KF57: 0.3429 | KG57: 0.0381 | KH57: 0.03174444444 | KJ57: 1.24 | KK57: 92.00641111 | KR57: 38167.5372 | KS57: 305.912 | KT57: 3.54 | KU57: 9.202575861 | KV57: 3.647061952 | KW57: L | KX57: 306 | KY57: 159.4 | KZ57: 93.6 | LA57: 41.2 | LB57: 9 | LC57: 2.4 | LD57: 0.228 | LE57: 0.084 | LF57: 0.132 | LG57: 0.012 | LH57: 0.024 | LI57: 0.072 | LJ57: 0 | LK57: 0 | LL57: 0
A58: 2014-07-22 | B58: 12:49:13 | C58: =A58+B58 -> 2014-07-22T12:49:13 | E58: 2014-07-22T12:49:37 | F58: 130.2167 | H58: 0.7308183596 | K58: 2014-07-22T12:49:37 | L58: 54.0332 | N58: 0.3032518455 | P58: 2014-07-27 | Q58: =AVERAGE(FH961:FH1081) -> 1.64463265 | R58: =AVERAGE(FJ961:FJ1081) -> 1.291662508 | U58: 11:37:59 | V58: 11:37:20 | X58: 7.17689243 | Z58: 7.66841549 | AA58: 261.81 | AC58: 11:07:57 | AD58: 0.298481931 | AE58: 0.3830955324 | AF58: 0.3611583472 | AG58: 0.188574099 | AH58: 0.1145110522 | AI58: 0.02442902447 | AJ58: 0.07588700314 | AK58: 0.1308996939 | AL58: 0.1571450825 | AM58: 0.6544984695 | AN58: 0.4691445029 | AO58: 0 | AP58: 0 | AQ58: 0 | AR58: 11:07:15 | AT58: 1.626378518 | AU58: 103.97 | AV58: 1.446136989 | AY58: 10:18:35 | BA58: 1.951195671 | BB58: 10:26:18 | BC58: 2.039089436 | BD58: 129.30 | BF58: 12:02:11 | BH58: 4.045146563 | BI58: 12:02:32 | BJ58: 6.090392835 | BK58: 397.016 | BM58: 11:55:44 | BO58: 7.826762741 | BQ58: 9.56366427 | BR58: 6.799317574 | BT58: 09:50:15 | BV58: 2.040144749 | BX58: 4.489523649 | BY58: 123.7833 | CA58: 08:58:56 | CC58: 5.660720624 | CH58: 10:08:48 | CJ58: 3.83303425 | CL58: 3.82658136 | CM58: 262.428 | CO58: 10:32:11 | CQ58: 2.685809968 | CS58: 4.32643012 | CT58: 204 | CV58: 09:21:36 | CX58: 2.694459124 | CZ58: 4.601200555 | DA58: 202.6666 | DC58: 40377.4573 | DE58: 3.948967194 | DG58: 4.930513319 | DH58: 215.17 | DJ58: 10:11:25 | DL58: 10.56029339 | DN58: 3.069059785 | DO58: 206.77 | DQ58: 10:22:46 | DS58: 16.66568427 | DU58: 13.83087346 | DV58: 321.17 | DW58: 2011-07-27T11:04:00.002 | DX58: 11:04:10 | DZ58: 5.319378211 | EB58: 11.9699512 | ED58: 2011-07-20T09:30:36 | EF58: 5.964808894 | EH58: 4.362131739 | EI58: 248.5 | EK58: 2013-07-18T12:03:00 | EM58: 3.330416826 | EN58: 2013-07-18T11:52:03 | EO58: 7.283934356 | EP58: 408.8883333 | ER58: 2013-07-21T15:19:06 | ET58: 1.694903287 | EV58: 1.758535011 | EY58: 2013-07-22T14:56:02 | FA58: 6.042021585 | FC58: 6.037478101 | FF58: 2013-07-25T14:48:02 | FH58: 1.338944573 | FJ58: 1.148312435 | FR58: 2016-07-19T12:57:43 | FS58: 269.283 | FU58: 1.511305416 | FW58: 2016-07-19T13:12:51 | FY58: 238.867 | GA58: 1.340597216 | GO58: 08:09:56 | GP58: 11.99388 | GR58: 08:19:56 | GS58: 13.90577778 | HC58: 2018-07-30 | HD58: 20:42:00 | HI58: 2.429341812 | HJ58: 6.080900611 | HL58: 4.52 | HM58: 150.275 | HV58: 2003-06-26T12:40:11 | II58: 38167.53731 | IK58: 22.22 | IM58: 19.51 | IO58: 23.68 | JA58: 2002-06-23 | JB58: 15:53:05 | JC58: 374.933 | JD58: 195.9598 | JE58: 114.933 | JF58: 44.6652 | JG58: 12.9464 | JH58: 4.2188 | JI58: 0.5134 | JJ58: 0.3795 | JK58: 0.7812 | JL58: 0.5357 | JN58: 4.79 | JO58: 373.62 | KJ58: 0.00 | KK58: 0 | KR58: 38167.53726 | KS58: 293.328 | KT58: 3.25 | KU58: 4.557075054 | KV58: 3.440042516 | KW58: L | KX58: 293.2 | KY58: 157.2 | KZ58: 93.4 | LA58: 31.2 | LB58: 9.4 | LC58: 1.6 | LD58: 0.36 | LE58: 0.168 | LF58: 0.024 | LG58: 0.012 | LH58: 0.012 | LI58: 0.012 | LJ58: 0 | LK58: 0 | LL58: 0
A59: 2014-07-22 | B59: 12:50:18 | C59: 2014-07-22T12:50:18 | E59: 2014-07-22T12:50:37 | F59: 127.9501 | H59: 0.7180974651 | K59: 2014-07-22T12:50:37 | L59: 53.25 | N59: 0.298856273 | R59: year average | U59: 11:38:59 | V59: 11:38:20 | X59: 7.247348536 | Z59: 7.640021961 | AA59: 266.93 | AC59: 11:08:57 | AD59: 0.2937114553 | AE59: 0.3878668262 | AF59: 0.3735001872 | AG59: 0.2080286602 | AH59: 0.1606303785 | AI59: 0.1583362697 | AJ59: 0.5627214216 | AK59: 1.075831859 | AL59: 1.004606063 | AM59: 3.583379121 | AN59: 4.28932117 | AO59: 0.9047786842 | AP59: 1.286220392 | AQ59: 2.045307717 | AR59: 11:08:15 | AT59: 1.940998478 | AU59: 108.36 | AV59: 2.144795199 | AY59: 10:23:35 | BA59: 1.817078457 | BB59: 10:27:19 | BC59: 2.360407824 | BD59: 131.36 | BF59: 12:03:11 | BH59: 3.827115411 | BI59: 12:03:35 | BJ59: 5.770530008 | BK59: 396.792 | BM59: 11:56:44 | BO59: 7.954945936 | BQ59: 11.5830549 | BR59: 6.981071848 | BT59: 09:51:15 | BV59: 1.923991388 | BX59: 4.425568659 | BY59: 121.0833 | CA59: 08:59:56 | CC59: 5.573786487 | CH59: 10:09:48 | CJ59: 3.86950909 | CL59: 3.617355674 | CM59: 255.818 | CO59: 10:33:11 | CQ59: 2.733607019 | CS59: 4.3587522 | CT59: 207.8502 | CV59: 09:22:36 | CX59: 2.773554994 | CZ59: 4.997523333 | DA59: 203.1832 | DC59: 40377.458 | DE59: 3.091839388 | DG59: 4.5540296 | DH59: 202.70 | DJ59: 10:12:25 | DL59: 10.58382013 | DN59: 3.131931536 | DO59: 204.58 | DQ59: 10:23:46 | DS59: 16.78285362 | DU59: 15.68098135 | DV59: 315.68 | DW59: 2011-07-27T11:05:00.002 | DX59: 11:05:10 | DZ59: 5.420640049 | EB59: 15.31052243 | ED59: 2011-07-20T09:31:36 | EF59: 4.856211239 | EH59: 3.482235332 | EI59: 240.8667 | EK59: 2013-07-18T12:04:00 | EM59: 3.303214506 | EN59: 2013-07-18T11:53:03 | EO59: 7.676059416 | EP59: 407.2233333 | ER59: 2013-07-21T15:22:06 | ET59: 1.624330631 | EV59: 1.753381083 | EY59: 2013-07-22T14:59:02 | FA59: 6.350273575 | FC59: 6.139990583 | FF59: 2013-07-25T14:51:02 | FH59: 1.282634439 | FJ59: 1.11588667 | FR59: 2016-07-19T12:59:36 | FS59: 259.633 | FU59: 1.457146485 | FW59: 2016-07-19T13:14:44 | FY59: 235.067 | GA59: 1.319270383 | GO59: 08:39:44 | GP59: 12.8698 | GR59: 08:48:42 | GS59: 17.51302857 | HC59: 2018-07-30 | HD59: 20:43:00 | HI59: 2.244603647 | HJ59: 6.915864516 | HL59: 4.80 | HM59: 150.55 | HV59: 2003-06-26T12:40:16 | II59: 38167.53737 | IK59: 18.03 | IM59: 14.38 | IO59: 20.63 | JN59: 0.00 | JO59: 0.00 | JW59: 2003-06-26T12:40:01 | JY59: 107.25143 | JZ59: 54.17714 | KA59: 35.23999 | KB59: 13.57143 | KC59: 3.34858 | KD59: 0.76571 | KE59: 0 | KF59: 0.4 | KG59: 0.02857 | KH59: 0 | KJ59: 1.50 | KK59: 107.50285 | KR59: 38167.53731 | KS59: 312.104 | KT59: 3.56 | KU59: 18.53305447 | KV59: 3.749897537 | KW59: L | KX59: 311.8 | KY59: 161.2 | KZ59: 101.6 | LA59: 38.2 | LB59: 8 | LC59: 2.6 | LD59: 0.312 | LE59: 0.192 | LF59: 0.084 | LG59: 0.012 | LH59: 0.024 | LI59: 0.096 | LJ59: 0 | LK59: 0.012 | LL59: 0
A60: 2014-07-22 | B60: 12:51:23 | C60: 2014-07-22T12:51:23 | E60: 2014-07-22T12:51:37 | F60: 127.6167 | H60: 0.7162263162 | K60: 2014-07-22T12:51:37 | L60: 51.7667 | N60: 0.2905315123 | R60: =AVERAGE(R51:R58) -> 2.80 | U60: 11:39:59 | V60: 11:39:20 | X60: 7.317804641 | Z60: 7.659105433 | AA60: 261.4 | AC60: 11:09:57 | AD60: 0.3062460205 | AE60: 0.3789206503 | AF60: 0.3473660633 | AG60: 0.2222480453 | AH60: 0.1495037213 | AI60: 0.07803716152 | AJ60: 0.2469543153 | AK60: 0.4356505438 | AL60: 0.4545982745 | AM60: 1.210822169 | AN60: 0.9382890059 | AO60: 0.4523893421 | AP60: 0.6431101961 | AQ60: 0 | AR60: 11:09:15 | AT60: 1.8453368 | AU60: 112.51 | AV60: 1.729275978 | AY60: 10:22:35 | BA60: 2.033493292 | BB60: 10:28:21 | BC60: 2.317775794 | BD60: 128.73 | BF60: 12:04:11 | BH60: 3.621527886 | BI60: 12:04:38 | BJ60: 5.38339449 | BK60: 393.324 | BM60: 11:57:44 | BO60: 7.997851014 | BQ60: 10.4812924 | BR60: 7.075060204 | BT60: 09:52:15 | BV60: 1.861638345 | BX60: 4.418745191 | BY60: 117.3333 | CA60: 09:00:56 | CC60: 5.737731033 | CH60: 10:10:48 | CJ60: 3.86519879 | CL60: 3.463438807 | CM60: 243.426 | CO60: 10:34:11 | CQ60: 2.559033467 | CS60: 4.394585729 | CT60: 201.6335 | CV60: 09:23:36 | CX60: 2.751385423 | CZ60: 4.666927419 | DA60: 202.3001 | DC60: 40377.45869 | DE60: 3.248449745 | DG60: 4.233380019 | DH60: 191.37 | DJ60: 10:13:25 | DL60: 11.03277525 | DN60: 3.137355033 | DO60: 207.87 | DQ60: 10:24:46 | DS60: 16.33326161 | DU60: 16.95368007 | DV60: 318.57 | DW60: 2011-07-27T11:06:00.002 | DX60: 11:06:10 | DZ60: 1.975928741 | EB60: 3.876275368 | ED60: 2011-07-20T09:32:36 | EF60: 5.427839353 | EH60: 3.716614845 | EI60: 248.2 | EK60: 2013-07-18T12:05:00 | EM60: 3.217921356 | EN60: 2013-07-18T11:54:03 | EO60: 7.182359576 | EP60: 391.1116667 | ER60: 2013-07-21T15:25:06 | ET60: 1.608120588 | EV60: 1.676117489 | EY60: 2013-07-22T15:02:02 | FA60: 6.150171557 | FC60: 6.354767584 | FF60: 2013-07-25T14:54:02 | FH60: 1.27100402 | FJ60: 1.101262636 | FR60: 2016-07-19T13:01:30 | FS60: 253.783 | FU60: 1.424314388 | FW60: 2016-07-19T13:16:38 | FY60: 233.550 | GA60: 1.310758358 | GO60: 09:09:40 | GP60: 12.99144444 | GR60: 09:19:40 | GS60: 16.68505556 | HC60: 2018-07-30 | HD60: 20:44:00 | HI60: 2.115112352 | HJ60: 6.171319574 | HL60: 4.79 | HM60: 153.375 | HV60: 2003-06-26T12:40:21 | II60: 38167.53743 | IK60: 9.27 | IM60: 11.11 | IO60: 12.63 | JA60: 2002-06-23 | JB60: 14:08:03 | JC60: 173.058 | JD60: 92.2768 | JE60: 52.6116 | JF60: 18.8393 | JG60: 5.9152 | JH60: 2.3438 | JI60: 0.4018 | JJ60: 0.3348 | JK60: 0.2902 | JL60: 0.0446 | JN60: 2.35 | JO60: 172.72 | JW60: 2003-06-26T12:40:06 | JY60: 102.74857 | JZ60: 52.78857 | KA60: 33.33142 | KB60: 12.69715 | KC60: 3.05715 | KD60: 0.72571 | KE60: 0 | KF60: 0.4 | KG60: 0.02857 | KH60: 0 | KJ60: 1.43 | KK60: 103 | KR60: 38167.53737 | KS60: 301.644 | KT60: 3.46 | KU60: 16.27302282 | KV60: 3.625559845 | KW60: L | KX60: 301.6 | KY60: 156.4 | KZ60: 95.6 | LA60: 38.2 | LB60: 8.8 | LC60: 2.2 | LD60: 0.276 | LE60: 0.168 | LF60: 0.072 | LG60: 0.012 | LH60: 0.024 | LI60: 0.024 | LJ60: 0.012 | LK60: 0.012 | LL60: 0
A61: 2014-07-22 | B61: 12:52:28 | C61: 2014-07-22T12:52:28 | E61: 2014-07-22T12:52:37 | F61: 128.3332 | H61: 0.7202475466 | K61: 2014-07-22T12:52:37 | L61: 50.9999 | N61: 0.2862279819 | P61: 2013 | U61: 11:40:59 | V61: 11:40:20 | X61: 7.271169662 | Z61: 7.638242838 | AA61: 263.16 | AC61: 11:10:57 | AD61: 0.310361538 | AE61: 0.387071213 | AF61: 0.3502691289 | AG61: 0.2042886073 | AH61: 0.1240536399 | AI61: 0.08165627625 | AJ61: 0.2900426985 | AK61: 0.5481424682 | AL61: 0.5836817351 | AM61: 1.848958176 | AN61: 2.479763801 | AO61: 0.2261946711 | AP61: 0 | AQ61: 0 | AR61: 11:10:15 | AT61: 1.875486272 | AU61: 113.64 | AV61: 1.747743102 | AY61: 10:24:35 | BA61: 1.745688911 | BB61: 10:29:22 | BC61: 2.273337893 | BD61: 129.09 | BF61: 12:05:11 | BH61: 3.53020507 | BI61: 12:05:41 | BJ61: 5.25029398 | BK61: 388.516 | BM61: 11:58:44 | BO61: 7.774771974 | BQ61: 10.68014363 | BR61: 6.565575502 | BT61: 09:53:15 | BV61: 1.911327598 | BX61: 4.410893657 | BY61: 122.75 | CA61: 09:01:56 | CC61: 5.912494995 | CH61: 10:11:48 | CJ61: 3.990470704 | CL61: 3.48444379 | CM61: 252.684 | CO61: 10:35:11 | CQ61: 2.65899974 | CS61: 4.417745681 | CT61: 204.5833 | CV61: 09:24:36 | CX61: 2.637183955 | CZ61: 4.683252639 | DA61: 203.1333 | DC61: 40377.45939 | DE61: 3.025602229 | DG61: 4.198205265 | DH61: 172.38 | DJ61: 10:14:25 | DL61: 10.76060492 | DN61: 3.236233157 | DO61: 208.48 | DQ61: 10:25:46 | DS61: 16.45648776 | DU61: 12.23418069 | DV61: 319.87 | DW61: 2011-07-27T11:07:00.002 | DX61: 11:07:10 | DZ61: 3.181631586 | EB61: 10.71601225 | ED61: 2011-07-20T09:33:36 | EF61: 4.867070838 | EH61: 3.838777698 | EI61: 256.5667 | EK61: 2013-07-18T12:06:00 | EM61: 3.234341359 | EN61: 2013-07-18T11:55:03 | EO61: 7.511779973 | EP61: 393.8883333 | ER61: 2013-07-21T15:28:06 | ET61: 2.189168862 | EV61: 2.057894909 | EY61: 2013-07-22T15:05:02 | FA61: 6.478943147 | FC61: 0 | FF61: 2013-07-25T14:57:02 | FH61: 1.307141215 | FJ61: 1.112175801 | FR61: 2016-07-19T13:03:23 | FS61: 251.417 | FU61: 1.411031887 | FW61: 2016-07-19T13:18:31 | FY61: 240.450 | GA61: 1.349483396 | GO61: 09:39:40 | GP61: 13.63012222 | GR61: 09:49:40 | GS61: 21.15482222 | HC61: 2018-07-30 | HD61: 20:45:00 | HI61: 2.288509122 | HJ61: 6.520655596 | HL61: 4.86 | HM61: 150.575 | HV61: 2003-06-26T12:40:26 | II61: 38167.53749 | IK61: 37.72 | IM61: 38.10 | IO61: 34.96 | JA61: 2002-06-23 | JB61: 14:09:03 | JC61: 180.067 | JD61: 98.125 | JE61: 52.7679 | JF61: 20.067 | JG61: 6.4062 | JH61: 2.0536 | JI61: 0.3125 | JJ61: 0.2679 | JK61: 0.067 | JL61: 0 | JN61: 2.34 | JO61: 180.00 | JW61: 2003-06-26T12:40:11 | JY61: 100.92 | JZ61: 52.28571 | KA61: 32.30285 | KB61: 12.66286 | KC61: 2.92 | KD61: 0.65714 | KE61: 0 | KF61: 0.45715 | KG61: 0 | KH61: 0 | KJ61: 1.44 | KK61: 101.28571 | KR61: 38167.53743 | KS61: 307.372 | KT61: 3.54 | KU61: 11.56413462 | KV61: 3.680700556 | KW61: L | KX61: 307.2 | KY61: 150.8 | KZ61: 107 | LA61: 39.2 | LB61: 7.8 | LC61: 2.2 | LD61: 0.228 | LE61: 0.144 | LF61: 0.072 | LG61: 0 | LH61: 0.012 | LI61: 0.072 | LJ61: 0.012 | LK61: 0 | LL61: 0
A62: 2014-07-22 | B62: 12:53:33 | C62: 2014-07-22T12:53:33 | E62: 2014-07-22T12:53:37 | F62: 131.8834 | H62: 0.7401724206 | K62: 2014-07-22T12:53:37 | L62: 53.1999 | N62: 0.2985750956 | P62: 2014-07-18 | S62: =AVERAGE(EP66:EP426) -> 376.1965097 | U62: 11:41:59 | V62: 11:41:20 | X62: 7.139390355 | Z62: 7.561131541 | AA62: 262.31 | AC62: 11:11:57 | AD62: 0.3169094368 | AE62: 0.3888604482 | AF62: 0.3499076069 | AG62: 0.2304779578 | AH62: 0.1542750151 | AI62: 0.1339072453 | AJ62: 0.4103043051 | AK62: 0.8222137023 | AL62: 0.6959282226 | AM62: 2.110757564 | AN62: 2.948908304 | AO62: 0.4523893421 | AP62: 0 | AQ62: 2.045307717 | AR62: 11:11:15 | AT62: 1.954900571 | AU62: 114.33 | AV62: 1.984642015 | AY62: 10:19:35 | BA62: 2.080292819 | BB62: 10:30:24 | BC62: 2.054012729 | BD62: 127.81 | BF62: 12:06:11 | BH62: 3.601402909 | BI62: 12:06:44 | BJ62: 5.291810389 | BK62: 391.048 | BM62: 11:59:44 | BO62: 7.598685276 | BQ62: 9.082580995 | BR62: 6.327867772 | BT62: 09:54:15 | BV62: 1.866085048 | BX62: 4.501201186 | BY62: 120.5666 | CA62: 09:02:56 | CC62: 5.741853602 | CH62: 10:12:48 | CJ62: 3.785779348 | CL62: 3.910483187 | CM62: 265.872 | CO62: 10:36:11 | CQ62: 2.660915048 | CS62: 4.345008616 | CT62: 204.5167 | CV62: 09:25:36 | CX62: 2.652146254 | CZ62: 4.884672187 | DA62: 199.6499 | DC62: 40377.46008 | DE62: 3.373699506 | DG62: 3.658558562 | DH62: 160.52 | DJ62: 10:15:25 | DL62: 11.4191441 | DN62: 3.272272078 | DO62: 215.42 | DQ62: 10:26:46 | DS62: 18.9956015 | DU62: 14.77279839 | DV62: 319.43 | DW62: 2011-07-27T11:08:00.002 | DX62: 11:08:10 | DZ62: 2.868025416 | EB62: 8.340094947 | ED62: 2011-07-20T09:34:36 | EF62: 5.410720755 | EH62: 3.812283289 | EI62: 257.5167 | EK62: 2013-07-18T12:07:00 | EM62: 3.307208855 | EN62: 2013-07-18T11:56:03 | EO62: 7.426424673 | EP62: 401.6683333 | ER62: 2013-07-21T15:31:06 | ET62: 1.627748102 | EV62: 1.746460124 | EY62: 2013-07-22T15:08:02 | FA62: 6.568420305 | FC62: 0 | FF62: 2013-07-25T15:00:02 | FH62: 1.300593316 | FJ62: 1.107904261 | FR62: 2016-07-19T13:05:16 | FS62: 245.983 | FU62: 1.380538258 | FW62: 2016-07-19T13:20:24 | FY62: 250.483 | GA62: 1.405793717 | GO62: 10:09:40 | GP62: 13.98985556 | GR62: 10:19:40 | GS62: 23.27774444 | HC62: 2018-07-30 | HD62: 20:46:00 | HI62: 1.989071409 | HJ62: 6.425903444 | HL62: 4.59 | HM62: 147.65 | HV62: 2003-06-26T12:40:31 | II62: 38167.53755 | IK62: 19.15 | IM62: 16.17 | IO62: 21.54 | JA62: 2002-06-23 | JB62: 14:10:03 | JC62: 183.0989 | JD62: 100.6154 | JE62: 55.8022 | JF62: 18.4835 | JG62: 5.7363 | JH62: 1.956 | JI62: 0.1978 | JJ62: 0.1758 | JK62: 0.0879 | JL62: 0.044 | JN62: 2.23 | JO62: 182.97 | JW62: 2003-06-26T12:40:16 | JY62: 99.47429 | JZ62: 51.73714 | KA62: 31.89142 | KB62: 12.06858 | KC62: 3.01714 | KD62: 0.66857 | KE62: 0 | KF62: 0.45715 | KG62: 0 | KH62: 0 | KJ62: 1.43 | KK62: 99.84 | KR62: 38167.53749 | KS62: 306.292 | KT62: 3.58 | KU62: 29.81983332 | KV62: 3.772692279 | KW62: L | KX62: 306.2 | KY62: 153 | KZ62: 103.4 | LA62: 37.2 | LB62: 9.6 | LC62: 2.6 | LD62: 0.3 | LE62: 0.192 | LF62: 0.084 | LG62: 0.024 | LH62: 0.024 | LI62: 0.012 | LJ62: 0 | LK62: 0 | LL62: 0.012
A63: 2014-07-22 | B63: 12:54:38 | C63: 2014-07-22T12:54:38 | E63: 2014-07-22T12:54:37 | F63: 131.3666 | H63: 0.7372719714 | K63: 2014-07-22T12:54:37 | L63: 54.5667 | N63: 0.3062460205 | P63: 2014-07-19 | S63: =AVERAGE(EP549:EP716) -> 159.8368576 | U63: 11:42:59 | V63: 11:42:20 | X63: 7.250623351 | Z63: 7.509374612 | AA63: 262.45 | AC63: 11:12:57 | AD63: 0.3006336961 | AE63: 0.4029751282 | AF63: 0.38112264 | AG63: 0.1953088883 | AH63: 0.1272313216 | AI63: 0.05745344645 | AJ63: 0.2109401443 | AK63: 0.419288082 | AL63: 0.3928627063 | AM63: 1.325359401 | AN63: 1.474454152 | AO63: 1.130973355 | AP63: 0.6431101961 | AQ63: 0 | AR63: 11:12:15 | AT63: 1.933939894 | AU63: 115.81 | AV63: 1.675665265 | AY63: 10:21:35 | BA63: 2.026920556 | BB63: 10:31:25 | BC63: 2.284824341 | BD63: 129.30 | BF63: 12:07:11 | BH63: 3.690015571 | BI63: 12:07:47 | BJ63: 5.283437521 | BK63: 384.604 | BM63: 12:00:44 | BO63: 7.451228129 | BQ63: 9.375156767 | BR63: 6.300560915 | BT63: 09:55:15 | BV63: 1.943196608 | BX63: 4.622594821 | BY63: 122.9999 | CA63: 09:03:56 | CC63: 5.626653066 | CE63: 7.387709332 | CF63: 479.112 | CH63: 10:13:48 | CJ63: 3.769571792 | CL63: 4.366647808 | CM63: 288.748 | CO63: 10:37:11 | CQ63: 2.453273108 | CS63: 4.296172329 | CT63: 193.8667 | CV63: 09:26:36 | CX63: 2.709475651 | CZ63: 4.764822784 | DA63: 199.2166 | DC63: 40377.46078 | DE63: 2.998108211 | DG63: 3.515571443 | DH63: 162.78 | DJ63: 10:16:25 | DL63: 13.08899901 | DN63: 3.304075798 | DO63: 214.92 | DQ63: 10:27:46 | DS63: 16.81288575 | DU63: 8.80415054 | DV63: 324.62 | DW63: 2011-07-27T11:09:00.002 | DX63: 11:09:10 | DZ63: 2.832297158 | EB63: 5.058812993 | ED63: 2011-07-20T09:35:36 | EF63: 5.680438505 | EH63: 4.385559562 | EI63: 261.2333 | EK63: 2013-07-18T12:08:00 | EM63: 3.111748069 | EN63: 2013-07-18T11:57:03 | EO63: 7.518660797 | EP63: 378.055 | ER63: 2013-07-21T15:34:06 | ET63: 1.661985309 | EV63: 1.782515431 | EY63: 2013-07-22T15:11:02 | FA63: 6.407655324 | FC63: 0 | FF63: 2013-07-25T15:03:02 | FH63: 1.316277518 | FJ63: 1.114638489 | FR63: 2016-07-19T13:07:09 | FS63: 248.483 | FU63: 1.394569069 | FW63: 2016-07-19T13:22:18 | FY63: 255.917 | GA63: 1.436287347 | GO63: 10:39:40 | GP63: 16.73707778 | GR63: 10:49:57 | GS63: 27.6184625 | HC63: 2018-07-30 | HD63: 20:47:00 | HI63: 2.215373581 | HJ63: 6.796951798 | HL63: 4.77 | HM63: 151.475 | HV63: 2003-06-26T12:40:36 | II63: 38167.5376 | IK63: 13.30 | IM63: 11.51 | IO63: 17.73 | JA63: 2002-06-23 | JB63: 14:11:03 | JC63: 186.0268 | JD63: 102.9241 | JE63: 54.1964 | JF63: 19.8437 | JG63: 6.3839 | JH63: 2.2768 | JI63: 0.1786 | JJ63: 0.1786 | JK63: 0.0446 | JL63: 0 | JN63: 2.32 | JO63: 185.98 | JW63: 2003-06-26T12:40:21 | JY63: 99.57715 | JZ63: 52.04572 | KA63: 31.99428 | KB63: 11.65716 | KC63: 3.15429 | KD63: 0.63429 | KE63: 0 | KF63: 0.45715 | KG63: 0 | KH63: 0 | KJ63: 1.42 | KK63: 99.94289 | KR63: 38167.53755 | KS63: 311.384 | KT63: 3.63 | KU63: 16.90727896 | KV63: 3.80035806 | KW63: L | KX63: 311.2 | KY63: 156.2 | KZ63: 102.6 | LA63: 39 | LB63: 11.4 | LC63: 1.8 | LD63: 0.192 | LE63: 0.192 | LF63: 0.132 | LG63: 0.072 | LH63: 0.024 | LI63: 0.024 | LJ63: 0.012 | LK63: 0.012 | LL63: 0
A64: 2014-07-22 | B64: 12:55:43 | C64: 2014-07-22T12:55:43 | E64: 2014-07-22T12:55:37 | F64: 136.1 | H64: 0.7638373476 | K64: 2014-07-22T12:55:37 | L64: 53.25 | N64: 0.298856273 | P64: 2014-07-20 | S64: =AVERAGE(EP1120:EP1355) -> 130.7622553 | U64: 11:43:59 | V64: 11:43:20 | X64: 7.175210402 | Z64: 7.570144479 | AA64: 261.18 | AC64: 11:13:57 | AD64: 0.3131677002 | AE64: 0.4001922711 | AF64: 0.3636998908 | AG64: 0.2162630626 | AH64: 0.1781314843 | AI64: 0.07600140948 | AJ64: 0.2276610094 | AK64: 0.4254240052 | AL64: 0.4714352476 | AM64: 1.243547092 | AN64: 1.876578012 | AO64: 0.2261946711 | AP64: 0 | AQ64: 0 | AR64: 11:13:15 | AT64: 1.852638094 | AU64: 113.77 | AV64: 1.775116828 | AY64: 10:25:35 | BA64: 1.882309329 | BB64: 10:32:26 | BC64: 2.235063368 | BD64: 124.81 | BF64: 12:08:11 | BH64: 3.555410513 | BI64: 12:08:50 | BJ64: 5.172718011 | BK64: 384.23 | BM64: 12:01:44 | BO64: 7.445580375 | BQ64: 8.549378927 | BR64: 6.325479326 | BT64: 09:56:15 | BV64: 1.917322934 | BX64: 4.479974739 | BY64: 121.55 | CA64: 09:04:56 | CC64: 5.744422846 | CE64: 7.601516965 | CF64: 493.012 | CH64: 10:14:48 | CJ64: 3.735077724 | CL64: 4.135495474 | CM64: 286.632 | CO64: 10:38:11 | CQ64: 2.500682186 | CS64: 4.468851376 | CT64: 188.4165 | CV64: 09:27:36 | CX64: 2.528626617 | CZ64: 4.786609238 | DA64: 197.6166 | DC64: 40377.46147 | DE64: 2.796675452 | DG64: 3.322962745 | DH64: 159.37 | DJ64: 10:17:25 | DL64: 11.17975124 | DN64: 3.260906862 | DO64: 213.12 | DQ64: 10:28:46 | DS64: 15.92720239 | DU64: 5.464895889 | DV64: 320.03 | DW64: 2011-07-27T11:10:00.002 | DX64: 11:10:10 | DZ64: 1.681526094 | EB64: 3.253992583 | ED64: 2011-07-20T09:36:36 | EF64: 5.408200472 | EH64: 4.259831773 | EI64: 257.2832 | EK64: 2013-07-18T12:09:00 | EM64: 3.251333503 | EN64: 2013-07-18T11:58:03 | EO64: 7.86970056 | EP64: 386.945 | ER64: 2013-07-21T15:37:06 | ET64: 1.683546961 | EV64: 0.801367319 | EY64: 2013-07-22T15:14:02 | FA64: 6.388392426 | FC64: 3.9495406 | FF64: 2013-07-25T15:06:02 | FH64: 1.277396457 | FJ64: 1.080746784 | FR64: 2016-07-19T13:09:03 | FS64: 245.700 | FU64: 1.378948099 | FW64: 2016-07-19T13:24:11 | FY64: 257.100 | GA64: 1.442928597 | GO64: 11:08:55 | GP64: 17.00692857 | GR64: 11:19:48 | GS64: 25.78583333 | HC64: 2018-07-30 | HD64: 20:48:00 | HI64: 2.310930521 | HJ64: 6.529885252 | HL64: 4.60 | HM64: 148.175 | HV64: 2003-06-26T12:40:41 | II64: 38167.53766 | IK64: 9.49 | IM64: 11.60 | IO64: 6.84 | JA64: 2002-06-23 | JB64: 14:12:03 | JC64: 187.2308 | JD64: 102.3516 | JE64: 55.2527 | JF64: 19.956 | JG64: 6.7692 | JH64: 2.2637 | JI64: 0.2418 | JJ64: 0.1758 | JK64: 0.1978 | JL64: 0.022 | JN64: 2.36 | JO64: 187.01 | JW64: 2003-06-26T12:40:26 | JY64: 98.12572 | JZ64: 51.95429 | KA64: 31.05143 | KB64: 11.36573 | KC64: 3.04571 | KD64: 0.61715 | KE64: 0 | KF64: 0.45715 | KG64: 0 | KH64: 0 | KJ64: 1.40 | KK64: 98.49146 | KR64: 38167.5376 | KS64: 305.452 | KT64: 3.36 | KU64: 14.34763349 | KV64: 3.45160842 | KW64: L | KX64: 306 | KY64: 161.8 | KZ64: 97.8 | LA64: 35.6 | LB64: 8.8 | LC64: 1.2 | LD64: 0.168 | LE64: 0.084 | LF64: 0.06 | LG64: 0.048 | LH64: 0.072 | LI64: 0.024 | LJ64: 0 | LK64: 0.012 | LL64: 0
A65: 2014-07-22 | B65: 12:56:48 | C65: 2014-07-22T12:56:48 | E65: 2014-07-22T12:56:37 | F65: 134.4333 | H65: 0.7544832865 | K65: 2014-07-22T12:56:37 | L65: 54.9834 | N65: 0.3085846761 | P65: 2014-07-21 | S65: =AVERAGE(EP1806:EP1926) -> 133.660881 | U65: 11:44:59 | V65: 11:44:20 | X65: 6.993403195 | Z65: 7.574784482 | AA65: 262.81 | AC65: 11:14:57 | AD65: 0.3154126299 | AE65: 0.4095356572 | AF65: 0.3651525125 | AG65: 0.2057837305 | AH65: 0.1431388153 | AI65: 0.08866831105 | AJ65: 0.2694631722 | AK65: 0.527689391 | AL65: 0.5556201132 | AM65: 1.538071403 | AN65: 2.010619298 | AO65: 1.130973355 | AP65: 0.6431101961 | AQ65: 0 | AR65: 11:14:15 | AT65: 1.827126107 | AU65: 112.40 | AV65: 1.797154829 | AY65: 10:20:35 | BA65: 2.268139009 | BB65: 10:33:28 | BC65: 2.193365088 | BD65: 120.10 | BF65: 12:09:11 | BH65: 3.589674183 | BI65: 12:09:53 | BJ65: 5.346594038 | BK65: 390.318 | BM65: 12:02:44 | BO65: 7.269864672 | BQ65: 9.018467602 | BR65: 6.204704437 | BT65: 09:57:15 | BV65: 1.973285814 | BX65: 4.654381036 | BY65: 120.2167 | CA65: 09:05:56 | CC65: 5.729850678 | CE65: 7.351724974 | CF65: 476.174 | CH65: 10:15:48 | CJ65: 3.755524133 | CL65: 4.544440779 | CM65: 297.678 | CO65: 10:39:11 | CQ65: 2.347506538 | CS65: 4.390246306 | CT65: 183.0334 | CV65: 09:28:36 | CX65: 2.672890955 | CZ65: 4.79980468 | DA65: 198.35 | DC65: 40377.46216 | DE65: 2.785180166 | DG65: 3.499502334 | DH65: 165.17 | DJ65: 10:18:25 | DL65: 11.21313139 | DN65: 3.161782081 | DO65: 210.08 | DQ65: 10:29:46 | DS65: 17.18501697 | DU65: 13.98133258 | DV65: 321.13 | DW65: 2011-07-27T11:11:00.002 | DX65: 11:11:10 | DZ65: 2.409981575 | EB65: 3.911515728 | ED65: 2011-07-20T09:37:36 | EF65: 5.966761377 | EH65: 4.392860941 | EI65: 254.8834 | EK65: 2013-07-18T12:10:00 | EM65: 3.221001589 | EN65: 2013-07-18T11:59:03 | EO65: 6.985177294 | EP65: 382.5 | ER65: 2013-07-21T15:40:06 | ET65: 1.727700493 | EV65: 1.657107017 | EY65: 2013-07-22T15:17:02 | FA65: 6.235232829 | FC65: 3.814787724 | FF65: 2013-07-25T15:09:02 | FH65: 1.269882116 | FJ65: 1.063442866 | FR65: 2016-07-19T13:10:56 | FS65: 245.250 | FU65: 1.376422553 | FW65: 2016-07-19T13:26:04 | FY65: 260.183 | GA65: 1.460233264 | GO65: 11:39:40 | GP65: 15.8474375 | GR65: 11:50:40 | GS65: 24.66368 | HC65: 2018-07-30 | HD65: 20:49:00 | HI65: 2.335948889 | HJ65: 6.611349204 | HL65: 4.59 | HM65: 150.15 | HV65: 2003-06-26T12:40:46 | II65: 38167.53772 | IK65: 9.42 | IM65: 11.55 | IO65: 6.88 | JA65: 2002-06-23 | JB65: 14:13:03 | JC65: 186.5179 | JD65: 101.1607 | JE65: 56.6295 | JF65: 20.1339 | JG65: 6.5848 | JH65: 1.5402 | JI65: 0.2455 | JJ65: 0.2009 | JK65: 0.0223 | JL65: 0 | JN65: 2.31 | JO65: 186.50 | JW65: 2003-06-26T12:40:31 | JY65: 99.46858 | JZ65: 52.93715 | KA65: 31.59429 | KB65: 11.46859 | KC65: 2.83428 | KD65: 0.57715 | KE65: 0 | KF65: 0.5714 | KG65: 0 | KH65: 0 | KJ65: 1.47 | KK65: 99.98286 | KR65: 38167.53766 | KS65: 304.22 | KT65: 3.63 | KU65: 6.028139689 | KV65: 3.787791428 | KW65: L | KX65: 304.2 | KY65: 145.2 | KZ65: 105.4 | LA65: 40.4 | LB65: 10.8 | LC65: 2 | LD65: 0.264 | LE65: 0.156 | LF65: 0.084 | LG65: 0.012 | LH65: 0.024 | LI65: 0.024 | LJ65: 0 | LK65: 0 | LL65: 0
A66: 2014-07-22 | B66: 12:57:53 | C66: 2014-07-22T12:57:53 | E66: 2014-07-22T12:57:37 | F66: 134.9834 | H66: 0.7575706262 | K66: 2014-07-22T12:57:37 | L66: 54.4833 | N66: 0.3057779527 | P66: 2014-07-22 | S66: =AVERAGE(EP2280:EP2400) -> 345.0664407 | U66: 11:45:59 | V66: 11:45:20 | X66: 7.249017605 | Z66: 7.511204174 | AA66: 266.93 | AC66: 11:15:57 | AD66: 0.2989499988 | AE66: 0.3940289522 | AF66: 0.3793084963 | AG66: 0.219253309 | AH66: 0.1288249338 | AI66: 0.1006566286 | AJ66: 0.3787919055 | AK66: 0.7179030087 | AL66: 0.7688884395 | AM66: 2.028945255 | AN66: 3.216990877 | AO66: 1.130973355 | AP66: 0.6431101961 | AQ66: 0 | AR66: 11:15:15 | AT66: 1.943507752 | AU66: 113.20 | AV66: 1.899814224 | AY66: 10:26:35 | BA66: 1.916697076 | BB66: 10:34:29 | BC66: 2.325566871 | BD66: 121.23 | BF66: 12:10:11 | BH66: 3.661845469 | BI66: 12:10:56 | BJ66: 5.803539376 | BK66: 396.756 | BM66: 12:03:44 | BO66: 7.250563321 | BQ66: 9.173567998 | BR66: 6.07914196 | BT66: 09:58:15 | BV66: 1.903842994 | BX66: 4.330125053 | BY66: 125.0167 | CA66: 09:06:56 | CC66: 5.468294021 | CE66: 7.560103247 | CF66: 485.448 | CH66: 10:16:48 | CJ66: 3.784893837 | CL66: 5.023114747 | CM66: 328.388 | CO66: 10:40:11 | CQ66: 2.49713904 | CS66: 4.506324588 | CT66: 186.0334 | CV66: 09:29:36 | CX66: 2.667676425 | CZ66: 4.691503803 | DA66: 197.0834 | DC66: 40377.46286 | DE66: 3.808074327 | DG66: 3.576560025 | DH66: 168.52 | DJ66: 10:19:25 | DL66: 11.04068478 | DN66: 3.248323566 | DO66: 213.88 | DQ66: 10:30:46 | DS66: 19.43543428 | DU66: 9.026331757 | DV66: 325.15 | DW66: 2011-07-27T11:12:00.002 | DX66: 11:12:10 | DZ66: 3.904011243 | EB66: 8.21857777 | ED66: 2011-07-20T09:38:36 | EF66: 6.012168837 | EH66: 4.354171661 | EI66: 242.65 | EK66: 2013-07-18T12:11:00 | EM66: 3.185535408 | EN66: 2013-07-18T12:00:03 | EO66: 6.908660397 | EP66: 381.9433333 | ER66: 2013-07-21T15:43:06 | ET66: 1.737849655 | EV66: 1.77388032 | EY66: 2013-07-22T15:20:02 | FA66: 6.347638273 | FC66: 3.687427884 | FF66: 2013-07-25T15:12:02 | FH66: 1.337105415 | FJ66: 1.090350033 | FR66: 2016-07-19T13:12:49 | FS66: 261.217 | FU66: 1.466032666 | FW66: 2016-07-19T13:27:57 | FY66: 255.083 | GA66: 1.43161041 | GO66: 12:09:33 | GP66: 17.64228889 | GR66: 12:19:33 | GS66: 35.55642222 | HC66: 2018-07-30 | HD66: 20:50:00 | HI66: 2.193903495 | HJ66: 6.508974762 | HL66: 4.58 | HM66: 150.6 | HV66: 2003-06-26T12:40:51 | II66: 38167.53778 | IK66: 9.22 | IM66: 11.36 | IO66: 6.85 | JA66: 2002-06-23 | JB66: 14:14:03 | JC66: 186.5275 | JD66: 102.7692 | JE66: 55.4505 | JF66: 19.9121 | JG66: 5.8462 | JH66: 1.978 | JI66: 0.2637 | JJ66: 0.1978 | JK66: 0.0879 | JL66: 0.022 | JN66: 2.31 | JO66: 186.42 | JW66: 2003-06-26T12:40:36 | JY66: 99.70858 | JZ66: 53.0743 | KA66: 31.76572 | KB66: 11.26287 | KC66: 2.93713 | KD66: 0.61144 | KE66: 0 | KF66: 0.5714 | KG66: 0 | KH66: 0 | KJ66: 1.48 | KK66: 100.22286 | KR66: 38167.53772 | KS66: 314.116 | KT66: 3.70 | KU66: 8.463855482 | KV66: 3.873006867 | KW66: L | KX66: 314 | KY66: 156.6 | KZ66: 100.6 | LA66: 44.6 | LB66: 9.4 | LC66: 2.4 | LD66: 0.384 | LE66: 0.132 | LF66: 0.06 | LG66: 0.048 | LH66: 0.06 | LI66: 0.048 | LJ66: 0 | LK66: 0 | LL66: 0
A67: 2014-07-22 | B67: 12:58:58 | C67: 2014-07-22T12:58:58 | E67: 2014-07-22T12:58:37 | F67: 134.35 | H67: 0.7540157799 | K67: 2014-07-22T12:58:37 | L67: 53.1333 | N67: 0.2982013148 | P67: 2014-07-23 | S67: =AVERAGE(EP2720:EP2838) -> 222.6029008 | U67: 11:46:59 | V67: 11:46:20 | X67: 7.184027576 | Z67: 7.623304233 | AA67: 257.95 | AC67: 11:16:57 | AD67: 0.3020367772 | AE67: 0.3817035074 | AF67: 0.3615220471 | AG67: 0.2162630626 | AH67: 0.1622239906 | AI67: 0.03302442197 | AJ67: 0.1254064882 | AK67: 0.2004401563 | AL67: 0.2188806507 | AM67: 0.7690357017 | AN67: 0.6031857895 | AO67: 0.6785840132 | AP67: 0 | AQ67: 0 | AR67: 11:16:15 | AT67: 1.821757584 | AU67: 112.43 | AV67: 1.582180295 | AY67: 10:27:35 | BA67: 1.938145663 | BB67: 10:35:31 | BC67: 2.197740047 | BD67: 121.40 | BF67: 12:11:11 | BH67: 3.816329435 | BI67: 12:11:59 | BJ67: 5.396274497 | BK67: 404.456 | BM67: 12:04:44 | BO67: 7.147838979 | BQ67: 9.30665015 | BR67: 6.056848556 | BT67: 09:59:15 | BV67: 1.907548974 | BX67: 4.521803216 | BY67: 120.4334 | CA67: 09:07:56 | CC67: 5.575138262 | CE67: 7.523797857 | CF67: 478.402 | CH67: 10:17:48 | CJ67: 3.646232834 | CL67: 5.504086332 | CM67: 349.938 | CO67: 10:41:11 | CQ67: 2.396120374 | CS67: 4.52538486 | CT67: 183.75 | CV67: 09:30:36 | CX67: 2.677037167 | CZ67: 4.732312077 | DA67: 199.8168 | DC67: 40377.46355 | DE67: 3.681665331 | DG67: 4.193569721 | DH67: 191.18 | DJ67: 10:20:25 | DL67: 11.19699194 | DN67: 3.279184364 | DO67: 215.35 | DQ67: 10:31:46 | DS67: 16.74806713 | DU67: 10.56424787 | DV67: 328.02 | DW67: 2011-07-27T11:13:00.002 | DX67: 11:13:10 | DZ67: 2.694061279 | EB67: 5.850235841 | ED67: 2011-07-20T09:39:36 | EF67: 5.799564638 | EH67: 4.131988991 | EI67: 248.75 | EK67: 2013-07-18T12:12:00 | EM67: 3.016961419 | EN67: 2013-07-18T12:01:03 | EO67: 7.56232798 | EP67: 387.5016667 | ER67: 2013-07-21T15:46:06 | ET67: 1.814366985 | EV67: 1.812274944 | EY67: 2013-07-22T15:23:02 | FA67: 6.368549317 | FC67: 3.673737253 | FF67: 2013-07-25T15:15:02 | FH67: 1.334642727 | FJ67: 1.098051264 | FR67: 2016-07-19T13:14:43 | FS67: 260.683 | FU67: 1.463039426 | FW67: 2016-07-19T13:29:51 | FY67: 255.800 | GA67: 1.435632575 | GO67: 12:39:17 | GP67: 17.0779625 | GR67: 12:49:17 | GS67: 24.3027 | HC67: 2018-07-30 | HD67: 20:51:00 | HI67: 1.975887028 | HJ67: 6.701427255 | HL67: 4.77 | HM67: 150.675 | HV67: 2003-06-26T12:40:56 | II67: 38167.53784 | IK67: 9.47 | IM67: 11.47 | IO67: 6.91 | JN67: 0.00 | JO67: 0.00 | JW67: 2003-06-26T12:40:41 | JY67: 99.65715 | JZ67: 53.21715 | KA67: 31.58286 | KB67: 11.28572 | KC67: 2.98856 | KD67: 0.58287 | KE67: 0 | KG67: 0 | KH67: 0 | KR67: 38167.53778 | KS67: 326.82 | KT67: 3.84 | KU67: 8.430117002 | KV67: 4.015982974 | KW67: L | KX67: 326.8 | KY67: 165.2 | KZ67: 105.6 | LA67: 43.2 | LB67: 9.4 | LC67: 3 | LD67: 0.216 | LE67: 0.204 | LF67: 0.084 | LG67: 0.024 | LH67: 0.036 | LI67: 0.012 | LJ67: 0.012 | LK67: 0 | LL67: 0
A68: 2014-07-22 | B68: 13:00:03 | C68: 2014-07-22T13:00:03 | E68: 2014-07-22T12:59:37 | F68: 131.0833 | H68: 0.7356819999 | K68: 2014-07-22T12:59:37 | L68: 51.7668 | N68: 0.2905320735 | P68: 2014-07-24 | S68: =AVERAGE(EP3198:EP3318) -> 232.6659752 | U68: 11:47:59 | V68: 11:47:20 | X68: 7.116351191 | Z68: 7.55028768 | AA68: 262.02 | AC68: 11:17:57 | AD68: 0.301007477 | AE68: 0.392239717 | AF68: 0.3477297632 | AG68: 0.2274877113 | AH68: 0.1431388153 | AI68: 0.02488141382 | AJ68: 0.0836043255 | AK68: 0.1636246174 | AL68: 0.1515327582 | AM68: 0.6708609312 | AN68: 0.3351032164 | AO68: 0.9047786842 | AP68: 0.6431101961 | AQ68: 0 | AR68: 11:17:15 | AT68: 1.935577776 | AU68: 113.37 | AV68: 1.520089223 | AY68: 10:28:35 | BA68: 1.951690404 | BB68: 10:36:33 | BC68: 2.125577773 | BD68: 125.16 | BF68: 12:12:11 | BH68: 3.500693074 | BJ68: 5.468427635 | BK68: 0 | BM68: 12:05:44 | BO68: 6.995440982 | BQ68: 8.792753529 | BR68: 5.882970678 | BT68: 10:00:15 | BV68: 1.82013451 | BX68: 4.440528813 | BY68: 120.9332 | CA68: 09:08:56 | CC68: 5.531972108 | CE68: 7.160648563 | CF68: 474.592 | CH68: 10:18:48 | CJ68: 3.735372477 | CL68: 5.394874688 | CM68: 352.284 | CO68: 10:42:11 | CQ68: 2.36626597 | CS68: 4.441714953 | CT68: 183.0165 | CV68: 09:31:36 | CX68: 2.594365912 | CZ68: 4.911083295 | DA68: 202.7165 | DC68: 40377.46425 | DE68: 2.552819156 | DG68: 4.402690044 | DH68: 198.15 | DJ68: 10:21:25 | DL68: 10.77321359 | DN68: 3.596206963 | DO68: 215.60 | DQ68: 10:32:46 | DS68: 17.18281204 | DU68: 10.76689696 | DV68: 327.95 | DW68: 2011-07-27T11:14:00.002 | DX68: 11:14:10 | DZ68: 3.006219332 | EB68: 7.039227246 | ED68: 2011-07-20T09:40:36 | EF68: 5.795964988 | EH68: 4.185376023 | EI68: 248.4333 | EK68: 2013-07-18T12:13:00 | EM68: 3.098441569 | EN68: 2013-07-18T12:02:03 | EO68: 7.685398809 | EP68: 406.11 | ER68: 2013-07-21T15:49:06 | ET68: 1.712365324 | EV68: 0.3899672771 | EY68: 2013-07-22T15:26:02 | FA68: 6.604978176 | FC68: 4.337782723 | FF68: 2013-07-25T15:18:02 | FH68: 1.291145529 | FJ68: 1.069085497 | FR68: 2016-07-19T13:16:36 | FS68: 256.683 | FU68: 1.440590129 | FW68: 2016-07-19T13:31:44 | FY68: 250.767 | GA68: 1.407383876 | GO68: 13:09:17 | GP68: 16.47626667 | GR68: 13:19:17 | GS68: 20.35407778 | HC68: 2018-07-30 | HD68: 20:52:00 | HI68: 2.412433907 | HJ68: 5.902464529 | HL68: 4.61 | HM68: 149.325 | HV68: 2003-06-26T12:50:01 | II68: 38167.53789 | IK68: 9.54 | IM68: 11.36 | IO68: 6.86 | JN68: 0.00 | JO68: 0.00 | JW68: 2003-06-26T12:40:46 | JY68: 99.46858 | JZ68: 53.45143 | KA68: 31.67429 | KB68: 10.75429 | KC68: 2.86856 | KD68: 0.72001 | KE68: 0 | KG68: 0 | KH68: 0 | KR68: 38167.53784 | KS68: 304.044 | KT68: 3.51 | KU68: 8.089056148 | KV68: 3.675511168 | KW68: L | KX68: 303.8 | KY68: 154.8 | KZ68: 98.2 | LA68: 38.4 | LB68: 10.6 | LC68: 1.6 | LD68: 0.276 | LE68: 0.168 | LF68: 0.048 | LG68: 0.072 | LH68: 0.024 | LI68: 0.012 | LJ68: 0.012 | LK68: 0 | LL68: 0
A69: 2014-07-22 | B69: 13:01:08 | C69: 2014-07-22T13:01:08 | E69: 2014-07-22T13:00:37 | F69: 131.5 | H69: 0.7380206554 | K69: 2014-07-22T13:00:37 | L69: 52.0834 | N69: 0.2923089354 | P69: 2014-07-25 | S69: =AVERAGE(EP3678:EP3798) -> 195.6971165 | U69: 11:48:59 | V69: 11:48:20 | X69: 7.136840658 | Z69: 7.512460543 | AC69: 11:18:57 | AD69: 0.31073588 | AE69: 0.3954209772 | AF69: 0.3564411379 | AG69: 0.2207529221 | AH69: 0.1383675214 | AI69: 0.01741698967 | AJ69: 0.06816968079 | AK69: 0.08999353956 | AL69: 0.1122464875 | AM69: 0.3599741582 | AN69: 0.9382890059 | AO69: 0.4523893421 | AP69: 0 | AQ69: 0 | AR69: 11:18:15 | AT69: 1.826926303 | AU69: 113.81 | AV69: 1.507305109 | AY69: 10:29:35 | BA69: 1.916900515 | BB69: 10:37:34 | BC69: 2.163194527 | BD69: 125.91 | BF69: 12:13:11 | BH69: 3.492883109 | BI69: 12:13:02 | BJ69: 5.540580774 | BK69: 399.466 | BM69: 12:06:44 | BO69: 7.197263968 | BQ69: 8.953645713 | BR69: 6.239971625 | BT69: 10:01:15 | BV69: 1.803644994 | BX69: 4.658575783 | BY69: 118.7832 | CA69: 09:09:56 | CC69: 5.371059176 | CE69: 7.395476069 | CF69: 472.096 | CH69: 10:19:48 | CJ69: 3.698780826 | CL69: 5.885637701 | CM69: 364.55 | CO69: 10:43:11 | CQ69: 2.295440099 | CS69: 4.276467343 | CT69: 177.7667 | CV69: 09:32:36 | CX69: 2.486081541 | CZ69: 4.685028065 | DA69: 194.8665 | DC69: 40377.46494 | DE69: 2.090746943 | DG69: 4.2709803 | DH69: 191.03 | DJ69: 10:22:25 | DL69: 10.87648872 | DN69: 3.352594401 | DO69: 214.78 | DQ69: 10:33:46 | DS69: 16.53869829 | DU69: 10.83912784 | DV69: 333.80 | DW69: 2011-07-27T11:15:00.002 | DX69: 11:15:10 | DZ69: 2.90298912 | EB69: 10.04679078 | ED69: 2011-07-20T09:41:36 | EF69: 5.414558145 | EH69: 4.123294826 | EI69: 244.9666 | EK69: 2013-07-18T12:14:00 | EM69: 3.214035544 | EN69: 2013-07-18T12:03:03 | EO69: 7.760015943 | EP69: 397.5016667 | ER69: 2013-07-21T15:52:06 | ET69: 1.652149451 | EV69: 0.827270135 | EY69: 2013-07-22T15:29:02 | FA69: 6.312347931 | FC69: 4.899093863 | FF69: 2013-07-25T15:21:02 | FH69: 1.261151584 | FJ69: 1.091441069 | FR69: 2016-07-19T13:18:29 | FS69: 256.500 | FU69: 1.439561202 | FW69: 2016-07-19T13:33:37 | FY69: 248.167 | GA69: =(1/6)*PI()*(2000)*(1/1000)*FY69*POWER(0.175,3) -> 1.392791833 | GO69: 13:39:17 | GP69: 18.61107778 | GR69: 13:49:17 | GS69: 29.29073333 | HC69: 2018-07-30 | HD69: 20:53:00 | HI69: 2.230480469 | HJ69: 6.877954083 | HL69: 4.85 | HM69: 149.475 | HV69: 2003-06-26T12:50:06 | II69: 38167.53795 | IK69: 9.34 | IM69: 11.55 | IO69: 6.88 | JA69: 2002-06-23 | JB69: 14:46:03 | JC69: 283.5604 | JD69: 148.1538 | JE69: 87.6044 | JF69: 32.8791 | JG69: 10.2637 | JH69: 3.4945 | JI69: 0.6593 | JJ69: 0.2418 | JK69: 0.2198 | JL69: 0.044 | JN69: 3.69 | JO69: 283.30 | JW69: 2003-06-26T12:40:51 | JY69: 99.46858 | JZ69: 54.37715 | KA69: 31.36571 | KB69: 10.17143 | KC69: 2.7657 | KD69: 0.78858 | KE69: 0 | KG69: 0 | KH69: 0 | KR69: 38167.53789 | KS69: 324.024 | KT69: 3.81 | KU69: 7.987247602 | KV69: 4.046512317 | KW69: L | KX69: 323.6 | KY69: 164.2 | KZ69: 103.8 | LA69: 41 | LB69: 12.2 | LC69: 2.2 | LD69: 0.396 | LE69: 0.228 | LF69: 0.096 | LG69: 0.024 | LH69: 0.024 | LI69: 0.048 | LJ69: 0 | LK69: 0 | LL69: 0
E70: 2014-07-22T13:01:37 | F70: 132.2335 | H70: 0.7421372954 | K70: 2014-07-22T13:01:37 | L70: 52.2166 | N70: 0.293056497 | P70: 2014-07-26 | S70: =AVERAGE(EP4158:EP4278) -> 192.9800736 | U70: 11:49:59 | V70: 11:49:20 | X70: 7.157879118 | Z70: 7.513256263 | AA70: 263.81 | AC70: 11:19:57 | AD70: 0.2981081502 | AE70: 0.3984030359 | AF70: 0.3470023634 | AG70: 0.219253309 | AH70: 0.1288249338 | AI70: 0.08663255902 | AJ70: 0.3157671063 | AK70: 0.621773546 | AL70: 0.4658229232 | AM70: 1.734420944 | AN70: 2.881887661 | AO70: 0.9047786842 | AP70: 0 | AQ70: 0 | AR70: 11:19:15 | AT70: 1.973993019 | AU70: 114.09 | AV70: 1.793991458 | AY70: 10:32:35 | BA70: 1.866483538 | BB70: 10:38:35 | BC70: 2.323102139 | BD70: 126.84 | BF70: 12:14:11 | BH70: 3.617231157 | BI70: 12:14:05 | BJ70: 5.423189437 | BK70: 391.644 | BM70: 12:07:44 | BO70: 7.102075682 | BQ70: 9.513961853 | BR70: 6.143480508 | BT70: 10:02:15 | BV70: 1.779588996 | BX70: 4.534510865 | BY70: 118.6668 | CA70: 09:10:56 | CC70: 5.409738083 | CE70: 6.245874477 | CF70: 426.146 | CH70: 10:20:48 | CJ70: 3.769682784 | CL70: 6.415522771 | CM70: 388.476 | CO70: 10:44:11 | CQ70: 2.302797241 | CS70: 4.271220196 | CT70: 176.35 | CV70: 09:33:36 | CX70: 2.60417162 | CZ70: 4.851592133 | DA70: 200.5666 | DC70: 40377.46564 | DE70: 2.173947387 | DG70: 4.359097234 | DH70: 193.77 | DJ70: 10:23:25 | DL70: 10.81654544 | DN70: 3.418227125 | DO70: 215.65 | DQ70: 10:34:46 | DS70: 21.60547338 | DU70: 9.127764618 | DV70: 344.25 | DW70: 2011-07-27T11:16:00.002 | DX70: 11:16:10 | DZ70: 2.024495083 | EB70: 5.260353978 | ED70: 2011-07-20T09:42:36 | EF70: 4.665689567 | EH70: 3.721847559 | EI70: 242.8 | EK70: 2013-07-18T12:15:00 | EM70: 3.047776025 | EN70: 2013-07-18T12:04:03 | EO70: 7.870693162 | EP70: 417.2216667 | ER70: 2013-07-21T15:55:06 | ET70: 1.571277637 | EV70: 0.9302973178 | EY70: 2013-07-22T15:32:02 | FA70: 6.547239331 | FC70: 5.029180051 | FF70: 2013-07-25T15:24:02 | FH70: 1.274590856 | FJ70: 1.094653002 | FR70: 2016-07-19T13:20:23 | FS70: 269.783 | FU70: 1.514111578 | FW70: 2016-07-19T13:35:31 | FY70: 245.483 | GA70: 1.377732096 | GO70: 14:09:10 | GP70: 18.9586125 | GR70: 14:19:10 | GS70: 41.72528889 | HC70: 2018-07-30 | HD70: 20:54:00 | HI70: 2.415111133 | HJ70: 7.141055595 | HL70: 4.47 | HM70: 144.6 | HV70: 2003-06-26T12:50:11 | II70: 38167.53801 | IK70: 9.44 | IM70: 11.34 | IO70: 6.89 | JA70: 2002-06-23 | JB70: 14:47:03 | JC70: 284.9777 | JD70: 149.8214 | JE70: 85.9152 | JF70: 33.7723 | JG70: 10.067 | JH70: 3.4821 | JI70: 0.558 | JJ70: 0.6027 | JK70: 0.7366 | JL70: 0.0223 | JN70: 3.90 | JO70: 284.22 | JW70: 2003-06-26T12:40:56 | JY70: 100.49715 | JZ70: 54.69144 | KA70: 31.96571 | KB70: 10.31428 | KC70: 2.73713 | KD70: 0.78858 | KE70: 0 | KG70: 0 | KH70: 0 | KR70: 38167.53795 | KS70: 311.504 | KT70: 3.67 | KU70: 5.567882883 | KV70: 3.856107586 | KW70: L | KX70: 311.2 | KY70: 155.2 | KZ70: 100.2 | LA70: 44.2 | LB70: 8.8 | LC70: 2.6 | LD70: 0.336 | LE70: 0.168 | LF70: 0.12 | LG70: 0.048 | LH70: 0.024 | LI70: 0.012 | LJ70: 0 | LK70: 0 | LL70: 0
A71: 2014-07-22 | B71: 13:02:13 | C71: =A71+B71 -> 2014-07-22T13:02:13 | E71: 2014-07-22T13:02:37 | F71: 126.0167 | H71: 0.7072465972 | K71: 2014-07-22T13:02:37 | L71: 53.0166 | N71: 0.2975463565 | P71: 2014-07-27 | S71: =AVERAGE(EP4638:EP4758) -> 243.6655404 | U71: 11:50:59 | V71: 11:50:20 | X71: 7.215800859 | Z71: 7.487755571 | AA71: 264.07 | AC71: 11:20:57 | AD71: 0.3079297178 | AE71: 0.3896560614 | AF71: 0.3803974181 | AG71: 0.2170083793 | AH71: 0.146316497 | AI71: 0.04750088092 | AJ71: 0.1479153451 | AK71: 0.2106666949 | AL71: 0.2076560019 | AM71: 0.7853981634 | AN71: 0.6702064328 | AO71: 0 | AP71: 0.6431101961 | AQ71: 0 | AR71: 11:20:15 | AT71: 1.870693889 | AU71: 117.67 | AV71: 1.6367243 | AY71: 10:31:35 | BA71: 1.914267192 | BB71: 10:39:37 | BC71: 2.220284792 | BD71: 129.29 | BF71: 12:15:11 | BH71: 3.783022341 | BI71: 12:15:08 | BJ71: 5.470261883 | BK71: 390.972 | BM71: 12:08:44 | BO71: 7.42847042 | BQ71: 9.795781007 | BR71: 6.403073833 | BT71: 10:03:15 | BV71: 1.915432726 | BX71: 4.668488401 | BY71: 118.2166 | CA71: 09:11:56 | CC71: 5.528718892 | CE71: 7.062469342 | CF71: 457.696 | CH71: 10:21:48 | CJ71: 3.782714364 | CL71: 6.694688784 | CM71: 400.49 | CO71: 10:45:11 | CQ71: 2.219699324 | CS71: 4.160168136 | CT71: 176.3002 | CV71: 09:34:36 | CX71: 2.668073103 | CZ71: 4.890492609 | DA71: 199.8833 | DC71: 40377.46633 | DE71: 2.257747265 | DG71: 4.247325113 | DH71: 189.05 | DJ71: 10:24:25 | DL71: 10.76257853 | DN71: 3.116459112 | DO71: 215.60 | DQ71: 10:35:46 | DS71: 21.04043319 | DU71: 8.213700402 | DV71: 359.55 | DW71: 2011-07-27T11:17:00.002 | DX71: 11:17:10 | DZ71: 2.564121567 | EB71: 8.24906909 | ED71: 2011-07-20T09:43:36 | EF71: 5.742608363 | EH71: 4.175831025 | EI71: 242.2833 | EK71: 2013-07-18T12:16:00 | EM71: 3.163267189 | EN71: 2013-07-18T12:05:03 | EO71: 7.724295244 | EP71: 413.8866667 | ER71: 2013-07-21T15:58:06 | ET71: 1.537752316 | EV71: 0.9029100796 | EY71: 2013-07-22T15:35:02 | FA71: 6.385543815 | FC71: 4.754051961 | FF71: 2013-07-25T15:27:02 | FH71: 1.364449782 | FJ71: 1.122370588 | FR71: 2016-07-19T13:22:16 | FS71: 280.567 | FU71: =(1/6)*PI()*(2000)*(1/1000)*FS71*POWER(0.175,3) -> 1.574631142 | FW71: 2016-07-19T13:37:24 | FY71: 241.683 | GA71: 1.356405263 | GO71: 14:39:10 | GP71: 20.19388889 | GR71: 14:50:10 | GS71: 42.52615 | HC71: 2018-07-30 | HD71: 20:55:00 | HI71: 2.029512542 | HJ71: 6.488449363 | HL71: 4.46 | HM71: 147.975 | HV71: 2003-06-26T12:50:16 | II71: 38167.53807 | IK71: 9.59 | IM71: 11.23 | IO71: 6.81 | JA71: 2002-06-23 | JB71: 14:48:03 | JC71: 284.4835 | JD71: 150.3736 | JE71: 85.5165 | JF71: 34.1099 | JG71: 10.3516 | JH71: 3.2088 | JI71: 0.3297 | JJ71: 0.3516 | JK71: 0.1538 | JL71: 0.0879 | JN71: =((2*PI())/6*(POWER(0.175,3)*JD71+POWER(0.225,3)*JE71+POWER(0.275,3)*JF71+POWER(0.35,3)*JG71+POWER(0.45,3)*JH71+POWER(0.6,3)*JI71+POWER(0.85,3)*JJ71)) -> 3.68 | JO71: 284.24 | JW71: 2003-06-26T12:50:01 | JY71: 84.82286 | JZ71: 45.40572 | KA71: 26.94857 | KB71: 8.52572 | KC71: 2.44572 | KD71: 0.86288 | KE71: 0.2 | KF71: 0.8 | KG71: 0.1943 | KH71: 0 | KJ71: 1.51 | KK71: 85.18861 | KR71: 38167.53801 | KS71: 311.116 | KT71: 3.63 | KU71: 4.814565747 | KV71: 3.844795365 | KW71: L | KX71: 311.2 | KY71: 159.6 | KZ71: 97.8 | LA71: 40.4 | LB71: 10.6 | LC71: 2.2 | LD71: 0.276 | LE71: 0.24 | LF71: 0.048 | LG71: 0.012 | LH71: 0 | LI71: 0.012 | LJ71: 0 | LK71: 0 | LL71: 0
A72: 2014-07-22 | B72: 13:03:18 | C72: 2014-07-22T13:03:18 | E72: 2014-07-22T13:03:37 | F72: 124.1501 | H72: 0.6967706325 | K72: 2014-07-22T13:03:37 | L72: 49.5833 | N72: 0.2782775632 | U72: 11:51:59 | V72: 11:51:20 | X72: 7.263834828 | Z72: 7.383901237 | AA72: 261.32 | AC72: 11:21:57 | AD72: 0.2969856853 | AE72: 0.3878668262 | AF72: 0.3687808 | AG72: 0.2214982388 | AH72: 0.1510877908 | AI72: 0.01673840566 | AJ72: 0.05337814628 | AK72: 0.07976700097 | AL72: 0.1066341631 | AM72: 0.4417864669 | AN72: 0.3351032164 | AO72: 0 | AP72: 0 | AQ72: 0 | AR72: 11:21:15 | AT72: 1.796489034 | AU72: 116.59 | AV72: 1.496335893 | AY72: 10:30:35 | BA72: 1.999759791 | BB72: 10:40:39 | BC72: 2.104207489 | BD72: 135.36 | BF72: 12:16:11 | BH72: 3.536267355 | BI72: 12:16:11 | BJ72: 5.430938601 | BK72: 398.39 | BM72: 12:09:44 | BO72: 8.035454068 | BQ72: 11.19701363 | BR72: 7.22452138 | BT72: 10:04:15 | BV72: 1.859730617 | BX72: 4.747362602 | BY72: 118.4 | CA72: 09:12:56 | CC72: 5.587189007 | CE72: 7.245499087 | CF72: 471.022 | CH72: 10:22:48 | CJ72: 3.672352714 | CL72: 5.076645882 | CM72: 335.376 | CO72: 10:46:11 | CQ72: 2.237566188 | CS72: 4.209662685 | CT72: 172.7001 | CV72: 09:35:36 | CX72: 2.675705414 | CZ72: 4.883954857 | DA72: 201.3667 | DC72: 40377.46703 | DE72: 2.554092147 | DG72: 2.89712306 | DH72: 203.40 | DJ72: 10:25:25 | DL72: 11.06342658 | DN72: 3.167814696 | DO72: 219.72 | DQ72: 10:36:46 | DS72: 16.67231853 | DU72: 7.572265994 | DV72: 34968.48 | DW72: 2011-07-27T11:18:00.002 | DX72: 11:18:10 | DZ72: 2.061951104 | EB72: 6.162983158 | ED72: 2011-07-20T09:44:36 | EF72: 5.740828859 | EH72: 3.93809876 | EI72: 244.5333 | EK72: 2013-07-18T12:17:00 | EM72: 3.184150598 | EN72: 2013-07-18T12:06:03 | EO72: 6.901305961 | EP72: 417.5 | ER72: 2013-07-21T16:01:06 | ET72: 1.741218191 | EV72: 0.9922626541 | EY72: 2013-07-22T15:38:02 | FA72: 6.339486201 | FC72: 4.69840679 | FF72: 2013-07-25T15:30:02 | FH72: 1.349514825 | FJ72: 1.11747608 | FR72: 2016-07-19T13:24:09 | FS72: 282.183 | FU72: 1.5837044 | FW72: 2016-07-19T13:39:17 | FY72: 242.867 | GA72: 1.363046513 | HC72: 2018-07-30 | HD72: 20:56:00 | HI72: 2.25839033 | HJ72: 6.187077361 | HL72: 4.71 | HM72: 148.225 | HV72: 2003-06-26T12:50:21 | II72: 38167.53812 | IK72: 96.98 | IM72: 49.77 | IO72: 41.89 | JA72: 2002-06-23 | JB72: 14:49:03 | JC72: 282.8348 | JD72: 147.0089 | JE72: 87.1205 | JF72: 34.7545 | JG72: 9.5536 | JH72: 3.6384 | JI72: 0.3571 | JJ72: 0.1563 | JK72: 0.2009 | JL72: 0.0446 | JN72: 3.58 | JO72: 282.59 | JW72: 2003-06-26T12:50:06 | JY72: 83.33715 | JZ72: 44.83429 | KA72: 26.91429 | KB72: 8.14287 | KC72: 2.23429 | KD72: 0.81716 | KE72: 0.13143 | KF72: 0.5143 | KG72: 0.16001 | KH72: 0 | KJ72: 1.29 | KK72: =(JZ72+KA72+KB72+KC72+KD72+KE72+KF72) -> 83.58863 | KR72: 38167.53807 | KS72: =(KY72+KZ72+LA72+LB72+LC72+LD72+LE72) -> 296.268 | KT72: 3.41 | KU72: 4.853183906 | KV72: 3.625999275 | KW72: L | KX72: 296.2 | KY72: 150.4 | KZ72: 96.2 | LA72: 39 | LB72: 8 | LC72: 2.2 | LD72: 0.204 | LE72: 0.264 | LF72: 0.108 | LG72: 0.036 | LH72: 0 | LI72: 0.012 | LJ72: 0 | LK72: 0 | LL72: 0
A73: 2014-07-22 | B73: 13:04:23 | C73: 2014-07-22T13:04:23 | E73: 2014-07-22T13:04:37 | F73: 124.9334 | H73: 0.7011667662 | K73: 2014-07-22T13:04:37 | L73: 49.4833 | N73: 0.2777163308 | U73: 11:52:59 | V73: 11:52:20 | X73: 7.526018603 | Z73: 7.429135539 | AA73: 264.46 | AC73: 11:22:57 | AD73: 0.3080228824 | AE73: 0.3982038343 | AF73: 0.3738638871 | AG73: 0.2259880983 | AH73: 0.1431388153 | AI73: 0.01334548559 | AJ73: 0.03537106079 | AK73: 0.07567638554 | AL73: 0.07296021689 | AM73: 0.4254240052 | AN73: 0.4021238597 | AO73: 0.2261946711 | AP73: 0 | AQ73: 4.090615434 | AR73: 11:22:15 | AT73: 1.820100066 | AU73: 116.74 | AV73: 1.497934064 | AY73: 10:33:35 | BA73: 1.85782892 | BB73: 10:41:40 | BC73: 2.325763766 | BD73: 137.14 | BF73: 12:17:11 | BH73: 3.623533945 | BI73: 12:17:14 | BJ73: 5.439771614 | BK73: 393.244 | BM73: 12:10:44 | BO73: 7.49027974 | BQ73: 10.44083124 | BR73: 6.434030475 | BT73: 10:05:15 | BV73: 1.872300853 | BX73: 4.851418612 | BY73: 117.75 | CA73: 09:13:56 | CC73: 5.568361984 | CE73: 7.487394652 | CF73: 469.982 | CH73: 10:23:48 | CJ73: 3.683108449 | CL73: 5.34829809 | CM73: 342.894 | CO73: 10:47:11 | CQ73: 2.161419162 | CS73: 4.218914773 | CT73: 174.5834 | CV73: 09:36:36 | CX73: 2.701154426 | CZ73: 4.542994403 | DA73: 198.2668 | DC73: 40377.46772 | DE73: 2.639615181 | DG73: 3.68847355 | DH73: 218.43 | DJ73: 10:26:25 | DL73: 10.89460949 | DN73: 3.390400371 | DO73: 221.77 | DQ73: 10:37:46 | DS73: 16.55195113 | DU73: 6.930831585 | DV73: 339.88 | DW73: 2011-07-27T11:19:00.002 | DX73: 11:19:10 | DZ73: 3.573606187 | EB73: 9.319272583 | ED73: 2011-07-20T09:45:36 | EF73: 6.584722702 | EH73: 4.421306937 | EI73: 239.5334 | EK73: 2013-07-18T12:18:00 | EM73: 3.061935008 | EN73: 2013-07-18T12:07:03 | EO73: 7.188851928 | EP73: 400.2766667 | ER73: 2013-07-21T16:04:06 | ET73: 1.396184595 | EV73: 0.8069389647 | EY73: 2013-07-22T15:41:02 | FA73: 6.437964636 | FC73: 4.667524187 | FF73: 2013-07-25T15:33:02 | FH73: 1.333145359 | FJ73: 1.107156138 | FR73: 2016-07-19T13:26:03 | FS73: 284.583 | FU73: 1.597173979 | FW73: 2016-07-19T13:41:11 | FY73: 242.400 | GA73: 1.360427429 | HC73: 2018-07-30 | HD73: 20:57:00 | HI73: 2.489632411 | HJ73: 6.43772344 | HL73: 4.69 | HM73: 150.275 | HV73: 2003-06-26T12:50:26 | II73: 38167.53818 | IK73: 10.12 | IM73: 11.56 | IO73: 15.51 | JA73: 2002-06-23 | JB73: 14:50:03 | JC73: 286.3956 | JD73: 153.2527 | JE73: 85.8462 | JF73: 33.2088 | JG73: 9.9121 | JH73: 3.3187 | JI73: 0.4396 | JJ73: 0.1319 | JK73: 0.2857 | JL73: 0 | JN73: 3.55 | JO73: 286.11 | JW73: 2003-06-26T12:50:11 | JY73: 81.57143 | JZ73: 43.92001 | KA73: 26.42857 | KB73: 7.8343 | KC73: 2.34286 | KD73: 0.70287 | KE73: 0.10286 | KF73: 0.5143 | KG73: 0.13716 | KH73: 0 | KJ73: 1.26 | KK73: 81.84577 | KR73: 38167.53812 | KS73: 301.912 | KT73: =((2*PI())/6*(POWER(0.175,3)*KY73+POWER(0.225,3)*KZ73+POWER(0.275,3)*LA73+POWER(0.35,3)*LB73+POWER(0.45,3)*LC73)) -> 3.49 | KU73: 40.11799695 | KV73: =((2*PI())/6*(POWER(0.175,3)*KY73+POWER(0.225,3)*KZ73+POWER(0.275,3)*LA73+POWER(0.35,3)*LB73+POWER(0.45,3)*LC73+POWER(0.6,3)*LD73+POWER(0.85,3)*LE73)) -> 3.596982348 | KW73: L | KX73: 302.4 | KY73: 148.2 | KZ73: 103.6 | LA73: 38.4 | LB73: 10 | LC73: 1.4 | LD73: 0.216 | LE73: 0.096 | LF73: 0.132 | LG73: 0.084 | LH73: 0 | LI73: 0.012 | LJ73: 0.012 | LK73: 0.012 | LL73: 0.012
A74: 2014-07-22 | B74: 13:05:28 | C74: 2014-07-22T13:05:28 | E74: 2014-07-22T13:05:37 | F74: 117.4999 | H74: 0.6594475529 | K74: 2014-07-22T13:05:37 | L74: 47.6167 | N74: 0.2672403661 | U74: 11:53:59 | V74: 11:53:20 | X74: 7.326308147 | Z74: 7.338182721 | AA74: 259.71 | AC74: 11:23:57 | AD74: 0.3178444501 | AE74: 0.402577918 | AF74: 0.3742254092 | AG74: 0.2177581858 | AH74: 0.1510877908 | AI74: 0.01854796303 | AJ74: 0.03922972196 | AK74: 0.07363107782 | AL74: 0.1010218388 | AM74: 0.3272492347 | AN74: 0.4021238597 | AO74: 0 | AP74: 0 | AQ74: 0 | AR74: 11:23:15 | AT74: 1.901545128 | AU74: 117.38 | AV74: 1.521271439 | AY74: 10:35:35 | BA74: 1.838879178 | BB74: 10:42:42 | BC74: 2.464325455 | BD74: 138.64 | BF74: 12:18:11 | BH74: 3.456711653 | BI74: 12:18:17 | BJ74: 5.245541536 | BK74: 388.688 | BM74: 12:11:44 | BO74: 7.036803322 | BQ74: 9.273040083 | BR74: 6.044463293 | BT74: 10:06:15 | BV74: 1.819937605 | BX74: 4.880959765 | BY74: 118.0333 | CA74: 09:14:56 | CC74: 5.544133576 | CE74: 7.360684109 | CF74: 478.796 | CH74: 10:24:48 | CJ74: 3.7572839 | CL74: 6.05101801 | CM74: 374.67 | CO74: 10:48:11 | CQ74: 2.262364184 | CS74: 4.079165573 | CT74: 175.75 | CV74: 09:37:36 | CX74: 2.75817816 | CZ74: 4.458594927 | DA74: 200.7166 | DC74: 40377.46841 | DE74: 2.568262299 | DG74: 5.897652131 | DH74: 219.28 | DJ74: 10:27:25 | DL74: 11.27009 | DN74: 3.295617906 | DO74: 220.83 | DQ74: 10:38:46 | DS74: 15.96399522 | DU74: 6.368707699 | DV74: 338.62 | DW74: 2011-07-27T11:20:00.002 | DX74: 11:20:10 | DZ74: 1.99653078 | EB74: 7.047596049 | ED74: 2011-07-20T09:46:36 | EF74: 5.936149702 | EH74: 4.129641761 | EI74: 235.5 | EK74: 2013-07-18T12:19:00 | EM74: 3.106926051 | EN74: 2013-07-18T12:08:03 | EO74: 7.884951029 | EP74: 404.7233333 | ER74: 2013-07-21T16:07:06 | ET74: 1.353954148 | EV74: 0.8619518632 | EY74: 2013-07-22T15:44:02 | FA74: 6.150291577 | FC74: 4.40884218 | FF74: 2013-07-25T15:36:02 | FH74: 1.331960036 | FJ74: 1.114483027 | FR74: 2016-07-19T13:27:56 | FS74: 273.300 | FU74: 1.533848252 | FW74: 2016-07-19T13:43:04 | FY74: 242.100 | GA74: 1.358743731 | HC74: 2018-07-30 | HD74: 20:58:00 | HI74: 2.325260602 | HJ74: 6.649185269 | HL74: 4.62 | HM74: 146.925 | HV74: 2003-06-26T12:50:31 | II74: 38167.53824 | IK74: 9.52 | IM74: 12.99 | IO74: 6.86 | JA74: 2002-06-23 | JB74: 14:51:03 | JC74: 291.5625 | JD74: 152.3884 | JE74: 88.3705 | JF74: 35.5357 | JG74: 10.5804 | JH74: 3.3482 | JI74: 0.4911 | JJ74: 0.5357 | JK74: 0.2679 | JL74: 0.0446 | JN74: 3.93 | JO74: =(JD74+JE74+JF74+JG74+JH74+JI74+JJ74) -> 291.25 | JW74: 2003-06-26T12:50:16 | JY74: 81.69143 | JZ74: 44.09715 | KA74: 26.49143 | KB74: 7.77144 | KC74: 2.4 | KD74: 0.62858 | KE74: 0.06857 | KF74: 0.4381 | KG74: 0.10287 | KH74: 0 | KJ74: =((2*PI())/6*(POWER(0.175,3)*JZ74+POWER(0.225,3)*KA74+POWER(0.275,3)*KB74+POWER(0.35,3)*KC74+POWER(0.45,3)*KD74+POWER(0.6,3)*KE74+POWER(0.85,3)*KF74)) -> 1.20 | KK74: 81.89527 | KR74: 38167.53818 | KS74: 303.36 | KT74: 3.61 | KU74: 13.17614262 | KV74: 3.759022293 | KW74: L | KX74: 303.6 | KY74: 149.2 | KZ74: 101.6 | LA74: 39 | LB74: 10.8 | LC74: 2.4 | LD74: 0.204 | LE74: 0.156 | LF74: 0.084 | LG74: 0.024 | LH74: 0.036 | LI74: 0.012 | LJ74: 0 | LK74: 0.012 | LL74: 0
A75: 2014-07-22 | B75: 13:06:33 | C75: 2014-07-22T13:06:33 | E75: 2014-07-22T13:06:37 | F75: 119.6334 | H75: 0.671421447 | K75: 2014-07-22T13:06:37 | L75: 49.0166 | N75: 0.275097059 | U75: 11:54:59 | V75: 11:54:20 | X75: 7.194224597 | Z75: 7.342109123 | AA75: 258.84 | AC75: 11:24:57 | AD75: 0.313915823 | AE75: 0.4073492118 | AF75: 0.38112264 | AG75: 0.2110233965 | AH75: 0.1606303785 | AI75: 0.01492884829 | AJ75: 0.04694704432 | AK75: 0.1247637707 | AL75: 0.08979719002 | AM75: 0.1963495408 | AN75: 0.6702064328 | AO75: 0 | AP75: 0 | AQ75: 0 | AR75: 11:24:15 | AT75: 1.937293835 | AU75: 119.70 | AV75: 1.535917343 | AY75: 10:34:35 | BA75: 1.841637166 | BB75: 10:43:43 | BC75: 2.354053189 | BD75: 133.03 | BF75: 12:19:11 | BH75: 3.710051057 | BI75: 12:19:20 | BJ75: 6.107862282 | BK75: 400.698 | BM75: 12:12:44 | BO75: 6.984245073 | BQ75: 9.242787331 | BR75: 6.02317952 | BT75: 10:07:15 | BV75: 1.764927187 | BX75: 4.615647359 | BY75: 115.4667 | CA75: 09:15:56 | CC75: 5.738992881 | CE75: 7.22498105 | CF75: 477.332 | CH75: 10:25:48 | CJ75: 3.744376291 | CL75: 5.909413994 | CM75: 371.838 | CO75: 10:49:11 | CQ75: 2.208545315 | CS75: 4.093081977 | CT75: 166.6669 | CV75: 09:38:36 | CX75: 2.712679203 | CZ75: 4.665663026 | DA75: 196.2334 | DC75: 40377.46911 | DE75: 2.617495414 | DG75: 3.06708532 | DH75: 211.07 | DJ75: 10:28:25 | DL75: 11.27225381 | DN75: 3.44246156 | DO75: 223.90 | DQ75: 10:39:46 | DS75: 16.17686852 | DU75: 5.943394144 | DV75: 338.28 | DW75: 2011-07-27T11:21:00.002 | DX75: 11:21:10 | DZ75: 2.650405447 | EB75: 7.259503173 | ED75: 2011-07-20T09:47:36 | EF75: 5.432470898 | EH75: 4.18350226 | EI75: 237.5334 | EK75: 2013-07-18T12:20:00 | EM75: 3.029176542 | EN75: 2013-07-18T12:09:03 | EO75: 7.660445482 | EP75: 456.1116667 | ER75: 2013-07-21T16:10:06 | ET75: 1.226429359 | EV75: 1.05842937 | EY75: 2013-07-22T15:47:02 | FA75: 6.293352214 | FC75: 4.112862287 | FF75: 2013-07-25T15:39:02 | FH75: 1.273342675 | FJ75: 1.096648183 | FR75: 2016-07-19T13:29:49 | FS75: 284.233 | FU75: 1.595209665 | FW75: 2016-07-19T13:44:57 | FY75: 239.083 | GA75: 1.34181322 | HC75: 2018-07-30 | HD75: 20:59:00 | HI75: 2.264065077 | HJ75: 6.736542653 | HL75: 4.71 | HM75: 148.2 | HV75: 2003-06-26T12:50:36 | II75: 38167.5383 | IK75: 9.71 | IM75: 14.96 | IO75: 6.79 | JA75: 2002-06-23 | JB75: 14:52:03 | JC75: 296.8527 | JD75: 151.9196 | JE75: 90.7589 | JF75: 34.6205 | JG75: 10.8482 | JH75: 3.5045 | JI75: 0.3571 | JJ75: 0.2455 | JK75: 0.1563 | JL75: 0.0223 | JN75: 3.75 | JO75: 292.25 | JW75: 2003-06-26T12:50:21 | JY75: 80.49143 | JZ75: 43.78858 | KA75: 25.6 | KB75: 8.08001 | KC75: 2.22857 | KD75: 0.62858 | KE75: 0 | KF75: 0.4857 | KG75: 0.06858 | KH75: 0 | KJ75: 1.20 | KK75: 80.81144 | KR75: 38167.53824 | KS75: 321.376 | KT75: 3.71 | KU75: 5.900472301 | KV75: 3.930104659 | KW75: L | KX75: 321 | KY75: 167.4 | KZ75: 99.6 | LA75: 42.6 | LB75: 8.2 | LC75: 3 | LD75: 0.36 | LE75: 0.216 | LF75: 0.048 | LG75: 0.012 | LH75: 0.012 | LI75: 0.024 | LJ75: 0 | LK75: 0 | LL75: 0
A76: 2014-07-22 | B76: 13:07:38 | C76: 2014-07-22T13:07:38 | E76: 2014-07-22T13:07:37 | F76: 119.1001 | H76: 0.6684283944 | K76: 2014-07-22T13:07:37 | L76: 48.8834 | N76: 0.2743494974 | U76: 11:55:59 | V76: 11:55:20 | X76: 7.150506291 | Z76: 7.38153974 | AA76: 259.81 | AC76: 11:25:57 | AD76: 0.3069004175 | AE76: 0.4021807078 | AF76: 0.3626109689 | AG76: 0.2087784668 | AH76: 0.1669952845 | AI76: 0.01786937901 | AJ76: 0.05595058706 | AK76: 0.108401309 | AL76: 0.1010218388 | AM76: 0.310886773 | AN76: 0.4691445029 | AO76: 0.2261946711 | AP76: 0.6431101961 | AQ76: 0 | AR76: 11:25:15 | AT76: 1.883517695 | AU76: 115.53 | AV76: 1.521285812 | AY76: 10:36:35 | BA76: 1.864993462 | BB76: 10:44:45 | BC76: 2.408416559 | BD76: 134.03 | BF76: 12:20:11 | BH76: 3.758918359 | BI76: 12:20:23 | BJ76: 5.495598403 | BK76: 389.446 | BM76: 12:13:44 | BO76: 6.878197291 | BQ76: 8.698397659 | BR76: 5.726669058 | BT76: 10:08:15 | BV76: 1.775736075 | BX76: 4.658449825 | BY76: 118.3667 | CA76: 09:16:56 | CC76: 5.89083813 | CE76: 7.325591242 | CF76: 486.066 | CH76: 10:26:48 | CJ76: 3.635884397 | CL76: 5.864741234 | CM76: 370.068 | CO76: 10:50:11 | CQ76: 2.146604786 | CS76: 4.074026123 | CT76: 167.8668 | CV76: 09:39:36 | CX76: 2.588602577 | CZ76: 4.569952377 | DA76: 199.1001 | DC76: 40377.4698 | DE76: 2.605818398 | DG76: 4.867773239 | DH76: 207.62 | DJ76: 10:29:25 | DL76: 11.14048578 | DN76: 3.465421386 | DO76: 223.28 | DQ76: 10:40:46 | DS76: 15.88693278 | DU76: 6.387484259 | DV76: 329.72 | DW76: 2011-07-27T11:22:00.002 | DX76: 11:22:10 | DZ76: 2.435086235 | EB76: 5.272165229 | ED76: 2011-07-20T09:48:36 | EF76: 5.761741815 | EH76: 4.056087536 | EI76: 238.8667 | EK76: 2013-07-18T12:21:00 | EM76: 3.043225079 | EN76: 2013-07-18T12:10:03 | EO76: 7.605894507 | EP76: 406.3883333 | ER76: 2013-07-21T16:13:06 | ET76: 1.452794019 | EV76: 1.316616252 | EY76: 2013-07-22T15:50:02 | FA76: 6.06049171 | FC76: 4.05926627 | FF76: 2013-07-25T15:42:02 | FH76: 1.358120202 | FJ76: 1.112986782 | FR76: 2016-07-19T13:31:42 | FS76: 273.350 | FU76: 1.534128868 | FW76: 2016-07-19T13:46:50 | FY76: 237.383 | GA76: 1.332272268 | HC76: 2018-07-30 | HD76: 21:00:00 | HI76: 2.330227018 | HJ76: 6.217791093 | HL76: 4.65 | HM76: 149.7 | HV76: 2003-06-26T12:50:41 | II76: 38167.53836 | IK76: 9.59 | IM76: 8.44 | IO76: 6.73 | JA76: 2002-06-23 | JB76: 14:53:03 | JC76: 291.942 | JD76: 151.5179 | JE76: 90.4241 | JF76: 35.1786 | JG76: 10.4688 | JH76: 3.2813 | JI76: 0.4687 | JJ76: 0.1786 | JK76: 0.4018 | JL76: 0.0223 | JN76: 3.70 | JO76: 291.52 | JW76: 2003-06-26T12:50:26 | JY76: 79.31429 | JZ76: 43.21715 | KA76: 25.14286 | KB76: 8.06858 | KC76: 2.17143 | KD76: 0.51429 | KE76: 0.03429 | KF76: 0.4857 | KG76: 0.06858 | KH76: 0 | KJ76: 1.18 | KK76: 79.6343 | KR76: 38167.5383 | KS76: 299.9 | KT76: 3.49 | KU76: =((2*PI())/6*POWER(1,-6)*(POWER(0.175,3)*KY76+POWER(0.225,3)*KZ76+POWER(0.275,3)*LA76+POWER(0.35,3)*LB76+POWER(0.45,3)*LC76+POWER(0.6,3)*LD76+POWER(0.85,3)*LE76+POWER(1.25,3)*LF76+POWER(1.75,3)*LG76+POWER(2.5,3)*LH76+POWER(4,3)*LI76+POWER(6,3)*LJ76+POWER(8.5,3)*LK76+POWER(12.5,3)*LL76)) -> 7.393238273 | KV76: 3.581504637 | KW76: L | KX76: 300.2 | KY76: 150.8 | KZ76: 100.8 | LA76: 36.4 | LB76: 9 | LC76: 2.6 | LD76: 0.252 | LE76: 0.048 | LF76: 0.096 | LG76: 0.036 | LH76: 0.012 | LI76: 0.048 | LJ76: 0 | LK76: 0 | LL76: 0
A77: 2014-07-22 | B77: 13:08:43 | C77: 2014-07-22T13:08:43 | E77: 2014-07-22T13:08:37 | F77: 118.8167 | H77: 0.6668378617 | K77: 2014-07-22T13:08:37 | L77: 50.5 | N77: 0.283422381 | U77: 11:56:59 | V77: 11:56:20 | X77: 7.16556473 | Z77: 7.450926531 | AA77: 259.71 | AC77: 11:26:57 | AD77: 0.3134483164 | AE77: 0.3832935411 | AF77: 0.3680555781 | AG77: 0.2185079923 | AH77: 0.1431388153 | AI77: 0.02940530724 | AJ77: 0.07588700314 | AK77: 0.1268090785 | AL77: 0.1010218388 | AM77: 0.4908738521 | AN77: 0.6702064328 | AO77: 0.2261946711 | AP77: 0 | AQ77: 0 | AR77: 11:26:15 | AT77: 1.864896487 | AU77: 114.07 | AV77: 1.531736554 | AY77: 10:37:35 | BA77: 1.892207335 | BB77: 10:45:47 | BC77: 2.467903562 | BD77: 131.40 | BF77: 12:21:11 | BH77: 3.486324603 | BI77: 12:21:26 | BJ77: 5.227223923 | BK77: 386.974 | BM77: 12:14:44 | BO77: 7.656338179 | BQ77: 9.658120017 | BR77: 6.548462075 | BT77: 10:09:15 | BV77: 1.775342664 | BX77: 4.51065662 | BY77: 118.4334 | CA77: 09:17:56 | CC77: 5.807496962 | CE77: 7.438184025 | CF77: 477.538 | CH77: 10:27:48 | CJ77: 3.648136876 | CL77: 5.572930669 | CM77: 346.612 | CO77: 10:51:11 | CQ77: 2.30830928 | CS77: 3.952149444 | CT77: 169.3164 | CV77: 09:40:36 | CX77: 2.623052215 | CZ77: 4.684666487 | DA77: 200.1832 | DC77: 40377.4705 | DE77: 3.240223596 | DG77: 4.805366729 | DH77: 205.42 | DJ77: 10:30:25 | DL77: 10.96037958 | DN77: 3.428129214 | DO77: 225.13 | DQ77: 10:41:46 | DS77: 15.85863828 | DU77: 6.587068981 | DV77: 333.05 | DW77: 2011-07-27T11:23:00.002 | DX77: 11:23:10 | DZ77: 3.072497815 | EB77: 8.334153265 | ED77: 2011-07-20T09:49:36 | EF77: 7.099274982 | EH77: 4.154535617 | EI77: 235.55 | EK77: 2013-07-18T12:22:00 | EM77: 3.017972619 | EN77: 2013-07-18T12:11:03 | EO77: 7.563874942 | EP77: 396.3883333 | ER77: 2013-07-21T16:16:06 | ET77: 1.992466044 | EV77: 1.320917053 | EY77: 2013-07-22T15:53:02 | FA77: 5.890701714 | FC77: 3.96975002 | FF77: 2013-07-25T15:45:02 | FH77: 1.299377687 | FJ77: 1.126550086 | FR77: 2016-07-19T13:33:36 | FS77: 273.200 | FU77: 1.53328702 | FW77: 2016-07-19T13:48:44 | FY77: 236.183 | GA77: 1.325537479 | HC77: 2018-07-30 | HD77: 21:01:00 | HI77: 2.515856119 | HJ77: 6.879839038 | HL77: 4.49 | HM77: 148.25 | HV77: 2003-06-26T12:50:46 | II77: 38167.53841 | IK77: 9.62 | IM77: 12.97 | IO77: 9.93 | JA77: 2002-06-23 | JB77: 14:54:03 | JC77: 298 | JD77: 157.1209 | JE77: 90.3736 | JF77: 34.8571 | JG77: 10.6374 | JH77: 3.4945 | JI77: 0.4835 | JJ77: 0.4835 | JK77: 0.5275 | JL77: 0.022 | JN77: 3.95 | JO77: 297.45 | JW77: 2003-06-26T12:50:31 | JY77: 78.13144 | JZ77: 43.04572 | KA77: 24.29143 | KB77: 8.03429 | KC77: 2.09143 | KD77: 0.50857 | KE77: 0.03429 | KF77: 0.2857 | KG77: 0.06858 | KH77: 0 | KJ77: 1.04 | KK77: 78.29143 | KR77: 38167.53836 | KS77: 317.768 | KT77: 3.70 | KU77: 5.464420681 | KV77: 4.004365495 | KW77: L | KX77: 317.2 | KY77: 155.4 | KZ77: 109.6 | LA77: 40 | LB77: 9.8 | LC77: 2.2 | LD77: 0.456 | LE77: 0.312 | LF77: 0.168 | LG77: 0.024 | LH77: 0.06 | LI77: 0 | LJ77: 0 | LK77: 0 | LL77: 0
A78: 2014-07-22 | B78: 13:09:48 | C78: 2014-07-22T13:09:48 | E78: 2014-07-22T13:09:37 | F78: 124.3333 | H78: 0.6977988103 | K78: 2014-07-22T13:09:37 | L78: 49.1667 | N78: 0.2759394689 | U78: 11:57:59 | V78: 11:57:20 | X78: 7.180623169 | Z78: 7.384883947 | AA78: 257.59 | AC78: 11:27:57 | AD78: 0.3018493256 | AE78: 0.4019815062 | AF78: 0.3713223436 | AG78: 0.1908190288 | AH78: 0.1224600278 | AI78: 0.01967893638 | AJ78: 0.05659369726 | AK78: 0.1022653859 | AL78: 0.05051091938 | AM78: 0.3599741582 | AN78: 0.6031857895 | AO78: 0 | AP78: 0.6431101961 | AQ78: 0 | AR78: 11:27:15 | AT78: 1.822606432 | AU78: 113.67 | AV78: 1.464704866 | AY78: 10:38:35 | BA78: 1.884943204 | BB78: 10:46:48 | BC78: 2.375128222 | BD78: 133.99 | BF78: 12:22:11 | BH78: 3.548082862 | BI78: 12:22:29 | BJ78: 5.120041029 | BK78: 388.258 | BM78: 12:15:44 | BO78: 7.808219618 | BQ78: 11.21341062 | BR78: 6.674429 | BT78: 10:10:15 | BV78: 1.898956128 | BX78: 4.406848242 | BY78: 117.7667 | CA78: 09:18:56 | CC78: 5.777602463 | CE78: 7.330857664 | CF78: 476.618 | CH78: 10:28:48 | CJ78: 3.665614129 | CL78: 5.752955938 | CM78: 355.47 | CO78: 10:52:11 | CQ78: 2.108372658 | CS78: 3.903383744 | CT78: 165.5666 | CV78: 09:41:36 | CX78: 2.637384151 | CZ78: 4.725564951 | DA78: 200.7832 | DC78: 40377.47119 | DE78: 6.197384889 | DG78: 4.641011794 | DH78: 201.60 | DJ78: 10:31:25 | DL78: 11.18850323 | DN78: 3.45737321 | DO78: 227.75 | DQ78: 10:42:46 | DS78: 16.24899745 | DU78: 5.264849982 | DV78: 328.68 | DW78: 2011-07-27T11:24:00.002 | DX78: 11:24:10 | DZ78: 2.772549514 | EB78: 5.321324465 | ED78: 2011-07-20T09:50:36 | EF78: 5.298665275 | EH78: 4.768419958 | EI78: 237.75 | EK78: 2013-07-18T12:23:00 | EM78: 2.978539632 | EN78: 2013-07-18T12:12:03 | EO78: 8.326939027 | EP78: 420.555 | ER78: 2013-07-21T16:19:06 | ET78: 1.248689794 | EV78: 1.100186835 | EY78: 2013-07-22T15:56:02 | FA78: 5.32305805 | FC78: 4.845412062 | FF78: 2013-07-25T15:48:02 | FH78: 1.299533709 | FJ78: 1.1203451 | FR78: 2016-07-19T13:35:29 | FS78: 264.767 | FU78: 1.485956417 | FW78: 2016-07-19T13:50:37 | FY78: 239.083 | GA78: 1.34181322 | HC78: 2018-07-30 | HD78: 21:02:00 | HI78: 2.392749375 | HJ78: 6.549317229 | HL78: 4.80 | HM78: 149.85 | HV78: 2003-06-26T12:50:51 | II78: 38167.53847 | IK78: 13.50 | IM78: 18.07 | IO78: 17.61 | JN78: 0.00 | JO78: 0.00 | JW78: 2003-06-26T12:50:36 | JY78: 77.20572 | JZ78: 42.22287 | KA78: 24.46285 | KB78: 7.96572 | KC78: 1.92 | KD78: 0.44 | KE78: 0.03429 | KF78: 0.3047666667 | KG78: 0.06858 | KH78: 0 | KJ78: 1.03 | KK78: 77.35049667 | KR78: 38167.53841 | KS78: 315.468 | KT78: 3.55 | KU78: 10.35388226 | KV78: 3.723354614 | KW78: L | KX78: 315.6 | KY78: 169.6 | KZ78: 99 | LA78: 34.6 | LB78: 9.2 | LC78: 2.6 | LD78: 0.3 | LE78: 0.168 | LF78: 0.084 | LG78: 0.024 | LH78: 0.024 | LI78: 0.048 | LJ78: 0.012 | LK78: 0 | LL78: 0
A79: 2014-07-22 | B79: 13:10:53 | C79: 2014-07-22T13:10:53 | E79: 2014-07-22T13:10:37 | F79: 129.5001 | H79: 0.7267965679 | K79: 2014-07-22T13:10:37 | L79: 53.2835 | N79: 0.2990442859 | U79: 11:58:59 | V79: 11:58:20 | X79: 7.277503996 | Z79: 7.12745271 | AA79: 256.44 | AC79: 11:28:57 | AD79: 0.2987625472 | AE79: 0.3982038343 | AF79: 0.3764032528 | AG79: 0.215513256 | AH79: 0.1335962276 | AI79: 0.02985769658 | AJ79: 0.09067853765 | AK79: 0.1840776945 | AL79: 0.1627574069 | AM79: 0.5890486225 | AN79: 0.6702064328 | AO79: 0 | AP79: 0 | AQ79: 0 | AR79: 11:28:15 | AT79: 1.902614143 | AU79: 116.47 | AV79: 1.543015352 | AY79: 10:40:35 | BA79: 2.080049206 | BB79: 10:47:50 | BC79: 2.565148763 | BD79: 137.69 | BF79: 12:23:11 | BH79: 4.253350117 | BI79: 12:23:32 | BJ79: 6.217569807 | BK79: 392.32 | BM79: 12:16:44 | BO79: 7.249217765 | BQ79: 10.14436548 | BR79: 6.542044879 | BT79: 10:11:15 | BV79: 1.907697144 | BX79: 4.488675322 | BY79: 122.9166 | CA79: 09:19:56 | CC79: 5.869655992 | CE79: 7.566740124 | CF79: 486.208 | CH79: 10:29:48 | CJ79: 3.488967147 | CL79: 5.526065863 | CM79: 363.36 | CO79: 10:53:11 | CQ79: 2.19597431 | CS79: 4.075317253 | CT79: 169.8168 | CV79: 09:42:36 | CX79: 2.704861549 | CZ79: 4.868028847 | DA79: 202.1334 | DC79: 40377.47189 | DE79: 6.643410891 | DG79: 4.721136465 | DH79: 205.30 | DJ79: 10:32:25 | DL79: 10.95563905 | DN79: 3.25930688 | DO79: 223.87 | DQ79: 10:43:46 | DS79: 18.60437003 | DU79: 6.05632257 | DV79: 357.15 | DW79: 2011-07-27T11:25:00.002 | DX79: 11:25:10 | DZ79: 4.563977948 | EB79: 9.809785918 | ED79: 2011-07-20T09:51:36 | EF79: 4.418610477 | EH79: 3.515708521 | EI79: 231.3667 | EK79: 2013-07-18T12:24:00 | EM79: 2.920569884 | EN79: 2013-07-18T12:13:03 | EO79: 8.156482482 | EP79: 397.5016667 | ER79: 2013-07-21T16:22:06 | ET79: 3.8692874 | EV79: 1.829030778 | EY79: 2013-07-22T15:59:02 | FA79: 5.144657953 | FC79: 4.983111859 | FF79: 2013-07-25T15:51:02 | FH79: 1.284194104 | FJ79: 1.117413783 | FR79: 2016-07-19T13:37:22 | FS79: 258.867 | FU79: 1.452843703 | FW79: 2016-07-19T13:52:30 | FY79: 236.217 | GA79: 1.325724556 | HC79: 2018-07-30 | HD79: 21:03:00 | HI79: 2.300427784 | HJ79: 7.135263038 | HL79: 4.65 | HM79: 146.3 | HV79: 2003-06-26T12:50:56 | II79: 38167.53853 | IK79: 38.33 | IM79: 32.70 | IO79: 35.47 | JN79: 0.00 | JO79: 0.00 | JW79: 2003-06-26T12:50:41 | JY79: 77.92001 | JZ79: 43.32001 | KA79: 24.27428 | KB79: 7.71429 | KC79: 1.96 | KD79: 0.42286 | KE79: 0.03429 | KF79: 0.3047666667 | KG79: 0.10287 | KH79: 0 | KJ79: 1.03 | KK79: 78.03049667 | KR79: 38167.53847 | KS79: 309.644 | KT79: 3.61 | KU79: 14.29986047 | KV79: 3.783379061 | KW79: L | KX79: 310 | KY79: 156 | KZ79: 99.8 | LA79: 41.6 | LB79: 9.6 | LC79: 2.2 | LD79: 0.276 | LE79: 0.168 | LF79: 0.06 | LG79: 0.012 | LH79: 0.012 | LI79: 0.036 | LJ79: 0 | LK79: 0.012 | LL79: 0
A80: 2014-07-22 | B80: 13:11:58 | C80: 2014-07-22T13:11:58 | E80: 2014-07-22T13:11:37 | F80: 131.95 | H80: 0.7405462014 | K80: 2014-07-22T13:11:37 | L80: 50.9334 | N80: 0.2858547624 | U80: 11:59:59 | V80: 11:59:20 | X80: 7.355255175 | Z80: 7.099460781 | AA80: 261.6 | AC80: 11:29:57 | AD80: 0.322895542 | AE80: 0.4160961863 | AF80: 0.3760417308 | AG80: 0.2162630626 | AH80: 0.1431388153 | AI80: 0.08165627625 | AJ80: 0.298403131 | AK80: 0.5379159296 | AL80: 0.6341926545 | AM80: 1.538071403 | AN80: 1.608495439 | AO80: 0.6785840132 | AP80: 0 | AQ80: 0 | AR80: 11:29:15 | AT80: 2.005774919 | AU80: 116.32 | AV80: 1.854494744 | AY80: 10:42:35 | BA80: 2.013708343 | BB80: 10:48:51 | BC80: 2.473924766 | BD80: 135.41 | BF80: 12:24:11 | BH80: 3.998810577 | BI80: 12:24:36 | BJ80: 5.916054994 | BK80: 380.14 | BM80: 12:17:44 | BO80: 7.300769663 | BQ80: 10.2501183 | BR80: 6.227843397 | BT80: 10:12:15 | BV80: 1.839593669 | BX80: 4.432089837 | BY80: 120.65 | CA80: 09:20:56 | CC80: 5.655745097 | CE80: 7.422434796 | CF80: 476.548 | CH80: 10:30:48 | CJ80: 3.552801199 | CL80: 5.561330895 | CM80: 357.982 | CO80: 10:54:11 | CQ80: 2.325945048 | CS80: 4.203467497 | CT80: 170.3834 | CV80: 09:43:36 | CX80: 2.600443852 | CZ80: 4.63188557 | DA80: 202.2 | DC80: 40377.47258 | DE80: 4.57011345 | DG80: 2.896992993 | DH80: 204.83 | DJ80: 10:33:25 | DL80: 10.84002851 | DN80: 3.432778527 | DO80: 223.80 | DQ80: 10:44:46 | DS80: 20.65460144 | DU80: 6.862576144 | DV80: 399.62 | DW80: 2011-07-27T11:26:00.002 | DX80: 11:26:10 | DZ80: 2.977959089 | EB80: 8.338566463 | ED80: 2011-07-20T09:52:36 | EF80: 6.445225467 | EK80: 2013-07-18T12:25:00 | EM80: 3.053742597 | EN80: 2013-07-18T12:14:03 | EO80: 8.026679345 | EP80: 415 | ER80: 2013-07-21T16:25:06 | ET80: 8.684163286 | EV80: 2.982122532 | EY80: 2013-07-22T16:02:02 | FA80: 5.386874505 | FC80: 5.26731481 | FF80: 2013-07-25T15:54:02 | FH80: 1.311755668 | FJ80: 1.114576753 | FR80: 2016-07-19T13:39:16 | FS80: 258.117 | FU80: 1.44863446 | FW80: 2016-07-19T13:54:24 | FY80: 235.717 | GA80: 1.322918394 | HC80: 2018-07-30 | HD80: 21:04:00 | HI80: 2.294543925 | HJ80: 6.813166097 | HL80: 4.60 | HM80: 145.8 | HV80: 2003-06-26T13:00:15 | HX80: 126.9604102 | HZ80: 97.61915833 | II80: 38167.53859 | IK80: 21.44 | IM80: 14.57 | IO80: 23.22 | JA80: 2002-06-23 | JB80: 15:15:03 | JC80: 327.2991 | JD80: 170.8482 | JE80: 100.3125 | JF80: 38.75 | JG80: 11.3616 | JH80: 3.5491 | JI80: 0.6027 | JJ80: 0.4687 | JK80: 1.0268 | JL80: 0.3795 | JN80: 4.29 | JO80: 325.89 | JW80: 2003-06-26T12:50:46 | JY80: 77.21144 | JZ80: 42.27429 | KA80: 24.51999 | KB80: 7.63429 | KC80: 2.05714 | KD80: 0.44571 | KE80: 0.03429 | KF80: 0.44285 | KG80: 0.06858 | KH80: 0 | KJ80: 1.12 | KK80: 77.40856 | KR80: 38167.53853 | KS80: 305.42 | KT80: 3.66 | KU80: 30.45357162 | KV80: 3.817381958 | KW80: L | KX80: 305 | KY80: 149 | KZ80: 99.8 | LA80: 43.2 | LB80: 10.8 | LC80: 2.2 | LD80: 0.276 | LE80: 0.144 | LF80: 0.084 | LG80: 0.024 | LH80: 0.06 | LI80: 0.012 | LJ80: 0 | LK80: 0 | LL80: 0.012
A81: 2014-07-22 | B81: 13:13:03 | C81: 2014-07-22T13:13:03 | E81: 2014-07-22T13:12:37 | F81: 127.3666 | H81: 0.7148226739 | K81: 2014-07-22T13:12:37 | L81: 51.0333 | N81: 0.2864154336 | U81: 12:00:59 | V81: 12:00:20 | X81: 7.159154114 | Z81: 7.237857176 | AA81: 261.55 | AC81: 11:30:57 | AD81: 0.3088647311 | AE81: 0.4131141276 | AF81: 0.3796700183 | AG81: 0.2162630626 | AH81: 0.1638176028 | AI81: 0.05745344645 | AJ81: 0.1813570753 | AK81: 0.3313398502 | AL81: 0.3255148138 | AM81: 1.030835089 | AN81: 1.340412866 | AO81: 0.6785840132 | AP81: 0 | AQ81: 0 | AR81: 11:30:15 | AT81: 1.931135913 | AU81: 117.21 | AV81: 1.720540064 | AY81: 10:41:35 | BA81: 2.065023854 | BB81: 10:49:53 | BC81: 2.413004412 | BD81: 137.56 | BF81: 12:25:11 | BH81: 3.529853593 | BI81: 12:25:39 | BJ81: 5.43684652 | BK81: 388.412 | BM81: 12:18:44 | BO81: 7.14619464 | BQ81: 9.830153369 | BR81: 5.948436968 | BT81: 10:13:15 | BV81: 1.909064678 | BX81: 4.554682078 | BY81: 118.4167 | CA81: 09:21:56 | CC81: 5.658661789 | CE81: 7.44292603 | CF81: 478.624 | CH81: 10:31:48 | CJ81: 3.508494109 | CL81: 5.415283128 | CM81: 354.78 | CO81: 10:55:11 | CQ81: 2.29541592 | CS81: 3.975393499 | CT81: 167.6833 | CV81: 09:44:36 | CX81: 2.677425309 | CZ81: 4.620302747 | DA81: 197.3834 | DC81: 40377.47328 | DE81: 2.899657844 | DG81: 4.046517756 | DH81: 177.93 | DJ81: 10:34:25 | DL81: 11.14460977 | DN81: 3.379281313 | DO81: 222.30 | DQ81: 10:45:46 | DS81: 17.53443508 | DU81: 6.097353863 | DV81: 384.27 | DW81: 2011-07-27T11:27:00.002 | DX81: 11:27:10 | DZ81: 6.219138486 | EB81: 15.19740784 | ED81: 2011-07-20T09:53:36 | EF81: 7.242079095 | EK81: 2013-07-18T12:26:00 | EM81: 3.113833192 | EN81: 2013-07-18T12:15:03 | EO81: 7.109046175 | EP81: 415.5533333 | ER81: 2013-07-21T16:28:06 | ET81: 2.004868106 | EV81: 1.44613499 | EY81: 2013-07-22T16:05:02 | FA81: 5.87010243 | FC81: 5.490397424 | FF81: 2013-07-25T15:57:02 | FH81: 1.433980307 | FJ81: 1.15208504 | FR81: 2016-07-19T13:41:09 | FS81: 255.983 | FU81: 1.436661502 | FW81: 2016-07-19T13:56:17 | FY81: 234.683 | GA81: 1.317118992 | HC81: 2018-07-30 | HD81: 21:05:00 | HI81: 2.180760348 | HJ81: 6.058565359 | HL81: 4.49 | HM81: 146.125 | II81: 38167.53865 | IK81: 9.54 | IM81: 11.81 | IO81: 6.79 | JA81: 2002-06-23 | JB81: 15:16:03 | JC81: 353.5268 | JD81: 180.9375 | JE81: 110.4464 | JF81: 42.4554 | JG81: 12.7232 | JH81: 4.1518 | JI81: 0.4911 | JJ81: 0.7143 | JK81: 1.1161 | JL81: 0.4911 | JN81: 4.80 | JO81: 351.92 | JW81: 2003-06-26T12:50:51 | JY81: 77.24572 | JZ81: 42.06857 | KA81: 24.58856 | KB81: 7.80571 | KC81: 2.16 | KD81: 0.34285 | KE81: 0.03429 | KF81: 0.44285 | KG81: 0.06858 | KH81: 0 | KJ81: 1.12 | KK81: 77.44283 | KR81: 38167.53859 | KS81: 298.724 | KT81: 3.39 | KU81: 18.17081967 | KV81: 3.498011183 | KW81: L | KX81: 299.2 | KY81: 157.6 | KZ81: 91 | LA81: 38.8 | LB81: 9.4 | LC81: 1.6 | LD81: 0.24 | LE81: 0.084 | LF81: 0.132 | LG81: 0.084 | LH81: 0.048 | LI81: 0 | LJ81: 0.024 | LK81: 0.012 | LL81: 0
A82: 2014-07-22 | B82: 13:14:08 | C82: 2014-07-22T13:14:08 | E82: 2014-07-22T13:13:37 | F82: 123.8001 | H82: 0.694806319 | K82: 2014-07-22T13:13:37 | L82: 50.55 | N82: 0.2837029972 | U82: 12:01:59 | V82: 12:01:20 | X82: 7.334310962 | Z82: 7.177167751 | AA82: 260.45 | AC82: 11:31:57 | AD82: 0.3156932461 | AE82: 0.426037177 | AF82: 0.3803974181 | AG82: 0.2229978518 | AH82: 0.146316497 | AI82: 0.04365557151 | AJ82: 0.134410031 | AK82: 0.2393010029 | AL82: 0.2301052994 | AM82: 0.7690357017 | AN82: 1.340412866 | AO82: 0.6785840132 | AP82: 0 | AQ82: 0 | AR82: 11:31:15 | AT82: 1.976947716 | AU82: 119.92 | AV82: 1.669507793 | AY82: 10:39:35 | BA82: 1.995734728 | BB82: 10:50:55 | BC82: 2.334797844 | BD82: 137.81 | BF82: 12:26:11 | BH82: 3.61442579 | BI82: 12:26:42 | BJ82: 5.475887592 | BK82: 390.058 | BM82: 12:19:44 | BO82: 7.18314696 | BQ82: 9.391924199 | BR82: 6.093881166 | BT82: 10:14:15 | BV82: 1.891456069 | BX82: 4.603738837 | BY82: 120.2166 | CA82: 09:22:56 | CC82: 5.546428362 | CE82: 7.297374112 | CF82: 470.67 | CH82: 10:32:48 | CJ82: 3.524650984 | CL82: 5.507051766 | CM82: 356.432 | CO82: 10:56:11 | CQ82: 2.0563273 | CS82: 3.950355889 | CT82: 164.6 | CV82: 09:45:36 | CX82: 2.557752355 | CZ82: 4.85838586 | DA82: 201.1 | DC82: 40377.47397 | DE82: 2.942834377 | DG82: 5.310944465 | DH82: 190.97 | DJ82: 10:35:25 | DL82: 10.86895557 | DN82: 3.325353916 | DO82: 223.03 | DQ82: 10:46:46 | DS82: 16.38188431 | DU82: 5.682940371 | DV82: 336.80 | DW82: 2011-07-27T11:28:00.002 | DX82: 11:28:10 | DZ82: 3.744377946 | EB82: 9.34911057 | ED82: 2011-07-20T09:54:36 | EF82: 8.474492954 | EH82: 5.028840792 | EI82: 227.0833 | EK82: 2013-07-18T12:27:00 | EM82: 3.008643016 | EN82: 2013-07-18T12:16:03 | EO82: 8.107974628 | EP82: 395.8333333 | ER82: 2013-07-21T16:31:06 | ET82: 1.28863825 | EV82: 1.150418775 | EY82: 2013-07-22T16:08:02 | FA82: 5.233299358 | FC82: 5.106658641 | FF82: 2013-07-25T16:00:02 | FH82: 1.341095777 | FJ82: 1.106843532 | FR82: 2016-07-19T13:43:02 | FS82: 255.633 | FU82: 1.434697188 | FW82: 2016-07-19T13:58:10 | FY82: 231.400 | GA82: 1.298691861 | HC82: 2018-07-30 | HD82: 21:06:00 | HI82: 2.073691925 | HJ82: 6.021088613 | HL82: 4.55 | HM82: 147.45 | II82: 38167.5387 | IK82: 9.66 | IM82: 11.51 | IO82: 6.86 | JA82: 2002-06-23 | JB82: 15:17:03 | JC82: 352.5495 | JD82: 181.6484 | JE82: 108.5934 | JF82: 42.6154 | JG82: 13.6264 | JH82: 4.2637 | JI82: 0.5495 | JJ82: 0.4835 | JK82: 0.5714 | JL82: 0.1978 | JN82: 4.70 | JO82: 351.78 | JW82: 2003-06-26T12:50:56 | JY82: 78.87429 | JZ82: 42.92572 | KA82: 24.95999 | KB82: 8.00571 | KC82: 2.36 | KD82: 0.34285 | KE82: 0.03429 | KF82: 0.44285 | KG82: 0.06858 | KH82: 0 | KJ82: 1.14 | KK82: 79.07141 | KR82: 38167.53865 | KS82: 308.068 | KT82: 3.57 | KU82: 8.625394343 | KV82: 3.750624293 | KW82: L | KX82: 308.2 | KY82: 154.4 | KZ82: 102 | LA82: 40.6 | LB82: 8 | LC82: 2.6 | LD82: 0.3 | LE82: 0.168 | LF82: 0.108 | LG82: 0.024 | LH82: 0.012 | LI82: 0.024 | LJ82: 0.012 | LK82: 0 | LL82: 0
E83: 2014-07-22T13:14:37 | F83: 128.9834 | H83: 0.7238966799 | K83: 2014-07-22T13:14:37 | L83: 51.9667 | N83: 0.2916539771 | U83: 12:02:59 | V83: 12:02:20 | X83: 7.426118608 | Z83: 7.186645056 | AA83: 263.94 | AC83: 11:32:57 | AD83: 0.3138226584 | AE83: 0.4202710684 | AF83: 0.3836641836 | AG83: 0.2117732031 | AH83: 0.1606303785 | AI83: 0.07622760415 | AJ83: 0.2469543153 | AK83: 0.5358706219 | AL83: 0.4377613013 | AM83: 1.259909554 | AN83: 1.474454152 | AO83: 0.2261946711 | AP83: 0 | AQ83: 0 | AR83: 11:32:15 | AT83: 1.92499799 | AU83: 117.08 | AV83: 1.813343411 | AY83: 10:43:35 | BA83: 2.05012505 | BB83: 10:51:56 | BC83: 2.367188246 | BD83: 146.86 | BF83: 12:27:11 | BH83: 3.571079244 | BI83: 12:27:46 | BJ83: 5.791186045 | BK83: 394.736 | BM83: 12:20:44 | BO83: 7.312526006 | BQ83: 9.831499378 | BR83: 6.205635276 | BT83: 10:15:15 | BV83: 1.958641864 | BX83: 4.915276239 | BY83: 121.0166 | CA83: 09:23:56 | CC83: 5.720254628 | CE83: 7.172111744 | CF83: 468.43 | CH83: 10:33:48 | CJ83: 3.399538475 | CL83: 5.114301961 | CM83: 339.714 | CO83: 10:57:11 | CQ83: 2.101195011 | CS83: 3.749835066 | CT83: 166.7833 | CV83: 09:46:36 | CX83: 2.864469455 | CZ83: 5.130181599 | DA83: 201.3332 | DC83: 40377.47466 | DE83: 2.887448952 | DG83: 4.332462981 | DH83: 185.80 | DJ83: 10:36:25 | DL83: 11.81215154 | DN83: 3.26741125 | DO83: 216.90 | DQ83: 10:47:46 | DS83: 15.91664393 | DU83: 5.70075505 | DV83: 330.55 | DW83: 2011-07-27T11:29:00.002 | DX83: 11:29:10 | DZ83: 5.37914429 | EB83: 11.35774138 | ED83: 2011-07-20T09:55:36 | EF83: 9.378516828 | EH83: 6.028759002 | EI83: 229.5833 | EK83: 2013-07-18T12:28:00 | EM83: 3.03192789 | EN83: 2013-07-18T12:17:03 | EO83: 7.396309507 | EP83: 382.2216667 | ER83: 2013-07-21T16:34:06 | ET83: 1.841676667 | EV83: 1.372885071 | EY83: 2013-07-22T16:11:02 | FA83: 5.254550766 | FC83: 5.218944982 | FF83: 2013-07-25T16:03:02 | FH83: 1.274215953 | FJ83: 1.067526954 | FR83: 2016-07-19T13:44:56 | FS83: 252.017 | FU83: 1.414399281 | FW83: 2016-07-19T14:00:04 | FY83: 230.967 | GA83: 1.296259853 | HC83: 2018-07-30 | HD83: 21:07:00 | HI83: 2.106987162 | HJ83: 6.631344459 | HL83: 4.61 | HM83: 146.025 | HV83: 2003-06-26T13:20:49 | HX83: 158.9061731 | HZ83: 140.9402452 | II83: 38167.53876 | IK83: 8.51 | IM83: 11.51 | IO83: 13.87 | JA83: 2002-06-23 | JB83: 15:18:03 | JC83: 362.7455 | JD83: 193.5491 | JE83: 107.8348 | JF83: 42.6786 | JG83: 12.6339 | JH83: 4.1295 | JI83: 0.4911 | JJ83: 0.3795 | JK83: 0.558 | JL83: 0.4911 | JN83: 4.62 | JO83: 361.70 | JW83: 2003-06-26T13:00:15 | JY83: 109.4062625 | JZ83: 55.9703375 | KA83: 36.003325 | KB83: 12.6978625 | KC83: 3.626175 | KD83: 0.9054125 | KE83: 0.07715 | KF83: 0.04888571429 | KG83: 0.0499875 | KH83: 0.033225 | KJ83: 1.32 | KK83: 109.3291482 | KR83: 38167.5387 | KS83: 302.08 | KT83: 3.55 | KU83: 4.687171809 | KV83: 3.717990475 | KW83: L | KX83: 302.2 | KY83: 151.8 | KZ83: 96.6 | LA83: 42.6 | LB83: 7.8 | LC83: 2.8 | LD83: 0.336 | LE83: 0.144 | LF83: 0.12 | LG83: 0.024 | LH83: 0.036 | LI83: 0 | LJ83: 0 | LK83: 0 | LL83: 0
A84: 2014-07-22 | B84: 13:15:13 | C84: =A84+B84 -> 2014-07-22T13:15:13 | E84: 2014-07-22T13:15:37 | F84: 128.8999 | H84: 0.7234280508 | K84: 2014-07-22T13:15:37 | L84: 50.8834 | N84: 0.2855741462 | U84: 12:03:59 | V84: 12:03:20 | X84: 7.294953384 | Z84: 7.290193561 | AA84: 260.75 | AC84: 11:33:57 | AD84: 0.318966915 | AE84: 0.4224587066 | AF84: 0.3742254092 | AG84: 0.2349678173 | AH84: 0.1669952845 | AI84: 0.117621229 | AJ84: 0.3942265502 | AK84: 0.7260842396 | AL84: 0.7801130883 | AM84: 1.701696021 | AN84: 2.546784445 | AO84: 1.809557368 | AP84: 0.6431101961 | AQ84: 2.045307717 | AR84: 11:33:15 | AT84: 2.058683302 | AU84: 120.79 | AV84: 2.029461912 | AY84: 10:44:35 | BA84: 2.004162031 | BB84: 10:52:57 | BC84: 2.488792426 | BD84: 148.13 | BF84: 12:28:11 | BH84: 4.017396208 | BI84: 12:28:49 | BJ84: 5.762748152 | BK84: 392.364 | BM84: 12:21:44 | BO84: 6.965733032 | BQ84: 9.135602244 | BR84: 5.787648877 | BT84: 10:16:15 | BV84: 1.955767665 | BX84: 4.536703806 | BY84: 120.1501 | CA84: 09:24:56 | CC84: 5.590232322 | CE84: 7.422548351 | CF84: 473.748 | CH84: 10:34:48 | CJ84: 3.583368302 | CL84: 5.534501203 | CM84: 340.098 | CO84: 10:58:11 | CQ84: 2.187621779 | CS84: 3.795384821 | CT84: 163.7 | CV84: 09:47:36 | CX84: 2.699981376 | CZ84: 4.820108171 | DA84: 197.5998 | DC84: 40377.47536 | DE84: 2.696865311 | DG84: 4.673623085 | DH84: 195.48 | DJ84: 10:37:25 | DL84: 11.52552831 | DN84: 3.373764313 | DO84: 219.48 | DQ84: 10:48:46 | DS84: 16.6912177 | DU84: 5.747026408 | DV84: 348.45 | DW84: 2011-07-27T11:30:00.002 | DX84: 11:30:10 | DZ84: 3.687229617 | EB84: 6.91492714 | ED84: 2011-07-20T09:56:36 | EF84: 9.166130225 | EH84: 6.309118953 | EI84: 218 | EK84: 2013-07-18T12:29:00 | EM84: 2.990132163 | EN84: 2013-07-18T12:18:03 | EO84: 7.104047579 | EP84: 394.1666667 | ER84: 2013-07-21T16:37:06 | ET84: 3.558722625 | EV84: 1.874009684 | EY84: 2013-07-22T16:14:02 | FA84: 4.758531072 | FC84: 4.69539006 | FF84: 2013-07-25T16:06:02 | FH84: 1.333300259 | FJ84: 1.099266894 | FR84: 2016-07-19T13:46:49 | FS84: 252.500 | FU84: 1.417111905 | FW84: 2016-07-19T14:01:57 | FY84: 227.900 | GA84: 1.279048725 | HC84: 2018-07-30 | HD84: 21:08:00 | HI84: 2.083191807 | HJ84: 6.496059135 | HL84: 4.75 | HM84: 146.425 | HV84: 2003-06-26T13:30:49 | HX84: 130.3561697 | HZ84: 98.61637508 | II84: 38167.53882 | IK84: 9.46 | IM84: 11.56 | IO84: 6.83 | JA84: 2002-06-23 | JB84: 15:19:03 | JC84: 366.2857 | JD84: 185.4505 | JE84: 111.4505 | JF84: 45.0769 | JG84: 12.5055 | JH84: 4.7692 | JI84: 1.1209 | JJ84: 1.011 | JK84: 3.2747 | JL84: 1.6264 | JN84: 5.27 | JO84: 361.38 | KJ84: 0.00 | KK84: 0 | KR84: 38167.53876 | KS84: 297.068 | KT84: 3.34 | KU84: 12.24149839 | KV84: 3.491966497 | KW84: L | KX84: 297 | KY84: 152.8 | KZ84: 98.6 | LA84: 35.6 | LB84: 7.6 | LC84: 2 | LD84: 0.36 | LE84: 0.108 | LF84: 0.06 | LG84: 0 | LH84: 0.048 | LI84: 0.036 | LJ84: 0.024 | LK84: 0 | LL84: 0
A85: 2014-07-22 | B85: 13:16:18 | C85: 2014-07-22T13:16:18 | E85: 2014-07-22T13:16:37 | F85: 130.4167 | H85: 0.7319408244 | K85: 2014-07-22T13:16:37 | L85: 50.6167 | N85: 0.2840773392 | U85: 12:04:59 | V85: 12:04:20 | X85: 7.298780138 | Z85: 7.364750491 | AA85: 262.52 | AC85: 11:34:57 | AD85: 0.3252341976 | AE85: 0.4149033628 | AF85: 0.4029010766 | AG85: 0.21027359 | AH85: 0.1654016723 | AI85: 0.05111999566 | AJ85: 0.1401980228 | AK85: 0.2515728492 | AL85: 0.2301052994 | AM85: 0.6381360078 | AN85: 0.6031857895 | AO85: 0.4523893421 | AP85: 0.6431101961 | AQ85: 0 | AR85: 11:34:15 | AT85: 1.903188283 | AU85: 117.33 | AV85: 1.710031918 | AY85: 10:45:35 | BA85: 1.952051648 | BB85: 10:53:59 | BC85: 2.558679772 | BD85: 153.59 | BF85: 12:29:11 | BH85: 0 | BI85: 12:29:52 | BJ85: 5.569436643 | BK85: 394.676 | BM85: 12:22:44 | BO85: 7.033243269 | BQ85: 8.779416519 | BR85: 5.903130606 | BT85: 10:17:15 | BV85: 1.853174694 | BX85: 4.617438193 | BY85: 120.4501 | CA85: 09:25:56 | CC85: 5.615427119 | CE85: 7.281579689 | CF85: 476.022 | CH85: 10:35:48 | CJ85: 3.555248935 | CL85: 5.798597684 | CM85: 352.746 | CO85: 10:59:11 | CQ85: 2.078366808 | CS85: 3.828869094 | CT85: 164.3833 | CV85: 09:48:36 | CX85: 2.487175074 | CZ85: 4.552142622 | DA85: 192.9668 | DC85: 40377.47605 | DE85: 2.895146121 | DG85: 4.593116318 | DH85: 196.72 | DJ85: 10:38:25 | DL85: 11.21990587 | DN85: 3.440166268 | DO85: 232.05 | DQ85: 10:49:46 | DS85: 21.22020245 | DU85: 6.864816783 | DV85: 349.33 | DW85: 2011-07-27T11:31:00.002 | DX85: 11:31:10 | DZ85: 2.543813846 | EB85: 5.895890508 | ED85: 2011-07-20T09:57:36 | EK85: 2013-07-18T12:30:00 | EM85: 3.070880366 | EN85: 2013-07-18T12:19:03 | EO85: 7.413144299 | EP85: 440.8333333 | ER85: 2013-07-21T16:40:06 | ET85: 4.470185241 | EV85: 2.176089011 | EY85: 2013-07-22T16:17:02 | FA85: 4.696628783 | FC85: 4.69122212 | FF85: 2013-07-25T16:09:02 | FH85: 1.286157857 | FJ85: 1.106064541 | FR85: 2016-07-19T13:48:42 | FS85: 251.050 | FU85: 1.408974035 | FW85: 2016-07-19T14:03:50 | FY85: 244.733 | GA85: 1.373522852 | HC85: 2018-07-30 | HD85: 21:09:00 | HI85: 2.463561119 | HJ85: 6.009928351 | HL85: 4.45 | HM85: 145.25 | HV85: 2003-06-26T13:40:49 | HX85: 138.1532206 | HZ85: 127.8144504 | II85: 38167.53888 | IK85: 9.34 | IM85: 11.38 | IO85: 6.45 | JA85: 2002-06-23 | JB85: 15:20:03 | JC85: 356.4063 | JD85: 184.0625 | JE85: 109.6652 | JF85: 42.6339 | JG85: 13.683 | JH85: 4.3304 | JI85: 0.4687 | JJ85: 0.4241 | JK85: 0.7143 | JL85: 0.4241 | JN85: 4.68 | JO85: 355.27 | KJ85: 0.00 | KK85: 0 | KR85: 38167.53882 | KS85: 304.08 | KT85: 3.42 | KU85: 8.594802561 | KV85: 3.616752652 | KW85: L | KX85: 303.8 | KY85: 154.4 | KZ85: 100.6 | LA85: 39.2 | LB85: 7.8 | LC85: 1.6 | LD85: 0.276 | LE85: 0.204 | LF85: 0.132 | LG85: 0.072 | LH85: 0.048 | LI85: 0.012 | LJ85: 0.012 | LK85: 0 | LL85: 0
A86: 2014-07-22 | B86: 13:17:23 | C86: 2014-07-22T13:17:23 | E86: 2014-07-22T13:17:37 | F86: 128.2833 | H86: 0.7199674916 | K86: 2014-07-22T13:17:37 | L86: 50.6832 | N86: 0.2844505588 | U86: 12:05:59 | V86: 12:05:20 | X86: 7.278599627 | Z86: 7.313058176 | AA86: 260.19 | AC86: 11:35:57 | AD86: 0.320369996 | AE86: 0.4147053541 | AF86: 0.3862035493 | AG86: 0.2095282733 | AH86: 0.1606303785 | AI86: 0.01900035237 | AJ86: 0.0501625953 | AK86: 0.1104466167 | AL86: 0.06734789251 | AM86: 0.310886773 | AN86: 0.6702064328 | AO86: 0.9047786842 | AP86: 0 | AQ86: 0 | AR86: 11:35:15 | AT86: 1.872738469 | AU86: 117.24 | AV86: 1.560600499 | AY86: 10:46:35 | BA86: 2.918764268 | BB86: 10:54:35 | BC86: 2.616445807 | BD86: 0.00 | BF86: 12:30:11 | BH86: 0 | BI86: 12:30:55 | BJ86: 5.489323282 | BK86: 394.984 | BM86: 12:23:44 | BO86: 7.591235594 | BQ86: 10.7763529 | BR86: 6.717618669 | BT86: 10:18:15 | BV86: 1.819789125 | BX86: 4.308830609 | BY86: 119.3667 | CA86: 09:26:56 | CC86: 5.737872877 | CE86: 7.317483184 | CF86: 477.654 | CH86: 10:36:48 | CJ86: 3.64590969 | CL86: 5.779806902 | CM86: 351.952 | CO86: 11:00:11 | CQ86: 2.068335881 | CS86: 3.781507523 | CT86: 161.5832 | CV86: 09:49:36 | CX86: 2.504222456 | CZ86: 4.404636437 | DA86: 195.6498 | DC86: 40377.47675 | DE86: 2.635341825 | DG86: 4.535465262 | DH86: 200.33 | DJ86: 10:39:25 | DL86: 10.8989748 | DN86: 3.432444836 | DO86: 234.42 | DQ86: 10:50:46 | DS86: 21.73512239 | DU86: 6.127915368 | DV86: 356.88 | DW86: 2011-07-27T11:32:00.002 | DX86: 11:32:10 | DZ86: 1.841554733 | EB86: 4.632094779 | ED86: 2011-07-20T09:58:36 | EK86: 2013-07-18T12:31:00 | EM86: 3.048814496 | EN86: 2013-07-18T12:20:03 | EO86: 7.253794893 | EP86: 400.8333333 | ER86: 2013-07-21T16:43:06 | ET86: 3.372244003 | EV86: 1.916501366 | EY86: 2013-07-22T16:20:02 | FA86: 5.211902592 | FC86: 4.755599643 | FF86: 2013-07-25T16:12:02 | FH86: 1.293609901 | FJ86: 1.130010084 | FR86: 2016-07-19T13:50:36 | FS86: 254.900 | FU86: 1.430581483 | FW86: 2016-07-19T14:05:43 | FY86: 242.733 | GA86: 1.362298204 | HC86: 2018-07-30 | HD86: 21:10:00 | HI86: 2.361390635 | HJ86: 6.347217592 | HL86: 5.06 | HM86: 163.375 | HV86: 2003-06-26T13:50:49 | HX86: 125.1068341 | HZ86: 117.8140585 | II86: 38167.53894 | IK86: 111.22 | IM86: 80.82 | IO86: 47.31 | JA86: 2002-06-23 | JB86: 15:21:03 | JC86: 374.2418 | JD86: 195.1429 | JE86: 114.4396 | JF86: 44.7692 | JG86: 12.7253 | JH86: 4.2418 | JI86: 0.3956 | JJ86: 0.5055 | JK86: 1.2308 | JL86: 0.7912 | JN86: 4.83 | JO86: 372.22 | JW86: 2003-06-26T13:20:49 | JY86: 108.17265 | JZ86: 53.99922 | KA86: 35.10203 | KB86: 12.66162 | KC86: 3.86805 | KD86: 1.4949 | KE86: 0.30382 | KF86: 0.3363 | KG86: 0.32426 | KH86: 0.11604 | KJ86: 1.60 | KK86: 107.76594 | KR86: 38167.53888 | KS86: 304.716 | KT86: 3.45 | KU86: 8.999960414 | KV86: 3.635101909 | KW86: L | KX86: 305.4 | KY86: 160.2 | KZ86: 91.6 | LA86: 41.6 | LB86: 9.4 | LC86: 1.4 | LD86: 0.36 | LE86: 0.156 | LF86: 0.132 | LG86: 0.048 | LH86: 0 | LI86: 0.072 | LJ86: 0 | LK86: 0 | LL86: 0
A87: 2014-07-22 | B87: 13:18:28 | C87: 2014-07-22T13:18:28 | E87: 2014-07-22T13:18:37 | F87: 126.8667 | H87: 0.7120170729 | K87: 2014-07-22T13:18:37 | L87: 50.6501 | N87: 0.2842647909 | U87: 12:06:59 | V87: 12:06:20 | X87: 7.441670964 | Z87: 7.383312482 | AC87: 11:36:57 | AD87: 0.3204637219 | AE87: 0.4248443535 | AF87: 0.4029010766 | AG87: 0.2446973428 | AH87: 0.1622239906 | AI87: 0.02917911257 | AJ87: 0.1022545212 | AK87: 0.2004401563 | AL87: 0.1571450825 | AM87: 0.4090615434 | AN87: 0.6702064328 | AO87: 0 | AP87: 0.6431101961 | AQ87: 0 | AR87: 11:36:15 | AT87: 2.002196085 | AU87: 120.73 | AV87: 1.686564119 | AY87: 10:47:35 | BA87: 1.982799162 | BB87: 10:55:01 | BC87: 2.710035816 | BD87: 158.03 | BF87: 12:31:11 | BH87: 0 | BI87: 12:31:58 | BJ87: 5.594111128 | BK87: 390.954 | BM87: 12:24:44 | BO87: 7.171774407 | BQ87: 9.492974116 | BR87: 6.056172302 | BT87: 10:19:15 | BV87: 1.814906717 | BX87: 4.350123461 | BY87: 116.2667 | CA87: 09:27:56 | CC87: 5.647446279 | CE87: 7.626324126 | CF87: 483.262 | CH87: 10:37:48 | CJ87: 3.873472168 | CL87: 6.09356028 | CM87: 374.538 | CO87: 11:01:11 | CQ87: 2.256986191 | CS87: 3.889935012 | CT87: 166.5333 | CV87: 09:50:36 | CX87: 2.536803654 | CZ87: 4.724155979 | DA87: 198.3 | DC87: 40377.47744 | DE87: 6.756411357 | DG87: 4.415903754 | DH87: 193.93 | DJ87: 10:40:25 | DL87: 10.91308377 | DN87: 3.290644468 | DO87: 220.10 | DQ87: 10:51:46 | DS87: 24.66689973 | DU87: 7.088598431 | DV87: 392.07 | DW87: 2011-07-27T11:33:00.002 | DX87: 11:33:10 | DZ87: 2.799333288 | EB87: 6.970247446 | ED87: 2011-07-20T09:59:36 | EK87: 2013-07-18T12:32:00 | EM87: 3.049885419 | EN87: 2013-07-18T12:21:03 | EO87: 6.792887962 | EP87: 395.5566667 | ER87: 2013-07-21T16:46:06 | ET87: 4.958007837 | EV87: 2.547879008 | EY87: 2013-07-22T16:23:02 | FA87: 5.062831339 | FC87: 4.859590102 | FF87: 2013-07-25T16:15:02 | FH87: 1.314125753 | FJ87: 1.138117648 | FR87: 2016-07-19T13:52:29 | FS87: 252.483 | FU87: 1.417018366 | FW87: 2016-07-19T14:07:37 | FY87: 251.250 | GA87: 1.410096499 | HC87: 2018-07-30 | HD87: 21:11:00 | HI87: 2.290927903 | HJ87: 6.740542293 | HL87: 4.81 | HM87: 152.825 | HV87: 2003-06-26T14:00:49 | HX87: 138.7819862 | HZ87: 146.0454168 | JA87: 2002-06-23 | JB87: 15:22:03 | JC87: 392.7664 | JD87: 200.4989 | JE87: 118.5941 | JF87: 47.1429 | JG87: 13.5147 | JH87: 5.3515 | JI87: 0.907 | JJ87: 1.1111 | JK87: 3.5828 | JL87: 2.0635 | JN87: 5.60 | JO87: 387.12 | JW87: 2003-06-26T13:30:49 | JY87: 81.77306 | JZ87: 43.16779 | KA87: 26.49944 | KB87: 8.739 | KC87: 2.4334 | KD87: 0.68529 | KE87: 0.12676 | KF87: 0.085825 | KG87: 0.03955 | KH87: 0.01314 | KJ87: 1.01 | KK87: 81.737505 | KR87: 38167.53894 | KS87: 304.728 | KT87: 3.45 | KU87: 50.57777365 | KV87: 3.640317738 | KW87: L | KX87: 305.4 | KY87: 160.2 | KZ87: 91.6 | LA87: 41.6 | LB87: 9.4 | LC87: 1.4 | LD87: 0.366 | LE87: 0.162 | LF87: 0.132 | LG87: 0.054 | LH87: 0.024 | LI87: 0.066 | LJ87: 0.024 | LK87: 0.018 | LL87: 0.012
A88: 2014-07-22 | B88: 13:19:33 | C88: 2014-07-22T13:19:33 | E88: 2014-07-22T13:19:37 | F88: 118.6667 | H88: 0.665996013 | K88: 2014-07-22T13:19:37 | L88: 47.3834 | N88: 0.2659310108 | U88: 12:07:59 | V88: 12:07:20 | X88: 7.470653923 | Z88: 7.224225479 | AA88: 260.34 | AC88: 11:37:57 | AD88: 0.3257017042 | AE88: 0.4143069511 | AF88: 0.3887450928 | AG88: 0.2417026065 | AH88: 0.1622239906 | AI88: 0.03189344862 | AJ88: 0.1157598353 | AK88: 0.1758964637 | AL88: 0.1627574069 | AM88: 0.687223393 | AN88: 1.206371579 | AO88: 0.4523893421 | AP88: 0 | AQ88: 0 | AR88: 11:37:15 | AT88: 1.898681152 | AU88: 120.01 | AV88: 1.680333629 | AY88: 10:48:35 | BA88: 2.06584406 | BB88: 10:56:02 | BC88: 2.786973202 | BD88: 154.48 | BF88: 12:32:11 | BH88: 3.488088448 | BJ88: 5.582322419 | BK88: 0 | BM88: 12:25:44 | BO88: 8.073167711 | BQ88: 11.41060155 | BR88: 7.138972947 | BT88: 10:20:15 | BV88: 1.617141887 | BX88: 4.055090791 | BY88: 113.45 | CA88: 09:28:56 | CC88: 5.516028134 | CE88: 7.234588466 | CF88: 468.658 | CH88: 10:38:48 | CJ88: 3.740295312 | CL88: 6.128631286 | CM88: 376.394 | CO88: 11:02:11 | CQ88: 2.0674087 | CS88: 3.742045617 | CT88: 162.5167 | CV88: 09:51:36 | CX88: 2.524998913 | CZ88: 4.418292384 | DA88: 191.5167 | DC88: 40377.47814 | DE88: 3.546069627 | DG88: 4.522319567 | DH88: 197.63 | DJ88: 10:41:25 | DL88: 10.68035448 | DN88: 3.270792322 | DO88: 219.52 | DQ88: 10:52:46 | DS88: 23.60603918 | DU88: 6.704694523 | DV88: 418.92 | DW88: 2011-07-27T11:34:00.002 | DX88: 11:34:10 | DZ88: 4.14985047 | EB88: 9.955463818 | ED88: 2011-07-20T10:00:36 | EK88: 2013-07-18T12:33:00 | EM88: 3.053356442 | EN88: 2013-07-18T12:22:03 | EO88: 7.325355083 | EP88: 397.2233333 | ER88: 2013-07-21T16:49:06 | ET88: 4.536175605 | EV88: 2.247966671 | EY88: 2013-07-22T16:26:02 | FA88: 4.993008989 | FC88: 5.03766188 | FF88: 2013-07-25T16:18:02 | FH88: 1.248898196 | FJ88: 1.080653059 | FR88: 2016-07-19T13:54:22 | FS88: 247.050 | FU88: 1.386524737 | FW88: 2016-07-19T14:09:30 | FY88: 257.933 | GA88: 1.447605534 | HC88: 2018-07-30 | HD88: 21:12:00 | HI88: 2.363923544 | HJ88: 6.072358669 | HL88: 4.69 | HM88: 151.625 | HV88: 2003-06-26T14:10:45 | HX88: 154.8498773 | HZ88: 191.2265306 | II88: 38167.54207 | IK88: 155.01 | IM88: 116.31 | IO88: 87.13 | JA88: 2002-06-23 | JB88: 15:23:03 | JC88: 382.1538 | JD88: 199.2527 | JE88: 115.5165 | JF88: 45.5604 | JG88: 13.011 | JH88: 4.5714 | JI88: 0.8571 | JJ88: 0.7912 | JK88: 1.7802 | JL88: 0.8132 | JN88: 5.21 | JO88: 379.56 | JW88: 2003-06-26T13:40:49 | JY88: 90.48123 | JZ88: 46.38917 | KA88: 28.94889 | KB88: 10.10246 | KC88: 3.01723 | KD88: 1.20764 | KE88: 0.25448 | KF88: 0.23885 | KG88: 0.24388 | KH88: 0.07867 | KJ88: 1.29 | KK88: 90.15872 | KS88: 0 | KV88: 0
A89: 2014-07-22 | B89: 13:20:38 | C89: 2014-07-22T13:20:38 | E89: 2014-07-22T13:20:37 | F89: 110.5834 | H89: 0.6206299114 | K89: 2014-07-22T13:20:37 | L89: 45.65 | N89: 0.2562026078 | U89: 12:08:59 | V89: 12:08:20 | X89: 7.297354346 | Z89: 7.223644314 | AA89: 262.32 | AC89: 11:38:57 | AD89: 0.3273854015 | AE89: 0.4292172443 | AF89: 0.3865672492 | AG89: 0.2319775708 | AH89: 0.181309166 | AI89: 0.01786937901 | AJ89: 0.0495194851 | AK89: 0.108401309 | AL89: 0.09540951439 | AM89: 0.310886773 | AN89: 0 | AO89: 0.6785840132 | AP89: 0 | AQ89: 0 | AR89: 11:38:15 | AT89: 2.052573014 | AU89: 124.53 | AV89: 1.623845496 | AY89: 10:49:35 | BA89: 1.989897484 | BB89: 10:57:04 | BC89: 2.782267267 | BD89: 145.04 | BF89: 12:33:11 | BH89: 3.528306753 | BI89: 12:33:01 | BJ89: 5.570533709 | BK89: 387.354 | BM89: 12:26:44 | BO89: 7.991609875 | BQ89: 12.74570359 | BR89: 7.120625486 | BT89: 10:21:15 | BV89: 1.669735851 | BX89: 4.192719695 | BY89: 116.4166 | CA89: 09:29:56 | CC89: 5.636353474 | CE89: 7.282818557 | CF89: 467.46 | CH89: 10:39:48 | CJ89: 3.751768294 | CL89: 5.833384834 | CM89: 362.314 | CO89: 11:03:11 | CQ89: 2.097432779 | CS89: 3.801596633 | CT89: 164.8831 | CV89: 09:52:36 | CX89: 2.55391156 | CZ89: 4.665843111 | DA89: 196.0334 | DC89: 40377.47883 | DE89: 3.758327049 | DG89: 4.366237696 | DH89: 194.42 | DJ89: 10:42:25 | DL89: 10.35774438 | DN89: 3.256683451 | DO89: 220.97 | DQ89: 10:53:46 | DS89: 20.63633955 | DU89: 6.565984843 | DV89: 369.38 | DW89: 2011-07-27T11:35:00.002 | DX89: 11:35:10 | DZ89: 3.911907944 | EB89: 8.755797214 | ED89: 2011-07-20T10:01:15 | EF89: 5.277032428 | EH89: 3.318351864 | EI89: 211.3167 | EK89: 2013-07-18T12:34:00 | EM89: 2.952128982 | EN89: 2013-07-18T12:23:03 | EO89: 7.246271187 | EP89: 399.7233333 | ER89: 2013-07-21T16:52:06 | ET89: 4.892696747 | EV89: 2.270343914 | EY89: 2013-07-22T16:29:02 | FA89: 5.01768168 | FC89: 5.014911263 | FF89: 2013-07-25T16:21:02 | FH89: 1.197233383 | FJ89: 1.057892838 | FR89: 2016-07-19T13:56:15 | FS89: 243.150 | FU89: 1.364636672 | FW89: 2016-07-19T14:11:23 | FY89: 268.900 | GA89: 1.509154025 | HC89: 2018-07-30 | HD89: 21:13:00 | HI89: 2.358103744 | HJ89: 5.802238642 | HL89: 4.70 | HM89: 152.425 | HV89: 2003-06-26T14:20:45 | HX89: 193.3904542 | HZ89: 289.7357615 | II89: 38167.54213 | IK89: 127.54 | IM89: 93.15 | IO89: 74.07 | JA89: 2002-06-23 | JB89: 15:24:03 | JC89: 382.0312 | JD89: 193.2143 | JE89: 116.8304 | JF89: 46.2277 | JG89: 13.4152 | JH89: 4.3973 | JI89: 0.9598 | JJ89: 1.4955 | JK89: 3.4598 | JL89: 2.0313 | JN89: 5.69 | JO89: 376.54 | JW89: 2003-06-26T13:50:49 | JY89: 100.12799 | JZ89: 51.58586 | KA89: 32.15185 | KB89: 11.40383 | KC89: 3.3371 | KD89: 1.11196 | KE89: 0.21501 | KF89: 0.15716 | KG89: 0.13114 | KH89: 0.03404 | KJ89: 1.33 | KK89: 99.96277 | KR89: 38167.54207 | KS89: 282.74 | KT89: 3.21 | KU89: =((2*PI())/6*POWER(1,-6)*(POWER(0.175,3)*KY89+POWER(0.225,3)*KZ89+POWER(0.275,3)*LA89+POWER(0.35,3)*LB89+POWER(0.45,3)*LC89+POWER(0.6,3)*LD89+POWER(0.85,3)*LE89+POWER(1.25,3)*LF89+POWER(1.75,3)*LG89+POWER(2.5,3)*LH89+POWER(4,3)*LI89+POWER(6,3)*LJ89+POWER(8.5,3)*LK89+POWER(12.5,3)*LL89)) -> 91.90851045 | KV89: 3.398457123 | KW89: L | KX89: 282.6 | KY89: 144.4 | KZ89: 91.8 | LA89: 37 | LB89: 7.2 | LC89: 1.8 | LD89: 0.372 | LE89: 0.168 | LF89: 0.132 | LG89: 0.06 | LH89: 0.048 | LI89: 0.06 | LJ89: 0.048 | LK89: 0.036 | LL89: 0.024
A90: 2014-07-22 | B90: 13:21:43 | C90: 2014-07-22T13:21:43 | E90: 2014-07-22T13:21:37 | F90: 111.5 | H90: 0.6257741679 | K90: 2014-07-22T13:21:37 | L90: 44.3499 | N90: 0.2489060248 | U90: 12:09:59 | V90: 12:09:20 | X90: 7.330744567 | Z90: 7.258590893 | AA90: 263.15 | AC90: 11:39:57 | AD90: 0.3263566625 | AE90: 0.4385618233 | AF90: 0.3916481584 | AG90: 0.2229978518 | AH90: 0.1431388153 | AI90: 0.02171468842 | AJ90: 0.07267145216 | AK90: 0.1063560013 | AL90: 0.1010218388 | AM90: 0.4908738521 | AN90: 0.6702064328 | AO90: 0.2261946711 | AP90: 0 | AQ90: 2.045307717 | AR90: 11:39:15 | AT90: 1.956750256 | AU90: 121.41 | AV90: 1.617089452 | AY90: 10:51:35 | BA90: 2.174470672 | BB90: 10:58:05 | BC90: 2.844359446 | BD90: 140.82 | BF90: 12:34:11 | BH90: 3.558949514 | BI90: 12:34:05 | BJ90: 5.366609905 | BK90: 385.26 | BM90: 12:27:44 | BO90: 7.991169676 | BQ90: 12.00338988 | BR90: 7.078676994 | BT90: 10:22:15 | BV90: 1.658670062 | BX90: 4.240803732 | BY90: 112.5666 | CA90: 09:30:56 | CC90: 5.639875887 | CE90: 7.577911202 | CF90: 474.45 | CH90: 10:40:48 | CJ90: 3.92242706 | CL90: 6.205565585 | CM90: 380.944 | CO90: 11:04:11 | CQ90: 2.168758978 | CS90: 3.818336086 | CT90: 169.3168 | CV90: 09:53:36 | CX90: 2.517904983 | CZ90: 4.589174375 | DA90: 190.8833 | DC90: 40377.47953 | DE90: 3.006477109 | DG90: 5.11924851 | DH90: 219.60 | DJ90: 10:43:25 | DL90: 10.46271453 | DN90: 3.102181387 | DO90: 218.25 | DQ90: 10:54:46 | DS90: 22.84839939 | DU90: 6.179443653 | DV90: 341.08 | DW90: 2011-07-27T11:36:00.002 | DX90: 11:36:10 | DZ90: 1.66477398 | EB90: 3.744702644 | ED90: 2011-07-20T10:02:15 | EF90: 4.66983482 | EH90: 3.290486323 | EI90: 209.9833 | EK90: 2013-07-18T12:35:00 | EM90: 2.895120802 | EN90: 2013-07-18T12:24:03 | EO90: 7.657734468 | EP90: 437.2233333 | ER90: 2013-07-21T16:55:06 | ET90: 5.831008302 | EV90: 2.678056707 | EY90: 2013-07-22T16:32:02 | FA90: 4.362582346 | FC90: 4.362214089 | FF90: 2013-07-25T16:24:02 | FH90: 1.137961064 | FJ90: 1.003204105 | FR90: 2016-07-19T13:58:09 | FS90: 246.850 | FU90: 1.385402272 | FW90: 2016-07-19T14:13:17 | FY90: 276.683 | GA90: 1.552836616 | HC90: 2018-07-30 | HD90: 21:14:00 | HI90: 2.258117158 | HJ90: 6.075738336 | HL90: 4.70 | HM90: 146.675 | HV90: 2003-06-26T14:30:45 | HX90: 165.7327441 | HZ90: 186.8132498 | II90: 38167.54219 | IK90: 150.59 | IM90: 109.35 | IO90: 83.84 | JN90: 0.00 | JO90: 0.00 | JW90: 2003-06-26T14:00:49 | JY90: 115.13478 | JZ90: 54.84143 | KA90: 38.76571 | KB90: 14.19129 | KC90: 4.30509 | KD90: 1.75832 | KE90: 0.39437 | KF90: 0.37359 | KG90: 0.39511 | KH90: 0.10983 | KJ90: 1.77 | KK90: 114.6298 | KR90: 38167.54213 | KS90: 305.812 | KT90: 3.48 | KU90: 62.42702234 | KV90: 3.758172231 | KW90: L | KX90: 306 | KY90: 160.2 | KZ90: 94.6 | LA90: 39 | LB90: 9.6 | LC90: 1.8 | LD90: 0.276 | LE90: 0.336 | LF90: 0.084 | LG90: 0.06 | LH90: 0.096 | LI90: 0.12 | LJ90: 0.072 | LK90: 0.012 | LL90: 0.012
A91: 2014-07-22 | B91: 13:22:48 | C91: 2014-07-22T13:22:48 | E91: 2014-07-22T13:22:37 | F91: 116.05 | H91: 0.6513102438 | K91: 2014-07-22T13:22:37 | L91: 46.3167 | N91: 0.2599443444 | U91: 12:10:59 | V91: 12:10:20 | X91: 7.369563166 | Z91: 7.36210304 | AA91: 259.27 | AC91: 11:40:57 | AD91: 0.3212118447 | AE91: 0.4210666816 | AF91: 0.3782195744 | AG91: 0.2252427816 | AH91: 0.1431388153 | AI91: 0.0289529179 | AJ91: 0.06559724001 | AK91: 0.1104466167 | AL91: 0.1122464875 | AM91: 0.6708609312 | AN91: 0.9382890059 | AO91: 0 | AP91: 0 | AQ91: 0 | AR91: 11:40:15 | AT91: 1.9006741 | AU91: 119.73 | AV91: 1.583429855 | AY91: 10:50:35 | BA91: 2.028836874 | BB91: 10:59:07 | BC91: 2.777561332 | BD91: 143.74 | BF91: 12:35:11 | BH91: 3.55074091 | BI91: 12:35:08 | BJ91: 5.535847501 | BK91: 389.292 | BM91: 12:28:44 | BO91: 7.91363844 | BQ91: 11.72677137 | BR91: 6.733179162 | BT91: 10:23:15 | BV91: 1.596095636 | BX91: 4.340217735 | BY91: 108.0666 | CA91: 09:31:56 | CC91: 5.670401429 | CE91: 7.93341507 | CF91: 487.102 | CH91: 10:41:48 | CJ91: 3.945922989 | CL91: 6.349118109 | CM91: 387.126 | CO91: 11:05:11 | CQ91: 2.114451912 | CS91: 3.929724395 | CT91: 167.2501 | CV91: 09:54:36 | CX91: 2.51690396 | CZ91: 4.593751643 | DA91: 187.9333 | DC91: 40377.48022 | DE91: 2.755915175 | DG91: 3.017168564 | DH91: 216.57 | DJ91: 10:44:25 | DL91: 10.45123657 | DN91: 3.234946539 | DO91: 217.65 | DQ91: 10:55:46 | DS91: 17.91971794 | DU91: 5.864079852 | DV91: 339.52 | DW91: 2011-07-27T11:37:00.002 | DX91: 11:37:10 | DZ91: 1.393221912 | EB91: 2.912504432 | ED91: 2011-07-20T10:03:15 | EF91: 5.205174515 | EH91: 3.40416064 | EI91: 206.7333 | EK91: 2013-07-18T12:36:00 | EM91: 3.128761484 | EN91: 2013-07-18T12:25:03 | EO91: 7.518845529 | EP91: 439.165 | ER91: 2013-07-21T16:58:06 | ET91: 2.255335502 | EV91: 1.490973715 | EY91: 2013-07-22T16:35:02 | FA91: 4.430447378 | FC91: 4.57086847 | FF91: 2013-07-25T16:27:02 | FH91: 1.138178822 | FJ91: 1.002579453 | FR91: 2016-07-19T14:00:02 | FS91: 240.633 | FU91: 1.350512322 | FW91: 2016-07-19T14:15:10 | FY91: 280.983 | GA91: 1.576969611 | HC91: 2018-07-30 | HD91: 21:15:00 | HI91: 2.20822474 | HJ91: 6.156353321 | HL91: 4.87 | HM91: 146.2 | HV91: 2003-06-26T14:40:45 | HX91: 217.2616836 | HZ91: 364.2533691 | II91: 38167.54225 | IK91: 18.50 | IM91: 14.90 | IO91: 20.82 | JA91: 2002-06-23 | JB91: 13:57:31 | JC91: 168.4152 | JD91: 91.5179 | JE91: 49.0625 | JF91: 19.7768 | JG91: 5.4018 | JH91: 1.5848 | JI91: 0.2679 | JJ91: 0.2902 | JK91: 0.4018 | JL91: 0.1116 | JN91: 2.17 | JO91: 167.90 | JW91: 2003-06-26T14:10:45 | JY91: 134.33319 | JZ91: 61.70325 | KA91: 44.87784 | KB91: 17.80003 | KC91: 5.15652 | KD91: 2.26625 | KE91: 0.72032 | KF91: 0.67295 | KG91: 0.8195 | KH91: 0.31647 | KJ91: 2.31 | KK91: 133.19716 | KR91: 38167.54219 | KS91: 289.904 | KT91: 3.50 | KU91: 88.12963224 | KV91: 3.674589635 | KW91: L | KX91: 289.8 | KY91: 144.4 | KZ91: 91.2 | LA91: 40.2 | LB91: 11.4 | LC91: 2.2 | LD91: 0.348 | LE91: 0.156 | LF91: 0.108 | LG91: 0.084 | LH91: 0.036 | LI91: 0.048 | LJ91: 0 | LK91: 0.048 | LL91: 0.024
A92: 2014-07-22 | B92: 13:23:53 | C92: 2014-07-22T13:23:53 | E92: 2014-07-22T13:23:37 | F92: 117.4167 | H92: 0.6589806076 | K92: 2014-07-22T13:23:37 | L92: 46.3001 | N92: 0.2598511798 | U92: 12:11:59 | V92: 12:11:20 | X92: 7.382289267 | Z92: 7.30653906 | AA92: 259.25 | AC92: 11:41:57 | AD92: 0.3116708933 | AE92: 0.3948245655 | AF92: 0.3524469726 | AG92: 0.2237431685 | AH92: 0.1860804599 | AI92: 0.01628601632 | AJ92: 0.04373149334 | AK92: 0.09408415499 | AL92: 0.07857254126 | AM92: 0.4090615434 | AN92: 0.6702064328 | AO92: 0.2261946711 | AP92: 0 | AQ92: 0 | AR92: 11:41:15 | AT92: 1.849118347 | AU92: 118.01 | AV92: 1.528783569 | AY92: 10:53:35 | BA92: 2.15774605 | BB92: 11:00:08 | BC92: 2.522210754 | BD92: 143.22 | BF92: 12:36:11 | BH92: 4.058486248 | BI92: 12:36:11 | BJ92: 5.867940029 | BK92: 388.438 | BM92: 12:29:44 | BO92: 7.062178241 | BQ92: 9.272994595 | BR92: 6.076365722 | BT92: 10:24:15 | BV92: 1.504645404 | BX92: 4.428738917 | BY92: 108.7001 | CA92: 09:32:56 | CC92: 5.518342527 | CE92: 7.505188404 | CF92: 466.992 | CH92: 10:42:48 | CJ92: 3.848403708 | CL92: 6.268946889 | CM92: 375.346 | CO92: 11:06:11 | CQ92: 2.13833049 | CS92: 3.983123322 | CT92: 171.2833 | CV92: 09:55:36 | CX92: 2.453351833 | CZ92: 4.396117452 | DA92: 192.6168 | DC92: 40377.48091 | DE92: 2.681668489 | DG92: 5.048181796 | DH92: 216.83 | DJ92: 10:45:25 | DL92: 10.5178415 | DN92: 3.219879945 | DO92: 218.58 | DQ92: 10:56:46 | DS92: 17.08950537 | DU92: 5.236488472 | DV92: 342.03 | DW92: 2011-07-27T11:38:00.002 | DX92: 11:38:10 | DZ92: 1.265493074 | EB92: 2.807604478 | ED92: 2011-07-20T10:04:15 | EF92: 6.47790289 | EH92: 4.177468137 | EI92: 207.3666 | EK92: 2013-07-18T12:37:00 | EM92: 3.082392449 | EN92: 2013-07-18T12:26:03 | EO92: 8.019860971 | EP92: 413.055 | ER92: 2013-07-21T17:01:06 | ET92: 2.423403709 | EV92: 1.494171449 | EY92: 2013-07-22T16:38:02 | FA92: 4.553169859 | FC92: 4.683748335 | FF92: 2013-07-25T16:30:02 | FH92: 1.132193278 | FJ92: 0.9868649447 | FR92: 2016-07-19T14:01:55 | FS92: 236.650 | FU92: 1.328156564 | FW92: 2016-07-19T14:17:03 | FY92: 293.733 | GA92: 1.648526747 | HC92: 2018-07-30 | HD92: 21:16:00 | HI92: 2.23160408 | HJ92: 6.294907129 | HL92: 4.55 | HM92: 148.35 | HV92: 2003-06-26T14:50:45 | HX92: 246.0702079 | HZ92: 468.4807414 | II92: 38167.5423 | IK92: 97.67 | IM92: 49.54 | IO92: 42.42 | JA92: 2002-06-23 | JB92: 13:59:03 | JC92: 175.1648 | JD92: 97.2308 | JE92: 50.6813 | JF92: 19.6264 | JG92: 5.011 | JH92: 1.8462 | JI92: 0.3077 | JJ92: 0.2857 | JK92: 0.1758 | JL92: 0 | JN92: 2.23 | JO92: 174.99 | JW92: 2003-06-26T14:20:45 | JY92: 148.72723 | JZ92: 69.96273 | KA92: 48.78869 | KB92: 17.92928 | KC92: 5.59133 | KD92: 2.81296 | KE92: 0.94491 | KF92: 1.07277 | KG92: 1.15214 | KH92: 0.47244 | KJ92: 2.79 | KK92: 147.10267 | KR92: 38167.54225 | KS92: 284.056 | KT92: 3.38 | KU92: 16.45862563 | KV92: 3.561406036 | KW92: L | KX92: 284 | KY92: 141.8 | KZ92: 90.8 | LA92: 39 | LB92: 9.8 | LC92: 2.2 | LD92: 0.264 | LE92: 0.192 | LF92: 0.06 | LG92: 0.048 | LH92: 0.096 | LI92: 0.048 | LJ92: 0 | LK92: 0.012 | LL92: 0
A93: 2014-07-22 | B93: 13:24:58 | C93: 2014-07-22T13:24:58 | E93: 2014-07-22T13:24:37 | F93: 118.8 | H93: 0.6667441359 | K93: 2014-07-22T13:24:37 | L93: 46.65 | N93: 0.2618149321 | U93: 12:12:59 | V93: 12:12:20 | X93: 7.371712604 | Z93: 7.241210068 | AA93: 259.51 | AC93: 11:42:57 | AD93: 0.3184994083 | AE93: 0.4095356572 | AF93: 0.3858420272 | AG93: 0.1997987478 | AH93: 0.1638176028 | AI93: 0.01244070691 | AJ93: 0.05402125647 | AK93: 0.1043106936 | AL93: 0.07296021689 | AM93: 0.3599741582 | AN93: 0.5361651462 | AO93: 0.2261946711 | AP93: 0 | AQ93: 0 | AR93: 11:42:15 | AT93: 1.914551831 | AU93: 119.42 | AV93: 1.543955407 | AY93: 10:52:35 | BA93: 2.196486545 | BB93: 11:01:35 | BC93: 2.585176779 | BD93: 144.40 | BF93: 12:37:11 | BH93: 3.696153602 | BI93: 12:37:14 | BJ93: 5.655887551 | BK93: 394.756 | BM93: 12:30:44 | BO93: 7.720960058 | BQ93: 10.41557312 | BR93: 6.623402096 | BT93: 10:25:15 | BV93: 1.546088834 | BX93: 4.171040458 | BY93: 102.1 | CA93: 09:33:56 | CC93: 5.591338733 | CE93: 7.38057736 | CF93: 466.194 | CH93: 10:43:48 | CJ93: 3.984520447 | CL93: 6.52756836 | CM93: 374.648 | CO93: 11:07:11 | CQ93: 2.053459967 | CS93: 4.121901836 | CT93: 167.0332 | CV93: 09:56:36 | CX93: 2.566899429 | CZ93: 4.617999633 | DA93: 196.7002 | DC93: 40377.48161 | DE93: 2.703051346 | DG93: 5.042767721 | DH93: 216.12 | DJ93: 10:46:25 | DL93: 10.50616087 | DN93: 3.236549617 | DO93: 218.18 | DQ93: 10:57:46 | DS93: 16.621866 | DU93: 5.119992918 | DV93: 346.63 | DW93: 2011-07-27T11:39:00.002 | DX93: 11:39:10 | DZ93: 4.561433087 | EB93: 14.26991767 | ED93: 2011-07-20T10:05:15 | EF93: 9.477199361 | EH93: 5.620244953 | EI93: 211.9668 | EK93: 2013-07-18T12:49:00 | EM93: 3.001582068 | EN93: 2013-07-18T12:27:03 | EO93: 7.663592747 | EP93: 413.055 | ER93: 2013-07-21T17:04:06 | ET93: 3.396006777 | EV93: 1.81277844 | EY93: 2013-07-22T16:41:02 | FA93: 4.543116737 | FC93: 4.667056826 | FF93: 2013-07-25T16:33:02 | FH93: 1.134936021 | FJ93: 1.00794259 | FR93: 2016-07-19T14:03:49 | FS93: 240.633 | FU93: 1.350512322 | FW93: 2016-07-19T14:18:57 | FY93: 292.067 | GA93: 1.639172873 | HC93: 2018-07-30 | HD93: 21:17:00 | HI93: 2.590013659 | HJ93: 6.025443155 | HL93: 4.74 | HM93: 148.725 | HV93: 2003-06-26T15:00:15 | HX93: 435.8516237 | HZ93: 583.9839086 | II93: 38167.54236 | IK93: 9.32 | IO93: 6.83 | JA93: 2002-06-23 | JB93: 14:00:03 | JC93: 174.8214 | JD93: 97.0982 | JE93: 50.4687 | JF93: 18.2366 | JG93: 5.4911 | JH93: 1.875 | JI93: 0.4241 | JJ93: 0.4241 | JK93: 0.7366 | JL93: 0.067 | JN93: 2.34 | JO93: 174.02 | JW93: 2003-06-26T14:30:45 | JY93: 162.68491 | JZ93: 75.69305 | KA93: 54.97838 | KB93: 21.21623 | KC93: 6.0322 | KD93: 2.42361 | KE93: 0.57571 | KF93: 0.66519 | KG93: 0.74966 | KH93: 0.35087 | KJ93: 2.60 | KK93: 161.58437 | KR93: 38167.5423 | KS93: 286.94 | KT93: 3.50 | KU93: 40.67260049 | KV93: 3.709406728 | KW93: L | KX93: 287.2 | KY93: 142.2 | KZ93: 92.2 | LA93: 38.8 | LB93: 10 | LC93: 3.2 | LD93: 0.324 | LE93: 0.216 | LF93: 0.108 | LG93: 0.012 | LH93: 0.024 | LI93: 0.06 | LJ93: 0 | LK93: 0.012 | LL93: 0.012
A94: 2014-07-22 | B94: 13:26:03 | C94: 2014-07-22T13:26:03 | E94: 2014-07-22T13:25:37 | F94: 115.3333 | H94: 0.6472878909 | K94: 2014-07-22T13:25:37 | L94: 45.7166 | N94: 0.2565763886 | U94: 12:13:59 | V94: 12:13:20 | X94: 7.176869457 | Z94: 7.084425053 | AA94: 261.74 | AC94: 11:43:57 | AD94: 0.3178444501 | AE94: 0.4101320689 | AF94: 0.3800337182 | AG94: 0.2327228875 | AH94: 0.1542750151 | AI94: 0.01651221099 | AJ94: 0.04437460353 | AK94: 0.08794823184 | AL94: 0.1234711363 | AM94: 0.310886773 | AN94: 0.4691445029 | AO94: 0.2261946711 | AP94: 0 | AQ94: 0 | AR94: 11:43:15 | AT94: 1.962614381 | AU94: 122.41 | AV94: 1.555894954 | AY94: 10:55:35 | BA94: 2.278001992 | BB94: 11:02:35 | BC94: 2.553187439 | BD94: 147.53 | BF94: 12:38:11 | BH94: 3.430782917 | BI94: 12:38:17 | BJ94: 5.352802479 | BK94: 383.282 | BM94: 12:31:44 | BO94: 7.427471919 | BQ94: 9.967139179 | BR94: 6.387140384 | BT94: 10:26:15 | BV94: 1.57475699 | BX94: 4.835510545 | BY94: 106.7167 | CA94: 09:34:56 | CC94: 5.431711956 | CE94: 7.192235936 | CF94: 452.494 | CH94: 10:44:48 | CJ94: 3.980324006 | CL94: 7.114514439 | CM94: 388.608 | CO94: 11:08:11 | CQ94: 2.151325888 | CS94: 4.016003263 | CT94: 173.5836 | CV94: 09:57:36 | CX94: 2.877524555 | CZ94: 4.481147733 | DA94: 216.0668 | DC94: 40377.4823 | DE94: 2.670389992 | DG94: 5.03795891 | DH94: 219.72 | DJ94: 10:47:25 | DL94: 10.62618601 | DN94: 3.238458831 | DO94: 220.75 | DQ94: 10:58:46 | DS94: 24.13333557 | DU94: 6.432705042 | DV94: 327.25 | DW94: 2011-07-27T11:40:00.002 | DX94: 11:40:10 | DZ94: 2.211705412 | EB94: 6.187447802 | ED94: 2011-07-20T10:06:15 | EF94: 6.865051848 | EH94: 3.816138704 | EI94: 201.7334 | EK94: 2013-07-18T12:50:00 | EM94: 3.029178724 | EN94: 2013-07-18T12:28:03 | EO94: 7.025970357 | EP94: 410.8333333 | ER94: 2013-07-21T17:07:06 | ET94: 2.990326394 | EV94: 1.698565792 | EY94: 2013-07-22T16:44:02 | FA94: 4.507334415 | FC94: 4.670675041 | FF94: 2013-07-25T16:36:02 | FH94: 1.138990926 | FJ94: 1.017701861 | FR94: 2016-07-19T14:05:42 | FS94: 233.867 | FU94: 1.312535594 | FW94: 2016-07-19T14:20:50 | FY94: 290.300 | GA94: 1.629257766 | HC94: 2018-07-30 | HD94: 21:18:00 | HI94: 2.154055829 | HJ94: 6.612427163 | HL94: 4.68 | HM94: 150.4 | HV94: 2003-06-26T15:20:04 | HX94: 434.4016154 | HZ94: 771.2236806 | II94: 38167.54242 | IK94: 9.27 | IO94: 6.87 | JA94: 2002-06-23 | JB94: 14:01:03 | JC94: 168.8571 | JD94: 93.7363 | JE94: 48.8132 | JF94: 18.2198 | JG94: 5.4725 | JH94: 1.9121 | JI94: 0.3516 | JJ94: 0.1099 | JK94: 0.1978 | JL94: 0.044 | JN94: 2.08 | JO94: 168.62 | JW94: 2003-06-26T14:40:45 | JY94: 174.54132 | JZ94: 78.91985 | KA94: 57.14704 | KB94: 22.82259 | KC94: 6.78505 | KD94: 3.44655 | KE94: 1.1494 | KF94: 1.35668 | KG94: 1.91907 | KH94: 0.99508 | KJ94: 3.39 | KK94: 171.62716 | KR94: 38167.54236 | KS94: 286.808 | KT94: 3.26 | KU94: 6.514913632 | KV94: 3.427513452 | KW94: L | KX94: 287 | KY94: 140.8 | KZ94: 99 | LA94: 37.8 | LB94: 7.4 | LC94: 1.4 | LD94: 0.228 | LE94: 0.18 | LF94: 0.072 | LG94: 0.024 | LH94: 0.024 | LI94: 0.036 | LJ94: 0 | LK94: 0 | LL94: 0
A95: 2014-07-22 | B95: 13:27:08 | C95: 2014-07-22T13:27:08 | E95: 2014-07-22T13:26:37 | F95: 118.9499 | H95: 0.6675854233 | K95: 2014-07-22T13:26:37 | L95: 46 | N95: 0.2581669213 | U95: 12:14:59 | V95: 12:14:20 | X95: 7.258925403 | Z95: 7.074314046 | AA95: 259.42 | AC95: 11:44:57 | AD95: 0.3251404718 | AE95: 0.4117232954 | AF95: 0.3912866364 | AG95: 0.2402074833 | AH95: 0.1669952845 | AI95: 0.01628601632 | AJ95: 0.04437460353 | AK95: 0.08590292412 | AL95: 0.1066341631 | AM95: 0.4090615434 | AN95: 0.5361651462 | AO95: 0.2261946711 | AP95: 0 | AQ95: 0 | AR95: 11:44:15 | AT95: 1.98966953 | AU95: 123.84 | AV95: 1.596013791 | AY95: 10:54:35 | BA95: 2.130110758 | BB95: 11:03:35 | BC95: 2.707202019 | BD95: 148.42 | BF95: 12:39:11 | BH95: 4.644528689 | BI95: 12:39:20 | BJ95: 36.41030834 | BK95: 385.344 | BM95: 12:32:44 | BO95: 7.225520338 | BQ95: 9.971716054 | BR95: 6.234327841 | BT95: 10:27:15 | BV95: 1.563794147 | BX95: 5.334405043 | BY95: 104.9999 | CA95: 09:35:56 | CC95: 5.636601526 | CE95: 7.136759075 | CF95: 450.602 | CH95: 10:45:48 | CJ95: 3.939072576 | CL95: 6.665475671 | CM95: 381.366 | CO95: 11:09:11 | CQ95: 2.512991114 | CS95: 4.089420746 | CT95: 191.9334 | CV95: 09:58:36 | CX95: 2.734000854 | CZ95: 4.843610131 | DA95: 214.5168 | DC95: 40377.483 | DE95: 3.132486487 | DG95: 4.965012035 | DH95: 212.87 | DJ95: 10:48:25 | DL95: 10.57749981 | DN95: 3.306713885 | DO95: 221.20 | DQ95: 10:59:46 | DS95: 21.21022223 | DU95: 5.633413712 | DV95: 311.58 | DW95: 2011-07-27T11:41:00.002 | DX95: 11:41:10 | DZ95: 2.308035133 | EB95: 4.791204773 | ED95: 2011-07-20T10:07:15 | EF95: 6.296701175 | EH95: 3.744828228 | EI95: 201.2832 | EK95: 2013-07-18T12:51:00 | EM95: 2.903035325 | EN95: 2013-07-18T12:29:03 | EO95: 7.789142489 | EP95: 402.7766667 | ER95: 2013-07-21T17:10:06 | ET95: 1.879340918 | EV95: 1.429682034 | EY95: 2013-07-22T16:47:02 | FA95: 4.355411324 | FC95: 4.62035956 | FF95: 2013-07-25T16:39:02 | FH95: 1.146285264 | FJ95: 1.023345053 | FR95: 2016-07-19T14:07:35 | FS95: 237.750 | FU95: 1.33433012 | FW95: 2016-07-19T14:22:43 | FY95: 289.883 | GA95: 1.626919298 | HC95: 2018-07-30 | HD95: 21:19:00 | HI95: 2.183740198 | HJ95: 6.387928215 | HL95: 4.64 | HM95: 149.25 | HV95: 2003-06-26T15:30:04 | HX95: 508.3957582 | HZ95: 796.0934228 | II95: 38167.54248 | IK95: 25.44 | IO95: 25.92 | JA95: 2002-06-23 | JB95: 14:02:03 | JC95: 160.8705 | JD95: 88.1027 | JE95: 47.0982 | JF95: 18.2589 | JG95: 4.8661 | JH95: 1.8527 | JI95: 0.2009 | JJ95: 0.3125 | JK95: 0.1339 | JL95: 0.0446 | JN95: 2.10 | JO95: 160.69 | JW95: 2003-06-26T14:50:45 | JY95: 201.55441 | JZ95: 86.36847 | KA95: 66.4621 | KB95: 27.90373 | KC95: 8.83596 | KD95: 4.2243 | KE95: 1.53938 | KF95: 1.9061 | KG95: 2.60783 | KH95: 1.70654 | KJ95: 4.26 | KK95: 197.24004 | KR95: 38167.54242 | KS95: 295.692 | KT95: 3.26 | KU95: 4.157332521 | KV95: 3.464414992 | KW95: L | KX95: 295.6 | KY95: 154.2 | KZ95: 99.2 | LA95: 32.8 | LB95: 7.2 | LC95: 1.8 | LD95: 0.264 | LE95: 0.228 | LF95: 0.048 | LG95: 0.036 | LH95: 0.024 | LI95: 0 | LJ95: 0 | LK95: 0 | LL95: 0
E96: 2014-07-22T13:27:37 | F96: 118.8 | H96: 0.6667441359 | K96: 2014-07-22T13:27:37 | L96: 47.9 | N96: 0.2688303376 | U96: 12:15:59 | V96: 12:15:20 | X96: 7.340981348 | Z96: 7.053716911 | AA96: 260.53 | AC96: 11:45:57 | AD96: 0.321866803 | AE96: 0.4288200341 | AF96: 0.3691444999 | AG96: 0.2027934841 | AH96: 0.1304185459 | AI96: 0.01628601632 | AJ96: 0.05595058706 | AK96: 0.0838576164 | AL96: 0.134695785 | AM96: 0.37633662 | AN96: 0.2010619298 | AO96: 0.4523893421 | AP96: 0 | AQ96: 0 | AR96: 11:45:15 | AT96: 1.965042752 | AU96: 122.49 | AV96: 1.52527997 | AY96: 10:57:35 | BA96: 2.101609606 | BB96: 11:04:35 | BC96: 2.642317768 | BD96: 146.48 | BF96: 12:40:11 | BH96: 4.357823092 | BI96: 12:40:24 | BJ96: 6.800996848 | BK96: 384.328 | BM96: 12:33:44 | BO96: 7.833629174 | BQ96: 11.24494478 | BR96: 6.999980677 | BT96: 10:28:15 | BV96: 1.494568932 | BX96: 4.133868183 | BY96: 102.7 | CA96: 09:36:56 | CC96: 5.506338497 | CE96: 7.337544152 | CF96: 457.898 | CH96: 10:46:48 | CJ96: 3.730994072 | CL96: 6.274705952 | CM96: 367.972 | CO96: 11:10:11 | CQ96: 2.734410633 | CS96: 4.252234996 | CT96: 210.7833 | CV96: 09:59:36 | CX96: 2.9299933 | CZ96: 4.656296236 | DA96: 216.9833 | DC96: 40377.48369 | DE96: 2.990635092 | DG96: 6.70438235 | DH96: 226.35 | DJ96: 10:49:25 | DL96: 10.46045851 | DN96: 3.280771575 | DO96: 218.02 | DQ96: 11:00:46 | DS96: 20.70420412 | DU96: 5.595837466 | DV96: 320.05 | DW96: 2011-07-27T11:42:00.002 | DX96: 11:42:10 | DZ96: 1.137685663 | EB96: 1.662846896 | ED96: 2011-07-20T10:08:15 | EF96: 6.831873334 | EH96: 4.314756345 | EI96: 202.0333 | EK96: 2013-07-18T12:52:00 | EM96: 3.10881837 | EN96: 2013-07-18T12:30:03 | EO96: 6.84451412 | EP96: 416.1116667 | ER96: 2013-07-21T17:13:06 | ET96: 2.553165072 | EV96: 1.53200629 | EY96: 2013-07-22T16:50:02 | FA96: 4.357510769 | FC96: 4.519648684 | FF96: 2013-07-25T16:42:02 | FH96: 1.134470198 | FJ96: 1.027429142 | FR96: 2016-07-19T14:09:28 | FS96: 248.550 | FU96: 1.394943224 | FW96: 2016-07-19T14:24:36 | FY96: 288.517 | GA96: 1.619249121 | HC96: 2018-07-30 | HD96: 21:20:00 | HI96: 2.29415368 | HJ96: 6.55841214 | HL96: 4.72 | HM96: 147.875 | HV96: 2003-06-26T15:40:44 | HX96: 89.45155425 | HZ96: 527.6364875 | II96: 38167.54253 | IK96: 9.12 | IO96: 6.85 | JA96: 2002-06-23 | JB96: 14:03:03 | JC96: 176.4396 | JD96: 97.2088 | JE96: 49.7582 | JF96: 18.7692 | JG96: 5.956 | JH96: 2.4615 | JI96: 0.7033 | JJ96: 0.6593 | JK96: 0.8571 | JL96: 0.0659 | JN96: 2.63 | JO96: 175.52 | JW96: 2003-06-26T15:00:15 | JY96: 208.8505 | JZ96: 87.79703 | KA96: 67.05795 | KB96: 28.23548 | KC96: 9.49925 | KD96: 5.30321 | KE96: 1.93951 | KF96: 2.67472 | KG96: 3.88132 | KH96: 2.46202 | KJ96: 5.00 | KK96: 202.50715 | KR96: 38167.54248 | KS96: 295.644 | KT96: 3.41 | KU96: 20.33996963 | KV96: 3.598029676 | KW96: L | KX96: 295.6 | KY96: 154.8 | KZ96: 91.8 | LA96: 37.4 | LB96: 8.6 | LC96: 2.6 | LD96: 0.24 | LE96: 0.204 | LF96: 0.06 | LG96: 0.084 | LH96: 0.036 | LI96: 0.036 | LJ96: 0.024 | LK96: 0.012 | LL96: 0
